Workbook

Sheet NOTES
A2: The model has actual and test data to illustrate the workings of the model. | D2: ='Model update'!C5 -> 2020
A4: Issue | B4: Location | C4: Item | D4: Comment
A6: 1 | B6: 'Model update'!C25 | C6: CPI | D6: ="Updated June "&D2-1&" CPI for "&D2 -> Updated June 2019 CPI for 2020 | E6: NOTE: This worksheet is programmed to update for each year - use as checklist and note any placeholders or changes
E7: NOTE: Worksheet names in this file are programmed to update each year once each worksheet is accessed and a cell is selected
A8: =A6+1 -> 2 | B8: 'Model update'!G37:G41 | C8: Real Vanilla WACC (rvw) | D8: Updated 2020 values
A10: =A8+1 -> 3 | B10: 'Model update'!G54:G58 | C10: ="DuoS Xt for "&D2 -> DuoS Xt for 2020 | D10: Updated 2020 values
A12: =A10+1 -> 4 | B12: 'Model update'!G66:G70 | C12: ="Metering Xt for "&D2 -> Metering Xt for 2020 | D12: Updated 2020 values
A14: =A12+1 -> 5 | B14: 'Model update'!H79:H83 | C14: Real Pre-tax WACC (rptw) | D14: Updated 2020 values
A16: =A14+1 -> 6 | B16: 'Model update'!G94:G98 | C16: ="f factor (t) "&D2 -> f factor (t) 2020 | D16: Updated 2020 values
A18: =A16+1 -> 7 | B18: 'Model update'!G105:G109 | C18: ="S factor (t) "&D2 -> S factor (t) 2020 | D18: Updated 2020 values
A20: =A18+1 -> 8 | B20: 'Model update'!G116:G120 | C20: ="Pass through amounts (t) "&D2 -> Pass through amounts (t) 2020 | D20: ="NIL for "&D2 -> NIL for 2020
A22: =A20+1 -> 9 | B22: 'Model update'!G127:G131 | C22: ="Licence Fee (t-1) "&$D$2-2&"-"&$D$2-1 -> Licence Fee (t-1) 2018-2019 | D22: ="Placeholders used, "&D2-1&" figures escalated" -> Placeholders used, 2019 figures escalated
A24: =A22+1 -> 10 | B24: Metering!E8:E11 | C24: ="Metering - "&D2-1&" tariffs" -> Metering - 2019 tariffs | D24: ="Updated from "&D2-1&" model" -> Updated from 2019 model
B25: Metering!E32 | C25: Metering - Table 2 - B factor t-1
B26: Metering!D36 | C26: Metering - Table 3 - t-1 AAR
B27: Metering!D53:D54 | C27: Metering - Table 4 - T factor and AAR t-2
B28: Metering!D68 | C28: Metering - Table 5 - U/O balance b/f
B29: ="'"&$D$2&" Unmetered supply'!C7:E7" -> '2020 Unmetered supply'!C7:E7 | C29: ="Unmetered Supply - "&D2-1&" tariffs" -> Unmetered Supply - 2019 tariffs
A31: =A24+1 -> 11 | B31: Metering!D49 | C31: Metering - Table 4 - t-2 revenue | D31: ="Updated from "&$D$2-2&" Annual RIN" -> Updated from 2018 Annual RIN
B32: ="'"&$D$2&" Unmetered supply'!M7" -> '2020 Unmetered supply'!M7 | C32: Unmetered Supply - public lights t-2
A34: =A31+1 -> 12 | B34: ="'"&$D$2&"DistRevCapForm'!H21" -> '2020DistRevCapForm'!H21 | C34: Dist - Table 3 - t-2 AAR | D34: ="Updated from "&$D$2-1&" model" -> Updated from 2019 model
B35: ="'"&$D$2&"DistRevCapForm'!H28" -> '2020DistRevCapForm'!H28 | C35: Dist - Table 4 - t-1 approved under/over recovery
B36: ="'"&$D$2&"DistRevCapForm'!C55" -> '2020DistRevCapForm'!C55 | C36: Dist - Table 6 - Licence fee t-2
B37: ="'"&$D$2&"DistRevCapForm'!C57" -> '2020DistRevCapForm'!C57 | C37: Dist - Table 6 - Pass through (2014/15)
B38: ="'"&$D$2&"DistRevCapForm'!C71" -> '2020DistRevCapForm'!C71 | C38: Dist - Table 7 - U/O balance b/f
B39: ="Est"&$D$2-1&"DistRev!D6:P35" -> Est2019DistRev!D6:P35 | C39: ="Dist - "&D2-1&" tariffs" -> Dist - 2019 tariffs
B40: ="Est"&$D$2-1&"DistRev!R6:AD35" -> Est2019DistRev!R6:AD35 | C40: ="Dist - Estimated "&D2-1&" quantities" -> Dist - Estimated 2019 quantities
A42: =A34+1 -> 13 | B42: ="'"&$D$2&"DistRevCapForm'!C47" -> '2020DistRevCapForm'!C47 | C42: Dist - Table 6 - t-2 revenue | D42: ="Updated from "&$D$2-2&" Annual RIN" -> Updated from 2018 Annual RIN
A44: =A42+1 -> 14 | B44: ="'"&$D$2&"TransRevCont'!C20:C23" -> '2020TransRevCont'!C20:C23 | C44: Trans - Table 3 - Trans charges forecasts t | D44: ="Updated from "&$D$2-1&" model" -> Updated from 2019 model
B45: ="'"&$D$2&"TransRevCont'!D42:D45" -> '2020TransRevCont'!D42:D45 | C45: Trans - Table 4 - Trans charges estimates t-1
B46: ="'"&$D$2&"TransRevCont'!C60" -> '2020TransRevCont'!C60 | C46: Trans - Table 5 - U/O balance b/f
B47: ="Est"&$D$2-1&"TransRev!D6:P35" -> Est2019TransRev!D6:P35 | C47: ="Trans - "&D2-1&" tariffs" -> Trans - 2019 tariffs
B48: ="Est"&$D$2-1&"TransRev!R6:AD35" -> Est2019TransRev!R6:AD35 | C48: ="Trans - Estimated "&D2-1&" quantities" -> Trans - Estimated 2019 quantities
A50: =A44+1 -> 15 | B50: ="'"&$D$2&"TransRevCont'!C34" -> '2020TransRevCont'!C34 | C50: Trans - Table 4 - t-2 revenue | D50: ="Updated from "&$D$2-2&" Annual RIN" -> Updated from 2018 Annual RIN
B51: TUoS cost audit template'!F4 | C51: Trans - t-2 AEMO charges
B52: TUoS cost audit template'!F11:F12 | C52: Trans - t-2 connection charges
B53: TUoS cost audit template'!C20:E22 | C53: Trans - t-2 internetwork charges
B54: TUoS cost audit template'!F29 | C54: Trans - t-2 embedded generators
A56: =A50+1 -> 16 | B56: ="'"&$D$2&"JSRevCont'!C20:C21" -> '2020JSRevCont'!C20:C21 | C56: JUoS - Table 3 - FiT charges forecasts t | D56: ="Updated from "&$D$2-1&" model" -> Updated from 2019 model
B57: ="'"&$D$2&"JSRevCont'!D40:D41" -> '2020JSRevCont'!D40:D41 | C57: JUoS - Table 4 - FiT charges estiamtes t-1
B58: ="'"&$D$2&"JSRevCont'!C56" -> '2020JSRevCont'!C56 | C58: JUoS - Table 5 - U/O blance b/f
B59: ="Est"&$D$2-1&"JSRev!D6:P54" -> Est2019JSRev!D6:P54 | C59: ="JUoS - "&D2-1&" tariffs" -> JUoS - 2019 tariffs
B60: ="Est"&$D$2-1&"JSRev!R6:AD54" -> Est2019JSRev!R6:AD54 | C60: ="JUoS - Estimated "&D2-1&" quantities" -> JUoS - Estimated 2019 quantities
A62: =A56+1 -> 17 | B62: ="'"&$D$2&"JSRevCont'!C32" -> '2020JSRevCont'!C32 | C62: JUoS - Table 4 - t-2 revenue | D62: ="Updated from "&$D$2-2&" Annual RIN" -> Updated from 2018 Annual RIN
B63: JS cost audit template'!F4:F5 | C63: JUoS - t-2 FiT charges
A65: =A62+1 -> 18 | B65: ="Prop"&D2&"TSSComp!R6:AD54" -> Prop2020TSSComp!R6:AD54 | C65: ="Indicative "&D2&" tariffs" -> Indicative 2020 tariffs | D65: ="Updated from "&$D$2-1&" model" -> Updated from 2019 model
A67: DNSP required to populate/update with relevant data:
A69: =A65+1 -> 19 | B69: ="'Indicative prices for "&D2+1&"'!A1:O65" -> 'Indicative prices for 2021'!A1:O65 | C69: ="TSS indicative prices for "&D2+1 -> TSS indicative prices for 2021 | D69: DNSP required to populate with relevant data
A71: =A69+1 -> 20 | B71: The following is test data to illustrate the workings of the model. | D71: Input data required from DNSPs
B72: Metering!D8:D11 | C72: ="Proposed Metering Tariffs P(t) for "&D2 -> Proposed Metering Tariffs P(t) for 2020
B73: Metering!F8:F11 | C73: ="Forecast Quantities (Qt) for "&D2 -> Forecast Quantities (Qt) for 2020
B74: Metering!D80:D83 | C74: ="Estimated Quantities (Qt-1) for "&D2-1 -> Estimated Quantities (Qt-1) for 2019
B76: ="'Prop"&$D$2&"DistTar!D6:P54" -> 'Prop2020DistTar!D6:P54 | C76: ="Proposed Distribution Tariffs (Pt) for "&D2 -> Proposed Distribution Tariffs (Pt) for 2020
B77: ="'Prop"&$D$2&"DistTar!AF6:AR54" -> 'Prop2020DistTar!AF6:AR54 | C77: ="Forecast Quantities (Qt) for "&D2 -> Forecast Quantities (Qt) for 2020
B78: ="Est"&$D$2-1&"DistRev!R6:AD54" -> Est2019DistRev!R6:AD54 | C78: ="Estimated Distribution Quantities (Qt-1) for "&D2-1 -> Estimated Distribution Quantities (Qt-1) for 2019
B80: ="'Prop"&D2&"TransTar!D6:P54" -> 'Prop2020TransTar!D6:P54 | C80: ="Proposed Transmission Tariffs (Pt) for "&D2 -> Proposed Transmission Tariffs (Pt) for 2020
B81: ="'"&$D$2&"TransRevCont'!C20:C23" -> '2020TransRevCont'!C20:C23 | C81: Table 3 - Transmission charges for year t
B82: ="'"&$D$2&"TransRevCont'!D42:D45" -> '2020TransRevCont'!D42:D45 | C82: Transmission charges for year t-1
B84: ="'Prop"&D2&"JSTar!D6:P54" -> 'Prop2020JSTar!D6:P54 | C84: ="Proposed Jurisdictional scheme Tariffs (Pt) for "&D2 -> Proposed Jurisdictional scheme Tariffs (Pt) for 2020
B85: ="'"&$D$2&"JSRevCont'!C20:C21" -> '2020JSRevCont'!C20:C21 | C85: Table 3 - PFIT & TFIT charges for year t
B86: ="'"&$D$2&"JSRevCont'!D40:D41" -> '2020JSRevCont'!D40:D41 | C86: PFIT & TFIT charges for year t-1

Sheet Formulae
B2: DUoS
B3: Figure 14.1 Revenue cap formulae
B4: (1) | H4: i=1,..,n and j=1,..,m and t=1,..,5
B5: (2) | H5: t = 1,2,…,5
B6: (3) | H6: t = 1
B7: (4) | H7: t = 2,…,5
B9: where;
C10: is the total annual revenue in year t.
D11: is the price of component 'j' of tariff 'i' in year t.
D12: is the forecast quantity of component 'j' of tariff 'i' in year t.
C13: is the adjusted annual smoothed revenue requirement for year t.
D14: is the annual adjustment f–factor scheme amount in year t. This amount will be calculated as per the method set out in the relevant f–factor scheme.
D15: is the sum of:
B16: · the final carryover amount from the application of the DMIS from the 2011–15 regulatory control period. This amount will be calculated using the method set out in the DMIS and will be deducted from/added to allowed revenue in the 2017 pricing proposal.
D17: is the sum of:
B18: · the recovery of license fee charges by the Victorian Essential Services Commission indexed by one and a half years of interest, calculated using the following method:
B20: where:
C21: are the licence fees paid by DNSP to the Victorian Essential Services Commission in the financial year ending in June of regulatory year t–1,
C22: is the approved nominal weighted average cost of capital (WACC) for the relevant regulatory year using the following method:
B25: · any under or over recovery of actual revenue collected through DUoS charges in regulatory year t–2 as calculated using the method in appendix A,
B26: · the AER approved pass through amounts (positive or negative) with respect to regulatory year t.
C27: is the annual smoothed revenue requirement as stated in the Post Tax Revenue Model (PTRM) for year t (when year t is the first year of the 2016–20 regulatory control period).[43]
C28: is the s‑factor determined in accordance with the service target performance incentive scheme (STPIS) for regulatory year t.[44]
C29: is the annual percentage change in the ABS CPI All Groups, Weighted Average of Eight Capital Cities[45] from the June quarter in year t–2 to the June quarter in year t–1, calculated using the following method :
B30: The ABS CPI All Groups, Weighted Average of Eight Capital Cities for the June quarter in regulatory year t–1
B31: divided by
B32: The ABS CPI All Groups, Weighted Average of Eight Capital Cities for the June quarter in regulatory year t–2
B33: minus one.
B34: For example, for the 2017 regulatory year, t–2 is June quarter 2015 and t–1 is June quarter 2016 and for the 2018 regulatory year, t–2 is June quarter 2016 and t–1 is June quarter 2017 and so on.
C35: is the X factor for each year of the 2016–20 regulatory control period as determined in the PTRM, and annually revised for the return on debt update in accordance with the formula specified in attachment 3—rate of return—calculated for the relevant year.
B38: [43] | C38: Our final F&A stated that if necessary an adjustment for inflation may be required to the annual smoothed revenue requirement for year t. However, as the annual smoothed revenue requirement for year t as stated in our preliminary decision PTRM is in nominal dollars there is no need to adjust it for inflation. This approach is consistent with past regulatory practice.
B39: [44] | C39: For the first two regulatory years of the 2016–20 regulatory control period, the value of St is to be adjusted to account for the change in revenue requirements between the regulatory control periods, as explained in attachment 11. In the formulas in the STPIS, the AR(t+1) is equivalent to ARt in this formula. Calculations of the S factor adjustment are to be made accordingly.
B40: [45] | C40: If the ABS does not or ceases to publish the index, then CPI will mean an index which the AER considers is the best available alternative index
B44: Figure 14.2 Side constraints [46]
C50: where each tariff class has "n" tariffs, with each up to "m" components, and where:
D51: is the proposed price for component ‘j’ of tariff 'i' for year t.
C52: is the price charged for component ‘j’ of tariff 'i' in year t–1.
D53: is the forecast quantity of component ‘j’ of tariff 'i' in year t.
C54: is the annual percentage change in the ABS CPI All Groups, Weighted Average of Eight Capital Cities[4] from the June quarter in year t–2 to the June quarter in year t–1, calculated using the following method :
C55: The ABS CPI All Groups, Weighted Average of Eight Capital Cities[47] for the June quarter in regulatory year t–1
C56: divided by
C57: The ABS CPI All Groups, Weighted Average of Eight Capital Cities for the June quarter in regulatory year t–2
C58: minus one.
B59: For example, for the 2017 regulatory year, t–2 is June quarter 2015 and t–1 is June quarter 2016 and for the 2018 regulatory year, t–2 is June quarter 2016 and t–1 is June quarter 2017 and so on.
D60: is the X factor for each year of the 2016–20 regulatory control period as determined in the PTRM, and annually revised for the return on debt update in accordance with the formula specified in attachment 3—rate of return—calculated for the relevant year. If X>0, then X will be set equal to zero for the purposes of the side constraint formula.
C61: is the s‑factor determined in accordance with the STPIS for regulatory year t.[5]
D62: is the annual percentage change from the f–factor scheme amount in year t. This amount will be calculated as per the method set out in attachment 19—f–factor scheme.
D63: is the annual percentage change from the final carryover amount from the application of the DMIS from the 2011–15 regulatory control period. This amount will be calculated using the method set out in the DMIS and will be deducted from/added to allowed revenue in the 2017 pricing proposal.
D64: is annual percentage change from the sum of:
B65: · the recovery of license fee charges by the Victorian Essential Services Commission indexed by one and a half years of interest, calculated using the following method:
B67: where:
B68: are the licence fees paid byDNSP to the Victorian Essential Services Commission in the financial year ending in June of regulatory year t–1,
C69: is the approved nominal weighted average cost of capital (WACC) for the relevant regulatory year using the following method:
B72: where the
B73: is as set out in our final decision PTRM and updated annually
B74: · the AER approved pass through amounts (positive or negative) with respect to regulatory year t.
B75: With the exception of the CPI, X factor and S factor, the percentage for each of the other factors above can be calculated by dividing the incremental revenues (as used in the total annual revenue formula) for each factor by the expected revenues for regulatory year t–1 (based on the prices in year t–1 multiplied by the forecast quantities for year t).
B77: [46] | C77: All parameters are in nominal terms unless otherwise specified.
B78: [47] | C78: If the ABS does not or ceases to publish the index, then CPI will mean an index which the AER considers is the best available alternative index.
H83: Table 14.1 | I83: Example calculation of DUoS unders and overs account ($'000, nominal)
I84: Year t–2 | J84: Year t–1 | K84: Year t
I85: (actual) | J85: (estimate) | K85: (forecast)
H86: (A) Revenue from DUoS charges | I86: 46 779 | J86: 40 269 | K86: 39 510
H87: (B) Less TAR for regulatory year = | I87: 43 039 | J87: 41 427 | K87: 44 429
H88: + Adjusted annual smoothed revenues (AARt) | I88: 40 189 | J88: 41 393 | K88: 44 393
H89: + f–factor scheme amount (It) | I89: –12 | J89: 10 | K89: 14
H90: + DMIS carryover amount (Tt) | I90: 1013 | J90: 0 | K90: 0
H91: + Annual adjustments (Bt)a = | I91: 1849 | J91: 24 | K91: 22
H92: + License fee recovery | I92: 25 | J92: 24 | K92: 22
H93: + Approved pass through amounts | I93: 1824 | J93: 0 | K93: 0
H95: (A minus B) Under/over recovery of revenue for regulatory year | I95: 3740 | J95: –1158 | K95: –4919b
H97: DUoS unders and overs account
H98: Nominal WACC (per cent) | I98: 0.05 | J98: 0.055 | K98: 0.06
H99: Opening balance | I99: 1737 | J99: 5656c | K99: 4778
H100: Interest on opening balance | I100: 87 | J100: 311 | K100: 287
H101: Under/over recovery of revenue for regulatory year | I101: 3740 | J101: –1158 | K101: –4919b
H102: Interest on under/over recovery for regulatory year | I102: 92 | J102: –31 | K102: –145
H103: Closing balance | I103: 5656 | J103: 4778 | K103: 0d
G104: Notes: | H104: (a) Bt parameter calculations in the DUoS unders and overs account exclude approved DUoS revenue under/over recovery for regulatory year.
H105: (b) Approved DUoS revenue under/over recovery for regulatory year t.
H106: (c) Opening balance is the previous year's closing balance.
H107: (d) The DNSP is expected to achieve a closing balance as close to zero as practicable in its DUoS unders and overs account in each forecast year in its annual pricing proposals in the 2016–20 regulatory control period.
H113: Table 14.2 | I113: Example calculation of designated pricing proposal charges unders and overs account ($'000, nominal)
I114: Year t–2 | J114: Year t–1 | K114: Year t
I115: (actual) | J115: (estimate) | K115: (forecast)
H116: (A) Revenue from designated pricing proposal charges (DPPC) | I116: 40 077 | J116: 34 944 | K116: 36 609
H117: (B) Less DPPC related payments for regulatory year = | I117: 34 365 | J117: 38 734 | K117: 39 200
H118: + DPPC charges to be paid to TNSP | I118: 33 672 | J118: 37 933 | K118: 38 000
H119: + Avoided TUoS/DPPC payments | I119: 572 | J119: 734 | K119: 800
H120: + Inter–distributor payments | I120: 121 | J120: 67 | K120: 400
H122: (A minus B) Under/over recovery of revenue for regulatory year | I122: 5712 | J122: –3790 | K122: –2540a
H124: DPPC unders and overs account
H125: Nominal WACC (per cent) | I125: 0.05 | J125: 0.055 | K125: 0.06
H126: Opening balance | I126: 167 | J126: 6028b | K126: 2467
H127: Interest on opening balance | I127: 8 | J127: 332 | K127: 148
H128: Under/over recovery of revenue for regulatory year | I128: 5712 | J128: –3790 | K128: –2540a
H129: Interest on under/over recovery for regulatory year | I129: 141 | J129: –103 | K129: –75
H130: Closing balance | I130: 6028 | J130: 2467 | K130: 0c
G131: Notes: | H131: (a) Approved DPPC revenue under/over recovery for regulatory year t.
H132: (b) Opening balance is the previous year's closing balance.
H133: (c)The DNSP is expected to achieve a closing balance as close to zero as practicable in its DPPC unders and overs account in each forecast year in its annual pricing proposals in the 2016–20 regulatory control period.
H139: Table 14.3 Example calculation of jurisdictional scheme amounts unders and overs account ($'000, nominal)
I140: Year t–2 | J140: Year t–1 | K140: Year t
I141: (actual) | J141: (estimate) | K141: (forecast)
H142: (A) Revenue from jurisdictional schemes | I142: 19 777 | J142: 23 121 | K142: 26 965
H143: (B) Less jurisdictional scheme payments for regulatory year = | I143: 20 272 | J143: 20 959 | K143: 28 641
H144: + Jurisdictional scheme 1 payments | I144: 14 159 | J144: 13 954 | K144: 13 961
H145: + Jurisdictional scheme 2 payments | I145: 6113 | J145: 7005 | K145: 14 680
H147: (A minus B) Under/over recovery of revenue for regulatory year | I147: –495 | J147: 2162 | K147: –1676a
H149: Jurisdictional scheme amount unders and overs account
H150: Nominal WACC (per cent) | I150: 0.05 | J150: 0.055 | K150: 0.06
H151: Opening balance | I151: –52 | J151: –562b | K151: 1628
H152: Interest on opening balance | I152: –3 | J152: –31 | K152: 98
H153: Under/over recovery of revenue for regulatory year | I153: –495 | J153: 2162 | K153: –1676a
H154: Interest on under/over recovery for regulatory year | I154: –12 | J154: 59 | K154: –50
H155: Closing balance | I155: –562 | J155: 1628 | K155: 0c
G156: Notes: | H156: (a) Approved jurisdictional scheme amounts revenue under/over recovery for regulatory year t.
H157: (b) Opening balance is the previous year's closing balance.
H158: (c) The DNSP is expected to achieve a closing balance as close to zero as practicable in its jurisdictional scheme amount unders and overs account in each forecast year in its annual pricing proposals in the 2016–20 regulatory control period.
B166: Metering
B167: Figure 16.3 | C167: Annual metering charges revenue cap formula
A168: (1) | H168: i=1,..,n and j=1,..,m and t=1,..,5
A170: (2) | H170: t = 1,2,…,5
A172: (3) | H172: t = 1,2,…,5
B175: where;
C176: is the total annual revenue for annual metering charges in year t.
E177: is the price of component 'j' of metering service 'i' in year t.
E178: is the forecast quantity of component 'j' of metering service 'i' in year t.
D179: is the annual revenue requirement for year t. When year t is the first year of the 2016–20 regulatory control period,
D180: is the annual revenue requirement in the annual metering charges Post Tax Revenue Model (PTRM) for year t.
E181: is equal to zero for all years except 2017 and is a once off adjustment to 2017 charges for the unders and overs recoveries relating to Advanced Metering Infrastructure actual revenues and actual costs incurred in 2014 and 2015.
E182: is the sum of annual adjustment factors in year t as calculated in the unders and overs account in appendix C.
D184: is the annual revenue requirement for year t–1.
C185: is the annual percentage change in the ABS CPI All Groups, Weighted Average of Eight Capital Cities[39] from the June quarter in year t–2 to the June quarter in year t–1, calculated using the following method:
B186: The ABS CPI All Groups, Weighted Average of Eight Capital Cities for the June quarter in regulatory year t–1
B187: divided by
B188: The ABS CPI All Groups, Weighted Average of Eight Capital Cities for the June quarter in regulatory year t–2
B189: minus one.
B190: For example, for the 2017 regulatory year, t–2 is June quarter 2015 and t–1 is June quarter 2016 and for the 2018 regulatory year, t–2 is June quarter 2016 and t–1 is June quarter 2017 and so on.
D191: is the X factor for each year of the 2016–20 regulatory control period as determined in the annual metering charges PTRM.
B194: [39] | C194: If the ABS does not or ceases to publish the index, then CPI will mean an index which the AER considers is the best available alternative index
B199: Figure 16.4 Side constraints
B201: where:
E202: is the price of annual metering charges service 'i' in year t.
D203: is the price of annual metering charges service 'i' in year t–1.
C204: is the annual percentage change in the ABS CPI All Groups, Weighted Average of Eight Capital Cities from the June quarter in year t–2 to the June quarter in year t–1, calculated using the following method:
B205: The ABS CPI All Groups, Weighted Average of Eight Capital Cities[40] for the June quarter in regulatory year t–1
B206: divided by
B207: The ABS CPI All Groups, Weighted Average of Eight Capital Cities for the June quarter in regulatory year t–2
B208: minus one.
B209: For example, for the 2017 regulatory year, t–2 is June quarter 2015 and t–1 is June quarter 2016 and for the 2018 regulatory year, t–2 is June quarter 2016 and t–1 is June quarter 2017 and so on.
D210: is the X factor for each year of the 2016–20 regulatory control period as determined in the annual metering charges PTRM.
E211: is the annual percentage change for the unders and overs recoveries relating to Advanced Metering Infrastructure actual revenues and actual costs incurred in 2014 and 2015. It is equal to zero for all years except 2017 and is a once off adjustment to 2017 charges.
E212: is the annual percentage change from the sum of annual adjustment factors in year t as calculated in the unders and overs account in appendix C.
B213: With the exception of the CPI and the X factor, the percentage for each of the other factors above can be calculated by dividing the incremental revenues (as used in the total annual revenue formula) for each factor by the expected revenues for regulatory year t–1 (based on the prices in year t–1 multiplied by the forecast quantities for year t).
B215: [40] | C215: If the ABS does not or ceases to publish the index, then CPI will mean an index which the AER considers is the best available alternative index.
H220: Table 16.xx | I220: Example calculation of annual metering charges unders and overs account ($'000, nominal)
I221: Year t–2 | J221: Year t–1 | K221: Year t
I222: (actual) | J222: (estimate) | K222: (forecast)
H223: (A) Revenue from annual metering charges | I223: 8 449 | J223: 7 389 | K223: 6 460
H224: (B) Less TARM for regulatory year = | I224: 7 366 | J224: 7 422 | K224: 7 573
H225: + Annual revenue requirement (ARt) | I225: 7 349 | J225: 7 412 | K225: 7 559
H226: + T factor (Tt) – true‑ups relating to the AMI–Order in Council | I226: 17 | J226: 10 | K226: 14
H228: (A minus B) Under/over recovery of revenue for regulatory year | I228: 1 083 | J228: –33 | K228: –1 113a
H230: Annual metering charges unders and overs account
H231: Nominal WACC (per cent) | I231: 0.05 | J231: 0.055 | K231: 0.06
H232: Opening balance | I232: –50 | J232: 1 057b | K232: 1 081
H233: Interest on opening balance | I233: –3 | J233: 58 | K233: 65
H234: Under/over recovery of revenue for regulatory year | I234: 1 083 | J234: –33 | K234: –1 113b
H235: Interest on under/over recovery for regulatory year | I235: 27 | J235: –1 | K235: –33
H236: Closing balance | I236: 1 057 | J236: 1 081 | K236: 0c
G237: Notes: | H237: (a) Approved annual metering charges revenue under/over recovery for regulatory year t. This is the Bt parameter in the annual metering charges revenue cap formula.
H238: (b) Opening balance is the previous year's closing balance.
H239: (c) The DNSP is expected to achieve a closing balance as close to zero as practicable in its annual metering charges unders and overs account in each forecast year in its annual pricing proposals in the 2016–20 regulatory control period.

Sheet Model update
A3: Tariff Approval Template for | C3: =A41 -> United Energy
A5: calendar year commencing | C5: 2020
A7: t | B7: = | C7: =C5 -> 2020
A8: t-1 | B8: = | C8: =C7-1 -> 2019
A9: t-2 | B9: = | C9: 2018
A10: t-3 | B10: = | C10: 2017
A11: t-4 | B11: = | C11: 2016
A13: Please fill in yellow highlighted cells where appropriate
A15: CPI | B15: The ABS changed the index reference base in September 2012 from 1989-90 to 2011-12.
A16: CPI Index Sept 2011 | C16: 99.8
A17: CPI Index Sept 2012 | C17: 101.8 | E17: CPI 2013 | F17: =C17/C16-1 -> 0.02004008016
A18: CPI Index Sept 2013 | C18: 104 | E18: CPI 2014 | F18: =C18/C17-1 -> 0.02161100196
A19: CPI Index Sept 2014 | C19: 106.4 | E19: CPI 2015 | F19: =C19/C18-1 -> 0.02307692308
A20: CPI Index Sept 2015 | C20: 108 | E20: CPI 2016 | F20: =C20/C19-1 -> 0.01503759398
A21: CPI Index June 2015 | C21: 107.5
A22: CPI Index June 2016 | C22: 108.6 | E22: CPI 2017 | F22: =IF(OR(C21="",C22=""),0,C22/C21-1) -> 0.01023255814
A23: CPI Index June 2017 | C23: 110.7 | E23: CPI 2018 | F23: =IF(OR(C22="",C23=""),0,C23/C22-1) -> 0.01933701657
A24: CPI Index June 2018 | C24: 113 | E24: CPI 2019 | F24: 0.02077687444
A25: CPI Index June 2019 | C25: 114.8 | E25: CPI 2020 | F25: 0.01592920354
A28: ="CPI " &$C$9 -> CPI 2018 | C28: =VLOOKUP(A28,E$17:F$25,2,FALSE) -> 0.01933701657 | D28: (t-2)
A29: ="CPI " &$C$8 -> CPI 2019 | C29: =VLOOKUP(A29,E$17:F$25,2,FALSE) -> 0.02077687444 | D29: (t-1)
A30: ="CPI " &$C$5 -> CPI 2020 | C30: 0.01592920354 | D30: (t)
A35: Real Vanilla WACC (rvw)
A36: ="rvw for "&C$5 -> rvw for 2020 | D36: rvw for 2016 | E36: rvw for 2017 | F36: rvw for 2018 | G36: rvw for 2019 | H36: rvw for 2020
A37: =$A$54 -> Jemena | B37: =HLOOKUP($A$36,$D$36:$H$41,2,FALSE) -> 0.03656195102 | D37: 0.03932862871 | E37: 0.03873057145 | F37: 0.03821466541 | G37: 0.03766911607 | H37: 0.03656195102
A38: =$A$55 -> CitiPower | B38: =HLOOKUP($A$36,$D$36:$H$41,3,FALSE) -> 0.03362104414 | D38: 0.0367000241 | E38: 0.03612756881 | F38: 0.03563047885 | G38: 0.03508047475 | H38: 0.03362104414
A39: =$A$56 -> Powercor | B39: =HLOOKUP($A$36,$D$36:$H$41,4,FALSE) -> 0.03362104414 | D39: 0.0367000241 | E39: 0.03612756881 | F39: 0.03563047885 | G39: 0.03508047475 | H39: 0.03362104414
A40: =$A$57 -> AusNet Services | B40: =HLOOKUP($A$36,$D$36:$H$41,5,FALSE) -> 0.03625857578 | D40: 0.03871679489 | E40: 0.03826233619 | F40: 0.03801328469 | G40: 0.03742733406 | H40: 0.03625857578
A41: =$A$58 -> United Energy | B41: =HLOOKUP($A$36,$D$36:$H$41,6,FALSE) -> 0.03600205381 | D41: 0.0393301904 | E41: 0.03869503169 | F41: 0.03812382202 | G41: 0.03751614965 | H41: 0.03600205381
A43: ="rvw (t) "&C$5 -> rvw (t) 2020 | B43: =VLOOKUP(C$3,A37:B41,2,FALSE) -> 0.03600205381 | C43: (t) | D43: =VLOOKUP($C$3,$A$37:$H$41,4,FALSE) -> 0.0393301904 | E43: =VLOOKUP($C$3,$A37:$H$41,5,FALSE) -> 0.03869503169 | F43: =VLOOKUP($C$3,$A$37:$H$41,6,FALSE) -> 0.03812382202 | G43: =VLOOKUP($C$3,$A$37:$H$41,7,FALSE) -> 0.03751614965 | H43: =VLOOKUP($C$3,$A$37:$H$41,8,FALSE) -> 0.03600205381
A45: ="rvw for "&C$5-1 -> rvw for 2019 | B45: =IF(C$5=2016,F$184,HLOOKUP($A45,D$36:H$43,8,FALSE)) -> 0.03751614965 | C45: (t-1)
A47: ="rvw for "&C$5-2 -> rvw for 2018 | B47: =IF(OR(C$5=2016,C$5=2017),F$183,HLOOKUP($A47,D$36:H$43,8,FALSE)) -> 0.03812382202 | C47: (t-2)
A52: DuoS
A53: ="Xt for "&C$5 -> Xt for 2020 | D53: AR for 2016 | E53: Xt for 2017 | F53: Xt for 2018 | G53: Xt for 2019 | H53: Xt for 2020
A54: Jemena | B54: =IF(C$5=2016,"n/a",HLOOKUP($A$53,$E$53:$H$58,2,FALSE)) -> -0.01712086467 | D54: 238498758 | E54: -0.0325 | F54: 0.0027 | G54: -0.01194800863 | H54: -0.01712086467
A55: CitiPower | B55: =IF(C$5=2016,"n/a",HLOOKUP($A$53,$E$53:$H$58,3,FALSE)) -> -0.01878550313 | D55: 282881283 | E55: 0.004 | F55: -0.0005 | G55: -0.001232459035 | H55: -0.01878550313
A56: Powercor | B56: =IF(C$5=2016,"n/a",HLOOKUP($A$53,$E$53:$H$58,4,FALSE)) -> -0.02401925855 | D56: 621773294 | E56: 0.0468 | F56: -0.0081 | G56: -0.03021164125 | H56: -0.02401925855
A57: AusNet Services | B57: =IF(C$5=2016,"n/a",HLOOKUP($A$53,$E$53:$H$58,5,FALSE)) -> -0.0216670272 | D57: 586045137 | E57: 0.003 | F57: -0.0184 | G57: -0.03013217637 | H57: -0.0216670272
A58: United Energy | B58: =IF(C$5=2016,"n/a",HLOOKUP($A$53,$E$53:$H$58,6,FALSE)) -> 0.00492058777 | D58: 375069867 | E58: -0.0383 | F58: -0.0316 | G58: -0.02611202001 | H58: 0.00492058777
A60: ="Xt for"&C$5 -> Xt for2020 | B60: =VLOOKUP(C$3,A54:B58,2,FALSE) -> 0.00492058777 | D60: =VLOOKUP($C$3,$A$54:$H$58,4,FALSE) -> 375069867 | E60: =VLOOKUP($C$3,$A$54:$H$58,5,FALSE) -> -0.0383 | F60: =VLOOKUP($C$3,$A$54:$H$58,6,FALSE) -> -0.0316 | G60: =VLOOKUP($C$3,$A$54:$H$58,7,FALSE) -> -0.02611202001 | H60: =VLOOKUP($C$3,$A$54:$H$58,8,FALSE) -> 0.00492058777
A64: Metering
A65: ="Xt for "&C$5 -> Xt for 2020 | D65: AR for 2016 | E65: Xt for 2017 | F65: Xt for 2018 | G65: Xt for 2019 | H65: Xt for 2020
A66: Jemena | B66: =IF(C$5=2016,"n/a",HLOOKUP($A$65,$E$65:$H$70,2,FALSE)) -> -0.01247641622 | D66: 44212949.02 | E66: 0.3473 | F66: -0.0136 | G66: -0.01181844246 | H66: -0.01247641622
A67: CitiPower | B67: =IF(C$5=2016,"n/a",HLOOKUP($A$65,$E$65:$H$70,3,FALSE)) -> 0.07970194511 | D67: 32973195.04 | E67: 0.1402 | F67: 0.0767 | G67: 0.07936799905 | H67: 0.07970194511
A68: Powercor | B68: =IF(C$5=2016,"n/a",HLOOKUP($A$65,$E$65:$H$70,4,FALSE)) -> 0.08534951837 | D68: 79145313.2 | E68: 0.1096 | F68: 0.0819 | G68: 0.08490086085 | H68: 0.08534951837
A69: AusNet Services | B69: =IF(C$5=2016,"n/a",HLOOKUP($A$65,$E$65:$H$70,5,FALSE)) -> 0.1693082632 | D69: 92754610.44 | E69: 0.0231 | F69: 0.1658 | G69: 0.1693485927 | H69: 0.1693082632
A70: United Energy | B70: =IF(C$5=2016,"n/a",HLOOKUP($A$65,$E$65:$H$70,6,FALSE)) -> 0.05978110253 | D70: 62733316.95 | E70: 0.3081 | F70: 0.057 | G70: 0.05954200889 | H70: 0.05978110253
A72: ="Xt for"&C$5 -> Xt for2020 | B72: =VLOOKUP(C$3,A66:B70,2,FALSE) -> 0.05978110253 | D72: =VLOOKUP($C$3,$A$66:$H$70,4,FALSE) -> 62733316.95 | E72: =VLOOKUP($C$3,$A$66:$H$70,5,FALSE) -> 0.3081 | F72: =VLOOKUP($C$3,$A$66:$H$70,6,FALSE) -> 0.057 | G72: =VLOOKUP($C$3,$A$66:$H$70,7,FALSE) -> 0.05954200889 | H72: =VLOOKUP($C$3,$A$66:$H$70,8,FALSE) -> 0.05978110253
A76: DuoS
A77: Real Pre-tax WACC (rptw)
A78: ="rptw for "&C$5 -> rptw for 2020 | D78: rptw for 2016 | E78: rptw for 2017 | F78: rptw for 2018 | G78: rptw for 2019 | H78: rptw for 2020
A79: =$A$54 -> Jemena | B79: =HLOOKUP($A$78,$D$78:$H$83,2,FALSE) -> 0.04419676788 | D79: 0.04723374708 | E79: 0.04663553542 | F79: 0.04611949618 | G79: 0.04530393293 | H79: 0.04419676788
A80: =$A$55 -> CitiPower | B80: =HLOOKUP($A$78,$D$78:$H$83,3,FALSE) -> 0.04111999903 | D80: 0.04696344556 | E80: 0.04636538831 | F80: 0.04584948227 | G80: 0.04257942963 | H80: 0.04111999903
A81: =$A$56 -> Powercor | B81: =HLOOKUP($A$78,$D$78:$H$83,4,FALSE) -> 0.04012257803 | D81: 0.04347088828 | E81: 0.0428982852 | F81: 0.0424010669 | G81: 0.04158200864 | H81: 0.04012257803
A82: =$A$57 -> AusNet Services | B82: =HLOOKUP($A$78,$D$78:$H$83,5,FALSE) -> 0.04261073895 | D82: 0.04533877046 | E82: 0.04488419444 | F82: 0.04463507863 | G82: 0.04377949723 | H82: 0.04261073895
A83: =$A$58 -> United Energy | B83: =HLOOKUP($A$78,$D$78:$H$83,6,FALSE) -> 0.04459313232 | D83: 0.04819181771 | E83: 0.04755649502 | F83: 0.04698513788 | G83: 0.04610722815 | H83: 0.04459313232
A85: ="rptw (t) "&C$5 -> rptw (t) 2020 | B85: =VLOOKUP(C$3,A79:B83,2,FALSE) -> 0.04459313232 | C85: (t) | D85: =VLOOKUP($C$3,$A$79:$H$83,4,FALSE) -> 0.04819181771 | E85: =VLOOKUP($C$3,$A79:$H$83,5,FALSE) -> 0.04755649502 | F85: =VLOOKUP($C$3,$A$79:$H$83,6,FALSE) -> 0.04698513788 | G85: =VLOOKUP($C$3,$A$79:$H$83,7,FALSE) -> 0.04610722815 | H85: =VLOOKUP($C$3,$A$79:$H$83,8,FALSE) -> 0.04459313232
A87: ="rptw for "&C$5-1 -> rptw for 2019 | B87: =IF(C$5=2016,B$184,HLOOKUP($A87,D$78:H$85,8,FALSE)) -> 0.04610722815 | C87: (t-1)
A89: ="rptw for "&C$5-2 -> rptw for 2018 | B89: =IF(OR(C$5=2016,C$5=2017),B$183,HLOOKUP($A89,D$78:H$85,8,FALSE)) -> 0.04698513788 | C89: (t-2)
A93: F factor Scheme | B93: =$C$5 -> 2020 | D93: 2016 | E93: =+D93+1 -> 2017 | F93: =+E93+1 -> 2018 | G93: 2019 | H93: 2020
A94: =$A$54 -> Jemena | B94: =HLOOKUP($B$93,$D$93:$H$98,2,FALSE) -> 112800 | D94: -680000 | E94: 70000 | F94: 655000 | G94: 117300 | H94: 112800
A95: =$A$55 -> CitiPower | B95: =HLOOKUP($B$93,$D$93:$H$98,3,FALSE) -> 36300 | D95: -15000 | E95: 410000 | F95: 140000 | G95: 43200 | H95: 36300
A96: =$A$56 -> Powercor | B96: =HLOOKUP($B$93,$D$93:$H$98,4,FALSE) -> 995100 | D96: -1530000 | E96: 1420000 | F96: 1755000 | G96: 4639200 | H96: 995100
A97: =$A$57 -> AusNet Services | B97: =HLOOKUP($B$93,$D$93:$H$98,5,FALSE) -> 316200 | D97: 1870000 | E97: 3420000 | F97: 750000 | G97: 1485000 | H97: 316200
A98: =$A$58 -> United Energy | B98: =HLOOKUP($B$93,$D$93:$H$98,6,FALSE) -> 5100 | D98: -2245000 | E98: 555000 | F98: 1000000 | G98: 224400 | H98: 5100
A100: ="Ifactor (t) "&C$5 -> Ifactor (t) 2020 | B100: =VLOOKUP(C$3,A94:B98,2,FALSE) -> 5100 | D100: =VLOOKUP($C$3,$A$94:$H$98,4,FALSE) -> -2245000 | E100: =VLOOKUP($C$3,$A$94:$H$98,5,FALSE) -> 555000 | F100: =VLOOKUP($C$3,$A$94:$H$98,6,FALSE) -> 1000000 | G100: =VLOOKUP($C$3,$A$94:$H$98,7,FALSE) -> 224400 | H100: =VLOOKUP($C$3,$A$94:$H$98,8,FALSE) -> 5100
A104: S factor Scheme | B104: =$C$5 -> 2020 | D104: 2016 | E104: =+D104+1 -> 2017 | F104: =+E104+1 -> 2018 | G104: 2019 | H104: 2020
A105: =$A$54 -> Jemena | B105: =HLOOKUP($B$104,$D$104:$H$109,2,FALSE) -> 0.00307537808 | D105: 0.03997406406 | E105: 0.01488310469 | F105: -0.03971153723 | G105: 0.006950679651 | H105: 0.00307537808
A106: =$A$55 -> CitiPower | B106: =HLOOKUP($B$104,$D$104:$H$109,3,FALSE) -> 0.01356911181 | D106: -0.01268789003 | E106: 0.004032145684 | F106: 0.01857052664 | G106: -0.009608708052 | H106: 0.01356911181
A107: =$A$56 -> Powercor | B107: =HLOOKUP($B$104,$D$104:$H$109,4,FALSE) -> 0.003551089156 | D107: -0.01184910821 | E107: 0.05100648542 | F107: -0.01384168227 | G107: -0.0009709084886 | H107: 0.003551089156
A108: =$A$57 -> AusNet Services | B108: =HLOOKUP($B$104,$D$104:$H$109,5,FALSE) -> -0.007004839182 | D108: 0.03357397489 | E108: 0.03217876587 | F108: -0.06343364122 | G108: 0.01506523806 | H108: -0.007004839182
A109: =$A$58 -> United Energy | B109: =HLOOKUP($B$104,$D$104:$H$109,6,FALSE) -> 0.005050561939 | D109: -0.02947870448 | E109: 0.02836672327 | F109: 0.02276703882 | G109: 0.01682414399 | H109: 0.005050561939
A111: ="S factor (t) "&C$5 -> S factor (t) 2020 | B111: =VLOOKUP(C$3,A105:B109,2,FALSE) -> 0.005050561939 | D111: =VLOOKUP($C$3,$A$105:$H$109,4,FALSE) -> -0.02947870448 | E111: =VLOOKUP($C$3,$A$105:$H$109,5,FALSE) -> 0.02836672327 | F111: =VLOOKUP($C$3,$A$105:$H$109,6,FALSE) -> 0.02276703882 | G111: =VLOOKUP($C$3,$A$105:$H$109,7,FALSE) -> 0.01682414399 | H111: =VLOOKUP($C$3,$A$105:$H$109,8,FALSE) -> 0.005050561939
A115: Pass through Amounts | B115: =$C$5 -> 2020 | D115: 2016 | E115: =+D115+1 -> 2017 | F115: =+E115+1 -> 2018 | G115: 2019 | H115: 2020
A116: =$A$54 -> Jemena | B116: =HLOOKUP($B$115,$D$115:$H$120,2,FALSE) -> 0 | D116: 0 | E116: 0 | F116: 0 | G116: 0 | H116: 0
A117: =$A$55 -> CitiPower | B117: =HLOOKUP($B$115,$D$115:$H$120,3,FALSE) -> 0 | D117: 0 | E117: 0 | F117: 0 | G117: 0 | H117: 0
A118: =$A$56 -> Powercor | B118: =HLOOKUP($B$115,$D$115:$H$120,4,FALSE) -> 0 | D118: 0 | E118: 0 | F118: 0 | G118: 0 | H118: 0
A119: =$A$57 -> AusNet Services | B119: =HLOOKUP($B$115,$D$115:$H$120,5,FALSE) -> 0 | D119: =-(5723000*(1+0.0975)) -> -6280992.5 | E119: 0 | F119: 0 | G119: 0 | H119: 0
A120: =$A$58 -> United Energy | B120: =HLOOKUP($B$115,$D$115:$H$120,6,FALSE) -> 0 | D120: 0 | E120: 0 | F120: 0 | G120: 0 | H120: 0
A122: ="Pass through amounts (t) "&C$5 -> Pass through amounts (t) 2020 | B122: =VLOOKUP(C$3,A116:B120,2,FALSE) -> 0 | D122: =VLOOKUP($C$3,$A$116:$H$120,4,FALSE) -> 0 | E122: =VLOOKUP($C$3,$A$116:$H$120,5,FALSE) -> 0 | F122: =VLOOKUP($C$3,$A$116:$H$120,6,FALSE) -> 0 | G122: =VLOOKUP($C$3,$A$116:$H$120,7,FALSE) -> 0 | H122: =VLOOKUP($C$3,$A$116:$H$120,8,FALSE) -> 0
A126: License Fees | B126: =$C$5 -> 2020 | D126: 2016 | E126: =+D126+1 -> 2017 | F126: =+E126+1 -> 2018 | G126: 2019 | H126: 2020
A127: =$A$54 -> Jemena | B127: =HLOOKUP($B$126,$D$126:$H$131,2,FALSE) -> 130256 | D127: 36033 | E127: 39516 | F127: 76545 | G127: 77350 | H127: 130256
A128: =$A$55 -> CitiPower | B128: =HLOOKUP($B$126,$D$126:$H$131,3,FALSE) -> 132030 | D128: 36475 | E128: 40445 | F128: 78091 | G128: 78912 | H128: 132030
A129: =$A$56 -> Powercor | B129: =HLOOKUP($B$126,$D$126:$H$131,4,FALSE) -> 317568 | D129: 85205 | E129: 94964 | F129: 185081 | G129: 187026 | H129: 317568
A130: =$A$57 -> AusNet Services | B130: =HLOOKUP($B$126,$D$126:$H$131,5,FALSE) -> 285784 | D130: 74811 | E130: 85031 | F130: 168235 | G130: 170003 | H130: 285784
A131: =$A$58 -> United Energy | B131: =HLOOKUP($B$126,$D$126:$H$131,6,FALSE) -> 263285 | D131: 74197 | E131: 81712 | F131: 158262 | G131: 159925 | H131: 263285
A133: ="Licence Fee (t-1) "&TEXT(C$5-2,"####")&"-"&RIGHT(TEXT(C$5-1,"##"),2) -> Licence Fee (t-1) 2018-19 | B133: =VLOOKUP(C$3,A127:B131,2,FALSE) -> 263285 | D133: =VLOOKUP($C$3,$A$127:$H$131,4,FALSE) -> 74197 | E133: =VLOOKUP($C$3,$A$127:$H$131,5,FALSE) -> 81712 | F133: =VLOOKUP($C$3,$A$127:$H$131,6,FALSE) -> 158262 | G133: =VLOOKUP($C$3,$A$127:$H$131,7,FALSE) -> 159925 | H133: =VLOOKUP($C$3,$A$127:$H$131,8,FALSE) -> 263285
A137: DMIA Carryover adjustment | B137: =$C$5 -> 2020 | D137: 2016 | E137: =+D137+1 -> 2017 | F137: =+E137+1 -> 2018 | G137: 2019 | H137: 2020
A138: =$A$54 -> Jemena | B138: =HLOOKUP($B$137,$D$137:$H$142,2,FALSE) -> 0 | E138: =H154 -> -91239.84446
A139: =$A$55 -> CitiPower | B139: =HLOOKUP($B$137,$D$137:$H$142,3,FALSE) -> 0
A140: =$A$56 -> Powercor | B140: =HLOOKUP($B$137,$D$137:$H$142,4,FALSE) -> 0
A141: =$A$57 -> AusNet Services | B141: =HLOOKUP($B$137,$D$137:$H$142,5,FALSE) -> 0
A142: =$A$58 -> United Energy | B142: =HLOOKUP($B$137,$D$137:$H$142,6,FALSE) -> 0 | E142: =H163 -> -479660.6938
A144: ="T factor (t) "&C$5 -> T factor (t) 2020 | B144: =VLOOKUP(C$3,A138:B142,2,FALSE) -> 0 | D144: =VLOOKUP($C$3,$A$138:$H$142,4,FALSE) -> 0 | E144: =VLOOKUP($C$3,$A$138:$H$142,5,FALSE) -> -479660.6938 | F144: =VLOOKUP($C$3,$A$138:$H$142,6,FALSE) -> 0 | G144: =VLOOKUP($C$3,$A$138:$H$142,7,FALSE) -> 0 | H144: =VLOOKUP($C$3,$A$138:$H$142,8,FALSE) -> 0
A147: DMIA Carryover adjustment
A148: Jemena | C148: 2011-15 | D148: 2016 | E148: 2017
A149: CPI - PTRM | D149: 0.02323079821 | E149: 0.02323079821
A150: Nominal Vanilla WACC - PTRM | C150: 0.1033058648 | D150: =(1+D149)*(1+D37)-1 -> 0.06347306235 | E150: =(1+E149)*(1+E37)-1 -> 0.06286111175
C152: 2011 | D152: 2012 | E152: 2013 | F152: 2014 | G152: 2015 | H152: Total
A153: Ex-ante revenue minus ex post expenditure ($nominal) | C153: -263938 | D153: -16375.4 | E153: 163676.6714 | F153: 153066.6261 | G153: 125690.5855 | H153: =SUM(C153:G153) -> 162120.4829
A154: DMIA Carryover adjustment | C154: =0-(C153/(1+$C150))*(1+$C150)^5*(1+$D150)*(1+$E150) -> 442067.5528 | D154: =C154-(D153/(1+$C150))*(1+$C150)^4*(1+$D150)*(1+$E150) -> 466926.4987 | E154: =D154-(E153/(1+$C150))*(1+$C150)^3*(1+$D150)*(1+$E150) -> 241719.6213 | F154: =E154-(F153/(1+$C150))*(1+$C150)^2*(1+$D150)*(1+$E150) -> 50831.26114 | G154: =F154-(G153/(1+$C150))*(1+$C150)^1*(1+$D150)*(1+$E150) -> -91239.84446 | H154: =G154 -> -91239.84446
A157: UED | C157: 2011-15 | D157: 2016 | E157: 2017
A158: CPI - PTRM | D158: 0.02323079821 | E158: 0.02323079821
A159: Nominal Vanilla WACC - PTRM | C159: 0.09489772882 | D159: =(1+D158)*(1+D41)-1 -> 0.06347466033 | E159: =(1+E158)*(1+E41)-1 -> 0.06282474637
C161: 2011 | D161: 2012 | E161: 2013 | F161: 2014 | G161: 2015 | H161: Total
A162: Ex-ante revenue minus ex post expenditure ($nominal) | C162: 406960 | D162: 327739.2 | E162: 91075.34272 | F162: -227853.7479 | G162: -450364.8291 | H162: =SUM(C162:G162) -> 147555.9658
A163: DMIA Carryover adjustment | C163: =0-(C162/(1+$C159))*(1+$C159)^5*(1+$D159)*(1+$E159) -> -661050.6678 | D163: =C163-(D162/(1+$C159))*(1+$C159)^4*(1+$D159)*(1+$E159) -> -1147276.309 | E163: =D163-(E162/(1+$C159))*(1+$C159)^3*(1+$D159)*(1+$E159) -> -1270682.438 | F163: =E163-(F162/(1+$C159))*(1+$C159)^2*(1+$D159)*(1+$E159) -> -988702.2892 | G163: =F163-(G162/(1+$C159))*(1+$C159)^1*(1+$D159)*(1+$E159) -> -479660.6938 | H163: =G163 -> -479660.6938
A172: Regulatory Period 2011-15
A174: DuoS
A175: Real Pre-tax WACC for distribution tariffs | D175: Real Vanilla WACC for distribution tariffs
A177: =$A$54 -> Jemena | B177: 0.087 | D177: =$A$54 -> Jemena | F177: 0.0756
A178: =$A$55 -> CitiPower | B178: 0.0786 | D178: =$A$55 -> CitiPower | F178: 0.0674
A179: =$A$56 -> Powercor | B179: 0.0776 | D179: =$A$56 -> Powercor | F179: 0.0674
A180: =$A$57 -> AusNet Services | B180: 0.078 | D180: =$A$57 -> AusNet Services | F180: 0.0699
A181: =$A$58 -> United Energy | B181: 0.0791 | D181: =$A$58 -> United Energy | F181: 0.0674
A183: pretax WACCD | B183: =VLOOKUP($C$3,A177:B181,2,FALSE) -> 0.0791 | D183: Real Vanilla WACCD | F183: =VLOOKUP($C$3,D177:F181,3,FALSE) -> 0.0674
A188: Pass Through Costs | E188: 2014 | F188: 2015
A190: =A204 -> F Factor pass through | E190: 980000 | F190: -70000
A191: VBRC | E191: 0 | F191: 0
A192: Powerline Replacement program | E192: 0 | F192: 0
A193: TOTAL PASS THROUGH AMOUNTS | E193: =SUM(E190:E192) -> 980000 | F193: =SUM(F190:F192) -> -70000
A197: F factor Scheme | B197: 2014 | C197: 2015
A198: =$A$54 -> Jemena | B198: 370000 | C198: -855000
A199: =$A$55 -> CitiPower | B199: 10000 | C199: -65000
A200: =$A$56 -> Powercor | B200: 2470000 | C200: -2405000
A201: =$A$57 -> AusNet Services | B201: 1970000 | C201: 2020000
A202: =$A$58 -> United Energy | B202: 980000 | C202: -70000
A204: F Factor pass through | B204: =VLOOKUP($C$3,$A$198:$C$202,2,FALSE) -> 980000 | C204: =VLOOKUP($C$3,$A$198:$C$202,3,FALSE) -> -70000
A208: VBRC | B208: 2014 | C208: 2015
A209: =$A$54 -> Jemena | B209: 0 | C209: 0
A210: =$A$55 -> CitiPower | B210: 0 | C210: 0
A211: =$A$56 -> Powercor | B211: =H245 -> 7193170.454 | C211: =I245 -> 8768550.378
A212: =$A$57 -> AusNet Services | B212: =H262 -> 6039778.158 | C212: =I262 -> 8341755.212
A213: =$A$58 -> United Energy | B213: 0 | C213: 0
A215: VBRC pass through | B215: =VLOOKUP($C$3,$A$209:$C$213,2,FALSE) -> 0 | C215: =VLOOKUP($C$3,$A$209:$C$213,3,FALSE) -> 0
A219: Powerline Replacement program | B219: 2014 | C219: 2015
A220: =$A$54 -> Jemena | B220: 0 | C220: 0
A221: =$A$55 -> CitiPower | B221: 0 | C221: 0
A222: =$A$56 -> Powercor | B222: =H249 -> 0 | C222: 8777690.455
A223: =$A$57 -> AusNet Services | B223: 0 | C223: 5723419.31
A224: =$A$58 -> United Energy | B224: 0 | C224: 0
A226: Powerline Replacement program | B226: =VLOOKUP($C$3,$A$219:$C$224,2,FALSE) -> 0 | C226: =VLOOKUP($C$3,$A$219:$C$224,3,FALSE) -> 0
A231: VBRC
A233: Powercor | E233: 2011 | F233: 2012 | G233: 2013 | H233: 2014 | I233: 2015
A234: Pass through amounts approved (Nominal $) - Forecast CPI | G234: 10270612 | H234: 7181525 | I234: 8777217
A235: (As per AER's Final Decision on Powercor's VBRC pass through, table 7.2, 7 March 2012)
A236: Forecast CPI in PTRM | E236: 0.0257487534 | F236: 0.0257487534 | G236: 0.0257487534 | H236: 0.0257487534 | I236: 0.0257487534
E237: =1+E236 -> 1.025748753 | F237: =E237*(1+F236) -> 1.052160505 | G237: =F237*(1+G236) -> 1.079252326 | H237: =G237*(1+H236) -> 1.107041729 | I237: =H237*(1+I236) -> 1.135546673
A239: Pass through amounts approved (Real $2010) | G239: =G234/G237 -> 9516414.047 | H239: =H234/H237 -> 6487131.257 | I239: =I234/I237 -> 7729507.918
A242: Actual CPI | E242: =173.3/168.6-1 -> 0.02787663108 | F242: =179.4/173.3-1 -> 0.03519907675 | G242: =C17/C16-1 -> 0.02004008016 | H242: =C18/C17-1 -> 0.02161100196 | I242: =C19/C18-1 -> 0.02307692308
E243: =1+E242 -> 1.027876631 | F243: =E243*(1+F242) -> 1.06405694 | G243: =F243*(1+G242) -> 1.085380726 | H243: =G243*(1+H242) -> 1.108836891 | I243: 1.134425434
A245: Pass through amounts approved (Nominal $) - Actual CPI | G245: =G239*G243 -> 10328932.39 | H245: =H239*H243 -> 7193170.454 | I245: =I239*I243 -> 8768550.378
A250: AusNet Services | E250: 2011 | F250: 2012 | G250: 2013 | H250: 2014 | I250: 2015
A251: Pass through amounts approved (Nominal $) - Forecast CPI | G251: 5790000 | H251: 6030000 | I251: 8350000
A252: As per AER's Final Decision on AusNet Services's VBRC pass through, table 1.3, 19 October 2012
A253: Forecast CPI in PTRM | E253: 0.0257487534 | F253: 0.0257487534 | G253: 0.0257487534 | H253: 0.0257487534 | I253: 0.0257487534
E254: =1+E253 -> 1.025748753 | F254: =E254*(1+F253) -> 1.052160505 | G254: =F254*(1+G253) -> 1.079252326 | H254: =G254*(1+H253) -> 1.107041729 | I254: =H254*(1+I253) -> 1.135546673
A256: Pass through amounts approved (Real $2010) | G256: =G251/G254 -> 5364825.127 | H256: =H251/H254 -> 5446949.148 | I256: =I251/I254 -> 7353286.482
A259: Actual CPI | E259: =173.3/168.6-1 -> 0.02787663108 | F259: =179.4/173.3-1 -> 0.03519907675 | G259: =C17/C16-1 -> 0.02004008016 | H259: =C18/C17-1 -> 0.02161100196 | I259: =C19/C18-1 -> 0.02307692308
E260: =1+E259 -> 1.027876631 | F260: =E260*(1+F259) -> 1.06405694 | G260: =F260*(1+G259) -> 1.085380726 | H260: =G260*(1+H259) -> 1.108836891 | I260: 1.134425434
A262: Pass through amounts approved (Nominal $) - Actual CPI | G262: =G256*G260 -> 5822877.791 | H262: =H256*H260 -> 6039778.158 | I262: =I256*I260 -> 8341755.212
A270: AMI Transitional Adjustment in 2018 prices ($)
A271: =C3 -> United Energy
C272: 2009 | D272: 2010 | E272: 2011 | F272: 2012 | G272: 2013 | H272: 2014 | I272: 2015 | J272: 2016 | K272: 2017 | L272: 2018 | M272: 2019 | N272: 2020
A273: CPI | C273: 0.04981084489 | D273: 0.01261261261 | E273: 0.02787663108 | F273: 0.03519907675 | G273: =$F17 -> 0.02004008016 | H273: =$F18 -> 0.02161100196 | I273: =$F19 -> 0.02307692308 | J273: =$F20 -> 0.01503759398 | K273: =$F22 -> 0.01023255814 | L273: =$F23 -> 0.01933701657 | M273: =$F24 -> 0.02077687444 | N273: =$F25 -> 0.01592920354
A275: Vanilla' WACC (Real) | C275: 0.06771645866 | D275: =$C275 -> 0.06771645866 | E275: =$C275 -> 0.06771645866 | F275: 0.06771645866 | G275: 0.06771645866 | H275: 0.05023909437 | I275: =H275 -> 0.05023909437 | J275: =D43 -> 0.0393301904 | K275: =E43 -> 0.03869503169 | L275: =F43 -> 0.03812382202 | M275: =G43 -> 0.03751614965 | N275: =H43 -> 0.03600205381
A276: Vanilla' WACC (nominal) | C276: =(1+C275)*(1+C273)-1 -> 0.1209003176 | D276: 0.08118315273 | E276: 0.09748079647 | F276: 0.1052990922 | G276: 0.08911358208 | H276: 0.0729358135 | I276: 0.07447538116 | J276: 0.05495921582 | K276: 0.04932353899 | L276: 0.05819803957 | M276: 0.05907249241 | N276: 0.05250474139
A278: Future value index | C278: =(1+C276)^0.5 -> 1.058725799 | D278: =C278*(D276+1) -> 1.144676497 | E278: 1.256260474 | F278: 1.388543561 | G278: 1.512281652 | H278: 1.622581145 | I278: 1.743423494 | J278: 1.839240682 | K278: 1.929958541 | L278: 2.042278345 | M278: 2.162920817 | N278: 2.276484415
A280: AMI Transitional Adjustment - Revenue and Costs 2009-2015
A281: Over \ (under) recovery of revenue and costs (000's)
A282: NPV at 1 January 2009 | D282: -481.9237445
A284: AMI Transitional Adjustment in 2018 prices ($) | D284: =-D282*L278*10^3 -> 984222.4273
A286: AMI Transitional Adjustment - Revenue 2016-2020
A287: Increase \ (Reduction) in revenue 2016-2020 (000's)
A288: NPV at 1 January 2016 | D288: -4121.115231
A290: AMI Transitional Adjustment in 2018 prices ($) | D290: =D288*L278/I278*10^3 -> -4827550.176
A292: Total AMI Transitional Adjustment in 2018 prices ($) | D292: =SUM(D284,D290) -> -3843327.748

Sheet 2020 Unmetered supply
B1: ="Tariff Approval - " &'Model update'!C3 -> Tariff Approval - United Energy | C1: ='Model update'!$C$5&" Unmetered supply" -> 2020 Unmetered supply
B3: ="PROPOSED "&'Model update'!C5&" UNMETERED SUPPLY TARIFF" -> PROPOSED 2020 UNMETERED SUPPLY TARIFF
C4: ="P t-1 ("&'Model update'!$C$8&")" -> P t-1 (2019) | G4: ="Pt ("&'Model update'!$C$7&")" -> Pt (2020) | K4: ="Qt-2 ("&'Model update'!$C$9&")" -> Qt-2 (2018) | O4: P t-1 * Qt-2 | T4: Pt * Qt-2
C5: ($) per NMI | D5: ($) per meter | E5: ($) per light | G5: ($) per NMI | H5: ($) per meter | I5: ($) per light | K5: NMIs | L5: Meters | M5: Lights | O5: $ Comp1 | P5: $ Comp2 | Q5: $ Comp3 | R5: Total $ | T5: NMIs | U5: Meters | V5: Lights
B6: Proposed tariff | C6: ExistTarComp1 | D6: ExistTarComp2 | E6: ExistTarComp3 | G6: PropTarComp1 | H6: PropTarComp2 | I6: PropTarComp3 | K6: ActVolComp1 | L6: ActVolComp2 | M6: ActVolComp3 | O6: $Comp1 | P6: ExistRevComp2 | Q6: ExistRevComp3 | R6: Exist Rev Total | T6: $PropRevComp1 | U6: $PropRevComp2 | V6: $ PropRevComp3 | W6: Total $
B7: metering data services - unmetered supplies | E7: 1.374 | I7: =ROUNDDOWN(E7*(1+C14),3) -> 1.395 | M7: 121295 | O7: =IF($B7="","",C7*K7) -> 0 | P7: =IF($B7="","",D7*L7) -> 0 | Q7: =IF($B7="","",E7*M7) -> 166659.33 | R7: =SUM(O7:Q7) -> 166659.33 | T7: =IF($B7="","",G7*K7) -> 0 | U7: =IF($B7="","",H7*L7) -> 0 | V7: =IF($B7="","",I7*M7) -> 169206.525 | W7: =SUM(T7:V7) -> 169206.525
B10: UNMETERED SUPPLY TARIFF CONTROL
B12: CPI
B14: ="CPI "&'Model update'!C5 -> CPI 2020 | C14: ='Model update'!C30 -> 0.01592920354
B19: =""&'Model update'!C5& " Unmetered Supplies price control" -> 2020 Unmetered Supplies price control
B21: Average price movement allowed | G21: =1+C14 -> 1.015929204
B23: Proposed metering tariff revenue (Pt*Qt-2) | G23: ='2020 Unmetered supply'!W7 -> 169206.525
B24: Existing metering tariff revenue (Pt-1*Qt-2) | G24: ='2020 Unmetered supply'!R7 -> 166659.33
B25: Average price movement | G25: =IF(G23>0,G23/G24,"") -> 1.015283843
B27: =IF(G25="","", IF(G25<=G21,"UNMETERED SUPPLIES PRICE CONTROL FORMULA COMPLIANT","UNMETERED SUPPLIES CONTROL FORMULA BREACHED")) -> UNMETERED SUPPLIES PRICE CONTROL FORMULA COMPLIANT

Sheet Metering
B1: ="Tariff Approval - "&'Model update'!C3 -> Tariff Approval - United Energy
B3: ="PROPOSED "&'Model update'!$C$5&" METERING TARIFFS AND REVENUE" -> PROPOSED 2020 METERING TARIFFS AND REVENUE
D5: ="Proposed Metering Tariffs P(t) for " &'Model update'!$C$5 -> Proposed Metering Tariffs P(t) for 2020 | E5: ="Current Metering Tariffs P(t-1) for" &'Model update'!$C$8 -> Current Metering Tariffs P(t-1) for2019 | F5: ="Forecast Quantities (Qt) for "&'Model update'!$C$5 -> Forecast Quantities (Qt) for 2020 | H5: ="Forecast Revenue (Pt "&'Model update'!$C$5&")*(Qt " &'Model update'!$C$5&")" -> Forecast Revenue (Pt 2020)*(Qt 2020) | I5: ="Revenue (Pt-1 "&'Model update'!$C$8&")*(Qt " &'Model update'!$C$5&")" -> Revenue (Pt-1 2019)*(Qt 2020) | K5: Movement | L5: Side Constraint
B6: Proposed tariff | C6: Existing tariff | D6: PropTar $/Cust/year | E6: ExistTar $/Cust/year | F6: FcastVol Cust # | H6: PropRev Fixed | I6: ExistRev Fixed
B8: single phase single element meter | C8: single phase single element meter | D8: 54.23 | E8: 57 | F8: 543954 | H8: =D8*F8 -> 29498625.42 | I8: =E8*F8 -> 31005378 | K8: =IFERROR(H8/I8,"") -> 0.9514035088 | L8: =IF(B8="","",IF(K8<$I$30,"COMPLIANT","BREACHED")) -> COMPLIANT
B9: single phase single element meter with contactor | C9: single phase single element meter with contactor | D9: 54.23 | E9: 57 | F9: 55062 | H9: 2986012.26 | I9: 3138534 | K9: =IFERROR(H9/I9,"") -> 0.9514035088 | L9: COMPLIANT
B10: three phase direct connected meter | C10: three phase direct connected meter | D10: 61.16 | E10: 64.28 | F10: 102706 | H10: 6281498.96 | I10: 6601941.68 | K10: 0.9514623522 | L10: COMPLIANT
B11: three phase Current transformer connected meter | C11: three phase Current transformer connected meter | D11: 64.84 | E11: 68.15 | F11: 3188 | H11: 206709.92 | I11: 217262.2 | K11: 0.9514306676 | L11: COMPLIANT
H12: 0 | I12: 0
H13: 0 | I13: 0
H14: 0 | I14: 0
H15: 0 | I15: 0
H16: 0 | I16: 0
H17: =SUM(H7:H16) -> 38972846.56 | I17: =SUM(I7:I16) -> 40963115.88
B22: Year (t) | D22: ='Model update'!C5 -> 2020 | E22: =D22-1 -> 2019
B24: Table 1- Compliance with AER Final Determination Total Metering Annual Revenue | H24: Metering tariff rebalancing control
B25: Revenue from Metering charges for year t | D25: =H17 -> 38972846.56 | H25: ="CPI "&'Model update'!$C$5 -> CPI 2020 | I25: =D37 -> 0.01592920354
B26: Total Annual Metering Revenue for year t | D26: =D33 -> 38977741.83 | H26: ="X "& 'Model update'!$C$5 -> X 2020 | I26: =MIN(D38,0) -> 0
D27: =IF(D25="","",IF(D26>=D25,"METERING REVENUE CAP FORMULA COMPLIANT","METERING REVENUE CAP FORMULA BREACHED")) -> METERING REVENUE CAP FORMULA COMPLIANT | H27: ="Tt "&'Model update'!$C$5 -> Tt 2020 | I27: =(D31-E31)/I$17 -> 0
H28: ="Bt "&'Model update'!$C$5 -> Bt 2020 | I28: =(D32-E32)/I$17 -> 0.004107387354
B29: Table 2 - Total Annual Revenue for year t (TARMt)
B30: Adjusted Annual Smoothed Metering Revenue for year t | D30: =D39 -> 38650496.3 | I30: =(1+I25)*(1-I26)*(1+0.02)+SUM(I27:I28) -> 1.040355175
B31: T factor for year t
B32: B factor for year t | D32: =-F68*(1+F66)^0.5 -> 327245.5322 | E32: 158994.1481
B33: Total Annual Revenue for year t | D33: =SUM(D30:D32) -> 38977741.83
B35: Table 3 - Adjusted Annual Revenue for year t (ARt)
B36: Adjusted Annual Smoothed Revenue for year t-1 | D36: 40463426.3
B37: CPI for period t | D37: ='Model update'!C30 -> 0.01592920354
B38: X factor for period t | D38: ='Model update'!B72 -> 0.05978110253
B39: Adjusted Annual Smoothed Revenue for year t | D39: =IF(D22=2016,'Model update'!D72,(D36*(1+D37)*(1-D38))) -> 38650496.3
B44: Table 4 - Metering Services Recovery Arrangements
D45: Year t-2 | E45: Year t-1 | F45: Year t
D46: (actual) | E46: (estimate) | F46: (forecast)
D47: =E47-1 -> 2018 | E47: =F47-1 -> 2019 | F47: =D$22 -> 2020
B49: (A) Revenue from Metering proposal charges | D49: 40397283.43 | E49: =E89 -> 40621115.88 | F49: =D25 -> 38972846.56
B52: (B) Less TARM for regulatory year = | D52: =SUM(D53:D54) -> 38306172.61 | E52: =SUM(E53:E54) -> 40463426.3 | F52: =SUM(F53:F54) -> 38650496.3
B53: + Adjusted annual smoothed revenue | D53: 42149500.36 | E53: =D36 -> 40463426.3 | F53: =D30 -> 38650496.3
B54: + T factor | D54: -3843327.748 | E54: =E31 -> 0 | F54: =D31 -> 0
B57: (A minus B) Under/over recovery of revenue for regulatory year | D57: =D49-D52 -> 2091110.815 | E57: =E49-E52 -> 157689.5795 | F57: =F49-F52 -> 322350.2612
B61: Table 5 - Metering Services Unders and Overs Account
D62: Year t-2 | E62: Year t-1 | F62: Year t
D63: (actual) | E63: (estimate) | F63: (forecast)
B64: Calendar year | D64: =E64-1 -> 2018 | E64: =F64-1 -> 2019 | F64: =D$22 -> 2020
B66: Nominal WACC | D66: =(1+'Model update'!$B$47)*(1+'Model update'!$C$28)-1 -> 0.05819803957 | E66: =(1+'Model update'!$B$45)*(1+'Model update'!$C$29)-1 -> 0.05907249241 | F66: =(1+'Model update'!$B$43)*(1+'Model update'!$C$30)-1 -> 0.05250474139
B68: Opening balance | D68: -2462218.876 | E68: =D72 -> -454415.5627 | F68: =E72 -> -318978.7086
B69: Interest on Opening balance | D69: =D68*D66 -> -143296.3116 | E69: =E68*E66 -> -26843.45988 | F69: =F68*F66 -> -16747.89461
B70: Under/over recovery of revenue for regulatory year | D70: =D57 -> 2091110.815 | E70: =E57 -> 157689.5795 | F70: =F57 -> 322350.2612
B71: Interest on under/over recovery for regulatory year | D71: =D70*((1+D66)^0.5-1) -> 59988.80952 | E71: =E70*((1+E66)^0.5-1) -> 4590.734417 | F71: =F70*((1+F66)^0.5-1) -> 8354.202549
B72: Closing balance of Metering Services overs/ (unders) account | D72: =SUM(D68:D71) -> -454415.5627 | E72: =SUM(E68:E71) -> -318978.7086 | F72: -5022.139551
B74: The DNSP is expected to achieve a closing balance as close to zero as practicable in its annual metering charges unders and overs account in each forecast year in its annual pricing proposals in the 2016–20 regulatory control period.
C77: ="Current Metering Tariffs P(t-1) for " &'Model update'!$C$8 -> Current Metering Tariffs P(t-1) for 2019 | D77: ="Estimated Quantities (Qt-1) for "&'Model update'!$C$5-1 -> Estimated Quantities (Qt-1) for 2019 | E77: ="Revenue (Pt-1 "&'Model update'!$C$8&")*(Qt-1 " &'Model update'!$C$5-1&")" -> Revenue (Pt-1 2019)*(Qt-1 2019)
B78: Existing tariff | C78: ExistTar $/Cust/year | D78: FcastVol Cust # | E78: ExistRev Fixed
B80: single phase single element meter | C80: =E8 -> 57 | D80: 537954 | E80: =C80*D80 -> 30663378
B81: single phase single element meter with contactor | C81: =E9 -> 57 | D81: 55062 | E81: 3138534
B82: three phase direct connected meter | C82: 64.28 | D82: 102706 | E82: 6601941.68
B83: three phase Current transformer connected meter | C83: 68.15 | D83: 3188 | E83: 217262.2
E84: 0
E85: 0
E86: 0
E87: 0
E88: 0
E89: =SUM(E79:E88) -> 40621115.88

Sheet Prop2020DistTar
B1: ="Tariff Approval - "&'Model update'!$C$3 -> Tariff Approval - United Energy | C1: ="Prop"&'Model update'!$C$5&"DistTar" -> Prop2020DistTar
B3: ="PROPOSED "&'Model update'!$C$5&" DISTRIBUTION TARIFFS" -> PROPOSED 2020 DISTRIBUTION TARIFFS
D4: ="Proposed Distribution Tariffs (Pt) for "&'Model update'!$C$5 -> Proposed Distribution Tariffs (Pt) for 2020 | R4: ="Current Distribution Tariffs (Pt-1) for "&'Model update'!$C$8 -> Current Distribution Tariffs (Pt-1) for 2019 | AF4: ="Forecast Quantities (Qt) for "&'Model update'!$C$5 -> Forecast Quantities (Qt) for 2020 | AT4: ="Forecast Revenue (Pt "&'Model update'!$C$5&")*(Qt " &'Model update'!$C$5&")" -> Forecast Revenue (Pt 2020)*(Qt 2020) | BI4: ="Revenue (Pt-1 "&'Model update'!$C$8&")*(Qt " &'Model update'!$C$5&")" -> Revenue (Pt-1 2019)*(Qt 2020)
B5: Proposed tariff | C5: Existing tariff | D5: PropTar Fixed | E5: PropTar PkBlk1 | F5: PropTar PkBlk2 | G5: PropTar PkBlk3 | H5: PropTar PkBlk4 | I5: PropTar OPkBlk1 | J5: PropTar OPkBlk2 | K5: PropTar OPkBlk3 | L5: PropTar OPkBlk4 | M5: PropTar DemBlk1 | N5: PropTar DemBlk2 | O5: PropTar DemBlk3 | P5: PropTar DemBlk4 | R5: ExistTar Fixed | S5: ExistTar PkBlk1 | T5: ExistTar PkBlk2 | U5: ExistTar PkBlk3 | V5: ExistTar PkBlk4 | W5: ExistTar OPkBlk1 | X5: ExistTar OPkBlk2 | Y5: ExistTar OPkBlk3 | Z5: ExistTar OPkBlk4 | AA5: ExistTar DemBlk1 | AB5: ExistTar DemBlk2 | AC5: ExistTar DemBlk3 | AD5: ExistTar DemBlk4 | AF5: FcastVol Fixed | AG5: FcastVol PkBlk1 | AH5: FcastVol PkBlk2 | AI5: FcastVol PkBlk3 | AJ5: FcastVol PkBlk4 | AK5: FcastVol OPkBlk1 | AL5: FcastVol OPkBlk2 | AM5: FcastVol OPkBlk3 | AN5: FcastVol OPkBlk4 | AO5: FcastVol DemBlk1 | AP5: FcastVol DemBlk2 | AQ5: FcastVol DemBlk3 | AR5: FcastVol DemBlk4 | AT5: PropRev Fixed | AU5: PropRev PkBlk1 | AV5: PropRev PkBlk2 | AW5: PropRev PkBlk3 | AX5: PropRev PkBlk4 | AY5: PropRev OPkBlk1 | AZ5: PropRev OPkBlk2 | BA5: PropRev OPkBlk3 | BB5: PropRev OPkBlk4 | BC5: PropRev DemBlk1 | BD5: PropRev DemBlk2 | BE5: PropRev DemBlk3 | BF5: PropRev DemBlk4 | BG5: PropRev Total | BI5: ExistRev Fixed | BJ5: ExistRev PkBlk1 | BK5: ExistRev PkBlk2 | BL5: ExistRev PkBlk3 | BM5: ExistRev PkBlk4 | BN5: ExistRev OPkBlk1 | BO5: ExistRev OPkBlk2 | BP5: ExistRev OPkBlk3 | BQ5: ExistRev OPkBlk4 | BR5: ExistRev DemBlk1 | BS5: ExistRev DemBlk2 | BT5: ExistRev DemBlk3 | BU5: ExistRev DemBlk4 | BV5: ExistRev Total
B6: =C6 -> Low voltage small 1 rate | C6: =Est2019DistRev!B6 -> Low voltage small 1 rate | D6: 7.85 | E6: 7.44 | F6: 0 | G6: 0 | H6: 7.44 | I6: 0 | J6: 0 | K6: 0 | L6: 0 | M6: 0 | N6: 0 | O6: 0 | P6: 0 | R6: =Est2019DistRev!D6 -> 7.09 | S6: =Est2019DistRev!E6 -> 7.72 | T6: =Est2019DistRev!F6 -> 0 | U6: =Est2019DistRev!G6 -> 0 | V6: =Est2019DistRev!H6 -> 6.19 | W6: =Est2019DistRev!I6 -> 0 | X6: =Est2019DistRev!J6 -> 0 | Y6: =Est2019DistRev!K6 -> 0 | Z6: =Est2019DistRev!L6 -> 0 | AA6: =Est2019DistRev!M6 -> 0 | AB6: =Est2019DistRev!N6 -> 0 | AC6: =Est2019DistRev!O6 -> 0 | AD6: =Est2019DistRev!P6 -> 0 | AF6: 212162195 | AG6: 919851753 | AH6: 0 | AI6: 0 | AJ6: 1513854586 | AK6: 0 | AL6: 0 | AM6: 0 | AN6: 0 | AO6: 0 | AP6: 0 | AQ6: 0 | AR6: 0 | AT6: =D6/100*AF6 -> 16654732.31 | AU6: =E6/100*AG6 -> 68436970.42 | AV6: 0 | AW6: 0 | AX6: 112630781.2 | AY6: 0 | AZ6: 0 | BA6: 0 | BB6: 0 | BC6: 0 | BD6: 0 | BE6: 0 | BF6: 0 | BG6: =SUM(AT6:BF6) -> 197722484 | BI6: =R6/100*AF6 -> 15042299.63 | BJ6: 71012555.33 | BK6: =T6/100*AH6 -> 0 | BL6: =U6/100*AI6 -> 0 | BM6: =V6/100*AJ6 -> 93707598.9 | BN6: =W6/100*AK6 -> 0 | BO6: =X6/100*AL6 -> 0 | BP6: =Y6/100*AM6 -> 0 | BQ6: =Z6/100*AN6 -> 0 | BR6: =AA6/100*AO6 -> 0 | BS6: =AB6/100*AP6 -> 0 | BT6: =AC6/100*AQ6 -> 0 | BU6: =AD6/100*AR6 -> 0 | BV6: =SUM(BI6:BU6) -> 179762453.9
B7: =C7 -> Winter economy tariff | C7: =Est2019DistRev!B7 -> Winter economy tariff | D7: 10.49 | E7: 7.16 | F7: 0 | G7: 0 | H7: 7.16 | I7: 2.39 | J7: 0 | K7: 0 | L7: 0 | M7: 0 | N7: 0 | O7: 0 | P7: 0 | R7: =Est2019DistRev!D7 -> 9.13 | S7: =Est2019DistRev!E7 -> 7.49 | T7: =Est2019DistRev!F7 -> 0 | U7: =Est2019DistRev!G7 -> 0 | V7: =Est2019DistRev!H7 -> 5.55 | W7: =Est2019DistRev!I7 -> 2.08 | X7: =Est2019DistRev!J7 -> 0 | Y7: =Est2019DistRev!K7 -> 0 | Z7: =Est2019DistRev!L7 -> 0 | AA7: =Est2019DistRev!M7 -> 0 | AB7: =Est2019DistRev!N7 -> 0 | AC7: =Est2019DistRev!O7 -> 0 | AD7: =Est2019DistRev!P7 -> 0 | AF7: 47078.0734 | AG7: 293507.5327 | AH7: 0 | AI7: 0 | AJ7: 549771.8592 | AK7: 0 | AL7: 0 | AM7: 0 | AN7: 0 | AO7: 0 | AP7: 0 | AQ7: 0 | AR7: 0 | AT7: =D7/100*AF7 -> 4938.4899 | AU7: 21015.13934 | AV7: 0 | AW7: 0 | AX7: 39363.66512 | AY7: 0 | AZ7: 0 | BA7: 0 | BB7: 0 | BC7: 0 | BD7: 0 | BE7: 0 | BF7: 0 | BG7: =SUM(AT7:BF7) -> 65317.29436 | BI7: =R7/100*AF7 -> 4298.228102 | BJ7: 21983.7142 | BK7: 0 | BL7: 0 | BM7: 30512.33818 | BN7: 0 | BO7: 0 | BP7: 0 | BQ7: 0 | BR7: 0 | BS7: 0 | BT7: 0 | BU7: 0 | BV7: =SUM(BI7:BU7) -> 56794.28048
B8: Reverse cycle airconditioning time of use | C8: =Est2019DistRev!B8 -> Reverse cycle airconditioning time of use | D8: 0 | E8: 0 | F8: 0 | G8: 0 | H8: 0 | I8: 0 | J8: 0 | K8: 0 | L8: 0 | M8: 0 | N8: 0 | O8: 0 | P8: 0 | R8: =Est2019DistRev!D8 -> 0 | S8: =Est2019DistRev!E8 -> 0 | T8: =Est2019DistRev!F8 -> 0 | U8: =Est2019DistRev!G8 -> 0 | V8: =Est2019DistRev!H8 -> 0 | W8: =Est2019DistRev!I8 -> 0 | X8: =Est2019DistRev!J8 -> 0 | Y8: =Est2019DistRev!K8 -> 0 | Z8: =Est2019DistRev!L8 -> 0 | AA8: =Est2019DistRev!M8 -> 0 | AB8: =Est2019DistRev!N8 -> 0 | AC8: =Est2019DistRev!O8 -> 0 | AD8: =Est2019DistRev!P8 -> 0 | AF8: 0 | AG8: 0 | AH8: 0 | AI8: 0 | AJ8: 0 | AK8: 0 | AL8: 0 | AM8: 0 | AN8: 0 | AO8: 0 | AP8: 0 | AQ8: 0 | AR8: 0 | AT8: 0 | AU8: 0 | AV8: 0 | AW8: 0 | AX8: 0 | AY8: 0 | AZ8: 0 | BA8: 0 | BB8: 0 | BC8: 0 | BD8: 0 | BE8: 0 | BF8: 0 | BG8: 0 | BI8: 0 | BJ8: 0 | BK8: 0 | BL8: 0 | BM8: 0 | BN8: 0 | BO8: 0 | BP8: 0 | BQ8: 0 | BR8: 0 | BS8: 0 | BT8: 0 | BU8: 0 | BV8: 0
B9: Low voltage small 2 rate | C9: =Est2019DistRev!B9 -> Low voltage small 2 rate | D9: 15.93 | E9: 0 | F9: 0 | G9: 11.24 | H9: 0 | I9: 0 | J9: 11.24 | K9: 2.29 | L9: 0 | M9: 0 | N9: 0 | O9: 0 | P9: 0 | R9: =Est2019DistRev!D9 -> 14.48 | S9: =Est2019DistRev!E9 -> 0 | T9: =Est2019DistRev!F9 -> 0 | U9: =Est2019DistRev!G9 -> 11.43 | V9: =Est2019DistRev!H9 -> 0 | W9: =Est2019DistRev!I9 -> 0 | X9: =Est2019DistRev!J9 -> 8.67 | Y9: =Est2019DistRev!K9 -> 1.98 | Z9: =Est2019DistRev!L9 -> 0 | AA9: =Est2019DistRev!M9 -> 0 | AB9: =Est2019DistRev!N9 -> 0 | AC9: =Est2019DistRev!O9 -> 0 | AD9: =Est2019DistRev!P9 -> 0 | AF9: 1540872.815 | AG9: 0 | AH9: 0 | AI9: 4165253.264 | AJ9: 0 | AK9: 0 | AL9: 6996037.326 | AM9: 14790881.87 | AN9: 0 | AO9: 0 | AP9: 0 | AQ9: 0 | AR9: 0 | AT9: 245461.0395 | AU9: 0 | AV9: 0 | AW9: 468174.4669 | AX9: 0 | AY9: 0 | AZ9: 786354.5955 | BA9: 338711.1949 | BB9: 0 | BC9: 0 | BD9: 0 | BE9: 0 | BF9: 0 | BG9: 1838701.297 | BI9: 223118.3836 | BJ9: 0 | BK9: 0 | BL9: 476088.4481 | BM9: 0 | BN9: 0 | BO9: 606556.4362 | BP9: 292859.4611 | BQ9: 0 | BR9: 0 | BS9: 0 | BT9: 0 | BU9: 0 | BV9: 1598622.729
B10: Dedicated circuit | C10: =Est2019DistRev!B10 -> Dedicated circuit | D10: 0 | E10: 0 | F10: 0 | G10: 0 | H10: 0 | I10: 0 | J10: 0 | K10: 2.23 | L10: 0 | M10: 0 | N10: 0 | O10: 0 | P10: 0 | R10: =Est2019DistRev!D10 -> 0 | S10: =Est2019DistRev!E10 -> 0 | T10: =Est2019DistRev!F10 -> 0 | U10: =Est2019DistRev!G10 -> 0 | V10: =Est2019DistRev!H10 -> 0 | W10: =Est2019DistRev!I10 -> 0 | X10: =Est2019DistRev!J10 -> 0 | Y10: =Est2019DistRev!K10 -> 1.99 | Z10: =Est2019DistRev!L10 -> 0 | AA10: =Est2019DistRev!M10 -> 0 | AB10: =Est2019DistRev!N10 -> 0 | AC10: =Est2019DistRev!O10 -> 0 | AD10: =Est2019DistRev!P10 -> 0 | AF10: 21169813.98 | AG10: 0 | AH10: 0 | AI10: 0 | AJ10: 0 | AK10: 0 | AL10: 0 | AM10: 92477650.13 | AN10: 0 | AO10: 0 | AP10: 0 | AQ10: 0 | AR10: 0 | AT10: 0 | AU10: 0 | AV10: 0 | AW10: 0 | AX10: 0 | AY10: 0 | AZ10: 0 | BA10: 2062251.598 | BB10: 0 | BC10: 0 | BD10: 0 | BE10: 0 | BF10: 0 | BG10: 2062251.598 | BI10: 0 | BJ10: 0 | BK10: 0 | BL10: 0 | BM10: 0 | BN10: 0 | BO10: 0 | BP10: 1840305.238 | BQ10: 0 | BR10: 0 | BS10: 0 | BT10: 0 | BU10: 0 | BV10: 1840305.238
B11: Low voltage medium 1 rate | C11: =Est2019DistRev!B11 -> Low voltage medium 1 rate | D11: 13.23 | E11: 8.88 | F11: 0 | G11: 0 | H11: 8.88 | I11: 0 | J11: 0 | K11: 0 | L11: 0 | M11: 0 | N11: 0 | O11: 0 | P11: 0 | R11: =Est2019DistRev!D11 -> 12.03 | S11: =Est2019DistRev!E11 -> 9.46 | T11: =Est2019DistRev!F11 -> 0 | U11: =Est2019DistRev!G11 -> 0 | V11: =Est2019DistRev!H11 -> 7.19 | W11: =Est2019DistRev!I11 -> 0 | X11: =Est2019DistRev!J11 -> 0 | Y11: =Est2019DistRev!K11 -> 0 | Z11: =Est2019DistRev!L11 -> 0 | AA11: =Est2019DistRev!M11 -> 0 | AB11: =Est2019DistRev!N11 -> 0 | AC11: =Est2019DistRev!O11 -> 0 | AD11: =Est2019DistRev!P11 -> 0 | AF11: 12102335.34 | AG11: 161788893.1 | AH11: 0 | AI11: 0 | AJ11: 250038883 | AK11: 0 | AL11: 0 | AM11: 0 | AN11: 0 | AO11: 0 | AP11: 0 | AQ11: 0 | AR11: 0 | AT11: 1601138.965 | AU11: 14366853.71 | AV11: 0 | AW11: 0 | AX11: 22203452.81 | AY11: 0 | AZ11: 0 | BA11: 0 | BB11: 0 | BC11: 0 | BD11: 0 | BE11: 0 | BF11: 0 | BG11: 38171445.48 | BI11: 1455910.941 | BJ11: 15305229.29 | BK11: 0 | BL11: 0 | BM11: 17977795.68 | BN11: 0 | BO11: 0 | BP11: 0 | BQ11: 0 | BR11: 0 | BS11: 0 | BT11: 0 | BU11: 0 | BV11: 34738935.91
B12: Low voltage medium 2 rate 5 day | C12: =Est2019DistRev!B12 -> Low voltage medium 2 rate 5 day | D12: 25.34 | E12: 0 | F12: 0 | G12: 13.8 | H12: 0 | I12: 0 | J12: 10.34 | K12: 2.58 | L12: 0 | M12: 0 | N12: 0 | O12: 0 | P12: 0 | R12: =Est2019DistRev!D12 -> 23.03 | S12: =Est2019DistRev!E12 -> 0 | T12: =Est2019DistRev!F12 -> 0 | U12: =Est2019DistRev!G12 -> 12.42 | V12: =Est2019DistRev!H12 -> 0 | W12: =Est2019DistRev!I12 -> 0 | X12: =Est2019DistRev!J12 -> 9.31 | Y12: =Est2019DistRev!K12 -> 2.32 | Z12: =Est2019DistRev!L12 -> 0 | AA12: =Est2019DistRev!M12 -> 0 | AB12: =Est2019DistRev!N12 -> 0 | AC12: =Est2019DistRev!O12 -> 0 | AD12: =Est2019DistRev!P12 -> 0 | AF12: 3296334.516 | AG12: 0 | AH12: 0 | AI12: 44442947.95 | AJ12: 0 | AK12: 0 | AL12: 63255909.48 | AM12: 66483501.71 | AN12: 0 | AO12: 0 | AP12: 0 | AQ12: 0 | AR12: 0 | AT12: 835291.1664 | AU12: 0 | AV12: 0 | AW12: 6133126.817 | AX12: 0 | AY12: 0 | AZ12: 6540661.04 | BA12: 1715274.344 | BB12: 0 | BC12: 0 | BD12: 0 | BE12: 0 | BF12: 0 | BG12: 15224353.37 | BI12: 759145.8391 | BJ12: 0 | BK12: 0 | BL12: 5519814.135 | BM12: 0 | BN12: 0 | BO12: 5889125.173 | BP12: 1542417.24 | BQ12: 0 | BR12: 0 | BS12: 0 | BT12: 0 | BU12: 0 | BV12: 13710502.39
B13: Low voltage medium 2 rate 7 day | C13: =Est2019DistRev!B13 -> Low voltage medium 2 rate 7 day | D13: 26.96 | E13: 0 | F13: 0 | G13: 11.38 | H13: 0 | I13: 0 | J13: 8.81 | K13: 2.08 | L13: 0 | M13: 0 | N13: 0 | O13: 0 | P13: 0 | R13: =Est2019DistRev!D13 -> 24.51 | S13: =Est2019DistRev!E13 -> 0 | T13: =Est2019DistRev!F13 -> 0 | U13: =Est2019DistRev!G13 -> 10.24 | V13: =Est2019DistRev!H13 -> 0 | W13: =Est2019DistRev!I13 -> 0 | X13: =Est2019DistRev!J13 -> 7.93 | Y13: =Est2019DistRev!K13 -> 1.87 | Z13: =Est2019DistRev!L13 -> 0 | AA13: =Est2019DistRev!M13 -> 0 | AB13: =Est2019DistRev!N13 -> 0 | AC13: =Est2019DistRev!O13 -> 0 | AD13: =Est2019DistRev!P13 -> 0 | AF13: 1640279.535 | AG13: 0 | AH13: 0 | AI13: 19851193.85 | AJ13: 0 | AK13: 0 | AL13: 30063800.98 | AM13: 13681650.15 | AN13: 0 | AO13: 0 | AP13: 0 | AQ13: 0 | AR13: 0 | AT13: 442219.3626 | AU13: 0 | AV13: 0 | AW13: 2259065.86 | AX13: 0 | AY13: 0 | AZ13: 2648620.866 | BA13: 284578.3231 | BB13: 0 | BC13: 0 | BD13: 0 | BE13: 0 | BF13: 0 | BG13: 5634484.413 | BI13: 402032.514 | BJ13: 0 | BK13: 0 | BL13: 2032762.25 | BM13: 0 | BN13: 0 | BO13: 2384059.418 | BP13: 255846.8578 | BQ13: 0 | BR13: 0 | BS13: 0 | BT13: 0 | BU13: 0 | BV13: 5074701.04
B14: Unmetered supplies | C14: =Est2019DistRev!B14 -> Unmetered supplies | D14: 0 | E14: 0 | F14: 0 | G14: 8.13 | H14: 0 | I14: 0 | J14: 8.13 | K14: 1.76 | L14: 0 | M14: 0 | N14: 0 | O14: 0 | P14: 0 | R14: =Est2019DistRev!D14 -> 0 | S14: =Est2019DistRev!E14 -> 0 | T14: =Est2019DistRev!F14 -> 0 | U14: =Est2019DistRev!G14 -> 8.73 | V14: =Est2019DistRev!H14 -> 0 | W14: =Est2019DistRev!I14 -> 0 | X14: =Est2019DistRev!J14 -> 6.39 | Y14: =Est2019DistRev!K14 -> 1.57 | Z14: =Est2019DistRev!L14 -> 0 | AA14: =Est2019DistRev!M14 -> 0 | AB14: =Est2019DistRev!N14 -> 0 | AC14: =Est2019DistRev!O14 -> 0 | AD14: =Est2019DistRev!P14 -> 0 | AF14: 3541416 | AG14: 0 | AH14: 0 | AI14: 11643754.47 | AJ14: 0 | AK14: 0 | AL14: 19080770.29 | AM14: 56302898.46 | AN14: 0 | AO14: 0 | AP14: 0 | AQ14: 0 | AR14: 0 | AT14: 0 | AU14: 0 | AV14: 0 | AW14: 946637.2383 | AX14: 0 | AY14: 0 | AZ14: 1551266.625 | BA14: 990931.0129 | BB14: 0 | BC14: 0 | BD14: 0 | BE14: 0 | BF14: 0 | BG14: 3488834.876 | BI14: 0 | BJ14: 0 | BK14: 0 | BL14: 1016499.765 | BM14: 0 | BN14: 0 | BO14: 1219261.222 | BP14: 883955.5058 | BQ14: 0 | BR14: 0 | BS14: 0 | BT14: 0 | BU14: 0 | BV14: 3119716.492
B15: Low voltage large 1 rate | C15: =Est2019DistRev!B15 -> Low voltage large 1 rate | D15: 15.49 | E15: 6.91 | F15: 0 | G15: 0 | H15: 6.91 | I15: 0 | J15: 0 | K15: 0 | L15: 0 | M15: 0 | N15: 0 | O15: 0 | P15: 0 | R15: =Est2019DistRev!D15 -> 14.08 | S15: =Est2019DistRev!E15 -> 7.02 | T15: =Est2019DistRev!F15 -> 0 | U15: =Est2019DistRev!G15 -> 0 | V15: =Est2019DistRev!H15 -> 5.54 | W15: =Est2019DistRev!I15 -> 0 | X15: =Est2019DistRev!J15 -> 0 | Y15: =Est2019DistRev!K15 -> 0 | Z15: =Est2019DistRev!L15 -> 0 | AA15: =Est2019DistRev!M15 -> 0 | AB15: =Est2019DistRev!N15 -> 0 | AC15: =Est2019DistRev!O15 -> 0 | AD15: =Est2019DistRev!P15 -> 0 | AF15: 2568.095895 | AG15: 626916.0406 | AH15: 0 | AI15: 0 | AJ15: 845401.2968 | AK15: 0 | AM15: 0 | AN15: 0 | AO15: 0 | AP15: 0 | AQ15: 0 | AR15: 0 | AT15: 397.7980541 | AU15: 43319.89841 | AV15: 0 | AW15: 0 | AX15: 58417.22961 | AY15: 0 | AZ15: 0 | BA15: 0 | BB15: 0 | BC15: 0 | BD15: 0 | BE15: 0 | BF15: 0 | BG15: 102134.9261 | BI15: 361.587902 | BJ15: 44009.50605 | BK15: 0 | BL15: 0 | BM15: 46835.23184 | BN15: 0 | BO15: 0 | BP15: 0 | BQ15: 0 | BR15: 0 | BS15: 0 | BT15: 0 | BU15: 0 | BV15: 91206.3258
B16: Low voltage large 2 rate | C16: =Est2019DistRev!B16 -> Low voltage large 2 rate | D16: 22.35 | E16: 0 | F16: 0 | G16: 12.56 | H16: 0 | I16: 0 | J16: 9.98 | K16: 2.38 | L16: 0 | M16: 0 | N16: 0 | O16: 0 | P16: 0 | R16: =Est2019DistRev!D16 -> 20.32 | S16: =Est2019DistRev!E16 -> 0 | T16: =Est2019DistRev!F16 -> 0 | U16: =Est2019DistRev!G16 -> 11.3 | V16: =Est2019DistRev!H16 -> 0 | W16: =Est2019DistRev!I16 -> 0 | X16: =Est2019DistRev!J16 -> 8.99 | Y16: =Est2019DistRev!K16 -> 2.15 | Z16: =Est2019DistRev!L16 -> 0 | AA16: =Est2019DistRev!M16 -> 0 | AB16: =Est2019DistRev!N16 -> 0 | AC16: =Est2019DistRev!O16 -> 0 | AD16: =Est2019DistRev!P16 -> 0 | AF16: 6236.804316 | AG16: 0 | AH16: 0 | AI16: 563898.2219 | AJ16: 0 | AK16: 0 | AL16: 810564.9206 | AM16: 1029686.513 | AN16: 0 | AO16: 0 | AP16: 0 | AQ16: 0 | AR16: 0 | AT16: 1393.925765 | AU16: 0 | AV16: 0 | AW16: 70825.61667 | AX16: 0 | AY16: 0 | AZ16: 80894.37908 | BA16: 24506.53901 | BB16: 0 | BC16: 0 | BD16: 0 | BE16: 0 | BF16: 0 | BG16: 177620.4605 | BI16: 1267.318637 | BJ16: 0 | BK16: 0 | BL16: 63720.49907 | BM16: 0 | BN16: 0 | BO16: 72869.78637 | BP16: 22138.26003 | BQ16: 0 | BR16: 0 | BS16: 0 | BT16: 0 | BU16: 0 | BV16: 159995.8641
B17: Low voltage KW time of use | C17: =Est2019DistRev!B17 -> Low voltage KW time of use | D17: 0 | E17: 0 | F17: 0 | G17: 11.56 | H17: 0 | I17: 0 | J17: 6.78 | K17: 2.69 | L17: 0 | M17: 0 | N17: 55.35 | O17: 0 | P17: 0 | R17: =Est2019DistRev!D17 -> 0 | S17: =Est2019DistRev!E17 -> 0 | T17: =Est2019DistRev!F17 -> 0 | U17: =Est2019DistRev!G17 -> 10.3 | V17: =Est2019DistRev!H17 -> 0 | W17: =Est2019DistRev!I17 -> 0 | X17: =Est2019DistRev!J17 -> 6.04 | Y17: =Est2019DistRev!K17 -> 2.4 | Z17: =Est2019DistRev!L17 -> 0 | AA17: =Est2019DistRev!M17 -> 0 | AB17: =Est2019DistRev!N17 -> 49.33 | AC17: =Est2019DistRev!O17 -> 0 | AD17: =Est2019DistRev!P17 -> 0 | AF17: 64782 | AG17: 0 | AH17: 0 | AI17: 2537287.135 | AJ17: 0 | AK17: 0 | AL17: 4053676.63 | AM17: 6266721.116 | AN17: 0 | AO17: 0 | AP17: 632644.762 | AQ17: 0 | AR17: 0 | AT17: 0 | AU17: 0 | AV17: 0 | AW17: 293310.3928 | AX17: 0 | AY17: 0 | AZ17: 274839.2755 | BA17: 168574.798 | BB17: 0 | BC17: 0 | BD17: 350168.8758 | BE17: 0 | BF17: 0 | BG17: 1086893.342 | BI17: 0 | BJ17: 0 | BK17: 0 | BL17: 261340.5749 | BM17: 0 | BN17: 0 | BO17: 244842.0684 | BP17: 150401.3068 | BQ17: 0 | BR17: 0 | BS17: 312083.6611 | BT17: 0 | BU17: 0 | BV17: 968667.6112
B18: Low voltage KW time of use - HOT | C18: =Est2019DistRev!B18 -> Low voltage KW time of use - HOT | D18: 0 | E18: 0 | F18: 0 | G18: 8.07 | H18: 0 | I18: 0 | J18: 6.2 | K18: 1.83 | L18: 0 | M18: 0 | N18: 71.04 | O18: 0 | P18: 0 | R18: =Est2019DistRev!D18 -> 0 | S18: =Est2019DistRev!E18 -> 0 | T18: =Est2019DistRev!F18 -> 0 | U18: =Est2019DistRev!G18 -> 7.34 | V18: =Est2019DistRev!H18 -> 0 | W18: =Est2019DistRev!I18 -> 0 | X18: =Est2019DistRev!J18 -> 5.64 | Y18: =Est2019DistRev!K18 -> 1.66 | Z18: =Est2019DistRev!L18 -> 0 | AA18: =Est2019DistRev!M18 -> 0 | AB18: =Est2019DistRev!N18 -> 64.58 | AC18: =Est2019DistRev!O18 -> 0 | AD18: =Est2019DistRev!P18 -> 0 | AF18: 5856 | AG18: 0 | AH18: 0 | AI18: 18479.7083 | AJ18: 0 | AK18: 0 | AL18: 32475.32388 | AM18: 54198.35716 | AN18: 0 | AO18: 0 | AP18: 12598.044 | AQ18: 0 | AR18: 0 | AT18: 0 | AU18: 0 | AV18: 0 | AW18: 1491.31246 | AX18: 0 | AY18: 0 | AZ18: 2013.470081 | BA18: 991.829936 | BB18: 0 | BC18: 0 | BD18: 8949.650458 | BE18: 0 | BF18: 0 | BG18: 13446.26293 | BI18: 0 | BJ18: 0 | BK18: 0 | BL18: 1356.410589 | BM18: 0 | BN18: 0 | BO18: 1831.608267 | BP18: 899.6927288 | BQ18: 0 | BR18: 0 | BS18: 8135.816815 | BT18: 0 | BU18: 0 | BV18: 12223.5284
B19: Low voltage large KVA time of use | C19: =Est2019DistRev!B19 -> Low voltage large KVA time of use | D19: 0 | E19: 0 | F19: 0 | G19: 1.63 | H19: 0 | I19: 0 | J19: 1.38 | K19: 1.37 | L19: 0 | M19: 16.48 | N19: 24.64 | O19: 0 | P19: 0 | R19: =Est2019DistRev!D19 -> 0 | S19: =Est2019DistRev!E19 -> 0 | T19: =Est2019DistRev!F19 -> 0 | U19: =Est2019DistRev!G19 -> 1.48 | V19: =Est2019DistRev!H19 -> 0 | W19: =Est2019DistRev!I19 -> 0 | X19: =Est2019DistRev!J19 -> 1.26 | Y19: =Est2019DistRev!K19 -> 1.24 | Z19: =Est2019DistRev!L19 -> 0 | AA19: =Est2019DistRev!M19 -> 14.95 | AB19: =Est2019DistRev!N19 -> 22.36 | AC19: =Est2019DistRev!O19 -> 0 | AD19: =Est2019DistRev!P19 -> 0 | AF19: 1110078 | AG19: 0 | AH19: 0 | AI19: 442552227.7 | AJ19: 0 | AK19: 0 | AL19: 608901701.2 | AM19: 1242320710 | AN19: 0 | AO19: 320914609.7 | AP19: 92279113.55 | AQ19: 0 | AR19: 0 | AT19: 0 | AU19: 0 | AV19: 0 | AW19: 7213601.311 | AX19: 0 | AY19: 0 | AZ19: 8402843.476 | BA19: 17019793.73 | BB19: 0 | BC19: 52886727.68 | BD19: 22737573.58 | BE19: 0 | BF19: 0 | BG19: 108260539.8 | BI19: 0 | BJ19: 0 | BK19: 0 | BL19: 6549772.97 | BM19: 0 | BN19: 0 | BO19: 7672161.435 | BP19: 15404776.81 | BQ19: 0 | BR19: 47976734.15 | BS19: 20633609.79 | BT19: 0 | BU19: 0 | BV19: 98237055.15
B20: Low voltage large KVA time of use - HOT | C20: =Est2019DistRev!B20 -> Low voltage large KVA time of use - HOT | D20: 0 | E20: 0 | F20: 0 | G20: 0 | H20: 0 | I20: 0 | J20: 0 | K20: 0 | L20: 0 | M20: 0 | N20: 0 | O20: 0 | P20: 0 | R20: =Est2019DistRev!D20 -> 0 | S20: =Est2019DistRev!E20 -> 0 | T20: =Est2019DistRev!F20 -> 0 | U20: =Est2019DistRev!G20 -> 0 | V20: =Est2019DistRev!H20 -> 0 | W20: =Est2019DistRev!I20 -> 0 | X20: =Est2019DistRev!J20 -> 0 | Y20: =Est2019DistRev!K20 -> 0 | Z20: =Est2019DistRev!L20 -> 0 | AA20: =Est2019DistRev!M20 -> 0 | AB20: =Est2019DistRev!N20 -> 0 | AC20: =Est2019DistRev!O20 -> 0 | AD20: =Est2019DistRev!P20 -> 0 | AF20: 0 | AG20: 0 | AH20: 0 | AI20: 0 | AJ20: 0 | AK20: 0 | AL20: 0 | AM20: 0 | AN20: 0 | AO20: 0 | AP20: 0 | AQ20: 0 | AR20: 0 | AT20: 0 | AU20: 0 | AV20: 0 | AW20: 0 | AX20: 0 | AY20: 0 | AZ20: 0 | BA20: 0 | BB20: 0 | BC20: 0 | BD20: 0 | BE20: 0 | BF20: 0 | BG20: 0 | BI20: 0 | BJ20: 0 | BK20: 0 | BL20: 0 | BM20: 0 | BN20: 0 | BO20: 0 | BP20: 0 | BQ20: 0 | BR20: 0 | BS20: 0 | BT20: 0 | BU20: 0 | BV20: 0
B21: High voltage KVA time of use | C21: =Est2019DistRev!B21 -> High voltage KVA time of use | D21: 0 | E21: 0 | F21: 0 | G21: 0.98 | H21: 0 | I21: 0 | J21: 0.85 | K21: 0.85 | L21: 0 | M21: 9.97 | N21: 13.7 | O21: 0 | P21: 0 | R21: =Est2019DistRev!D21 -> 0 | S21: =Est2019DistRev!E21 -> 0 | T21: =Est2019DistRev!F21 -> 0 | U21: =Est2019DistRev!G21 -> 0.89 | V21: =Est2019DistRev!H21 -> 0 | W21: =Est2019DistRev!I21 -> 0 | X21: =Est2019DistRev!J21 -> 0.78 | Y21: =Est2019DistRev!K21 -> 0.77 | Z21: =Est2019DistRev!L21 -> 0 | AA21: =Est2019DistRev!M21 -> 9.05 | AB21: =Est2019DistRev!N21 -> 12.43 | AC21: =Est2019DistRev!O21 -> 0 | AD21: =Est2019DistRev!P21 -> 0 | AF21: 36234 | AG21: 0 | AH21: 0 | AI21: 173815274 | AJ21: 0 | AK21: 0 | AL21: 244289927.6 | AM21: 638852125.6 | AN21: 0 | AO21: 106134752.1 | AP21: 33089430.44 | AQ21: 0 | AR21: 0 | AT21: 0 | AU21: 0 | AV21: 0 | AW21: 1703389.685 | AX21: 0 | AY21: 0 | AZ21: 2076464.385 | BA21: 5430243.068 | BB21: 0 | BC21: 10581634.78 | BD21: 4533251.97 | BE21: 0 | BF21: 0 | BG21: 24324983.89 | BI21: 0 | BJ21: 0 | BK21: 0 | BL21: 1546955.939 | BM21: 0 | BN21: 0 | BO21: 1905461.436 | BP21: 4919161.367 | BQ21: 0 | BR21: 9605195.063 | BS21: 4113016.204 | BT21: 0 | BU21: 0 | BV21: 22089790.01
B22: High voltage KVA time of use - HOT | C22: =Est2019DistRev!B22 -> High voltage KVA time of use - HOT | D22: 0 | E22: 0 | F22: 0 | G22: 0 | H22: 0 | I22: 0 | J22: 0 | K22: 0 | L22: 0 | M22: 0 | N22: 0 | O22: 0 | P22: 0 | R22: =Est2019DistRev!D22 -> 0 | S22: =Est2019DistRev!E22 -> 0 | T22: =Est2019DistRev!F22 -> 0 | U22: =Est2019DistRev!G22 -> 0 | V22: =Est2019DistRev!H22 -> 0 | W22: =Est2019DistRev!I22 -> 0 | X22: =Est2019DistRev!J22 -> 0 | Y22: =Est2019DistRev!K22 -> 0 | Z22: =Est2019DistRev!L22 -> 0 | AA22: =Est2019DistRev!M22 -> 0 | AB22: =Est2019DistRev!N22 -> 0 | AC22: =Est2019DistRev!O22 -> 0 | AD22: =Est2019DistRev!P22 -> 0 | AF22: 0 | AG22: 0 | AH22: 0 | AI22: 0 | AJ22: 0 | AK22: 0 | AL22: 0 | AM22: 0 | AN22: 0 | AO22: 0 | AP22: 0 | AQ22: 0 | AR22: 0 | AT22: 0 | AU22: =E22/100*AG22 -> 0 | AV22: =F22/100*AH22 -> 0 | AW22: =G22/100*AI22 -> 0 | AX22: =H22/100*AJ22 -> 0 | AY22: =I22/100*AK22 -> 0 | AZ22: =J22/100*AL22 -> 0 | BA22: =K22/100*AM22 -> 0 | BB22: =L22/100*AN22 -> 0 | BC22: =M22/100*AO22 -> 0 | BD22: =N22/100*AP22 -> 0 | BE22: =O22/100*AQ22 -> 0 | BF22: =P22/100*AR22 -> 0 | BG22: 0 | BI22: 0 | BJ22: 0 | BK22: 0 | BL22: 0 | BM22: 0 | BN22: 0 | BO22: 0 | BP22: 0 | BQ22: 0 | BR22: 0 | BS22: 0 | BT22: 0 | BU22: 0 | BV22: 0
B23: Subtransmission KVA time of use | C23: =Est2019DistRev!B23 -> Subtransmission KVA time of use | D23: 0 | E23: 0 | F23: 0 | G23: 0.56 | H23: 0 | I23: 0 | J23: 0.43 | K23: 0.37 | L23: 0 | M23: 0.98 | N23: 1.43 | O23: 0 | P23: 0 | R23: =Est2019DistRev!D23 -> 0 | S23: =Est2019DistRev!E23 -> 0 | T23: =Est2019DistRev!F23 -> 0 | U23: =Est2019DistRev!G23 -> 0.51 | V23: =Est2019DistRev!H23 -> 0 | W23: =Est2019DistRev!I23 -> 0 | X23: =Est2019DistRev!J23 -> 0.39 | Y23: =Est2019DistRev!K23 -> 0.34 | Z23: =Est2019DistRev!L23 -> 0 | AA23: =Est2019DistRev!M23 -> 0.89 | AB23: =Est2019DistRev!N23 -> 1.3 | AC23: =Est2019DistRev!O23 -> 0 | AD23: =Est2019DistRev!P23 -> 0 | AF23: 366 | AG23: 0 | AH23: 0 | AI23: 6227527.529 | AJ23: 0 | AK23: 0 | AL23: 11306632.75 | AM23: 14340438.67 | AN23: 0 | AO23: 4117758.995 | AP23: 1226831.123 | AQ23: 0 | AR23: 0 | AT23: 0 | AU23: 0 | AV23: 0 | AW23: 34874.15416 | AX23: 0 | AY23: 0 | AZ23: 48618.52083 | BA23: 53059.6231 | BB23: 0 | BC23: 40354.03815 | BD23: 17543.68506 | BE23: 0 | BF23: 0 | BG23: 194450.0213 | BI23: 0 | BJ23: 0 | BK23: 0 | BL23: 31760.3904 | BM23: 0 | BN23: 0 | BO23: 44095.86773 | BP23: 48757.49149 | BQ23: 0 | BR23: 36648.05506 | BS23: 15948.8046 | BT23: 0 | BU23: 0 | BV23: 177210.6093
B24: TOD | C24: =Est2019DistRev!B24 -> TOD | D24: 7.47 | E24: 0 | F24: 4.5 | G24: 14.17 | H24: 0 | I24: 0 | J24: 14.17 | K24: 3.73 | L24: 4.5 | M24: 0 | N24: 0 | O24: 0 | P24: 0 | R24: =Est2019DistRev!D24 -> 6.74 | S24: =Est2019DistRev!E24 -> 0 | T24: =Est2019DistRev!F24 -> 4.93 | U24: =Est2019DistRev!G24 -> 17.48 | V24: =Est2019DistRev!H24 -> 0 | W24: =Est2019DistRev!I24 -> 0 | X24: =Est2019DistRev!J24 -> 10.3 | Y24: =Est2019DistRev!K24 -> 3.37 | Z24: =Est2019DistRev!L24 -> 3.63 | AA24: =Est2019DistRev!M24 -> 0 | AB24: =Est2019DistRev!N24 -> 0 | AC24: =Est2019DistRev!O24 -> 0 | AD24: =Est2019DistRev!P24 -> 0 | AF24: 15598161.35 | AG24: 0 | AH24: 12690970.05 | AI24: 22175656.6 | AJ24: 0 | AK24: 0 | AL24: 41706694.09 | AM24: 107857002.4 | AN24: 23868443.45 | AO24: 0 | AP24: 0 | AQ24: 0 | AR24: 0 | AT24: 1165182.653 | AU24: 0 | AV24: 571093.6522 | AW24: 3142290.54 | AX24: 0 | AY24: 0 | AZ24: 5909838.553 | BA24: 4023066.19 | BB24: 1074079.955 | BC24: 0 | BD24: 0 | BE24: 0 | BF24: 0 | BG24: 15885551.54 | BI24: 1051316.075 | BJ24: 0 | BK24: 625664.8234 | BL24: 3876304.773 | BM24: 0 | BN24: 0 | BO24: 4295789.491 | BP24: 3634780.982 | BQ24: 866424.4974 | BR24: 0 | BS24: 0 | BT24: 0 | BU24: 0 | BV24: 14350280.64
B25: TOD9 | C25: =Est2019DistRev!B25 -> TOD9 | D25: 8.16 | E25: 0 | F25: 5.13 | G25: 14.2 | H25: 0 | I25: 0 | J25: 14.2 | K25: 4.55 | L25: 5.13 | M25: 0 | N25: 0 | O25: 0 | P25: 0 | R25: =Est2019DistRev!D25 -> 6.99 | S25: =Est2019DistRev!E25 -> 0 | T25: =Est2019DistRev!F25 -> 5.11 | U25: =Est2019DistRev!G25 -> 16.48 | V25: =Est2019DistRev!H25 -> 0 | W25: =Est2019DistRev!I25 -> 0 | X25: =Est2019DistRev!J25 -> 10.24 | Y25: =Est2019DistRev!K25 -> 3.9 | Z25: =Est2019DistRev!L25 -> 4.1 | AA25: =Est2019DistRev!M25 -> 0 | AB25: =Est2019DistRev!N25 -> 0 | AC25: =Est2019DistRev!O25 -> 0 | AD25: =Est2019DistRev!P25 -> 0 | AF25: 1010310.401 | AG25: 0 | AH25: 668818.714 | AI25: 945228.328 | AJ25: 0 | AK25: 0 | AL25: 1597730.386 | AM25: 6831899.483 | AN25: 1130512.015 | AO25: 0 | AP25: 0 | AQ25: 0 | AR25: 0 | AT25: 82441.32869 | AU25: 0 | AV25: 34310.40003 | AW25: 134222.4226 | AX25: 0 | AY25: 0 | AZ25: 226877.7148 | BA25: 310851.4265 | BB25: 57995.26639 | BC25: 0 | BD25: 0 | BE25: 0 | BF25: 0 | BG25: 846698.559 | BI25: 70620.697 | BJ25: 0 | BK25: 34176.63629 | BL25: 155773.6285 | BM25: 0 | BN25: 0 | BO25: 163607.5915 | BP25: 266444.0798 | BQ25: 46350.99263 | BR25: 0 | BS25: 0 | BT25: 0 | BU25: 0 | BV25: 736973.6258
B26: TOU | C26: =Est2019DistRev!B26 -> TOU | D26: 0 | E26: 0 | F26: 0 | G26: 11.15 | H26: 0 | I26: 0 | J26: 6.78 | K26: 3.27 | L26: 0 | M26: 0 | N26: 48.43 | O26: 0 | P26: 0 | R26: =Est2019DistRev!D26 -> 0 | S26: =Est2019DistRev!E26 -> 0 | T26: =Est2019DistRev!F26 -> 0 | U26: =Est2019DistRev!G26 -> 10.14 | V26: =Est2019DistRev!H26 -> 0 | W26: =Est2019DistRev!I26 -> 0 | X26: =Est2019DistRev!J26 -> 6.16 | Y26: =Est2019DistRev!K26 -> 2.97 | Z26: =Est2019DistRev!L26 -> 0 | AA26: =Est2019DistRev!M26 -> 0 | AB26: =Est2019DistRev!N26 -> 44.02 | AC26: =Est2019DistRev!O26 -> 0 | AD26: =Est2019DistRev!P26 -> 0 | AF26: 225090 | AG26: 0 | AH26: 0 | AI26: 4508745.304 | AJ26: 0 | AK26: 0 | AL26: 6758791.942 | AM26: 9460029.855 | AN26: 0 | AO26: 0 | AP26: 1192130.282 | AQ26: 0 | AR26: 0 | AT26: 0 | AU26: 0 | AV26: 0 | AW26: 502725.1014 | AX26: 0 | AY26: 0 | AZ26: 458246.0937 | BA26: 309342.9763 | BB26: 0 | BC26: 0 | BD26: 577348.6956 | BE26: 0 | BF26: 0 | BG26: 1847662.867 | BI26: 0 | BJ26: 0 | BK26: 0 | BL26: 457186.7738 | BM26: 0 | BN26: 0 | BO26: 416341.5836 | BP26: 280962.8867 | BQ26: 0 | BR26: 0 | BS26: 524775.7501 | BT26: 0 | BU26: 0 | BV26: 1679266.994
B27: TODFLEX | C27: =Est2019DistRev!B27 -> TODFLEX | D27: 8.28 | E27: 0 | F27: 5.37 | G27: 14.56 | H27: 0 | I27: 0 | J27: 14.56 | K27: 4.55 | L27: 5.37 | M27: 0 | N27: 0 | O27: 0 | P27: 0 | R27: =Est2019DistRev!D27 -> 7.53 | S27: =Est2019DistRev!E27 -> 0 | T27: =Est2019DistRev!F27 -> 4.88 | U27: =Est2019DistRev!G27 -> 17.98 | V27: =Est2019DistRev!H27 -> 0 | W27: =Est2019DistRev!I27 -> 0 | X27: =Est2019DistRev!J27 -> 10.32 | Y27: =Est2019DistRev!K27 -> 4.14 | Z27: =Est2019DistRev!L27 -> 4.88 | AA27: =Est2019DistRev!M27 -> 0 | AB27: =Est2019DistRev!N27 -> 0 | AC27: =Est2019DistRev!O27 -> 0 | AD27: =Est2019DistRev!P27 -> 0 | AF27: 707292.0075 | AG27: 0 | AH27: 1584333.56 | AI27: 771828.7198 | AJ27: 0 | AK27: 0 | AL27: 1383098.006 | AM27: 3446686.135 | AN27: 2839086.614 | AO27: 0 | AP27: 0 | AQ27: 0 | AR27: 0 | AT27: 58563.77822 | AU27: 0 | AV27: 85078.71216 | AW27: 112378.2616 | AX27: 0 | AY27: 0 | AZ27: 201379.0696 | BA27: 156824.2191 | BB27: 152458.9512 | BC27: 0 | BD27: 0 | BE27: 0 | BF27: 0 | BG27: 766682.9919 | BI27: 53259.08817 | BJ27: 0 | BK27: 77315.47772 | BL27: 138774.8038 | BM27: 0 | BN27: 0 | BO27: 142735.7142 | BP27: 142692.806 | BQ27: 138547.4268 | BR27: 0 | BS27: 0 | BT27: 0 | BU27: 0 | BV27: 693325.3167
B28: Low Voltage KW 1 rate | C28: =Est2019DistRev!B28 -> Low Voltage KW 1 rate | D28: 0 | E28: 0 | F28: 0 | G28: 3.08 | H28: 0 | I28: 0 | J28: 3.08 | K28: 0 | L28: 0 | M28: 0 | N28: 0 | O28: 29.68 | P28: 11.72 | R28: =Est2019DistRev!D28 -> 0 | S28: =Est2019DistRev!E28 -> 2.8 | T28: =Est2019DistRev!F28 -> 2.8 | U28: =Est2019DistRev!G28 -> 2.8 | V28: =Est2019DistRev!H28 -> 2.8 | W28: =Est2019DistRev!I28 -> 2.8 | X28: =Est2019DistRev!J28 -> 2.8 | Y28: =Est2019DistRev!K28 -> 2.8 | Z28: =Est2019DistRev!L28 -> 2.8 | AA28: =Est2019DistRev!M28 -> 0 | AB28: =Est2019DistRev!N28 -> 0 | AC28: =Est2019DistRev!O28 -> 26.98 | AD28: =Est2019DistRev!P28 -> 10.65 | AF28: 4392 | AG28: 0 | AH28: 0 | AI28: 20741.32671 | AJ28: 0 | AK28: 0 | AL28: 49249.22386 | AM28: 0 | AN28: 0 | AO28: 0 | AP28: 0 | AQ28: 6369.862 | AR28: 9838.826 | AT28: 0 | AU28: 0 | AV28: 0 | AW28: 638.8328628 | AX28: 0 | AY28: 0 | AZ28: 1516.876095 | BA28: 0 | BB28: 0 | BC28: 0 | BD28: 0 | BE28: 1890.575042 | BF28: 1153.110407 | BG28: 5199.394407 | BI28: 0 | BJ28: 0 | BK28: 0 | BL28: 580.757148 | BM28: 0 | BN28: 0 | BO28: 1378.978268 | BP28: 0 | BQ28: 0 | BR28: 0 | BS28: 0 | BT28: 1718.588768 | BU28: 1047.834969 | BV28: 4726.159153
B29: Low voltage medium KW time of use (opt-in) | C29: =Est2019DistRev!B29 -> Low voltage medium KW time of use (opt-in) | D29: 0 | E29: 0 | F29: 0 | G29: 3.85 | H29: 0 | I29: 0 | J29: 3.85 | K29: 0 | L29: 0 | M29: 0 | N29: 0 | O29: 43.59 | P29: 29.05 | R29: =Est2019DistRev!D29 -> 0 | S29: =Est2019DistRev!E29 -> 0 | T29: =Est2019DistRev!F29 -> 0 | U29: =Est2019DistRev!G29 -> 3.5 | V29: =Est2019DistRev!H29 -> 0 | W29: =Est2019DistRev!I29 -> 0 | X29: =Est2019DistRev!J29 -> 3.5 | Y29: =Est2019DistRev!K29 -> 0 | Z29: =Est2019DistRev!L29 -> 0 | AA29: =Est2019DistRev!M29 -> 0 | AB29: =Est2019DistRev!N29 -> 0 | AC29: =Est2019DistRev!O29 -> 39.62 | AD29: =Est2019DistRev!P29 -> 26.41 | AF29: 208620 | AG29: 0 | AH29: 0 | AI29: 28957081.84 | AJ29: 0 | AK29: 0 | AL29: 58125647.51 | AM29: 0 | AN29: 0 | AO29: 0 | AP29: 0 | AQ29: 3030279.076 | AR29: 4671498.06 | AT29: 0 | AU29: 0 | AV29: 0 | AW29: 1114847.651 | AX29: 0 | AY29: 0 | AZ29: 2237837.429 | BA29: 0 | BB29: 0 | BC29: 0 | BD29: 0 | BE29: 1320898.649 | BF29: 1357070.186 | BG29: 6030653.916 | BI29: 0 | BJ29: 0 | BK29: 0 | BL29: 1013497.864 | BM29: 0 | BN29: 0 | BO29: 2034397.663 | BP29: 0 | BQ29: 0 | BR29: 0 | BS29: 0 | BT29: 1200596.57 | BU29: 1233742.638 | BV29: 5482234.735
B30: Low voltage medium KW 1 rate (mandatory) | C30: =Est2019DistRev!B30 -> Low voltage medium KW 1 rate (mandatory) | D30: 0 | E30: 0 | F30: 0 | G30: 3.85 | H30: 0 | I30: 0 | J30: 3.85 | K30: 0 | L30: 0 | M30: 0 | N30: 0 | O30: 43.59 | P30: 29.05 | R30: =Est2019DistRev!D30 -> 0 | S30: =Est2019DistRev!E30 -> 0 | T30: =Est2019DistRev!F30 -> 0 | U30: =Est2019DistRev!G30 -> 3.5 | V30: =Est2019DistRev!H30 -> 0 | W30: =Est2019DistRev!I30 -> 0 | X30: =Est2019DistRev!J30 -> 3.5 | Y30: =Est2019DistRev!K30 -> 0 | Z30: =Est2019DistRev!L30 -> 0 | AA30: =Est2019DistRev!M30 -> 0 | AB30: =Est2019DistRev!N30 -> 0 | AC30: =Est2019DistRev!O30 -> 39.62 | AD30: =Est2019DistRev!P30 -> 26.41 | AF30: 2445612 | AG30: 0 | AH30: 0 | AI30: 183561587.5 | AJ30: 0 | AK30: 0 | AL30: 356050860 | AM30: 0 | AN30: 0 | AO30: 0 | AP30: 0 | AQ30: 24585704.74 | AR30: 44978171.62 | AT30: 0 | AU30: 0 | AV30: 0 | AW30: 7067121.117 | AX30: 0 | AY30: 0 | AZ30: 13707958.11 | BA30: 0 | BB30: 0 | BC30: 0 | BD30: 0 | BE30: 10716908.7 | BF30: 13066158.86 | BG30: 44558146.78 | BI30: 0 | BJ30: 0 | BK30: 0 | BL30: 6424655.561 | BM30: 0 | BN30: 0 | BO30: 12461780.1 | BP30: 0 | BQ30: 0 | BR30: 0 | BS30: 0 | BT30: 9740856.22 | BU30: 11878735.12 | BV30: 40506027
AT31: 0 | AU31: 0 | AV31: 0 | AW31: 0 | AX31: 0 | AY31: 0 | AZ31: 0 | BA31: 0 | BB31: 0 | BC31: 0 | BD31: 0 | BE31: 0 | BF31: 0 | BG31: 0 | BI31: 0 | BJ31: 0 | BK31: 0 | BL31: 0 | BM31: 0 | BN31: 0 | BO31: 0 | BP31: 0 | BQ31: 0 | BR31: 0 | BS31: 0 | BT31: 0 | BU31: 0 | BV31: 0
AT32: 0 | AU32: 0 | AV32: 0 | AW32: 0 | AX32: 0 | AY32: 0 | AZ32: 0 | BA32: 0 | BB32: 0 | BC32: 0 | BD32: 0 | BE32: 0 | BF32: 0 | BG32: 0 | BI32: 0 | BJ32: 0 | BK32: 0 | BL32: 0 | BM32: 0 | BN32: 0 | BO32: 0 | BP32: 0 | BQ32: 0 | BR32: 0 | BS32: 0 | BT32: 0 | BU32: 0 | BV32: 0
AT33: 0 | AU33: 0 | AV33: 0 | AW33: 0 | AX33: 0 | AY33: 0 | AZ33: 0 | BA33: 0 | BB33: 0 | BC33: 0 | BD33: 0 | BE33: 0 | BF33: 0 | BG33: 0 | BI33: 0 | BJ33: 0 | BK33: 0 | BL33: 0 | BM33: 0 | BN33: 0 | BO33: 0 | BP33: 0 | BQ33: 0 | BR33: 0 | BS33: 0 | BT33: 0 | BU33: 0 | BV33: 0
AT34: 0 | AU34: 0 | AV34: 0 | AW34: 0 | AX34: 0 | AY34: 0 | AZ34: 0 | BA34: 0 | BB34: 0 | BC34: 0 | BD34: 0 | BE34: 0 | BF34: 0 | BG34: 0 | BI34: 0 | BJ34: 0 | BK34: 0 | BL34: 0 | BM34: 0 | BN34: 0 | BO34: 0 | BP34: 0 | BQ34: 0 | BR34: 0 | BS34: 0 | BT34: 0 | BU34: 0 | BV34: 0
AT35: 0 | AU35: 0 | AV35: 0 | AW35: 0 | AX35: 0 | AY35: 0 | AZ35: 0 | BA35: 0 | BB35: 0 | BC35: 0 | BD35: 0 | BE35: 0 | BF35: 0 | BG35: =SUM(AT35:BF35) -> 0 | BI35: =R35/100*AF35 -> 0 | BJ35: 0 | BK35: 0 | BL35: 0 | BM35: 0 | BN35: 0 | BO35: 0 | BP35: 0 | BQ35: 0 | BR35: 0 | BS35: 0 | BT35: 0 | BU35: 0 | BV35: =SUM(BI35:BU35) -> 0
AT36: 0 | AU36: 0 | AV36: 0 | AW36: 0 | AX36: 0 | AY36: 0 | AZ36: 0 | BA36: 0 | BB36: 0 | BC36: 0 | BD36: 0 | BE36: 0 | BF36: 0 | BG36: 0 | BI36: 0 | BJ36: 0 | BK36: 0 | BL36: 0 | BM36: 0 | BN36: 0 | BO36: 0 | BP36: 0 | BQ36: 0 | BR36: 0 | BS36: 0 | BT36: 0 | BU36: 0 | BV36: 0
AT37: 0 | AU37: 0 | AV37: 0 | AW37: 0 | AX37: 0 | AY37: 0 | AZ37: 0 | BA37: 0 | BB37: 0 | BC37: 0 | BD37: 0 | BE37: 0 | BF37: 0 | BG37: 0 | BI37: 0 | BJ37: 0 | BK37: 0 | BL37: 0 | BM37: 0 | BN37: 0 | BO37: 0 | BP37: 0 | BQ37: 0 | BR37: 0 | BS37: 0 | BT37: 0 | BU37: 0 | BV37: 0
AT38: 0 | AU38: 0 | AV38: 0 | AW38: 0 | AX38: 0 | AY38: 0 | AZ38: 0 | BA38: 0 | BB38: 0 | BC38: 0 | BD38: 0 | BE38: 0 | BF38: 0 | BG38: 0 | BI38: 0 | BJ38: 0 | BK38: 0 | BL38: 0 | BM38: 0 | BN38: 0 | BO38: 0 | BP38: 0 | BQ38: 0 | BR38: 0 | BS38: 0 | BT38: 0 | BU38: 0 | BV38: 0
AT39: 0 | AU39: 0 | AV39: 0 | AW39: 0 | AX39: 0 | AY39: 0 | AZ39: 0 | BA39: 0 | BB39: 0 | BC39: 0 | BD39: 0 | BE39: 0 | BF39: 0 | BG39: 0 | BI39: 0 | BJ39: 0 | BK39: 0 | BL39: 0 | BM39: 0 | BN39: 0 | BO39: 0 | BP39: 0 | BQ39: 0 | BR39: 0 | BS39: 0 | BT39: 0 | BU39: 0 | BV39: 0
AT40: 0 | AU40: 0 | AV40: 0 | AW40: 0 | AX40: 0 | AY40: 0 | AZ40: 0 | BA40: 0 | BB40: 0 | BC40: 0 | BD40: 0 | BE40: 0 | BF40: 0 | BG40: 0 | BI40: 0 | BJ40: 0 | BK40: 0 | BL40: 0 | BM40: 0 | BN40: 0 | BO40: 0 | BP40: 0 | BQ40: 0 | BR40: 0 | BS40: 0 | BT40: 0 | BU40: 0 | BV40: 0
AT41: 0 | AU41: 0 | AV41: 0 | AW41: 0 | AX41: 0 | AY41: 0 | AZ41: 0 | BA41: 0 | BB41: 0 | BC41: 0 | BD41: 0 | BE41: 0 | BF41: 0 | BG41: 0 | BI41: 0 | BJ41: 0 | BK41: 0 | BL41: 0 | BM41: 0 | BN41: 0 | BO41: 0 | BP41: 0 | BQ41: 0 | BR41: 0 | BS41: 0 | BT41: 0 | BU41: 0 | BV41: 0
AT42: 0 | AU42: 0 | AV42: 0 | AW42: 0 | AX42: 0 | AY42: 0 | AZ42: 0 | BA42: 0 | BB42: 0 | BC42: 0 | BD42: 0 | BE42: 0 | BF42: 0 | BG42: 0 | BI42: 0 | BJ42: 0 | BK42: 0 | BL42: 0 | BM42: 0 | BN42: 0 | BO42: 0 | BP42: 0 | BQ42: 0 | BR42: 0 | BS42: 0 | BT42: 0 | BU42: 0 | BV42: 0
AT43: 0 | AU43: 0 | AV43: 0 | AW43: 0 | AX43: 0 | AY43: 0 | AZ43: 0 | BA43: 0 | BB43: 0 | BC43: 0 | BD43: 0 | BE43: 0 | BF43: 0 | BG43: 0 | BI43: 0 | BJ43: 0 | BK43: 0 | BL43: 0 | BM43: 0 | BN43: 0 | BO43: 0 | BP43: 0 | BQ43: 0 | BR43: 0 | BS43: 0 | BT43: 0 | BU43: 0 | BV43: 0
AT44: 0 | AU44: 0 | AV44: 0 | AW44: 0 | AX44: 0 | AY44: 0 | AZ44: 0 | BA44: 0 | BB44: 0 | BC44: 0 | BD44: 0 | BE44: 0 | BF44: 0 | BG44: 0 | BI44: 0 | BJ44: 0 | BK44: 0 | BL44: 0 | BM44: 0 | BN44: 0 | BO44: 0 | BP44: 0 | BQ44: 0 | BR44: 0 | BS44: 0 | BT44: 0 | BU44: 0 | BV44: 0
AT45: 0 | AU45: 0 | AV45: 0 | AW45: 0 | AX45: 0 | AY45: 0 | AZ45: 0 | BA45: 0 | BB45: 0 | BC45: 0 | BD45: 0 | BE45: 0 | BF45: 0 | BG45: 0 | BI45: 0 | BJ45: 0 | BK45: 0 | BL45: 0 | BM45: 0 | BN45: 0 | BO45: 0 | BP45: 0 | BQ45: 0 | BR45: 0 | BS45: 0 | BT45: 0 | BU45: 0 | BV45: 0
AT46: 0 | AU46: 0 | AV46: 0 | AW46: 0 | AX46: 0 | AY46: 0 | AZ46: 0 | BA46: 0 | BB46: 0 | BC46: 0 | BD46: 0 | BE46: 0 | BF46: 0 | BG46: 0 | BI46: 0 | BJ46: 0 | BK46: 0 | BL46: 0 | BM46: 0 | BN46: 0 | BO46: 0 | BP46: 0 | BQ46: 0 | BR46: 0 | BS46: 0 | BT46: 0 | BU46: 0 | BV46: 0
AT47: 0 | AU47: 0 | AV47: 0 | AW47: 0 | AX47: 0 | AY47: 0 | AZ47: 0 | BA47: 0 | BB47: 0 | BC47: 0 | BD47: 0 | BE47: 0 | BF47: 0 | BG47: 0 | BI47: 0 | BJ47: 0 | BK47: 0 | BL47: 0 | BM47: 0 | BN47: 0 | BO47: 0 | BP47: 0 | BQ47: 0 | BR47: 0 | BS47: 0 | BT47: 0 | BU47: 0 | BV47: 0
AT48: 0 | AU48: 0 | AV48: 0 | AW48: 0 | AX48: 0 | AY48: 0 | AZ48: 0 | BA48: 0 | BB48: 0 | BC48: 0 | BD48: 0 | BE48: 0 | BF48: 0 | BG48: 0 | BI48: 0 | BJ48: 0 | BK48: 0 | BL48: 0 | BM48: 0 | BN48: 0 | BO48: 0 | BP48: 0 | BQ48: 0 | BR48: 0 | BS48: 0 | BT48: 0 | BU48: 0 | BV48: 0
AT49: 0 | AU49: 0 | AV49: 0 | AW49: 0 | AX49: 0 | AY49: 0 | AZ49: 0 | BA49: 0 | BB49: 0 | BC49: 0 | BD49: 0 | BE49: 0 | BF49: 0 | BG49: 0 | BI49: 0 | BJ49: 0 | BK49: 0 | BL49: 0 | BM49: 0 | BN49: 0 | BO49: 0 | BP49: 0 | BQ49: 0 | BR49: 0 | BS49: 0 | BT49: 0 | BU49: 0 | BV49: 0
AT50: 0 | AU50: 0 | AV50: 0 | AW50: 0 | AX50: 0 | AY50: 0 | AZ50: 0 | BA50: 0 | BB50: 0 | BC50: 0 | BD50: 0 | BE50: 0 | BF50: 0 | BG50: 0 | BI50: 0 | BJ50: 0 | BK50: 0 | BL50: 0 | BM50: 0 | BN50: 0 | BO50: 0 | BP50: 0 | BQ50: 0 | BR50: 0 | BS50: 0 | BT50: 0 | BU50: 0 | BV50: 0
AT51: 0 | AU51: 0 | AV51: 0 | AW51: 0 | AX51: 0 | AY51: 0 | AZ51: 0 | BA51: 0 | BB51: 0 | BC51: 0 | BD51: 0 | BE51: 0 | BF51: 0 | BG51: 0 | BI51: 0 | BJ51: 0 | BK51: 0 | BL51: 0 | BM51: 0 | BN51: 0 | BO51: 0 | BP51: 0 | BQ51: 0 | BR51: 0 | BS51: 0 | BT51: 0 | BU51: 0 | BV51: 0
AT52: 0 | AU52: 0 | AV52: 0 | AW52: 0 | AX52: 0 | AY52: 0 | AZ52: 0 | BA52: 0 | BB52: 0 | BC52: 0 | BD52: 0 | BE52: 0 | BF52: 0 | BG52: 0 | BI52: 0 | BJ52: 0 | BK52: 0 | BL52: 0 | BM52: 0 | BN52: 0 | BO52: 0 | BP52: 0 | BQ52: 0 | BR52: 0 | BS52: 0 | BT52: 0 | BU52: 0 | BV52: 0
AT53: 0 | AU53: 0 | AV53: 0 | AW53: 0 | AX53: 0 | AY53: 0 | AZ53: 0 | BA53: 0 | BB53: 0 | BC53: 0 | BD53: 0 | BE53: 0 | BF53: 0 | BG53: 0 | BI53: 0 | BJ53: 0 | BK53: 0 | BL53: 0 | BM53: 0 | BN53: 0 | BO53: 0 | BP53: 0 | BQ53: 0 | BR53: 0 | BS53: 0 | BT53: 0 | BU53: 0 | BV53: 0
AT54: 0 | AU54: 0 | AV54: 0 | AW54: 0 | AX54: 0 | AY54: 0 | AZ54: 0 | BA54: 0 | BB54: 0 | BC54: 0 | BD54: 0 | BE54: 0 | BF54: 0 | BG54: 0 | BI54: 0 | BJ54: 0 | BK54: 0 | BL54: 0 | BM54: 0 | BN54: 0 | BO54: 0 | BP54: 0 | BQ54: 0 | BR54: 0 | BS54: 0 | BT54: 0 | BU54: 0 | BV54: 0
AT55: 0 | AU55: 0 | AV55: 0 | AW55: 0 | AX55: 0 | AY55: 0 | AZ55: 0 | BA55: 0 | BB55: 0 | BC55: 0 | BD55: 0 | BE55: 0 | BF55: 0 | BG55: 0 | BI55: 0 | BJ55: 0 | BK55: 0 | BL55: 0 | BM55: 0 | BN55: 0 | BO55: 0 | BP55: 0 | BQ55: 0 | BR55: 0 | BS55: 0 | BT55: 0 | BU55: 0 | BV55: 0
AT56: 0 | AU56: 0 | AV56: 0 | AW56: 0 | AX56: 0 | AY56: 0 | AZ56: 0 | BA56: 0 | BB56: 0 | BC56: 0 | BD56: 0 | BE56: 0 | BF56: 0 | BG56: 0 | BI56: 0 | BJ56: 0 | BK56: 0 | BL56: 0 | BM56: 0 | BN56: 0 | BO56: 0 | BP56: 0 | BQ56: 0 | BR56: 0 | BS56: 0 | BT56: 0 | BU56: 0 | BV56: 0
AT57: 0 | AU57: 0 | AV57: 0 | AW57: 0 | AX57: 0 | AY57: 0 | AZ57: 0 | BA57: 0 | BB57: 0 | BC57: 0 | BD57: 0 | BE57: 0 | BF57: 0 | BG57: 0 | BI57: 0 | BJ57: 0 | BK57: 0 | BL57: 0 | BM57: 0 | BN57: 0 | BO57: 0 | BP57: 0 | BQ57: 0 | BR57: 0 | BS57: 0 | BT57: 0 | BU57: 0 | BV57: 0
AT58: 0 | AU58: 0 | AV58: 0 | AW58: 0 | AX58: 0 | AY58: 0 | AZ58: 0 | BA58: 0 | BB58: 0 | BC58: 0 | BD58: 0 | BE58: 0 | BF58: 0 | BG58: 0 | BI58: 0 | BJ58: 0 | BK58: 0 | BL58: 0 | BM58: 0 | BN58: 0 | BO58: 0 | BP58: 0 | BQ58: 0 | BR58: 0 | BS58: 0 | BT58: 0 | BU58: 0 | BV58: 0
AT59: 0 | AU59: 0 | AV59: 0 | AW59: 0 | AX59: 0 | AY59: 0 | AZ59: 0 | BA59: 0 | BB59: 0 | BC59: 0 | BD59: 0 | BE59: 0 | BF59: 0 | BG59: 0 | BI59: 0 | BJ59: 0 | BK59: 0 | BL59: 0 | BM59: 0 | BN59: 0 | BO59: 0 | BP59: 0 | BQ59: 0 | BR59: 0 | BS59: 0 | BT59: 0 | BU59: 0 | BV59: 0
AT60: 0 | AU60: 0 | AV60: 0 | AW60: 0 | AX60: 0 | AY60: 0 | AZ60: 0 | BA60: 0 | BB60: 0 | BC60: 0 | BD60: 0 | BE60: 0 | BF60: 0 | BG60: 0 | BI60: 0 | BJ60: 0 | BK60: 0 | BL60: 0 | BM60: 0 | BN60: 0 | BO60: 0 | BP60: 0 | BQ60: 0 | BR60: 0 | BS60: 0 | BT60: 0 | BU60: 0 | BV60: 0
AT61: 0 | AU61: 0 | AV61: 0 | AW61: 0 | AX61: 0 | AY61: 0 | AZ61: 0 | BA61: 0 | BB61: 0 | BC61: 0 | BD61: 0 | BE61: 0 | BF61: 0 | BG61: 0 | BI61: 0 | BJ61: 0 | BK61: 0 | BL61: 0 | BM61: 0 | BN61: 0 | BO61: 0 | BP61: 0 | BQ61: 0 | BR61: 0 | BS61: 0 | BT61: 0 | BU61: 0 | BV61: 0
AT62: 0 | AU62: 0 | AV62: 0 | AW62: 0 | AX62: 0 | AY62: 0 | AZ62: 0 | BA62: 0 | BB62: 0 | BC62: 0 | BD62: 0 | BE62: 0 | BF62: 0 | BG62: 0 | BI62: 0 | BJ62: 0 | BK62: 0 | BL62: 0 | BM62: 0 | BN62: 0 | BO62: 0 | BP62: 0 | BQ62: 0 | BR62: 0 | BS62: 0 | BT62: 0 | BU62: 0 | BV62: 0
AT63: 0 | AU63: 0 | AV63: 0 | AW63: 0 | AX63: 0 | AY63: 0 | AZ63: 0 | BA63: 0 | BB63: 0 | BC63: 0 | BD63: 0 | BE63: 0 | BF63: 0 | BG63: 0 | BI63: 0 | BJ63: 0 | BK63: 0 | BL63: 0 | BM63: 0 | BN63: 0 | BO63: 0 | BP63: 0 | BQ63: 0 | BR63: 0 | BS63: 0 | BT63: 0 | BU63: 0 | BV63: 0
AT64: 0 | AU64: 0 | AV64: 0 | AW64: 0 | AX64: 0 | AY64: 0 | AZ64: 0 | BA64: 0 | BB64: 0 | BC64: 0 | BD64: 0 | BE64: 0 | BF64: 0 | BG64: 0 | BI64: 0 | BJ64: 0 | BK64: 0 | BL64: 0 | BM64: 0 | BN64: 0 | BO64: 0 | BP64: 0 | BQ64: 0 | BR64: 0 | BS64: 0 | BT64: 0 | BU64: 0 | BV64: 0
AT65: 0 | AU65: 0 | AV65: 0 | AW65: 0 | AX65: 0 | AY65: 0 | AZ65: 0 | BA65: 0 | BB65: 0 | BC65: 0 | BD65: 0 | BE65: 0 | BF65: 0 | BG65: 0 | BI65: 0 | BJ65: 0 | BK65: 0 | BL65: 0 | BM65: 0 | BN65: 0 | BO65: 0 | BP65: 0 | BQ65: 0 | BR65: 0 | BS65: 0 | BT65: 0 | BU65: 0 | BV65: 0
AF66: =SUM(AF6:AF65) -> 276925924 | AG66: 1082561070 | AH66: 14944122.32 | AI66: 946758713.4 | AJ66: 1765288643 | AK66: 0 | AL66: 1454463568 | AM66: 2274196081 | AN66: 27838042.08 | AO66: 431167120.8 | AP66: 128432748.2 | AQ66: 27622353.68 | AR66: 49659508.5 | AT66: =SUM(AT6:AT65) -> 21091760.82 | AU66: 82868159.17 | AV66: 690482.7644 | AW66: 31198720.78 | AX66: 134932014.9 | AY66: 0 | AZ66: 45156230.48 | BA66: 32889000.87 | BB66: 1284534.173 | BC66: 63508716.5 | BD66: 28224836.46 | BE66: 12039697.92 | BF66: 14424382.15 | BG66: 468308537 | BI66: =SUM(BI6:BI65) -> 19063630.3 | BJ66: 86383777.84 | BK66: 737156.9374 | BL66: 29566845.54 | BM66: 111762742.2 | BN66: 0 | BO66: 39556295.57 | BP66: 29686399.98 | BQ66: 1051322.917 | BR66: 57618577.27 | BS66: 25607570.03 | BT66: 10943171.38 | BU66: 13113525.6 | BV66: 425091015.5

Sheet 2020DistRevCapForm
B2: ="Tariff Approval - "&'Model update'!$C$3 -> Tariff Approval - United Energy | C2: ='Model update'!$C$5&"DistRevCapForm" -> 2020DistRevCapForm
B4: DUoS
B6: Year (t) | C6: ='Model update'!C5 -> 2020 | H6: =C6-1 -> 2019
B8: Table 1- Compliance with AER Final Determination Total Annual Revenue
B9: Revenue from DUoS charges for year t | C9: =Prop2020DistTar!BG66 -> 468308537
B10: Total Annual Revenue for year t | C10: =C18 -> 468484182.3
C11: =IF(C9="","",IF(C10>=C9,"DUoS REVENUE CAP FORMULA COMPLIANT","DUoS REVENUE CAP FORMULA BREACHED")) -> DUoS REVENUE CAP FORMULA COMPLIANT
B13: Table 2 - Total Annual Revenue for year t (TARt)
B14: Adjusted Annual Smoothed Revenue for year t | C14: =C25 -> 456978607.4 | H14: =H25 -> 449766157.1
B15: I factor for year t (F factor Scheme) | C15: ='Model update'!B$100 -> 5100 | H15: =INDEX('Model update'!$D$100:$H$100,1,MATCH($H$6,'Model update'!$D$93:$H$93,0)) -> 224400
B16: T factor for year t (DMIS carry over amount) | C16: ='Model update'!B144 -> 0 | H16: =INDEX('Model update'!$D$144:$H$144,1,MATCH($H$6,'Model update'!$D$137:$H$137,0)) -> 0
B17: B factor for year t | C17: =C32 -> 11500474.88 | H17: =H32 -> -14573830.86
B18: Total Annual Revenue for year t | C18: =C14+C15+C16+C17 -> 468484182.3 | H18: =H14+H15+H16+H17 -> 435416726.2
B20: Table 3 - Adjusted Annual Revenue for year t (AARt)
B21: Adjusted Annual Smoothed Revenue for year t-1 | C21: =H25 -> 449766157.1 | H21: 422294403.7
B22: CPI for period t | C22: ='Model update'!C30 -> 0.01592920354 | H22: ='Model update'!C29 -> 0.02077687444
B23: X factor for period t | C23: ='Model update'!B60 -> 0.00492058777 | H23: =INDEX('Model update'!$E$60:$H$60,1,MATCH("Xt for "&$H$6,'Model update'!$E$53:$H$53,0)) -> -0.02611202001
B24: S factor for period t | C24: ='Model update'!B111 -> 0.005050561939 | H24: =INDEX('Model update'!$D$111:$H$111,1,MATCH($H$6,'Model update'!$D$104:$H$104,0)) -> 0.01682414399
B25: Adjusted Annual Smoothed Revenue for year t | C25: =IF(C6=2016,'Model update'!D60*(1+C24),(C21*(1+C22)*(1-C23)*(1+C24))) -> 456978607.4 | H25: =IF(H6=2016,'Model update'!D60*(1+H24),(H21*(1+H22)*(1-H23)*(1+H24))) -> 449766157.1
B27: Table 4- B factor for year t
B28: DUoS revenue under/over recovery approved | C28: =-E71*(1+E69)^0.5 -> 11215298.85 | H28: -14748061.9
B29: License Fee Recovery Amount for year t | C29: =C38 -> 285176.0321 | H29: =H38 -> 174231.0379
B30: Approved Pass through Amount for year t | C30: ='Model update'!B122 -> 0 | H30: =INDEX('Model update'!$D$122:$H$122,1,MATCH($H$6,'Model update'!$D$115:$H$115,0)) -> 0
B31: Pass Through revenue under/over recovery for years 2014 and 2015
B32: B factor for year t | C32: =SUM(C28:C31) -> 11500474.88 | H32: =SUM(H28:H31) -> -14573830.86
B34: Table 5 - License Fee Recovery Amount for year t
B35: Lt-1 | C35: ='Model update'!B133 -> 263285 | H35: =INDEX('Model update'!$D$133:$H$133,1,MATCH($H$6,'Model update'!$D$126:$H$126,0)) -> 159925
B36: Nominal WACC t | C36: =(1+'Model update'!$B$43)*(1+'Model update'!$C$30)-1 -> 0.05250474139 | H36: =(1+'Model update'!$B$45)*(1+'Model update'!$C$29)-1 -> 0.05907249241
B37: Nominal WACC t-1 | C37: =(1+'Model update'!$B$45)*(1+'Model update'!$C$29)-1 -> 0.05907249241 | H37: =(1+'Model update'!$B$47)*(1+'Model update'!$C$28)-1 -> 0.05819803957
B38: License Fee Recovery Amount for year t | C38: =C35*(1+C36)*(1+C37)^0.5 -> 285176.0321 | H38: =H35*(1+H36)*(1+H37)^0.5 -> 174231.0379
B42: Table 6 - DUoS Recovery Arrangements
C43: Year t-2 | D43: Year t-1 | E43: Year t
C44: (actual) | D44: (estimate) | E44: (forecast)
C45: =D45-1 -> 2018 | D45: =E45-1 -> 2019 | E45: =C$6 -> 2020
B47: (A) Revenue from DUoS Charges | C47: 413537194.8 | D47: =Est2019DistRev!AS66 -> 429793321.2 | E47: =C9 -> 468308537
B50: (B) Less TAR for regulatory year = | C50: =SUM(C51:C54) -> 423465956.7 | D50: =SUM(D51:D54) -> 450164788.1 | E50: =SUM(E51:E54) -> 457268883.4
B51: + Adjusted annual smoothed revenue | C51: =H21 -> 422294403.7 | D51: =C21 -> 449766157.1 | E51: =C14 -> 456978607.4
B52: +It | C52: =INDEX('Model update'!$D$100:$H$100,1,MATCH($C$45,'Model update'!$D$93:$H$93,0)) -> 1000000 | D52: =H15 -> 224400 | E52: =C15 -> 5100
B53: +Tt | C53: =INDEX('Model update'!$D$144:$H$144,1,MATCH($C$45,'Model update'!$D$137:$H$137,0)) -> 0 | D53: =H16 -> 0 | E53: =C16 -> 0
B54: +Bt = | C54: =SUM(C55:C57) -> 171552.9972 | D54: =SUM(D55:D57) -> 174231.0379 | E54: =SUM(E55:E57) -> 285176.0321
B55: +Licence fee recovery | C55: 171552.9972 | D55: =H29 -> 174231.0379 | E55: =C29 -> 285176.0321
B56: +Approved pass throughs | C56: 0 | D56: =H30 -> 0 | E56: =C30 -> 0
B57: +Pass Through revenue under/over recovery for years 2014 and 2015 | C57: 0 | D57: =H31 -> 0
B60: (A minus B) Under/over recovery of revenue for regulatory year | C60: =C47-C50 -> -9928761.951 | D60: =D47-D50 -> -20371466.9 | E60: =E47-E50 -> 11039653.6
B64: Table 7 - DUoS Unders and Overs Account
C65: Year t-2 | D65: Year t-1 | E65: Year t
C66: (actual) | D66: (estimate) | E66: (forecast)
B67: Calendar year | C67: =D67-1 -> 2018 | D67: =E67-1 -> 2019 | E67: =C$6 -> 2020
B69: Nominal WACC | C69: =(1+'Model update'!$B$47)*(1+'Model update'!$C$28)-1 -> 0.05819803957 | D69: =(1+'Model update'!$B$45)*(1+'Model update'!$C$29)-1 -> 0.05907249241 | E69: =(1+'Model update'!$B$43)*(1+'Model update'!$C$30)-1 -> 0.05250474139
B71: Opening balance | C71: 18603845.94 | D71: =C75 -> 9472959.665 | E71: =D75 -> -10931979.78
B72: Interest on Opening balance | C72: =C71*C69 -> 1082707.362 | D72: =D71*D69 -> 559591.3379 | E72: =E71*E69 -> -573980.7715
B73: Under/over recovery of revenue for regulatory year | C73: =C60 -> -9928761.951 | D73: =D60 -> -20371466.9 | E73: =E60 -> 11039653.6
B74: Interest on under/over recovery for regulatory year | C74: =C73*((1+C69)^0.5-1) -> -284831.6814 | D74: =D73*((1+D69)^0.5-1) -> -593063.8824 | E74: =E73*((1+E69)^0.5-1) -> 286109.5938
B75: Closing balance of DUoS overs/ (unders) account | C75: =SUM(C71:C74) -> 9472959.665 | D75: =SUM(D71:D74) -> -10931979.78 | E75: -180197.3586
B77: The DNSP is expected to achieve a closing balance as close to zero as practicable in its DUoS unders and overs account in each forecast year in its annual pricing proposals in the 2016–20 regulatory control period.

Sheet 2020DistTarRebalCont
B1: ="Tariff Approval - "&'Model update'!C3 -> Tariff Approval - United Energy | C1: ='Model update'!$C$5&"DistTarRebalCont" -> 2020DistTarRebalCont
B3: ='Model update'!C5&" DISTRIBUTION TARIFF REBALANCING CONTROL" -> 2020 DISTRIBUTION TARIFF REBALANCING CONTROL
B6: Distribution tariff rebalancing control
B8: ="CPI "&'Model update'!$C$5 -> CPI 2020 | C8: ='2020DistRevCapForm'!C22 -> 0.01592920354
B9: ="X "& 'Model update'!$C$5 -> X 2020 | C9: =MIN('2020DistRevCapForm'!C23,0) -> 0
B10: ="St "&'Model update'!$C$5 -> St 2020 | C10: ='2020DistRevCapForm'!C24 -> 0.005050561939
B11: ="It "&'Model update'!$C$5 -> It 2020 | C11: =('2020DistRevCapForm'!C15-'2020DistRevCapForm'!H15)/Prop2020DistTar!BV$66 -> -0.0005158895201
B12: ="Tt "&'Model update'!$C$5 -> Tt 2020 | C12: =('2020DistRevCapForm'!C16-'2020DistRevCapForm'!H16)/Prop2020DistTar!BV$66 -> 0
B13: ="Bt "&'Model update'!$C$5 -> Bt 2020 | C13: =('2020DistRevCapForm'!C17-'2020DistRevCapForm'!H17)/Prop2020DistTar!BV$66 -> 0.06133817179
C16: =(1+C8)*(1-C9)*(1+0.02)*(1+C10)+SUM(C11:C13) -> 1.102303704
B20: Rebalancing control summary | C20: ="Pt-1*(Qt " &'Model update'!$C$5&")" -> Pt-1*(Qt 2020) | D20: ="Pt*(Qt " &'Model update'!$C$5&")" -> Pt*(Qt 2020)
B21: Tariff Class (Input Class Name) | C21: Existing ($) | D21: Proposed ($) | E21: Movement
B22: Low Voltage Small | C22: =IF(B22="","",SUMIF($B$44:$B$103,$B22,$I$44:$I$103)) -> 202163198.3 | D22: =IF(B22="","",SUMIF($B$44:$B$103,$B22,$F$44:$F$103)) -> 222681721.5 | E22: =IF(B22="","",D22/C22) -> 1.101494848 | F22: =IF(B22="","",IF(E22<$C$16,"COMPLIANT","BREACHED")) -> COMPLIANT
B23: Low Voltage Medium | C23: =IF(B23="","",SUMIF($B$44:$B$103,$B23,$I$44:$I$103)) -> 102172559.2 | D23: =IF(B23="","",SUMIF($B$44:$B$103,$B23,$F$44:$F$103)) -> 112567086.4 | E23: 1.101735019 | F23: COMPLIANT
B24: Low Voltage Large | C24: =IF(B24="","",SUMIF($B$44:$B$103,$B24,$I$44:$I$103)) -> 98488257.34 | D24: =IF(B24="","",SUMIF($B$44:$B$103,$B24,$F$44:$F$103)) -> 108540295.2 | E24: 1.102063313 | F24: COMPLIANT
B25: High Voltage Large | C25: =IF(B25="","",SUMIF($B$44:$B$103,$B25,$I$44:$I$103)) -> 22089790.01 | D25: =IF(B25="","",SUMIF($B$44:$B$103,$B25,$F$44:$F$103)) -> 24324983.89 | E25: 1.101186742 | F25: COMPLIANT
B26: Subtransmission Large | C26: =IF(B26="","",SUMIF($B$44:$B$103,$B26,$I$44:$I$103)) -> 177210.6093 | D26: =IF(B26="","",SUMIF($B$44:$B$103,$B26,$F$44:$F$103)) -> 194450.0213 | E26: 1.097282054 | F26: COMPLIANT
C27: =IF(B27="","",SUMIF($B$44:$B$103,$B27,$I$44:$I$103)) ->  | D27: =IF(B27="","",SUMIF($B$44:$B$103,$B27,$F$44:$F$103)) ->  | E27: =IF(B27="","",D27/C27) ->  | F27: =IF(B27="","",IF(E27<$C$16,"COMPLIANT","BREACHED")) -> 
C32: =IF(B32="","",SUMIF($B$44:$B$103,$B32,$I$44:$I$103)) ->  | D32: =IF(B32="","",SUMIF($B$44:$B$103,$B32,$F$44:$F$103)) -> 
B39: Check Total | C39: =IF(ABS(SUM(C22:C38)-I104)<0.01,"Ok","Error") -> Ok | D39: =IF(ABS(SUM(D22:D38)-F104)<0.01,"Ok","Error") -> Ok
C40: =IF(ABS(SUM(C22:C38)-Prop2020DistTar!BV66)<0.01,"Ok","Error") -> Ok | D40: =IF(ABS(SUM(D22:D38)-Prop2020DistTar!BG66)<0.01,"Ok","Error") -> Ok
F42: ="Revenue (Pt "&'Model update'!$C$5&")*(Qt " &'Model update'!$C$5&")" -> Revenue (Pt 2020)*(Qt 2020) | I42: ="Revenue (Pt-1 "&'Model update'!$C$8&")*(Qt " &'Model update'!$C$5&")" -> Revenue (Pt-1 2019)*(Qt 2020)
A43: New Tariff Test | B43: Destination tariff class | C43: Source tariff class | D43: Proposed tariff | E43: Existing tariff | F43: PropRev Total | I43: ExistRev Total
A44: =OR(EXACT(D44,Prop2020DistTar!C$6:C$65)) -> TRUE | B44: Low Voltage Small | C44: Low Voltage Small | D44: =IF(Prop2020DistTar!B6="","",Prop2020DistTar!B6) -> Low voltage small 1 rate | E44: =IF(Prop2020DistTar!C6="","",Prop2020DistTar!C6) -> Low voltage small 1 rate | F44: =Prop2020DistTar!BG6 -> 197722484 | I44: =Prop2020DistTar!BV6 -> 179762453.9
A45: =OR(EXACT(D45,Prop2020DistTar!C$6:C$65)) -> TRUE | B45: Low Voltage Small | C45: Low Voltage Small | D45: =IF(Prop2020DistTar!B7="","",Prop2020DistTar!B7) -> Winter economy tariff | E45: =IF(Prop2020DistTar!C7="","",Prop2020DistTar!C7) -> Winter economy tariff | F45: =Prop2020DistTar!BG7 -> 65317.29436 | I45: =Prop2020DistTar!BV7 -> 56794.28048
A46: =OR(EXACT(D46,Prop2020DistTar!C$6:C$65)) -> TRUE | B46: Low Voltage Medium | C46: Low Voltage Medium | D46: =IF(Prop2020DistTar!B8="","",Prop2020DistTar!B8) -> Reverse cycle airconditioning time of use | E46: =IF(Prop2020DistTar!C8="","",Prop2020DistTar!C8) -> Reverse cycle airconditioning time of use | F46: =Prop2020DistTar!BG8 -> 0 | I46: =Prop2020DistTar!BV8 -> 0
A47: =OR(EXACT(D47,Prop2020DistTar!C$6:C$65)) -> TRUE | B47: Low Voltage Small | C47: Low Voltage Small | D47: =IF(Prop2020DistTar!B9="","",Prop2020DistTar!B9) -> Low voltage small 2 rate | E47: =IF(Prop2020DistTar!C9="","",Prop2020DistTar!C9) -> Low voltage small 2 rate | F47: =Prop2020DistTar!BG9 -> 1838701.297 | I47: =Prop2020DistTar!BV9 -> 1598622.729
A48: =OR(EXACT(D48,Prop2020DistTar!C$6:C$65)) -> TRUE | B48: Low Voltage Small | C48: Low Voltage Small | D48: =IF(Prop2020DistTar!B10="","",Prop2020DistTar!B10) -> Dedicated circuit | E48: =IF(Prop2020DistTar!C10="","",Prop2020DistTar!C10) -> Dedicated circuit | F48: =Prop2020DistTar!BG10 -> 2062251.598 | I48: =Prop2020DistTar!BV10 -> 1840305.238
A49: =OR(EXACT(D49,Prop2020DistTar!C$6:C$65)) -> TRUE | B49: Low Voltage Medium | C49: Low Voltage Medium | D49: =IF(Prop2020DistTar!B11="","",Prop2020DistTar!B11) -> Low voltage medium 1 rate | E49: =IF(Prop2020DistTar!C11="","",Prop2020DistTar!C11) -> Low voltage medium 1 rate | F49: =Prop2020DistTar!BG11 -> 38171445.48 | I49: =Prop2020DistTar!BV11 -> 34738935.91
A50: =OR(EXACT(D50,Prop2020DistTar!C$6:C$65)) -> TRUE | B50: Low Voltage Medium | C50: Low Voltage Medium | D50: =IF(Prop2020DistTar!B12="","",Prop2020DistTar!B12) -> Low voltage medium 2 rate 5 day | E50: =IF(Prop2020DistTar!C12="","",Prop2020DistTar!C12) -> Low voltage medium 2 rate 5 day | F50: =Prop2020DistTar!BG12 -> 15224353.37 | I50: =Prop2020DistTar!BV12 -> 13710502.39
A51: =OR(EXACT(D51,Prop2020DistTar!C$6:C$65)) -> TRUE | B51: Low Voltage Medium | C51: Low Voltage Medium | D51: =IF(Prop2020DistTar!B13="","",Prop2020DistTar!B13) -> Low voltage medium 2 rate 7 day | E51: =IF(Prop2020DistTar!C13="","",Prop2020DistTar!C13) -> Low voltage medium 2 rate 7 day | F51: =Prop2020DistTar!BG13 -> 5634484.413 | I51: =Prop2020DistTar!BV13 -> 5074701.04
A52: =OR(EXACT(D52,Prop2020DistTar!C$6:C$65)) -> TRUE | B52: Low Voltage Small | C52: Low Voltage Small | D52: =IF(Prop2020DistTar!B14="","",Prop2020DistTar!B14) -> Unmetered supplies | E52: =IF(Prop2020DistTar!C14="","",Prop2020DistTar!C14) -> Unmetered supplies | F52: =Prop2020DistTar!BG14 -> 3488834.876 | I52: =Prop2020DistTar!BV14 -> 3119716.492
A53: =OR(EXACT(D53,Prop2020DistTar!C$6:C$65)) -> TRUE | B53: Low Voltage Large | C53: Low Voltage Large | D53: =IF(Prop2020DistTar!B15="","",Prop2020DistTar!B15) -> Low voltage large 1 rate | E53: =IF(Prop2020DistTar!C15="","",Prop2020DistTar!C15) -> Low voltage large 1 rate | F53: =Prop2020DistTar!BG15 -> 102134.9261 | I53: =Prop2020DistTar!BV15 -> 91206.3258
A54: =OR(EXACT(D54,Prop2020DistTar!C$6:C$65)) -> TRUE | B54: Low Voltage Large | C54: Low Voltage Large | D54: =IF(Prop2020DistTar!B16="","",Prop2020DistTar!B16) -> Low voltage large 2 rate | E54: =IF(Prop2020DistTar!C16="","",Prop2020DistTar!C16) -> Low voltage large 2 rate | F54: =Prop2020DistTar!BG16 -> 177620.4605 | I54: =Prop2020DistTar!BV16 -> 159995.8641
A55: =OR(EXACT(D55,Prop2020DistTar!C$6:C$65)) -> TRUE | B55: Low Voltage Medium | C55: Low Voltage Medium | D55: =IF(Prop2020DistTar!B17="","",Prop2020DistTar!B17) -> Low voltage KW time of use | E55: =IF(Prop2020DistTar!C17="","",Prop2020DistTar!C17) -> Low voltage KW time of use | F55: =Prop2020DistTar!BG17 -> 1086893.342 | I55: =Prop2020DistTar!BV17 -> 968667.6112
A56: =OR(EXACT(D56,Prop2020DistTar!C$6:C$65)) -> TRUE | B56: Low Voltage Medium | C56: Low Voltage Medium | D56: =IF(Prop2020DistTar!B18="","",Prop2020DistTar!B18) -> Low voltage KW time of use - HOT | E56: =IF(Prop2020DistTar!C18="","",Prop2020DistTar!C18) -> Low voltage KW time of use - HOT | F56: =Prop2020DistTar!BG18 -> 13446.26293 | I56: =Prop2020DistTar!BV18 -> 12223.5284
A57: =OR(EXACT(D57,Prop2020DistTar!C$6:C$65)) -> TRUE | B57: Low Voltage Large | C57: Low Voltage Large | D57: =IF(Prop2020DistTar!B19="","",Prop2020DistTar!B19) -> Low voltage large KVA time of use | E57: =IF(Prop2020DistTar!C19="","",Prop2020DistTar!C19) -> Low voltage large KVA time of use | F57: =Prop2020DistTar!BG19 -> 108260539.8 | I57: =Prop2020DistTar!BV19 -> 98237055.15
A58: =OR(EXACT(D58,Prop2020DistTar!C$6:C$65)) -> TRUE | B58: Low Voltage Large | C58: Low Voltage Large | D58: =IF(Prop2020DistTar!B20="","",Prop2020DistTar!B20) -> Low voltage large KVA time of use - HOT | E58: =IF(Prop2020DistTar!C20="","",Prop2020DistTar!C20) -> Low voltage large KVA time of use - HOT | F58: =Prop2020DistTar!BG20 -> 0 | I58: =Prop2020DistTar!BV20 -> 0
A59: =OR(EXACT(D59,Prop2020DistTar!C$6:C$65)) -> TRUE | B59: High Voltage Large | C59: High Voltage Large | D59: =IF(Prop2020DistTar!B21="","",Prop2020DistTar!B21) -> High voltage KVA time of use | E59: =IF(Prop2020DistTar!C21="","",Prop2020DistTar!C21) -> High voltage KVA time of use | F59: =Prop2020DistTar!BG21 -> 24324983.89 | I59: =Prop2020DistTar!BV21 -> 22089790.01
A60: =OR(EXACT(D60,Prop2020DistTar!C$6:C$65)) -> TRUE | B60: High Voltage Large | C60: High Voltage Large | D60: =IF(Prop2020DistTar!B22="","",Prop2020DistTar!B22) -> High voltage KVA time of use - HOT | E60: =IF(Prop2020DistTar!C22="","",Prop2020DistTar!C22) -> High voltage KVA time of use - HOT | F60: =Prop2020DistTar!BG22 -> 0 | I60: =Prop2020DistTar!BV22 -> 0
A61: =OR(EXACT(D61,Prop2020DistTar!C$6:C$65)) -> TRUE | B61: Subtransmission Large | C61: Subtransmission Large | D61: =IF(Prop2020DistTar!B23="","",Prop2020DistTar!B23) -> Subtransmission KVA time of use | E61: =IF(Prop2020DistTar!C23="","",Prop2020DistTar!C23) -> Subtransmission KVA time of use | F61: =Prop2020DistTar!BG23 -> 194450.0213 | I61: =Prop2020DistTar!BV23 -> 177210.6093
A62: =OR(EXACT(D62,Prop2020DistTar!C$6:C$65)) -> TRUE | B62: Low Voltage Small | C62: Low Voltage Small | D62: =IF(Prop2020DistTar!B24="","",Prop2020DistTar!B24) -> TOD | E62: =IF(Prop2020DistTar!C24="","",Prop2020DistTar!C24) -> TOD | F62: =Prop2020DistTar!BG24 -> 15885551.54 | I62: =Prop2020DistTar!BV24 -> 14350280.64
A63: =OR(EXACT(D63,Prop2020DistTar!C$6:C$65)) -> TRUE | B63: Low Voltage Small | C63: Low Voltage Small | D63: =IF(Prop2020DistTar!B25="","",Prop2020DistTar!B25) -> TOD9 | E63: =IF(Prop2020DistTar!C25="","",Prop2020DistTar!C25) -> TOD9 | F63: =Prop2020DistTar!BG25 -> 846698.559 | I63: =Prop2020DistTar!BV25 -> 736973.6258
A64: =OR(EXACT(D64,Prop2020DistTar!C$6:C$65)) -> TRUE | B64: Low Voltage Medium | C64: Low Voltage Medium | D64: =IF(Prop2020DistTar!B26="","",Prop2020DistTar!B26) -> TOU | E64: =IF(Prop2020DistTar!C26="","",Prop2020DistTar!C26) -> TOU | F64: =Prop2020DistTar!BG26 -> 1847662.867 | I64: =Prop2020DistTar!BV26 -> 1679266.994
A65: =OR(EXACT(D65,Prop2020DistTar!C$6:C$65)) -> TRUE | B65: Low Voltage Small | C65: Low Voltage Small | D65: =IF(Prop2020DistTar!B27="","",Prop2020DistTar!B27) -> TODFLEX | E65: =IF(Prop2020DistTar!C27="","",Prop2020DistTar!C27) -> TODFLEX | F65: =Prop2020DistTar!BG27 -> 766682.9919 | I65: =Prop2020DistTar!BV27 -> 693325.3167
A66: =OR(EXACT(D66,Prop2020DistTar!C$6:C$65)) -> TRUE | B66: Low Voltage Small | C66: Low Voltage Small | D66: =IF(Prop2020DistTar!B28="","",Prop2020DistTar!B28) -> Low Voltage KW 1 rate | E66: =IF(Prop2020DistTar!C28="","",Prop2020DistTar!C28) -> Low Voltage KW 1 rate | F66: =Prop2020DistTar!BG28 -> 5199.394407 | I66: =Prop2020DistTar!BV28 -> 4726.159153
A67: =OR(EXACT(D67,Prop2020DistTar!C$6:C$65)) -> TRUE | B67: Low Voltage Medium | C67: Low Voltage Medium | D67: =IF(Prop2020DistTar!B29="","",Prop2020DistTar!B29) -> Low voltage medium KW time of use (opt-in) | E67: =IF(Prop2020DistTar!C29="","",Prop2020DistTar!C29) -> Low voltage medium KW time of use (opt-in) | F67: =Prop2020DistTar!BG29 -> 6030653.916 | I67: =Prop2020DistTar!BV29 -> 5482234.735
A68: =OR(EXACT(D68,Prop2020DistTar!C$6:C$65)) -> TRUE | B68: Low Voltage Medium | C68: Low Voltage Medium | D68: =IF(Prop2020DistTar!B30="","",Prop2020DistTar!B30) -> Low voltage medium KW 1 rate (mandatory) | E68: =IF(Prop2020DistTar!C30="","",Prop2020DistTar!C30) -> Low voltage medium KW 1 rate (mandatory) | F68: =Prop2020DistTar!BG30 -> 44558146.78 | I68: =Prop2020DistTar!BV30 -> 40506027
A69: =OR(EXACT(D69,Prop2020DistTar!C$6:C$65)) -> TRUE | D69: =IF(Prop2020DistTar!B31="","",Prop2020DistTar!B31) ->  | E69: =IF(Prop2020DistTar!C31="","",Prop2020DistTar!C31) ->  | F69: =Prop2020DistTar!BG31 -> 0 | I69: =Prop2020DistTar!BV31 -> 0
A70: =OR(EXACT(D70,Prop2020DistTar!C$6:C$65)) -> TRUE | D70: =IF(Prop2020DistTar!B32="","",Prop2020DistTar!B32) ->  | E70: =IF(Prop2020DistTar!C32="","",Prop2020DistTar!C32) ->  | F70: =Prop2020DistTar!BG32 -> 0 | I70: =Prop2020DistTar!BV32 -> 0
A71: =OR(EXACT(D71,Prop2020DistTar!C$6:C$65)) -> TRUE | D71: =IF(Prop2020DistTar!B33="","",Prop2020DistTar!B33) ->  | E71: =IF(Prop2020DistTar!C33="","",Prop2020DistTar!C33) ->  | F71: =Prop2020DistTar!BG33 -> 0 | I71: =Prop2020DistTar!BV33 -> 0
A72: =OR(EXACT(D72,Prop2020DistTar!C$6:C$65)) -> TRUE | D72: =IF(Prop2020DistTar!B34="","",Prop2020DistTar!B34) ->  | E72: =IF(Prop2020DistTar!C34="","",Prop2020DistTar!C34) ->  | F72: =Prop2020DistTar!BG34 -> 0 | I72: =Prop2020DistTar!BV34 -> 0
A73: =OR(EXACT(D73,Prop2020DistTar!C$6:C$65)) -> TRUE | D73: =IF(Prop2020DistTar!B35="","",Prop2020DistTar!B35) ->  | E73: =IF(Prop2020DistTar!C35="","",Prop2020DistTar!C35) ->  | F73: =Prop2020DistTar!BG35 -> 0 | I73: =Prop2020DistTar!BV35 -> 0
A74: =OR(EXACT(D74,Prop2020DistTar!C$6:C$65)) -> TRUE | D74: =IF(Prop2020DistTar!B36="","",Prop2020DistTar!B36) ->  | E74: =IF(Prop2020DistTar!C36="","",Prop2020DistTar!C36) ->  | F74: =Prop2020DistTar!BG36 -> 0 | I74: =Prop2020DistTar!BV36 -> 0
A75: =OR(EXACT(D75,Prop2020DistTar!C$6:C$65)) -> TRUE | D75: =IF(Prop2020DistTar!B37="","",Prop2020DistTar!B37) ->  | E75: =IF(Prop2020DistTar!C37="","",Prop2020DistTar!C37) ->  | F75: =Prop2020DistTar!BG37 -> 0 | I75: =Prop2020DistTar!BV37 -> 0
A76: =OR(EXACT(D76,Prop2020DistTar!C$6:C$65)) -> TRUE | D76: =IF(Prop2020DistTar!B38="","",Prop2020DistTar!B38) ->  | E76: =IF(Prop2020DistTar!C38="","",Prop2020DistTar!C38) ->  | F76: =Prop2020DistTar!BG38 -> 0 | I76: =Prop2020DistTar!BV38 -> 0
A77: =OR(EXACT(D77,Prop2020DistTar!C$6:C$65)) -> TRUE | D77: =IF(Prop2020DistTar!B39="","",Prop2020DistTar!B39) ->  | E77: =IF(Prop2020DistTar!C39="","",Prop2020DistTar!C39) ->  | F77: =Prop2020DistTar!BG39 -> 0 | I77: =Prop2020DistTar!BV39 -> 0
A78: =OR(EXACT(D78,Prop2020DistTar!C$6:C$65)) -> TRUE | D78: =IF(Prop2020DistTar!B40="","",Prop2020DistTar!B40) ->  | E78: =IF(Prop2020DistTar!C40="","",Prop2020DistTar!C40) ->  | F78: =Prop2020DistTar!BG40 -> 0 | I78: =Prop2020DistTar!BV40 -> 0
A79: =OR(EXACT(D79,Prop2020DistTar!C$6:C$65)) -> TRUE | D79: =IF(Prop2020DistTar!B41="","",Prop2020DistTar!B41) ->  | E79: =IF(Prop2020DistTar!C41="","",Prop2020DistTar!C41) ->  | F79: =Prop2020DistTar!BG41 -> 0 | I79: =Prop2020DistTar!BV41 -> 0
A80: =OR(EXACT(D80,Prop2020DistTar!C$6:C$65)) -> TRUE | D80: =IF(Prop2020DistTar!B42="","",Prop2020DistTar!B42) ->  | E80: =IF(Prop2020DistTar!C42="","",Prop2020DistTar!C42) ->  | F80: =Prop2020DistTar!BG42 -> 0 | I80: =Prop2020DistTar!BV42 -> 0
A81: =OR(EXACT(D81,Prop2020DistTar!C$6:C$65)) -> TRUE | D81: =IF(Prop2020DistTar!B43="","",Prop2020DistTar!B43) ->  | E81: =IF(Prop2020DistTar!C43="","",Prop2020DistTar!C43) ->  | F81: =Prop2020DistTar!BG43 -> 0 | I81: =Prop2020DistTar!BV43 -> 0
A82: =OR(EXACT(D82,Prop2020DistTar!C$6:C$65)) -> TRUE | D82: =IF(Prop2020DistTar!B44="","",Prop2020DistTar!B44) ->  | E82: =IF(Prop2020DistTar!C44="","",Prop2020DistTar!C44) ->  | F82: =Prop2020DistTar!BG44 -> 0 | I82: =Prop2020DistTar!BV44 -> 0
A83: =OR(EXACT(D83,Prop2020DistTar!C$6:C$65)) -> TRUE | D83: =IF(Prop2020DistTar!B45="","",Prop2020DistTar!B45) ->  | E83: =IF(Prop2020DistTar!C45="","",Prop2020DistTar!C45) ->  | F83: =Prop2020DistTar!BG45 -> 0 | I83: =Prop2020DistTar!BV45 -> 0
A84: =OR(EXACT(D84,Prop2020DistTar!C$6:C$65)) -> TRUE | D84: =IF(Prop2020DistTar!B46="","",Prop2020DistTar!B46) ->  | E84: =IF(Prop2020DistTar!C46="","",Prop2020DistTar!C46) ->  | F84: =Prop2020DistTar!BG46 -> 0 | I84: =Prop2020DistTar!BV46 -> 0
A85: =OR(EXACT(D85,Prop2020DistTar!C$6:C$65)) -> TRUE | D85: =IF(Prop2020DistTar!B47="","",Prop2020DistTar!B47) ->  | E85: =IF(Prop2020DistTar!C47="","",Prop2020DistTar!C47) ->  | F85: =Prop2020DistTar!BG47 -> 0 | I85: =Prop2020DistTar!BV47 -> 0
A86: =OR(EXACT(D86,Prop2020DistTar!C$6:C$65)) -> TRUE | D86: =IF(Prop2020DistTar!B48="","",Prop2020DistTar!B48) ->  | E86: =IF(Prop2020DistTar!C48="","",Prop2020DistTar!C48) ->  | F86: =Prop2020DistTar!BG48 -> 0 | I86: =Prop2020DistTar!BV48 -> 0
A87: =OR(EXACT(D87,Prop2020DistTar!C$6:C$65)) -> TRUE | D87: =IF(Prop2020DistTar!B49="","",Prop2020DistTar!B49) ->  | E87: =IF(Prop2020DistTar!C49="","",Prop2020DistTar!C49) ->  | F87: =Prop2020DistTar!BG49 -> 0 | I87: =Prop2020DistTar!BV49 -> 0
A88: =OR(EXACT(D88,Prop2020DistTar!C$6:C$65)) -> TRUE | D88: =IF(Prop2020DistTar!B50="","",Prop2020DistTar!B50) ->  | E88: =IF(Prop2020DistTar!C50="","",Prop2020DistTar!C50) ->  | F88: =Prop2020DistTar!BG50 -> 0 | I88: =Prop2020DistTar!BV50 -> 0
A89: =OR(EXACT(D89,Prop2020DistTar!C$6:C$65)) -> TRUE | D89: =IF(Prop2020DistTar!B51="","",Prop2020DistTar!B51) ->  | E89: =IF(Prop2020DistTar!C51="","",Prop2020DistTar!C51) ->  | F89: =Prop2020DistTar!BG51 -> 0 | I89: =Prop2020DistTar!BV51 -> 0
A90: =OR(EXACT(D90,Prop2020DistTar!C$6:C$65)) -> TRUE | D90: =IF(Prop2020DistTar!B52="","",Prop2020DistTar!B52) ->  | E90: =IF(Prop2020DistTar!C52="","",Prop2020DistTar!C52) ->  | F90: =Prop2020DistTar!BG52 -> 0 | I90: =Prop2020DistTar!BV52 -> 0
A91: =OR(EXACT(D91,Prop2020DistTar!C$6:C$65)) -> TRUE | D91: =IF(Prop2020DistTar!B53="","",Prop2020DistTar!B53) ->  | E91: =IF(Prop2020DistTar!C53="","",Prop2020DistTar!C53) ->  | F91: =Prop2020DistTar!BG53 -> 0 | I91: =Prop2020DistTar!BV53 -> 0
A92: =OR(EXACT(D92,Prop2020DistTar!C$6:C$65)) -> TRUE | D92: =IF(Prop2020DistTar!B54="","",Prop2020DistTar!B54) ->  | E92: =IF(Prop2020DistTar!C54="","",Prop2020DistTar!C54) ->  | F92: =Prop2020DistTar!BG54 -> 0 | I92: =Prop2020DistTar!BV54 -> 0
A93: =OR(EXACT(D93,Prop2020DistTar!C$6:C$65)) -> TRUE | D93: =IF(Prop2020DistTar!B55="","",Prop2020DistTar!B55) ->  | E93: =IF(Prop2020DistTar!C55="","",Prop2020DistTar!C55) ->  | F93: =Prop2020DistTar!BG55 -> 0 | I93: =Prop2020DistTar!BV55 -> 0
A94: =OR(EXACT(D94,Prop2020DistTar!C$6:C$65)) -> TRUE | D94: =IF(Prop2020DistTar!B56="","",Prop2020DistTar!B56) ->  | E94: =IF(Prop2020DistTar!C56="","",Prop2020DistTar!C56) ->  | F94: =Prop2020DistTar!BG56 -> 0 | I94: =Prop2020DistTar!BV56 -> 0
A95: =OR(EXACT(D95,Prop2020DistTar!C$6:C$65)) -> TRUE | D95: =IF(Prop2020DistTar!B57="","",Prop2020DistTar!B57) ->  | E95: =IF(Prop2020DistTar!C57="","",Prop2020DistTar!C57) ->  | F95: =Prop2020DistTar!BG57 -> 0 | I95: =Prop2020DistTar!BV57 -> 0
A96: =OR(EXACT(D96,Prop2020DistTar!C$6:C$65)) -> TRUE | D96: =IF(Prop2020DistTar!B58="","",Prop2020DistTar!B58) ->  | E96: =IF(Prop2020DistTar!C58="","",Prop2020DistTar!C58) ->  | F96: =Prop2020DistTar!BG58 -> 0 | I96: =Prop2020DistTar!BV58 -> 0
A97: =OR(EXACT(D97,Prop2020DistTar!C$6:C$65)) -> TRUE | D97: =IF(Prop2020DistTar!B59="","",Prop2020DistTar!B59) ->  | E97: =IF(Prop2020DistTar!C59="","",Prop2020DistTar!C59) ->  | F97: =Prop2020DistTar!BG59 -> 0 | I97: =Prop2020DistTar!BV59 -> 0
A98: =OR(EXACT(D98,Prop2020DistTar!C$6:C$65)) -> TRUE | D98: =IF(Prop2020DistTar!B60="","",Prop2020DistTar!B60) ->  | E98: =IF(Prop2020DistTar!C60="","",Prop2020DistTar!C60) ->  | F98: =Prop2020DistTar!BG60 -> 0 | I98: =Prop2020DistTar!BV60 -> 0
A99: =OR(EXACT(D99,Prop2020DistTar!C$6:C$65)) -> TRUE | D99: =IF(Prop2020DistTar!B61="","",Prop2020DistTar!B61) ->  | E99: =IF(Prop2020DistTar!C61="","",Prop2020DistTar!C61) ->  | F99: =Prop2020DistTar!BG61 -> 0 | I99: =Prop2020DistTar!BV61 -> 0
A100: =OR(EXACT(D100,Prop2020DistTar!C$6:C$65)) -> TRUE | D100: =IF(Prop2020DistTar!B62="","",Prop2020DistTar!B62) ->  | E100: =IF(Prop2020DistTar!C62="","",Prop2020DistTar!C62) ->  | F100: =Prop2020DistTar!BG62 -> 0 | I100: =Prop2020DistTar!BV62 -> 0
A101: =OR(EXACT(D101,Prop2020DistTar!C$6:C$65)) -> TRUE | D101: =IF(Prop2020DistTar!B63="","",Prop2020DistTar!B63) ->  | E101: =IF(Prop2020DistTar!C63="","",Prop2020DistTar!C63) ->  | F101: =Prop2020DistTar!BG63 -> 0 | I101: =Prop2020DistTar!BV63 -> 0
A102: =OR(EXACT(D102,Prop2020DistTar!C$6:C$65)) -> TRUE | D102: =IF(Prop2020DistTar!B64="","",Prop2020DistTar!B64) ->  | E102: =IF(Prop2020DistTar!C64="","",Prop2020DistTar!C64) ->  | F102: =Prop2020DistTar!BG64 -> 0 | I102: =Prop2020DistTar!BV64 -> 0
A103: =OR(EXACT(D103,Prop2020DistTar!C$6:C$65)) -> TRUE | D103: =IF(Prop2020DistTar!B65="","",Prop2020DistTar!B65) ->  | E103: =IF(Prop2020DistTar!C65="","",Prop2020DistTar!C65) ->  | F103: =Prop2020DistTar!BG65 -> 0 | I103: =Prop2020DistTar!BV65 -> 0
F104: =SUM(F44:F103) -> 468308537 | I104: =SUM(I44:I103) -> 425091015.5 | BJ104: =SUM(BJ44:BJ103) -> 0

Sheet Est2019DistRev
B1: ="Tariff Approval - "&'Model update'!C3 -> Tariff Approval - United Energy | D1: ="Est"&'Model update'!$C$5-1&"DistRev" -> Est2019DistRev
B3: ="ESTIMATED "&'Model update'!$C$8&" Distribution Revenue" -> ESTIMATED 2019 Distribution Revenue
D4: ="Current Distribution Tariffs (Pt-1) for "&'Model update'!$C$8 -> Current Distribution Tariffs (Pt-1) for 2019 | R4: =" Estimated Distribution Quantities for "&'Model update'!$C$8&" (Qt-1)" -> Estimated Distribution Quantities for 2019 (Qt-1) | AF4: ="Estimated Revenue (Pt-1 "&'Model update'!$C$8&")*(Qt-1 " &'Model update'!$C$8&")" -> Estimated Revenue (Pt-1 2019)*(Qt-1 2019)
B5: Proposed tariff | D5: ExistTar Fixed | E5: ExistTar PkBlk1 | F5: ExistTar PkBlk2 | G5: ExistTar PkBlk3 | H5: ExistTar PkBlk4 | I5: ExistTar OPkBlk1 | J5: ExistTar OPkBlk2 | K5: ExistTar OPkBlk3 | L5: ExistTar OPkBlk4 | M5: ExistTar DemBlk1 | N5: ExistTar DemBlk2 | O5: ExistTar DemBlk3 | P5: ExistTar DemBlk4 | R5: EstVol Fixed | S5: EstVol PkBlk1 | T5: EstVol PkBlk2 | U5: EstVol PkBlk3 | V5: EstVol PkBlk4 | W5: EstVol OPkBlk1 | X5: EstVol OPkBlk2 | Y5: EstVol OPkBlk3 | Z5: EstVol OPkBlk4 | AA5: EstVol DemBlk1 | AB5: EstVol DemBlk2 | AC5: EstVol DemBlk3 | AD5: EstVol DemBlk4 | AF5: EstRev Fixed | AG5: EstRev PkBlk1 | AH5: EstRev PkBlk2 | AI5: EstRev PkBlk3 | AJ5: EstRev PkBlk4 | AK5: EstRev OPkBlk1 | AL5: EstRev OPkBlk2 | AM5: EstRev OPkBlk3 | AN5: EstRev OPkBlk4 | AO5: EstRev DemBlk1 | AP5: EstRev DemBlk2 | AQ5: EstRev DemBlk3 | AR5: EstRev DemBlk4 | AS5: EstRev Total
B6: Low voltage small 1 rate | D6: 7.09 | E6: 7.72 | F6: 0 | G6: 0 | H6: 6.19 | I6: 0 | J6: 0 | K6: 0 | L6: 0 | M6: 0 | N6: 0 | O6: 0 | P6: 0 | R6: 206859021.7 | S6: 943855173.4 | T6: 0 | U6: 0 | V6: 1520207629 | W6: 0 | X6: 0 | Y6: 0 | Z6: 0 | AA6: 0 | AB6: 0 | AC6: 0 | AD6: 0 | AF6: =D6/100*R6 -> 14666304.64 | AG6: 72865619.39 | AH6: =F6/100*T6 -> 0 | AI6: =G6/100*U6 -> 0 | AJ6: =H6/100*V6 -> 94100852.22 | AK6: =I6/100*W6 -> 0 | AL6: =J6/100*X6 -> 0 | AM6: =K6/100*Y6 -> 0 | AN6: =L6/100*Z6 -> 0 | AO6: =M6/100*AA6 -> 0 | AP6: =N6/100*AB6 -> 0 | AQ6: =O6/100*AC6 -> 0 | AR6: =P6/100*AD6 -> 0 | AS6: =SUM(AF6:AR6) -> 181632776.2
B7: Winter economy tariff | D7: 9.13 | E7: 7.49 | F7: 0 | G7: 0 | H7: 5.55 | I7: 2.08 | J7: 0 | K7: 0 | L7: 0 | M7: 0 | N7: 0 | O7: 0 | P7: 0 | R7: 42656.46073 | S7: 298454.7293 | T7: 0 | U7: 0 | V7: 543138.8553 | W7: 0 | X7: 0 | Y7: 0 | Z7: 0 | AA7: 0 | AB7: 0 | AC7: 0 | AD7: 0 | AF7: 3894.534865 | AG7: =E7/100*S7 -> 22354.25922 | AH7: 0 | AI7: 0 | AJ7: 30144.20647 | AK7: 0 | AL7: 0 | AM7: 0 | AN7: 0 | AO7: 0 | AP7: 0 | AQ7: 0 | AR7: 0 | AS7: =SUM(AF7:AR7) -> 56393.00055
B8: Reverse cycle airconditioning time of use | D8: 0 | E8: 0 | F8: 0 | G8: 0 | H8: 0 | I8: 0 | J8: 0 | K8: 0 | L8: 0 | M8: 0 | N8: 0 | O8: 0 | P8: 0 | R8: 0 | S8: 0 | T8: 0 | U8: 0 | V8: 0 | W8: 0 | X8: 0 | Y8: 0 | Z8: 0 | AA8: 0 | AB8: 0 | AC8: 0 | AD8: 0 | AF8: 0 | AG8: 0 | AH8: 0 | AI8: 0 | AJ8: 0 | AK8: 0 | AL8: 0 | AM8: 0 | AN8: 0 | AO8: 0 | AP8: 0 | AQ8: 0 | AR8: 0 | AS8: 0
B9: Low voltage small 2 rate | D9: 14.48 | E9: 0 | F9: 0 | G9: 11.43 | H9: 0 | I9: 0 | J9: 8.67 | K9: 1.98 | L9: 0 | M9: 0 | N9: 0 | O9: 0 | P9: 0 | R9: 1340451.159 | S9: 0 | T9: 0 | U9: 3869362.149 | V9: 0 | W9: 0 | X9: 6191506.811 | Y9: 13287140.18 | Z9: 0 | AA9: 0 | AB9: 0 | AC9: 0 | AD9: 0 | AF9: 194097.3278 | AG9: 0 | AH9: 0 | AI9: 442268.0937 | AJ9: 0 | AK9: 0 | AL9: 536803.6406 | AM9: 263085.3755 | AN9: 0 | AO9: 0 | AP9: 0 | AQ9: 0 | AR9: 0 | AS9: 1436254.438
B10: Dedicated circuit | D10: 0 | E10: 0 | F10: 0 | G10: 0 | H10: 0 | I10: 0 | J10: 0 | K10: 1.99 | L10: 0 | M10: 0 | N10: 0 | O10: 0 | P10: 0 | R10: 2556582.814 | S10: 0 | T10: 0 | U10: 0 | V10: 0 | W10: 0 | X10: 0 | Y10: 84158747.77 | Z10: 0 | AA10: 0 | AB10: 0 | AC10: 0 | AD10: 0 | AF10: 0 | AG10: 0 | AH10: 0 | AI10: 0 | AJ10: 0 | AK10: 0 | AL10: 0 | AM10: 1674759.081 | AN10: 0 | AO10: 0 | AP10: 0 | AQ10: 0 | AR10: 0 | AS10: 1674759.081
B11: Low voltage medium 1 rate | D11: 12.03 | E11: 9.46 | F11: 0 | G11: 0 | H11: 7.19 | I11: 0 | J11: 0 | K11: 0 | L11: 0 | M11: 0 | N11: 0 | O11: 0 | P11: 0 | R11: 12146313.83 | S11: 153088884.2 | T11: 0 | U11: 0 | V11: 236736703.9 | W11: 0 | X11: 0 | Y11: 0 | Z11: 0 | AA11: 0 | AB11: 0 | AC11: 0 | AD11: 0 | AF11: 1461201.554 | AG11: 14482208.45 | AH11: 0 | AI11: 0 | AJ11: 17021369.01 | AK11: 0 | AL11: 0 | AM11: 0 | AN11: 0 | AO11: 0 | AP11: 0 | AQ11: 0 | AR11: 0 | AS11: 32964779.01
B12: Low voltage medium 2 rate 5 day | D12: 23.03 | E12: 0 | F12: 0 | G12: 12.42 | H12: 0 | I12: 0 | J12: 9.31 | K12: 2.32 | L12: 0 | M12: 0 | N12: 0 | O12: 0 | P12: 0 | R12: 3142786.31 | S12: 0 | T12: 0 | U12: 46533502.01 | V12: 0 | W12: 0 | X12: 68210817.97 | Y12: 69257922.9 | Z12: 0 | AA12: 0 | AB12: 0 | AC12: 0 | AD12: 0 | AF12: 723783.6872 | AG12: 0 | AH12: 0 | AI12: 5779460.95 | AJ12: 0 | AK12: 0 | AL12: 6350427.153 | AM12: 1606783.811 | AN12: 0 | AO12: 0 | AP12: 0 | AQ12: 0 | AR12: 0 | AS12: 14460455.6
B13: Low voltage medium 2 rate 7 day | D13: 24.51 | E13: 0 | F13: 0 | G13: 10.24 | H13: 0 | I13: 0 | J13: 7.93 | K13: 1.87 | L13: 0 | M13: 0 | N13: 0 | O13: 0 | P13: 0 | R13: 1806435.361 | S13: 0 | T13: 0 | U13: 23555331.17 | V13: 0 | W13: 0 | X13: 36881177.88 | Y13: 16315855.32 | Z13: 0 | AA13: 0 | AB13: 0 | AC13: 0 | AD13: 0 | AF13: 442757.3069 | AG13: 0 | AH13: 0 | AI13: 2412065.911 | AJ13: 0 | AK13: 0 | AL13: 2924677.406 | AM13: 305106.4944 | AN13: 0 | AO13: 0 | AP13: 0 | AQ13: 0 | AR13: 0 | AS13: 6084607.119
B14: Unmetered supplies | D14: 0 | E14: 0 | F14: 0 | G14: 8.73 | H14: 0 | I14: 0 | J14: 6.39 | K14: 1.57 | L14: 0 | M14: 0 | N14: 0 | O14: 0 | P14: 0 | R14: 2772880.659 | S14: 0 | T14: 0 | U14: 11782630.92 | V14: 0 | W14: 0 | X14: 19891859.09 | Y14: 58262147.41 | Z14: 0 | AA14: 0 | AB14: 0 | AC14: 0 | AD14: 0 | AF14: 0 | AG14: 0 | AH14: 0 | AI14: 1028623.679 | AJ14: 0 | AK14: 0 | AL14: 1271089.796 | AM14: 914715.7144 | AN14: 0 | AO14: 0 | AP14: 0 | AQ14: 0 | AR14: 0 | AS14: 3214429.19
B15: Low voltage large 1 rate | D15: 14.08 | E15: 7.02 | F15: 0 | G15: 0 | H15: 5.54 | I15: 0 | J15: 0 | K15: 0 | L15: 0 | M15: 0 | N15: 0 | O15: 0 | P15: 0 | R15: 2053.793549 | S15: 511275.669 | T15: 0 | U15: 0 | V15: 684047.4181 | W15: 0 | X15: 0 | Y15: 0 | Z15: 0 | AA15: 0 | AB15: 0 | AC15: 0 | AD15: 0 | AF15: 289.1741317 | AG15: 35891.55197 | AH15: 0 | AI15: 0 | AJ15: 37896.22696 | AK15: 0 | AL15: 0 | AM15: 0 | AN15: 0 | AO15: 0 | AP15: 0 | AQ15: 0 | AR15: 0 | AS15: 74076.95306
B16: Low voltage large 2 rate | D16: 20.32 | E16: 0 | F16: 0 | G16: 11.3 | H16: 0 | I16: 0 | J16: 8.99 | K16: 2.15 | L16: 0 | M16: 0 | N16: 0 | O16: 0 | P16: 0 | R16: 6881.086986 | S16: 0 | T16: 0 | U16: 871557.8301 | V16: 0 | W16: 0 | X16: 1057870.494 | Y16: 1482935.172 | Z16: 0 | AA16: 0 | AB16: 0 | AC16: 0 | AD16: 0 | AF16: 1398.236876 | AG16: 0 | AH16: 0 | AI16: 98486.0348 | AJ16: 0 | AK16: 0 | AL16: 95102.55743 | AM16: 31883.1062 | AN16: 0 | AO16: 0 | AP16: 0 | AQ16: 0 | AR16: 0 | AS16: 226869.9353
B17: Low voltage KW time of use | D17: 0 | E17: 0 | F17: 0 | G17: 10.3 | H17: 0 | I17: 0 | J17: 6.04 | K17: 2.4 | L17: 0 | M17: 0 | N17: 49.33 | O17: 0 | P17: 0 | R17: 67773.95967 | S17: 0 | T17: 0 | U17: 2844398.156 | V17: 0 | W17: 0 | X17: 4173150.205 | Y17: 6644434.366 | Z17: 0 | AA17: 0 | AB17: 574892.5731 | AC17: 0 | AD17: 0 | AF17: 0 | AG17: 0 | AH17: 0 | AI17: 292973.01 | AJ17: 0 | AK17: 0 | AL17: 252058.2724 | AM17: 159466.4248 | AN17: 0 | AO17: 0 | AP17: 283594.5063 | AQ17: 0 | AR17: 0 | AS17: 988092.2135
B18: Low voltage KW time of use - HOT | D18: 0 | E18: 0 | F18: 0 | G18: 7.34 | H18: 0 | I18: 0 | J18: 5.64 | K18: 1.66 | L18: 0 | M18: 0 | N18: 64.58 | O18: 0 | P18: 0 | R18: 6805.949179 | S18: 0 | T18: 0 | U18: 175264.9235 | V18: 0 | W18: 0 | X18: 413996.2846 | Y18: 884394.1544 | Z18: 0 | AA18: 0 | AB18: 109607.5488 | AC18: 0 | AD18: 0 | AF18: 0 | AG18: 0 | AH18: 0 | AI18: 12864.44539 | AJ18: 0 | AK18: 0 | AL18: 23349.39045 | AM18: 14680.94296 | AN18: 0 | AO18: 0 | AP18: 70784.55504 | AQ18: 0 | AR18: 0 | AS18: 121679.3338
B19: Low voltage large KVA time of use | D19: 0 | E19: 0 | F19: 0 | G19: 1.48 | H19: 0 | I19: 0 | J19: 1.26 | K19: 1.24 | L19: 0 | M19: 14.95 | N19: 22.36 | O19: 0 | P19: 0 | R19: 1176060.684 | S19: 0 | T19: 0 | U19: 452033540.5 | V19: 0 | W19: 0 | X19: 637707874.3 | Y19: 1251535343 | Z19: 0 | AA19: 326114206.9 | AB19: 95205640.61 | AC19: 0 | AD19: 0 | AF19: 0 | AG19: 0 | AH19: 0 | AI19: 6690096.4 | AJ19: 0 | AK19: 0 | AL19: 8035119.216 | AM19: 15519038.26 | AN19: 0 | AO19: 48754073.93 | AP19: 21287981.24 | AQ19: 0 | AR19: 0 | AS19: 100286309
B20: Low voltage large KVA time of use - HOT | D20: 0 | E20: 0 | F20: 0 | G20: 0 | H20: 0 | I20: 0 | J20: 0 | K20: 0 | L20: 0 | M20: 0 | N20: 0 | O20: 0 | P20: 0 | R20: 0 | S20: 0 | T20: 0 | U20: 0 | V20: 0 | W20: 0 | X20: 0 | Y20: 0 | Z20: 0 | AA20: 0 | AB20: 0 | AC20: 0 | AD20: 0 | AF20: 0 | AG20: 0 | AH20: 0 | AI20: 0 | AJ20: 0 | AK20: 0 | AL20: 0 | AM20: 0 | AN20: 0 | AO20: 0 | AP20: 0 | AQ20: 0 | AR20: 0 | AS20: 0
B21: High voltage KVA time of use | D21: 0 | E21: 0 | F21: 0 | G21: 0.89 | H21: 0 | I21: 0 | J21: 0.78 | K21: 0.77 | L21: 0 | M21: 9.05 | N21: 12.43 | O21: 0 | P21: 0 | R21: 35844.29161 | S21: 0 | T21: 0 | U21: 168797660 | V21: 0 | W21: 0 | X21: 247120138.7 | Y21: 624804300.7 | Z21: 0 | AA21: 104519165.9 | AB21: 32848258.18 | AC21: 0 | AD21: 0 | AF21: 0 | AG21: 0 | AH21: 0 | AI21: 1502299.174 | AJ21: 0 | AK21: 0 | AL21: 1927537.082 | AM21: 4810993.115 | AN21: 0 | AO21: 9458984.518 | AP21: 4083038.492 | AQ21: 0 | AR21: 0 | AS21: 21782852.38
B22: High voltage KVA time of use - HOT | D22: 0 | E22: 0 | F22: 0 | G22: 0 | H22: 0 | I22: 0 | J22: 0 | K22: 0 | L22: 0 | M22: 0 | N22: 0 | O22: 0 | P22: 0 | R22: 0 | S22: 0 | T22: 0 | U22: 0 | V22: 0 | W22: 0 | X22: 0 | Y22: 0 | Z22: 0 | AA22: 0 | AB22: 0 | AC22: 0 | AD22: 0 | AF22: =D22/100*R22 -> 0 | AG22: 0 | AH22: 0 | AI22: 0 | AJ22: 0 | AK22: 0 | AL22: 0 | AM22: 0 | AN22: 0 | AO22: 0 | AP22: 0 | AQ22: 0 | AR22: 0 | AS22: 0
B23: Subtransmission KVA time of use | D23: 0 | E23: 0 | F23: 0 | G23: 0.51 | H23: 0 | I23: 0 | J23: 0.39 | K23: 0.34 | L23: 0 | M23: 0.89 | N23: 1.3 | O23: 0 | P23: 0 | R23: 388.1848269 | S23: 0 | T23: 0 | U23: 8083883.957 | V23: 0 | W23: 0 | X23: 11274570.01 | Y23: 16356094.73 | Z23: 0 | AA23: 4251731.381 | AB23: 1524422.842 | AC23: 0 | AD23: 0 | AF23: 0 | AG23: 0 | AH23: =F23/100*T23 -> 0 | AI23: 41227.80818 | AJ23: 0 | AK23: 0 | AL23: 43970.82304 | AM23: 55610.72207 | AN23: 0 | AO23: 37840.40929 | AP23: 19817.49695 | AQ23: 0 | AR23: 0 | AS23: 198467.2595
B24: TOD | D24: 6.74 | E24: 0 | F24: 4.93 | G24: 17.48 | H24: 0 | I24: 0 | J24: 10.3 | K24: 3.37 | L24: 3.63 | M24: 0 | N24: 0 | O24: 0 | P24: 0 | R24: 14958828.75 | S24: 0 | T24: 11157824.73 | U24: 21858787.26 | V24: 0 | W24: 0 | X24: 41608118.3 | Y24: 106719624.5 | Z24: 23289542.67 | AA24: 0 | AB24: 0 | AC24: 0 | AD24: 0 | AF24: 1008225.058 | AG24: 0 | AH24: 550080.759 | AI24: 3820916.013 | AJ24: 0 | AK24: 0 | AL24: 4285636.185 | AM24: 3596451.346 | AN24: 845410.3988 | AO24: 0 | AP24: 0 | AQ24: 0 | AR24: 0 | AS24: 14106719.76
B25: TOD9 | D25: 6.99 | E25: 0 | F25: 5.11 | G25: 16.48 | H25: 0 | I25: 0 | J25: 10.24 | K25: 3.9 | L25: 4.1 | M25: 0 | N25: 0 | O25: 0 | P25: 0 | R25: 1230260.531 | S25: 0 | T25: 591618.8357 | U25: 1033562.689 | V25: 0 | W25: 0 | X25: 2066829.117 | Y25: 6482902.611 | Z25: 1333840.095 | AA25: 0 | AB25: 0 | AC25: 0 | AD25: 0 | AF25: 85995.2111 | AG25: 0 | AH25: 30231.72251 | AI25: 170331.1312 | AJ25: 0 | AK25: 0 | AL25: 211643.3016 | AM25: 252833.2018 | AN25: 54687.44391 | AO25: 0 | AP25: 0 | AQ25: 0 | AR25: 0 | AS25: 805722.0121
B26: TOU | D26: 0 | E26: 0 | F26: 0 | G26: 10.14 | H26: 0 | I26: 0 | J26: 6.16 | K26: 2.97 | L26: 0 | M26: 0 | N26: 44.02 | O26: 0 | P26: 0 | R26: 245380.3348 | S26: 0 | T26: 0 | U26: 4225083.95 | V26: 0 | W26: 0 | X26: 6944131.428 | Y26: 8563967.258 | Z26: 0 | AA26: 0 | AB26: 995491.8472 | AC26: 0 | AD26: 0 | AF26: 0 | AG26: 0 | AH26: 0 | AI26: 428423.5125 | AJ26: 0 | AK26: 0 | AL26: 427758.4959 | AM26: 254349.8276 | AN26: 0 | AO26: 0 | AP26: 438215.5111 | AQ26: 0 | AR26: 0 | AS26: 1548747.347
B27: TODFLEX | D27: 7.53 | E27: 0 | F27: 4.88 | G27: 17.98 | H27: 0 | I27: 0 | J27: 10.32 | K27: 4.14 | L27: 4.88 | M27: 0 | N27: 0 | O27: 0 | P27: 0 | R27: 748713.2967 | S27: 0 | T27: 1841551.61 | U27: 897829.5467 | V27: 0 | W27: 0 | X27: 1476591.166 | Y27: 3741242.014 | Z27: 3096046.168 | AA27: 0 | AB27: 0 | AC27: 0 | AD27: 0 | AF27: 56378.11124 | AG27: 0 | AH27: 89867.71859 | AI27: 161429.7525 | AJ27: 0 | AK27: 0 | AL27: 152384.2083 | AM27: 154887.4194 | AN27: 151087.053 | AO27: 0 | AP27: 0 | AQ27: 0 | AR27: 0 | AS27: 766034.263
B28: Low Voltage KW 1 rate | D28: 0 | E28: 2.8 | F28: 2.8 | G28: 2.8 | H28: 2.8 | I28: 2.8 | J28: 2.8 | K28: 2.8 | L28: 2.8 | M28: 0 | N28: 0 | O28: 26.98 | P28: 10.65 | R28: 2365.964603 | S28: 0 | T28: 0 | U28: 10094.26433 | V28: 0 | W28: 0 | X28: 19252.67605 | Y28: 0 | Z28: 0 | AA28: 0 | AB28: 0 | AC28: 2402.709273 | AD28: 4357.306608 | AF28: 0 | AG28: 0 | AH28: 0 | AI28: 282.6394012 | AJ28: 0 | AK28: 0 | AL28: 539.0749295 | AM28: 0 | AN28: 0 | AO28: 0 | AP28: 0 | AQ28: 648.2509619 | AR28: 464.0531538 | AS28: 1934.018446
B29: Low voltage medium KW time of use (opt-in) | D29: 0 | E29: 0 | F29: 0 | G29: 3.5 | H29: 0 | I29: 0 | J29: 3.5 | K29: 0 | L29: 0 | M29: 0 | N29: 0 | O29: 39.62 | P29: 26.41 | R29: 61897.88761 | S29: 0 | T29: 0 | U29: 6048594.777 | V29: 0 | W29: 0 | X29: 8468530.008 | Y29: 0 | Z29: 0 | AA29: 0 | AB29: 0 | AC29: 602643.8077 | AD29: 1112070.385 | AF29: 0 | AG29: 0 | AH29: 0 | AI29: 211700.8172 | AJ29: 0 | AK29: 0 | AL29: 296398.5503 | AM29: 0 | AN29: 0 | AO29: 0 | AP29: 0 | AQ29: 238767.4766 | AR29: 293697.7886 | AS29: 1040564.633
B30: Low voltage medium KW 1 rate (mandatory) | D30: 0 | E30: 0 | F30: 0 | G30: 3.5 | H30: 0 | I30: 0 | J30: 3.5 | K30: 0 | L30: 0 | M30: 0 | N30: 0 | O30: 39.62 | P30: 26.41 | R30: 2660202.423 | S30: 0 | T30: 0 | U30: 270692146.8 | V30: 0 | W30: 0 | X30: 374598222.4 | Y30: 0 | Z30: 0 | AA30: 0 | AB30: 0 | AC30: 27235556.86 | AD30: 49015175.38 | AF30: 0 | AG30: 0 | AH30: 0 | AI30: 9474225.138 | AJ30: 0 | AK30: 0 | AL30: 13110937.78 | AM30: 0 | AN30: 0 | AO30: 0 | AP30: 0 | AQ30: 10790727.63 | AR30: 12944907.82 | AS30: 46320798.37
AF31: 0 | AG31: 0 | AH31: 0 | AI31: 0 | AJ31: 0 | AK31: 0 | AL31: 0 | AM31: 0 | AN31: 0 | AO31: 0 | AP31: 0 | AQ31: 0 | AR31: 0 | AS31: 0
AF32: 0 | AG32: 0 | AH32: 0 | AI32: 0 | AJ32: 0 | AK32: 0 | AL32: 0 | AM32: 0 | AN32: 0 | AO32: 0 | AP32: 0 | AQ32: 0 | AR32: 0 | AS32: 0
AF33: 0 | AG33: 0 | AH33: 0 | AI33: 0 | AJ33: 0 | AK33: 0 | AL33: 0 | AM33: 0 | AN33: 0 | AO33: 0 | AP33: 0 | AQ33: 0 | AR33: 0 | AS33: 0
AF34: 0 | AG34: 0 | AH34: 0 | AI34: 0 | AJ34: 0 | AK34: 0 | AL34: 0 | AM34: 0 | AN34: 0 | AO34: 0 | AP34: 0 | AQ34: 0 | AR34: 0 | AS34: 0
AF35: 0 | AG35: 0 | AH35: 0 | AI35: 0 | AJ35: 0 | AK35: 0 | AL35: 0 | AM35: 0 | AN35: 0 | AO35: 0 | AP35: 0 | AQ35: 0 | AR35: 0 | AS35: 0
AF36: 0 | AG36: 0 | AH36: 0 | AI36: 0 | AJ36: 0 | AK36: 0 | AL36: 0 | AM36: 0 | AN36: 0 | AO36: 0 | AP36: 0 | AQ36: 0 | AR36: 0 | AS36: 0
AF37: 0 | AG37: 0 | AH37: 0 | AI37: 0 | AJ37: 0 | AK37: 0 | AL37: 0 | AM37: 0 | AN37: 0 | AO37: 0 | AP37: 0 | AQ37: 0 | AR37: 0 | AS37: 0
AF38: 0 | AG38: 0 | AH38: 0 | AI38: 0 | AJ38: 0 | AK38: 0 | AL38: 0 | AM38: 0 | AN38: 0 | AO38: 0 | AP38: 0 | AQ38: 0 | AR38: 0 | AS38: 0
AF39: =D39/100*R39 -> 0 | AG39: 0 | AH39: 0 | AI39: 0 | AJ39: 0 | AK39: 0 | AL39: 0 | AM39: 0 | AN39: 0 | AO39: 0 | AP39: 0 | AQ39: 0 | AR39: 0 | AS39: 0
AF40: 0 | AG40: 0 | AH40: 0 | AI40: 0 | AJ40: 0 | AK40: 0 | AL40: 0 | AM40: 0 | AN40: 0 | AO40: 0 | AP40: 0 | AQ40: 0 | AR40: 0 | AS40: 0
AF41: 0 | AG41: 0 | AH41: 0 | AI41: 0 | AJ41: 0 | AK41: 0 | AL41: 0 | AM41: 0 | AN41: 0 | AO41: 0 | AP41: 0 | AQ41: 0 | AR41: 0 | AS41: 0
AF42: 0 | AG42: 0 | AH42: 0 | AI42: 0 | AJ42: 0 | AK42: 0 | AL42: 0 | AM42: 0 | AN42: 0 | AO42: 0 | AP42: 0 | AQ42: 0 | AR42: 0 | AS42: 0
AF43: 0 | AG43: 0 | AH43: 0 | AI43: 0 | AJ43: 0 | AK43: 0 | AL43: 0 | AM43: 0 | AN43: 0 | AO43: 0 | AP43: 0 | AQ43: 0 | AR43: 0 | AS43: 0
AF44: 0 | AG44: 0 | AH44: 0 | AI44: 0 | AJ44: 0 | AK44: 0 | AL44: 0 | AM44: 0 | AN44: 0 | AO44: 0 | AP44: 0 | AQ44: 0 | AR44: 0 | AS44: 0
AF45: 0 | AG45: 0 | AH45: 0 | AI45: 0 | AJ45: 0 | AK45: 0 | AL45: 0 | AM45: 0 | AN45: 0 | AO45: 0 | AP45: 0 | AQ45: 0 | AR45: 0 | AS45: 0
AF46: 0 | AG46: 0 | AH46: 0 | AI46: 0 | AJ46: 0 | AK46: 0 | AL46: 0 | AM46: 0 | AN46: 0 | AO46: 0 | AP46: 0 | AQ46: 0 | AR46: 0 | AS46: 0
AF47: 0 | AG47: 0 | AH47: 0 | AI47: 0 | AJ47: 0 | AK47: 0 | AL47: 0 | AM47: 0 | AN47: 0 | AO47: 0 | AP47: 0 | AQ47: 0 | AR47: 0 | AS47: 0
AF48: 0 | AG48: 0 | AH48: 0 | AI48: 0 | AJ48: 0 | AK48: 0 | AL48: 0 | AM48: 0 | AN48: 0 | AO48: 0 | AP48: 0 | AQ48: 0 | AR48: 0 | AS48: 0
AF49: 0 | AG49: 0 | AH49: 0 | AI49: 0 | AJ49: 0 | AK49: 0 | AL49: 0 | AM49: 0 | AN49: 0 | AO49: 0 | AP49: 0 | AQ49: 0 | AR49: 0 | AS49: 0
AF50: =D50/100*R50 -> 0 | AG50: 0 | AH50: 0 | AI50: 0 | AJ50: 0 | AK50: 0 | AL50: 0 | AM50: 0 | AN50: 0 | AO50: 0 | AP50: 0 | AQ50: 0 | AR50: 0 | AS50: 0
AF51: 0 | AG51: 0 | AH51: 0 | AI51: 0 | AJ51: 0 | AK51: 0 | AL51: 0 | AM51: 0 | AN51: 0 | AO51: 0 | AP51: 0 | AQ51: 0 | AR51: 0 | AS51: 0
AF52: 0 | AG52: 0 | AH52: 0 | AI52: 0 | AJ52: 0 | AK52: 0 | AL52: 0 | AM52: 0 | AN52: 0 | AO52: 0 | AP52: 0 | AQ52: 0 | AR52: 0 | AS52: 0
AF53: 0 | AG53: 0 | AH53: 0 | AI53: 0 | AJ53: 0 | AK53: 0 | AL53: 0 | AM53: 0 | AN53: 0 | AO53: 0 | AP53: 0 | AQ53: 0 | AR53: 0 | AS53: 0
AF54: 0 | AG54: 0 | AH54: 0 | AI54: 0 | AJ54: 0 | AK54: 0 | AL54: 0 | AM54: 0 | AN54: 0 | AO54: 0 | AP54: 0 | AQ54: 0 | AR54: 0 | AS54: 0
AF55: 0 | AG55: 0 | AH55: =F55/100*T55 -> 0 | AI55: =G55/100*U55 -> 0 | AJ55: 0 | AK55: =I55/100*W55 -> 0 | AL55: 0 | AM55: =K55/100*Y55 -> 0 | AN55: 0 | AO55: =M55/100*AA55 -> 0 | AP55: 0 | AQ55: =O55/100*AC55 -> 0 | AR55: 0 | AS55: 0
AF56: 0 | AG56: 0 | AH56: 0 | AI56: 0 | AJ56: 0 | AK56: 0 | AL56: 0 | AM56: 0 | AN56: 0 | AO56: 0 | AP56: 0 | AQ56: 0 | AR56: 0 | AS56: 0
AF57: 0 | AG57: 0 | AH57: 0 | AI57: 0 | AJ57: 0 | AK57: 0 | AL57: 0 | AM57: 0 | AN57: 0 | AO57: 0 | AP57: 0 | AQ57: 0 | AR57: 0 | AS57: 0
AF58: 0 | AG58: 0 | AH58: 0 | AI58: 0 | AJ58: 0 | AK58: 0 | AL58: 0 | AM58: 0 | AN58: 0 | AO58: 0 | AP58: 0 | AQ58: 0 | AR58: 0 | AS58: 0
AF59: 0 | AG59: 0 | AH59: 0 | AI59: 0 | AJ59: 0 | AK59: 0 | AL59: 0 | AM59: 0 | AN59: 0 | AO59: 0 | AP59: 0 | AQ59: 0 | AR59: 0 | AS59: 0
AF60: 0 | AG60: 0 | AH60: 0 | AI60: 0 | AJ60: 0 | AK60: 0 | AL60: 0 | AM60: 0 | AN60: 0 | AO60: 0 | AP60: 0 | AQ60: 0 | AR60: 0 | AS60: 0
AF61: 0 | AG61: 0 | AH61: 0 | AI61: 0 | AJ61: 0 | AK61: 0 | AL61: 0 | AM61: 0 | AN61: 0 | AO61: 0 | AP61: 0 | AQ61: 0 | AR61: 0 | AS61: 0
AF62: 0 | AG62: 0 | AH62: 0 | AI62: 0 | AJ62: 0 | AK62: 0 | AL62: 0 | AM62: 0 | AN62: 0 | AO62: 0 | AP62: 0 | AQ62: 0 | AR62: 0 | AS62: 0
AF63: 0 | AG63: 0 | AH63: 0 | AI63: 0 | AJ63: 0 | AK63: 0 | AL63: 0 | AM63: 0 | AN63: 0 | AO63: 0 | AP63: 0 | AQ63: 0 | AR63: 0 | AS63: 0
AF64: 0 | AG64: 0 | AH64: 0 | AI64: 0 | AJ64: 0 | AK64: 0 | AL64: 0 | AM64: 0 | AN64: 0 | AO64: 0 | AP64: 0 | AQ64: 0 | AR64: 0 | AS64: 0
AF65: 0 | AG65: 0 | AH65: 0 | AI65: 0 | AJ65: 0 | AK65: 0 | AL65: 0 | AM65: 0 | AN65: 0 | AO65: 0 | AP65: 0 | AQ65: 0 | AR65: 0 | AS65: 0
R66: =SUM(R6:R65) -> 251870585.4 | S66: 1097753788 | T66: 13590995.17 | U66: 1023313231 | V66: 1758171519 | W66: 0 | X66: 1468104637 | Y66: 2268497053 | Z66: 27719428.93 | AA66: =SUM(AA6:AA65) -> 434885104.2 | AB66: 131258313.6 | AC66: 27840603.38 | AD66: 50131603.07 | AF66: 18644324.84 | AG66: 87406073.64 | AH66: 670180.2001 | AI66: 32567674.51 | AJ66: 111190261.7 | AK66: 0 | AL66: 39945432.94 | AM66: =SUM(AM6:AM65) -> 29614644.84 | AN66: 1051184.896 | AO66: 58250898.85 | AP66: 26183431.8 | AQ66: 11030143.36 | AR66: 13239069.66 | AS66: 429793321.2

Sheet Prop2020TransTar
B1: ="Tariff Approval - "&'Model update'!C3 -> Tariff Approval - United Energy | D1: ="Prop"&'Model update'!$C$5&"TransTar" -> Prop2020TransTar
B3: ="PROPOSED "&'Model update'!$C$5&" TRANSMISSION TARIFFS" -> PROPOSED 2020 TRANSMISSION TARIFFS
D4: ="Proposed Transmission Tariffs (Pt) for "&'Model update'!$C$5 -> Proposed Transmission Tariffs (Pt) for 2020 | R4: ="Forecast Quantities (Qt) for "&'Model update'!$C$5 -> Forecast Quantities (Qt) for 2020 | AF4: ="Forecast Revenue (Pt "&'Model update'!$C$5&")*(Qt " &'Model update'!$C$5&")" -> Forecast Revenue (Pt 2020)*(Qt 2020)
B5: Proposed tariff | D5: =Prop2020DistTar!D5 -> PropTar Fixed | E5: =Prop2020DistTar!E5 -> PropTar PkBlk1 | F5: =Prop2020DistTar!F5 -> PropTar PkBlk2 | G5: =Prop2020DistTar!G5 -> PropTar PkBlk3 | H5: =Prop2020DistTar!H5 -> PropTar PkBlk4 | I5: =Prop2020DistTar!I5 -> PropTar OPkBlk1 | J5: =Prop2020DistTar!J5 -> PropTar OPkBlk2 | K5: =Prop2020DistTar!K5 -> PropTar OPkBlk3 | L5: =Prop2020DistTar!L5 -> PropTar OPkBlk4 | M5: =Prop2020DistTar!M5 -> PropTar DemBlk1 | N5: =Prop2020DistTar!N5 -> PropTar DemBlk2 | O5: =Prop2020DistTar!O5 -> PropTar DemBlk3 | P5: =Prop2020DistTar!P5 -> PropTar DemBlk4 | R5: =Prop2020DistTar!AF5 -> FcastVol Fixed | S5: =Prop2020DistTar!AG5 -> FcastVol PkBlk1 | T5: =Prop2020DistTar!AH5 -> FcastVol PkBlk2 | U5: =Prop2020DistTar!AI5 -> FcastVol PkBlk3 | V5: =Prop2020DistTar!AJ5 -> FcastVol PkBlk4 | W5: =Prop2020DistTar!AK5 -> FcastVol OPkBlk1 | X5: =Prop2020DistTar!AL5 -> FcastVol OPkBlk2 | Y5: =Prop2020DistTar!AM5 -> FcastVol OPkBlk3 | Z5: =Prop2020DistTar!AN5 -> FcastVol OPkBlk4 | AA5: =Prop2020DistTar!AO5 -> FcastVol DemBlk1 | AB5: =Prop2020DistTar!AP5 -> FcastVol DemBlk2 | AC5: =Prop2020DistTar!AQ5 -> FcastVol DemBlk3 | AD5: =Prop2020DistTar!AR5 -> FcastVol DemBlk4 | AF5: =Prop2020DistTar!AT5 -> PropRev Fixed | AG5: =Prop2020DistTar!AU5 -> PropRev PkBlk1 | AH5: =Prop2020DistTar!AV5 -> PropRev PkBlk2 | AI5: =Prop2020DistTar!AW5 -> PropRev PkBlk3 | AJ5: =Prop2020DistTar!AX5 -> PropRev PkBlk4 | AK5: =Prop2020DistTar!AY5 -> PropRev OPkBlk1 | AL5: =Prop2020DistTar!AZ5 -> PropRev OPkBlk2 | AM5: =Prop2020DistTar!BA5 -> PropRev OPkBlk3 | AN5: =Prop2020DistTar!BB5 -> PropRev OPkBlk4 | AO5: =Prop2020DistTar!BC5 -> PropRev DemBlk1 | AP5: =Prop2020DistTar!BD5 -> PropRev DemBlk2 | AQ5: =Prop2020DistTar!BE5 -> PropRev DemBlk3 | AR5: =Prop2020DistTar!BF5 -> PropRev DemBlk4 | AS5: PropRev Total
B6: =Prop2020DistTar!B6 -> Low voltage small 1 rate | D6: 0 | E6: 2.05 | F6: 0 | G6: 0 | H6: 2.05 | I6: 0 | J6: 0 | K6: 0 | L6: 0 | M6: 0 | N6: 0 | O6: 0 | P6: 0 | R6: =Prop2020DistTar!AF6 -> 212162195 | S6: =Prop2020DistTar!AG6 -> 919851753 | T6: =Prop2020DistTar!AH6 -> 0 | U6: =Prop2020DistTar!AI6 -> 0 | V6: =Prop2020DistTar!AJ6 -> 1513854586 | W6: =Prop2020DistTar!AK6 -> 0 | X6: =Prop2020DistTar!AL6 -> 0 | Y6: =Prop2020DistTar!AM6 -> 0 | Z6: =Prop2020DistTar!AN6 -> 0 | AA6: =Prop2020DistTar!AO6 -> 0 | AB6: =Prop2020DistTar!AP6 -> 0 | AC6: =Prop2020DistTar!AQ6 -> 0 | AD6: =Prop2020DistTar!AR6 -> 0 | AF6: =D6/100*R6 -> 0 | AG6: 18856960.94 | AH6: =F6/100*T6 -> 0 | AI6: =G6/100*U6 -> 0 | AJ6: =H6/100*V6 -> 31034019.02 | AK6: =I6/100*W6 -> 0 | AL6: =J6/100*X6 -> 0 | AM6: =K6/100*Y6 -> 0 | AN6: =L6/100*Z6 -> 0 | AO6: =M6/100*AA6 -> 0 | AP6: =N6/100*AB6 -> 0 | AQ6: =O6/100*AC6 -> 0 | AR6: =P6/100*AD6 -> 0 | AS6: =SUM(AF6:AR6) -> 49890979.96
B7: =Prop2020DistTar!B7 -> Winter economy tariff | D7: 0 | E7: 2.04 | F7: 0 | G7: 0 | H7: 2.04 | I7: 1.87 | J7: 0 | K7: 0 | L7: 0 | M7: 0 | N7: 0 | O7: 0 | P7: 0 | R7: =Prop2020DistTar!AF7 -> 47078.0734 | S7: =Prop2020DistTar!AG7 -> 293507.5327 | T7: =Prop2020DistTar!AH7 -> 0 | U7: =Prop2020DistTar!AI7 -> 0 | V7: =Prop2020DistTar!AJ7 -> 549771.8592 | W7: =Prop2020DistTar!AK7 -> 0 | X7: =Prop2020DistTar!AL7 -> 0 | Y7: =Prop2020DistTar!AM7 -> 0 | Z7: =Prop2020DistTar!AN7 -> 0 | AA7: =Prop2020DistTar!AO7 -> 0 | AB7: =Prop2020DistTar!AP7 -> 0 | AC7: =Prop2020DistTar!AQ7 -> 0 | AD7: =Prop2020DistTar!AR7 -> 0 | AF7: =D7/100*R7 -> 0 | AG7: 5987.553666 | AH7: 0 | AI7: 0 | AJ7: 11215.34593 | AK7: 0 | AL7: 0 | AM7: 0 | AN7: 0 | AO7: 0 | AP7: 0 | AQ7: 0 | AR7: 0 | AS7: =SUM(AF7:AR7) -> 17202.89959
B8: =Prop2020DistTar!B8 -> Reverse cycle airconditioning time of use | D8: 0 | E8: 0 | F8: 0 | G8: 0 | H8: 0 | I8: 0 | J8: 0 | K8: 0 | L8: 0 | M8: 0 | N8: 0 | O8: 0 | P8: 0 | R8: =Prop2020DistTar!AF8 -> 0 | S8: =Prop2020DistTar!AG8 -> 0 | T8: =Prop2020DistTar!AH8 -> 0 | U8: =Prop2020DistTar!AI8 -> 0 | V8: =Prop2020DistTar!AJ8 -> 0 | W8: =Prop2020DistTar!AK8 -> 0 | X8: =Prop2020DistTar!AL8 -> 0 | Y8: =Prop2020DistTar!AM8 -> 0 | Z8: =Prop2020DistTar!AN8 -> 0 | AA8: =Prop2020DistTar!AO8 -> 0 | AB8: =Prop2020DistTar!AP8 -> 0 | AC8: =Prop2020DistTar!AQ8 -> 0 | AD8: =Prop2020DistTar!AR8 -> 0 | AF8: 0 | AG8: 0 | AH8: 0 | AI8: 0 | AJ8: 0 | AK8: 0 | AL8: 0 | AM8: 0 | AN8: 0 | AO8: 0 | AP8: 0 | AQ8: 0 | AR8: 0 | AS8: 0
B9: =Prop2020DistTar!B9 -> Low voltage small 2 rate | D9: 0 | E9: 0 | F9: 0 | G9: 3.53 | H9: 0 | I9: 0 | J9: 3.53 | K9: 0 | L9: 0 | M9: 0 | N9: 0 | O9: 0 | P9: 0 | R9: =Prop2020DistTar!AF9 -> 1540872.815 | S9: =Prop2020DistTar!AG9 -> 0 | T9: =Prop2020DistTar!AH9 -> 0 | U9: =Prop2020DistTar!AI9 -> 4165253.264 | V9: =Prop2020DistTar!AJ9 -> 0 | W9: =Prop2020DistTar!AK9 -> 0 | X9: =Prop2020DistTar!AL9 -> 6996037.326 | Y9: =Prop2020DistTar!AM9 -> 14790881.87 | Z9: =Prop2020DistTar!AN9 -> 0 | AA9: =Prop2020DistTar!AO9 -> 0 | AB9: =Prop2020DistTar!AP9 -> 0 | AC9: =Prop2020DistTar!AQ9 -> 0 | AD9: =Prop2020DistTar!AR9 -> 0 | AF9: 0 | AG9: 0 | AH9: 0 | AI9: 147033.4402 | AJ9: 0 | AK9: 0 | AL9: 246960.1176 | AM9: 0 | AN9: 0 | AO9: 0 | AP9: 0 | AQ9: 0 | AR9: 0 | AS9: 393993.5578
B10: =Prop2020DistTar!B10 -> Dedicated circuit | D10: 0 | E10: 0 | F10: 0 | G10: 0 | H10: 0 | I10: 0 | J10: 0 | K10: 0 | L10: 0 | M10: 0 | N10: 0 | O10: 0 | P10: 0 | R10: =Prop2020DistTar!AF10 -> 21169813.98 | S10: =Prop2020DistTar!AG10 -> 0 | T10: =Prop2020DistTar!AH10 -> 0 | U10: =Prop2020DistTar!AI10 -> 0 | V10: =Prop2020DistTar!AJ10 -> 0 | W10: =Prop2020DistTar!AK10 -> 0 | X10: =Prop2020DistTar!AL10 -> 0 | Y10: =Prop2020DistTar!AM10 -> 92477650.13 | Z10: =Prop2020DistTar!AN10 -> 0 | AA10: =Prop2020DistTar!AO10 -> 0 | AB10: =Prop2020DistTar!AP10 -> 0 | AC10: =Prop2020DistTar!AQ10 -> 0 | AD10: =Prop2020DistTar!AR10 -> 0 | AF10: 0 | AG10: 0 | AH10: 0 | AI10: 0 | AJ10: 0 | AK10: 0 | AL10: 0 | AM10: 0 | AN10: 0 | AO10: 0 | AP10: 0 | AQ10: 0 | AR10: 0 | AS10: 0
B11: =Prop2020DistTar!B11 -> Low voltage medium 1 rate | D11: 0 | E11: 2.37 | F11: 0 | G11: 0 | H11: 2.37 | I11: 0 | J11: 0 | K11: 0 | L11: 0 | M11: 0 | N11: 0 | O11: 0 | P11: 0 | R11: =Prop2020DistTar!AF11 -> 12102335.34 | S11: =Prop2020DistTar!AG11 -> 161788893.1 | T11: =Prop2020DistTar!AH11 -> 0 | U11: =Prop2020DistTar!AI11 -> 0 | V11: =Prop2020DistTar!AJ11 -> 250038883 | W11: =Prop2020DistTar!AK11 -> 0 | X11: =Prop2020DistTar!AL11 -> 0 | Y11: =Prop2020DistTar!AM11 -> 0 | Z11: =Prop2020DistTar!AN11 -> 0 | AA11: =Prop2020DistTar!AO11 -> 0 | AB11: =Prop2020DistTar!AP11 -> 0 | AC11: =Prop2020DistTar!AQ11 -> 0 | AD11: =Prop2020DistTar!AR11 -> 0 | AF11: 0 | AG11: 3834396.766 | AH11: 0 | AI11: 0 | AJ11: 5925921.526 | AK11: 0 | AL11: 0 | AM11: 0 | AN11: 0 | AO11: 0 | AP11: 0 | AQ11: 0 | AR11: 0 | AS11: 9760318.292
B12: =Prop2020DistTar!B12 -> Low voltage medium 2 rate 5 day | D12: 0 | E12: 0 | F12: 0 | G12: 2.34 | H12: 0 | I12: 0 | J12: 2.34 | K12: 0 | L12: 0 | M12: 0 | N12: 0 | O12: 0 | P12: 0 | R12: =Prop2020DistTar!AF12 -> 3296334.516 | S12: =Prop2020DistTar!AG12 -> 0 | T12: =Prop2020DistTar!AH12 -> 0 | U12: =Prop2020DistTar!AI12 -> 44442947.95 | V12: =Prop2020DistTar!AJ12 -> 0 | W12: =Prop2020DistTar!AK12 -> 0 | X12: =Prop2020DistTar!AL12 -> 63255909.48 | Y12: =Prop2020DistTar!AM12 -> 66483501.71 | Z12: =Prop2020DistTar!AN12 -> 0 | AA12: =Prop2020DistTar!AO12 -> 0 | AB12: =Prop2020DistTar!AP12 -> 0 | AC12: =Prop2020DistTar!AQ12 -> 0 | AD12: =Prop2020DistTar!AR12 -> 0 | AF12: 0 | AG12: 0 | AH12: 0 | AI12: 1039964.982 | AJ12: 0 | AK12: 0 | AL12: 1480188.282 | AM12: 0 | AN12: 0 | AO12: 0 | AP12: 0 | AQ12: 0 | AR12: 0 | AS12: 2520153.264
B13: =Prop2020DistTar!B13 -> Low voltage medium 2 rate 7 day | D13: 0 | E13: 0 | F13: 0 | G13: 2.22 | H13: 0 | I13: 0 | J13: 2.22 | K13: 0 | L13: 0 | M13: 0 | N13: 0 | O13: 0 | P13: 0 | R13: =Prop2020DistTar!AF13 -> 1640279.535 | S13: =Prop2020DistTar!AG13 -> 0 | T13: =Prop2020DistTar!AH13 -> 0 | U13: =Prop2020DistTar!AI13 -> 19851193.85 | V13: =Prop2020DistTar!AJ13 -> 0 | W13: =Prop2020DistTar!AK13 -> 0 | X13: =Prop2020DistTar!AL13 -> 30063800.98 | Y13: =Prop2020DistTar!AM13 -> 13681650.15 | Z13: =Prop2020DistTar!AN13 -> 0 | AA13: =Prop2020DistTar!AO13 -> 0 | AB13: =Prop2020DistTar!AP13 -> 0 | AC13: =Prop2020DistTar!AQ13 -> 0 | AD13: =Prop2020DistTar!AR13 -> 0 | AF13: 0 | AG13: 0 | AH13: 0 | AI13: 440696.5035 | AJ13: 0 | AK13: 0 | AL13: 667416.3818 | AM13: 0 | AN13: 0 | AO13: 0 | AP13: 0 | AQ13: 0 | AR13: 0 | AS13: 1108112.885
B14: =Prop2020DistTar!B14 -> Unmetered supplies | D14: 0 | E14: 0 | F14: 0 | G14: 3.2 | H14: 0 | I14: 0 | J14: 3.2 | K14: 0 | L14: 0 | M14: 0 | N14: 0 | O14: 0 | P14: 0 | R14: =Prop2020DistTar!AF14 -> 3541416 | S14: =Prop2020DistTar!AG14 -> 0 | T14: =Prop2020DistTar!AH14 -> 0 | U14: =Prop2020DistTar!AI14 -> 11643754.47 | V14: =Prop2020DistTar!AJ14 -> 0 | W14: =Prop2020DistTar!AK14 -> 0 | X14: =Prop2020DistTar!AL14 -> 19080770.29 | Y14: =Prop2020DistTar!AM14 -> 56302898.46 | Z14: =Prop2020DistTar!AN14 -> 0 | AA14: =Prop2020DistTar!AO14 -> 0 | AB14: =Prop2020DistTar!AP14 -> 0 | AC14: =Prop2020DistTar!AQ14 -> 0 | AD14: =Prop2020DistTar!AR14 -> 0 | AF14: 0 | AG14: 0 | AH14: 0 | AI14: 372600.143 | AJ14: 0 | AK14: 0 | AL14: 610584.6493 | AM14: 0 | AN14: 0 | AO14: 0 | AP14: 0 | AQ14: 0 | AR14: 0 | AS14: 983184.7923
B15: =Prop2020DistTar!B15 -> Low voltage large 1 rate | D15: 0 | E15: 2.37 | F15: 0 | G15: 0 | H15: 2.37 | I15: 0 | J15: 0 | K15: 0 | L15: 0 | M15: 0 | N15: 0 | O15: 0 | P15: 0 | R15: =Prop2020DistTar!AF15 -> 2568.095895 | S15: =Prop2020DistTar!AG15 -> 626916.0406 | T15: =Prop2020DistTar!AH15 -> 0 | U15: =Prop2020DistTar!AI15 -> 0 | V15: =Prop2020DistTar!AJ15 -> 845401.2968 | W15: =Prop2020DistTar!AK15 -> 0 | X15: =Prop2020DistTar!AL15 -> 0 | Y15: =Prop2020DistTar!AM15 -> 0 | Z15: =Prop2020DistTar!AN15 -> 0 | AA15: =Prop2020DistTar!AO15 -> 0 | AB15: =Prop2020DistTar!AP15 -> 0 | AC15: =Prop2020DistTar!AQ15 -> 0 | AD15: =Prop2020DistTar!AR15 -> 0 | AF15: 0 | AG15: 14857.91016 | AH15: 0 | AI15: 0 | AJ15: 20036.01074 | AK15: 0 | AL15: 0 | AM15: 0 | AN15: 0 | AO15: 0 | AP15: 0 | AQ15: 0 | AR15: 0 | AS15: 34893.9209
B16: =Prop2020DistTar!B16 -> Low voltage large 2 rate | D16: 0 | E16: 0 | F16: 0 | G16: 2.53 | H16: 0 | I16: 0 | J16: 2.53 | K16: 0 | L16: 0 | M16: 0 | N16: 0 | O16: 0 | P16: 0 | R16: =Prop2020DistTar!AF16 -> 6236.804316 | S16: =Prop2020DistTar!AG16 -> 0 | T16: =Prop2020DistTar!AH16 -> 0 | U16: =Prop2020DistTar!AI16 -> 563898.2219 | V16: =Prop2020DistTar!AJ16 -> 0 | W16: =Prop2020DistTar!AK16 -> 0 | X16: =Prop2020DistTar!AL16 -> 810564.9206 | Y16: =Prop2020DistTar!AM16 -> 1029686.513 | Z16: =Prop2020DistTar!AN16 -> 0 | AA16: =Prop2020DistTar!AO16 -> 0 | AB16: =Prop2020DistTar!AP16 -> 0 | AC16: =Prop2020DistTar!AQ16 -> 0 | AD16: =Prop2020DistTar!AR16 -> 0 | AF16: 0 | AG16: 0 | AH16: 0 | AI16: 14266.62501 | AJ16: 0 | AK16: 0 | AL16: 20507.29249 | AM16: 0 | AN16: 0 | AO16: 0 | AP16: 0 | AQ16: 0 | AR16: 0 | AS16: 34773.91751
B17: =Prop2020DistTar!B17 -> Low voltage KW time of use | D17: 0 | E17: 0 | F17: 0 | G17: 2.13 | H17: 0 | I17: 0 | J17: 2.13 | K17: 0 | L17: 0 | M17: 0 | N17: 11.29 | O17: 0 | P17: 0 | R17: =Prop2020DistTar!AF17 -> 64782 | S17: =Prop2020DistTar!AG17 -> 0 | T17: =Prop2020DistTar!AH17 -> 0 | U17: =Prop2020DistTar!AI17 -> 2537287.135 | V17: =Prop2020DistTar!AJ17 -> 0 | W17: =Prop2020DistTar!AK17 -> 0 | X17: =Prop2020DistTar!AL17 -> 4053676.63 | Y17: =Prop2020DistTar!AM17 -> 6266721.116 | Z17: =Prop2020DistTar!AN17 -> 0 | AA17: =Prop2020DistTar!AO17 -> 0 | AB17: =Prop2020DistTar!AP17 -> 632644.762 | AC17: =Prop2020DistTar!AQ17 -> 0 | AD17: =Prop2020DistTar!AR17 -> 0 | AF17: 0 | AG17: 0 | AH17: 0 | AI17: 54044.21597 | AJ17: 0 | AK17: 0 | AL17: 86343.31221 | AM17: 0 | AN17: 0 | AO17: 0 | AP17: 71425.59363 | AQ17: 0 | AR17: 0 | AS17: 211813.1218
B18: =Prop2020DistTar!B18 -> Low voltage KW time of use - HOT | D18: 0 | E18: 0 | F18: 0 | G18: 1.28 | H18: 0 | I18: 0 | J18: 1.28 | K18: 0 | L18: 0 | M18: 0 | N18: 11.82 | O18: 0 | P18: 0 | R18: =Prop2020DistTar!AF18 -> 5856 | S18: =Prop2020DistTar!AG18 -> 0 | T18: =Prop2020DistTar!AH18 -> 0 | U18: =Prop2020DistTar!AI18 -> 18479.7083 | V18: =Prop2020DistTar!AJ18 -> 0 | W18: =Prop2020DistTar!AK18 -> 0 | X18: =Prop2020DistTar!AL18 -> 32475.32388 | Y18: =Prop2020DistTar!AM18 -> 54198.35716 | Z18: =Prop2020DistTar!AN18 -> 0 | AA18: =Prop2020DistTar!AO18 -> 0 | AB18: =Prop2020DistTar!AP18 -> 12598.044 | AC18: =Prop2020DistTar!AQ18 -> 0 | AD18: =Prop2020DistTar!AR18 -> 0 | AF18: 0 | AG18: 0 | AH18: 0 | AI18: 236.5402663 | AJ18: 0 | AK18: 0 | AL18: 415.6841457 | AM18: 0 | AN18: 0 | AO18: 0 | AP18: 1489.088801 | AQ18: 0 | AR18: 0 | AS18: 2141.313213
B19: =Prop2020DistTar!B19 -> Low voltage large KVA time of use | D19: 0 | E19: 0 | F19: 0 | G19: 1.03 | H19: 0 | I19: 0 | J19: 1.03 | K19: 0 | L19: 0 | M19: 4.88 | N19: 6.66 | O19: 0 | P19: 0 | R19: =Prop2020DistTar!AF19 -> 1110078 | S19: =Prop2020DistTar!AG19 -> 0 | T19: =Prop2020DistTar!AH19 -> 0 | U19: =Prop2020DistTar!AI19 -> 442552227.7 | V19: =Prop2020DistTar!AJ19 -> 0 | W19: =Prop2020DistTar!AK19 -> 0 | X19: =Prop2020DistTar!AL19 -> 608901701.2 | Y19: =Prop2020DistTar!AM19 -> 1242320710 | Z19: =Prop2020DistTar!AN19 -> 0 | AA19: =Prop2020DistTar!AO19 -> 320914609.7 | AB19: =Prop2020DistTar!AP19 -> 92279113.55 | AC19: =Prop2020DistTar!AQ19 -> 0 | AD19: =Prop2020DistTar!AR19 -> 0 | AF19: 0 | AG19: 0 | AH19: 0 | AI19: 4558287.945 | AJ19: 0 | AK19: 0 | AL19: 6271687.522 | AM19: 0 | AN19: 0 | AO19: 15660632.95 | AP19: 6145788.962 | AQ19: 0 | AR19: 0 | AS19: 32636397.38
B20: =Prop2020DistTar!B20 -> Low voltage large KVA time of use - HOT | D20: 0 | E20: 0 | F20: 0 | G20: 0 | H20: 0 | I20: 0 | J20: 0 | K20: 0 | L20: 0 | M20: 0 | N20: 0 | O20: 0 | P20: 0 | R20: =Prop2020DistTar!AF20 -> 0 | S20: =Prop2020DistTar!AG20 -> 0 | T20: =Prop2020DistTar!AH20 -> 0 | U20: =Prop2020DistTar!AI20 -> 0 | V20: =Prop2020DistTar!AJ20 -> 0 | W20: =Prop2020DistTar!AK20 -> 0 | X20: =Prop2020DistTar!AL20 -> 0 | Y20: =Prop2020DistTar!AM20 -> 0 | Z20: =Prop2020DistTar!AN20 -> 0 | AA20: =Prop2020DistTar!AO20 -> 0 | AB20: =Prop2020DistTar!AP20 -> 0 | AC20: =Prop2020DistTar!AQ20 -> 0 | AD20: =Prop2020DistTar!AR20 -> 0 | AF20: 0 | AG20: 0 | AH20: 0 | AI20: 0 | AJ20: 0 | AK20: 0 | AL20: 0 | AM20: 0 | AN20: 0 | AO20: 0 | AP20: 0 | AQ20: 0 | AR20: 0 | AS20: 0
B21: =Prop2020DistTar!B21 -> High voltage KVA time of use | D21: 0 | E21: 0 | F21: 0 | G21: 0.63 | H21: 0 | I21: 0 | J21: 0.63 | K21: 0 | L21: 0 | M21: 5.58 | N21: 5.86 | O21: 0 | P21: 0 | R21: =Prop2020DistTar!AF21 -> 36234 | S21: =Prop2020DistTar!AG21 -> 0 | T21: =Prop2020DistTar!AH21 -> 0 | U21: =Prop2020DistTar!AI21 -> 173815274 | V21: =Prop2020DistTar!AJ21 -> 0 | W21: =Prop2020DistTar!AK21 -> 0 | X21: =Prop2020DistTar!AL21 -> 244289927.6 | Y21: =Prop2020DistTar!AM21 -> 638852125.6 | Z21: =Prop2020DistTar!AN21 -> 0 | AA21: =Prop2020DistTar!AO21 -> 106134752.1 | AB21: =Prop2020DistTar!AP21 -> 33089430.44 | AC21: =Prop2020DistTar!AQ21 -> 0 | AD21: =Prop2020DistTar!AR21 -> 0 | AF21: 0 | AG21: 0 | AH21: 0 | AI21: 1095036.226 | AJ21: 0 | AK21: 0 | AL21: 1539026.544 | AM21: 0 | AN21: 0 | AO21: 5922319.166 | AP21: 1939040.624 | AQ21: 0 | AR21: 0 | AS21: 10495422.56
B22: =Prop2020DistTar!B22 -> High voltage KVA time of use - HOT | D22: 0 | E22: 0 | F22: 0 | G22: 0 | H22: 0 | I22: 0 | J22: 0 | K22: 0 | L22: 0 | M22: 0 | N22: 0 | O22: 0 | P22: 0 | R22: =Prop2020DistTar!AF22 -> 0 | S22: =Prop2020DistTar!AG22 -> 0 | T22: =Prop2020DistTar!AH22 -> 0 | U22: =Prop2020DistTar!AI22 -> 0 | V22: =Prop2020DistTar!AJ22 -> 0 | W22: =Prop2020DistTar!AK22 -> 0 | X22: =Prop2020DistTar!AL22 -> 0 | Y22: =Prop2020DistTar!AM22 -> 0 | Z22: =Prop2020DistTar!AN22 -> 0 | AA22: =Prop2020DistTar!AO22 -> 0 | AB22: =Prop2020DistTar!AP22 -> 0 | AC22: =Prop2020DistTar!AQ22 -> 0 | AD22: =Prop2020DistTar!AR22 -> 0 | AF22: 0 | AG22: 0 | AH22: 0 | AI22: 0 | AJ22: 0 | AK22: 0 | AL22: 0 | AM22: 0 | AN22: 0 | AO22: 0 | AP22: 0 | AQ22: 0 | AR22: 0 | AS22: 0
B23: =Prop2020DistTar!B23 -> Subtransmission KVA time of use | D23: 0 | E23: 0 | F23: 0 | G23: 0.34 | H23: 0 | I23: 0 | J23: 0.34 | K23: 0 | L23: 0 | M23: 4.01 | N23: 4.87 | O23: 0 | P23: 0 | R23: =Prop2020DistTar!AF23 -> 366 | S23: =Prop2020DistTar!AG23 -> 0 | T23: =Prop2020DistTar!AH23 -> 0 | U23: =Prop2020DistTar!AI23 -> 6227527.529 | V23: =Prop2020DistTar!AJ23 -> 0 | W23: =Prop2020DistTar!AK23 -> 0 | X23: =Prop2020DistTar!AL23 -> 11306632.75 | Y23: =Prop2020DistTar!AM23 -> 14340438.67 | Z23: =Prop2020DistTar!AN23 -> 0 | AA23: =Prop2020DistTar!AO23 -> 4117758.995 | AB23: =Prop2020DistTar!AP23 -> 1226831.123 | AC23: =Prop2020DistTar!AQ23 -> 0 | AD23: =Prop2020DistTar!AR23 -> 0 | AF23: 0 | AG23: 0 | AH23: 0 | AI23: 21173.5936 | AJ23: 0 | AK23: 0 | AL23: 38442.55135 | AM23: 0 | AN23: 0 | AO23: 165122.1357 | AP23: 59746.67569 | AQ23: 0 | AR23: 0 | AS23: 284484.9563
B24: =Prop2020DistTar!B24 -> TOD | D24: 0 | E24: 0 | F24: 3.31 | G24: 3.81 | H24: 0 | I24: 0 | J24: 3.81 | K24: 0 | L24: 3.31 | M24: 0 | N24: 0 | O24: 0 | P24: 0 | R24: =Prop2020DistTar!AF24 -> 15598161.35 | S24: =Prop2020DistTar!AG24 -> 0 | T24: =Prop2020DistTar!AH24 -> 12690970.05 | U24: =Prop2020DistTar!AI24 -> 22175656.6 | V24: =Prop2020DistTar!AJ24 -> 0 | W24: =Prop2020DistTar!AK24 -> 0 | X24: =Prop2020DistTar!AL24 -> 41706694.09 | Y24: =Prop2020DistTar!AM24 -> 107857002.4 | Z24: =Prop2020DistTar!AN24 -> 23868443.45 | AA24: =Prop2020DistTar!AO24 -> 0 | AB24: =Prop2020DistTar!AP24 -> 0 | AC24: =Prop2020DistTar!AQ24 -> 0 | AD24: =Prop2020DistTar!AR24 -> 0 | AF24: 0 | AG24: 0 | AH24: 420071.1086 | AI24: 844892.5164 | AJ24: 0 | AK24: 0 | AL24: 1589025.045 | AM24: 0 | AN24: 790045.4783 | AO24: 0 | AP24: 0 | AQ24: 0 | AR24: 0 | AS24: 3644034.148
B25: =Prop2020DistTar!B25 -> TOD9 | D25: 0 | E25: 0 | F25: 4.47 | G25: 4.74 | H25: 0 | I25: 0 | J25: 4.74 | K25: 0 | L25: 4.47 | M25: 0 | N25: 0 | O25: 0 | P25: 0 | R25: =Prop2020DistTar!AF25 -> 1010310.401 | S25: =Prop2020DistTar!AG25 -> 0 | T25: =Prop2020DistTar!AH25 -> 668818.714 | U25: =Prop2020DistTar!AI25 -> 945228.328 | V25: =Prop2020DistTar!AJ25 -> 0 | W25: =Prop2020DistTar!AK25 -> 0 | X25: =Prop2020DistTar!AL25 -> 1597730.386 | Y25: =Prop2020DistTar!AM25 -> 6831899.483 | Z25: =Prop2020DistTar!AN25 -> 1130512.015 | AA25: =Prop2020DistTar!AO25 -> 0 | AB25: =Prop2020DistTar!AP25 -> 0 | AC25: =Prop2020DistTar!AQ25 -> 0 | AD25: =Prop2020DistTar!AR25 -> 0 | AF25: 0 | AG25: 0 | AH25: 29896.19652 | AI25: 44803.82275 | AJ25: 0 | AK25: 0 | AL25: 75732.4203 | AM25: 0 | AN25: 50533.88709 | AO25: 0 | AP25: 0 | AQ25: 0 | AR25: 0 | AS25: 200966.3267
B26: =Prop2020DistTar!B26 -> TOU | D26: 0 | E26: 0 | F26: 0 | G26: 1.87 | H26: 0 | I26: 0 | J26: 1.87 | K26: 0 | L26: 0 | M26: 0 | N26: 7.34 | O26: 0 | P26: 0 | R26: =Prop2020DistTar!AF26 -> 225090 | S26: =Prop2020DistTar!AG26 -> 0 | T26: =Prop2020DistTar!AH26 -> 0 | U26: =Prop2020DistTar!AI26 -> 4508745.304 | V26: =Prop2020DistTar!AJ26 -> 0 | W26: =Prop2020DistTar!AK26 -> 0 | X26: =Prop2020DistTar!AL26 -> 6758791.942 | Y26: =Prop2020DistTar!AM26 -> 9460029.855 | Z26: =Prop2020DistTar!AN26 -> 0 | AA26: =Prop2020DistTar!AO26 -> 0 | AB26: =Prop2020DistTar!AP26 -> 1192130.282 | AC26: =Prop2020DistTar!AQ26 -> 0 | AD26: =Prop2020DistTar!AR26 -> 0 | AF26: 0 | AG26: 0 | AH26: 0 | AI26: 84313.53719 | AJ26: 0 | AK26: 0 | AL26: 126389.4093 | AM26: 0 | AN26: 0 | AO26: 0 | AP26: 87502.3627 | AQ26: 0 | AR26: 0 | AS26: 298205.3092
B27: =Prop2020DistTar!B27 -> TODFLEX | D27: 0 | E27: 0 | F27: 1.98 | G27: 4.1 | H27: 0 | I27: 0 | J27: 4.1 | K27: 0 | L27: 1.98 | M27: 0 | N27: 0 | O27: 0 | P27: 0 | R27: =Prop2020DistTar!AF27 -> 707292.0075 | S27: =Prop2020DistTar!AG27 -> 0 | T27: =Prop2020DistTar!AH27 -> 1584333.56 | U27: =Prop2020DistTar!AI27 -> 771828.7198 | V27: =Prop2020DistTar!AJ27 -> 0 | W27: =Prop2020DistTar!AK27 -> 0 | X27: =Prop2020DistTar!AL27 -> 1383098.006 | Y27: =Prop2020DistTar!AM27 -> 3446686.135 | Z27: =Prop2020DistTar!AN27 -> 2839086.614 | AA27: =Prop2020DistTar!AO27 -> 0 | AB27: =Prop2020DistTar!AP27 -> 0 | AC27: =Prop2020DistTar!AQ27 -> 0 | AD27: =Prop2020DistTar!AR27 -> 0 | AF27: 0 | AG27: 0 | AH27: 31369.80448 | AI27: 31644.97751 | AJ27: 0 | AK27: 0 | AL27: 56707.01823 | AM27: 0 | AN27: 56213.91497 | AO27: 0 | AP27: 0 | AQ27: 0 | AR27: 0 | AS27: 175935.7152
B28: =Prop2020DistTar!B28 -> Low Voltage KW 1 rate | D28: 0 | E28: 0 | F28: 0 | G28: 0.79 | H28: 0 | I28: 0 | J28: 0.79 | K28: 0 | L28: 0 | M28: 0 | N28: 0 | O28: 5.88 | P28: 3.82 | R28: =Prop2020DistTar!AF28 -> 4392 | S28: =Prop2020DistTar!AG28 -> 0 | T28: =Prop2020DistTar!AH28 -> 0 | U28: =Prop2020DistTar!AI28 -> 20741.32671 | V28: =Prop2020DistTar!AJ28 -> 0 | W28: =Prop2020DistTar!AK28 -> 0 | X28: =Prop2020DistTar!AL28 -> 49249.22386 | Y28: =Prop2020DistTar!AM28 -> 0 | Z28: =Prop2020DistTar!AN28 -> 0 | AA28: =Prop2020DistTar!AO28 -> 0 | AB28: =Prop2020DistTar!AP28 -> 0 | AC28: =Prop2020DistTar!AQ28 -> 6369.862 | AD28: =Prop2020DistTar!AR28 -> 9838.826 | AF28: 0 | AG28: 0 | AH28: 0 | AI28: 163.856481 | AJ28: 0 | AK28: 0 | AL28: 389.0688685 | AM28: 0 | AN28: 0 | AO28: 0 | AP28: 0 | AQ28: 374.5478856 | AR28: 375.8431532 | AS28: 1303.316388
B29: =Prop2020DistTar!B29 -> Low voltage medium KW time of use (opt-in) | D29: 0 | E29: 0 | F29: 0 | G29: 0.97 | H29: 0 | I29: 0 | J29: 0.97 | K29: 0 | L29: 0 | M29: 0 | N29: 0 | O29: 10.93 | P29: 7.28 | R29: =Prop2020DistTar!AF29 -> 208620 | S29: =Prop2020DistTar!AG29 -> 0 | T29: =Prop2020DistTar!AH29 -> 0 | U29: =Prop2020DistTar!AI29 -> 28957081.84 | V29: =Prop2020DistTar!AJ29 -> 0 | W29: =Prop2020DistTar!AK29 -> 0 | X29: =Prop2020DistTar!AL29 -> 58125647.51 | Y29: =Prop2020DistTar!AM29 -> 0 | Z29: =Prop2020DistTar!AN29 -> 0 | AA29: =Prop2020DistTar!AO29 -> 0 | AB29: =Prop2020DistTar!AP29 -> 0 | AC29: =Prop2020DistTar!AQ29 -> 3030279.076 | AD29: =Prop2020DistTar!AR29 -> 4671498.06 | AF29: 0 | AG29: 0 | AH29: 0 | AI29: 280883.6939 | AJ29: 0 | AK29: 0 | AL29: 563818.7808 | AM29: 0 | AN29: 0 | AO29: 0 | AP29: 0 | AQ29: 331209.503 | AR29: 340085.0588 | AS29: 1515997.036
B30: =Prop2020DistTar!B30 -> Low voltage medium KW 1 rate (mandatory) | D30: 0 | E30: 0 | F30: 0 | G30: 0.97 | H30: 0 | I30: 0 | J30: 0.97 | K30: 0 | L30: 0 | M30: 0 | N30: 0 | O30: 10.93 | P30: 7.28 | R30: =Prop2020DistTar!AF30 -> 2445612 | S30: =Prop2020DistTar!AG30 -> 0 | T30: =Prop2020DistTar!AH30 -> 0 | U30: =Prop2020DistTar!AI30 -> 183561587.5 | V30: =Prop2020DistTar!AJ30 -> 0 | W30: =Prop2020DistTar!AK30 -> 0 | X30: =Prop2020DistTar!AL30 -> 356050860 | Y30: =Prop2020DistTar!AM30 -> 0 | Z30: =Prop2020DistTar!AN30 -> 0 | AA30: =Prop2020DistTar!AO30 -> 0 | AB30: =Prop2020DistTar!AP30 -> 0 | AC30: =Prop2020DistTar!AQ30 -> 24585704.74 | AD30: =Prop2020DistTar!AR30 -> 44978171.62 | AF30: 0 | AG30: 0 | AH30: 0 | AI30: 1780547.398 | AJ30: 0 | AK30: 0 | AL30: 3453693.342 | AM30: 0 | AN30: 0 | AO30: 0 | AP30: 0 | AQ30: 2687217.529 | AR30: 3274410.894 | AS30: 11195869.16
AF31: 0 | AG31: 0 | AH31: 0 | AI31: 0 | AJ31: 0 | AK31: 0 | AL31: 0 | AM31: 0 | AN31: 0 | AO31: 0 | AP31: 0 | AQ31: 0 | AR31: 0 | AS31: 0
AF32: 0 | AG32: 0 | AH32: 0 | AI32: 0 | AJ32: 0 | AK32: 0 | AL32: 0 | AM32: 0 | AN32: 0 | AO32: 0 | AP32: 0 | AQ32: 0 | AR32: 0 | AS32: 0
AF33: 0 | AG33: 0 | AH33: 0 | AI33: 0 | AJ33: 0 | AK33: 0 | AL33: 0 | AM33: 0 | AN33: 0 | AO33: 0 | AP33: 0 | AQ33: 0 | AR33: 0 | AS33: 0
AF34: 0 | AG34: 0 | AH34: 0 | AI34: 0 | AJ34: 0 | AK34: 0 | AL34: 0 | AM34: 0 | AN34: 0 | AO34: 0 | AP34: 0 | AQ34: 0 | AR34: 0 | AS34: 0
AF35: =D35/100*R35 -> 0 | AG35: 0 | AH35: 0 | AI35: 0 | AJ35: 0 | AK35: 0 | AL35: 0 | AM35: 0 | AN35: 0 | AO35: 0 | AP35: 0 | AQ35: 0 | AR35: 0 | AS35: =SUM(AF35:AR35) -> 0
AF36: 0 | AG36: 0 | AH36: 0 | AI36: 0 | AJ36: 0 | AK36: 0 | AL36: 0 | AM36: 0 | AN36: 0 | AO36: 0 | AP36: 0 | AQ36: 0 | AR36: 0 | AS36: 0
AF37: 0 | AG37: 0 | AH37: 0 | AI37: 0 | AJ37: 0 | AK37: 0 | AL37: 0 | AM37: 0 | AN37: 0 | AO37: 0 | AP37: 0 | AQ37: 0 | AR37: 0 | AS37: 0
AF38: 0 | AG38: 0 | AH38: 0 | AI38: 0 | AJ38: 0 | AK38: 0 | AL38: 0 | AM38: 0 | AN38: 0 | AO38: 0 | AP38: 0 | AQ38: 0 | AR38: 0 | AS38: 0
AF39: 0 | AG39: 0 | AH39: 0 | AI39: 0 | AJ39: 0 | AK39: 0 | AL39: 0 | AM39: 0 | AN39: 0 | AO39: 0 | AP39: 0 | AQ39: 0 | AR39: 0 | AS39: 0
AF40: 0 | AG40: 0 | AH40: 0 | AI40: 0 | AJ40: 0 | AK40: 0 | AL40: 0 | AM40: 0 | AN40: 0 | AO40: 0 | AP40: 0 | AQ40: 0 | AR40: 0 | AS40: 0
AF41: 0 | AG41: 0 | AH41: 0 | AI41: 0 | AJ41: 0 | AK41: 0 | AL41: 0 | AM41: 0 | AN41: 0 | AO41: 0 | AP41: 0 | AQ41: 0 | AR41: 0 | AS41: 0
AF42: 0 | AG42: 0 | AH42: 0 | AI42: 0 | AJ42: 0 | AK42: 0 | AL42: 0 | AM42: 0 | AN42: 0 | AO42: 0 | AP42: 0 | AQ42: 0 | AR42: 0 | AS42: 0
AF43: 0 | AG43: 0 | AH43: 0 | AI43: 0 | AJ43: 0 | AK43: 0 | AL43: 0 | AM43: 0 | AN43: 0 | AO43: 0 | AP43: 0 | AQ43: 0 | AR43: 0 | AS43: 0
AF44: 0 | AG44: 0 | AH44: 0 | AI44: 0 | AJ44: 0 | AK44: 0 | AL44: 0 | AM44: 0 | AN44: 0 | AO44: 0 | AP44: 0 | AQ44: 0 | AR44: 0 | AS44: 0
AF45: 0 | AG45: 0 | AH45: 0 | AI45: 0 | AJ45: 0 | AK45: 0 | AL45: 0 | AM45: 0 | AN45: 0 | AO45: 0 | AP45: 0 | AQ45: 0 | AR45: 0 | AS45: 0
AF46: 0 | AG46: 0 | AH46: 0 | AI46: 0 | AJ46: 0 | AK46: 0 | AL46: 0 | AM46: 0 | AN46: 0 | AO46: 0 | AP46: 0 | AQ46: 0 | AR46: 0 | AS46: 0
AF47: 0 | AG47: 0 | AH47: 0 | AI47: 0 | AJ47: 0 | AK47: 0 | AL47: 0 | AM47: 0 | AN47: 0 | AO47: 0 | AP47: 0 | AQ47: 0 | AR47: 0 | AS47: 0
AF48: 0 | AG48: 0 | AH48: 0 | AI48: 0 | AJ48: 0 | AK48: 0 | AL48: 0 | AM48: 0 | AN48: 0 | AO48: 0 | AP48: 0 | AQ48: 0 | AR48: 0 | AS48: 0
AF49: 0 | AG49: 0 | AH49: 0 | AI49: 0 | AJ49: 0 | AK49: 0 | AL49: 0 | AM49: 0 | AN49: 0 | AO49: 0 | AP49: 0 | AQ49: 0 | AR49: 0 | AS49: 0
AF50: 0 | AG50: 0 | AH50: 0 | AI50: 0 | AJ50: 0 | AK50: 0 | AL50: 0 | AM50: 0 | AN50: 0 | AO50: 0 | AP50: 0 | AQ50: 0 | AR50: 0 | AS50: 0
AF51: 0 | AG51: 0 | AH51: 0 | AI51: 0 | AJ51: 0 | AK51: 0 | AL51: 0 | AM51: 0 | AN51: 0 | AO51: 0 | AP51: 0 | AQ51: 0 | AR51: 0 | AS51: 0
AF52: 0 | AG52: 0 | AH52: 0 | AI52: 0 | AJ52: 0 | AK52: 0 | AL52: 0 | AM52: 0 | AN52: 0 | AO52: 0 | AP52: 0 | AQ52: 0 | AR52: 0 | AS52: 0
AF53: 0 | AG53: 0 | AH53: 0 | AI53: 0 | AJ53: 0 | AK53: 0 | AL53: 0 | AM53: 0 | AN53: 0 | AO53: 0 | AP53: 0 | AQ53: 0 | AR53: 0 | AS53: 0
AF54: 0 | AG54: 0 | AH54: 0 | AI54: 0 | AJ54: 0 | AK54: 0 | AL54: 0 | AM54: 0 | AN54: 0 | AO54: 0 | AP54: 0 | AQ54: 0 | AR54: 0 | AS54: 0
AF55: =D55/100*R55 -> 0 | AG55: 0 | AH55: 0 | AI55: 0 | AJ55: 0 | AK55: 0 | AL55: 0 | AM55: 0 | AN55: 0 | AO55: 0 | AP55: 0 | AQ55: 0 | AR55: 0 | AS55: 0
AF56: 0 | AG56: 0 | AH56: 0 | AI56: 0 | AJ56: 0 | AK56: 0 | AL56: 0 | AM56: 0 | AN56: 0 | AO56: 0 | AP56: 0 | AQ56: 0 | AR56: 0 | AS56: 0
AF57: 0 | AG57: 0 | AH57: 0 | AI57: 0 | AJ57: 0 | AK57: 0 | AL57: 0 | AM57: 0 | AN57: 0 | AO57: 0 | AP57: 0 | AQ57: 0 | AR57: 0 | AS57: 0
AF58: 0 | AG58: 0 | AH58: 0 | AI58: 0 | AJ58: 0 | AK58: 0 | AL58: 0 | AM58: 0 | AN58: 0 | AO58: 0 | AP58: 0 | AQ58: 0 | AR58: 0 | AS58: 0
AF59: 0 | AG59: 0 | AH59: 0 | AI59: 0 | AJ59: 0 | AK59: 0 | AL59: 0 | AM59: 0 | AN59: 0 | AO59: 0 | AP59: 0 | AQ59: 0 | AR59: 0 | AS59: 0
AF60: 0 | AG60: 0 | AH60: 0 | AI60: 0 | AJ60: 0 | AK60: 0 | AL60: 0 | AM60: 0 | AN60: 0 | AO60: 0 | AP60: 0 | AQ60: 0 | AR60: 0 | AS60: 0
AF61: 0 | AG61: 0 | AH61: 0 | AI61: 0 | AJ61: 0 | AK61: 0 | AL61: 0 | AM61: 0 | AN61: 0 | AO61: 0 | AP61: 0 | AQ61: 0 | AR61: 0 | AS61: 0
AF62: 0 | AG62: 0 | AH62: 0 | AI62: 0 | AJ62: 0 | AK62: 0 | AL62: 0 | AM62: 0 | AN62: 0 | AO62: 0 | AP62: 0 | AQ62: 0 | AR62: 0 | AS62: 0
AF63: 0 | AG63: 0 | AH63: 0 | AI63: 0 | AJ63: 0 | AK63: 0 | AL63: 0 | AM63: 0 | AN63: 0 | AO63: 0 | AP63: 0 | AQ63: 0 | AR63: 0 | AS63: 0
AF64: 0 | AG64: 0 | AH64: 0 | AI64: 0 | AJ64: 0 | AK64: 0 | AL64: 0 | AM64: 0 | AN64: 0 | AO64: 0 | AP64: 0 | AQ64: 0 | AR64: 0 | AS64: 0
AF65: 0 | AG65: 0 | AH65: 0 | AI65: 0 | AJ65: 0 | AK65: 0 | AL65: 0 | AM65: 0 | AN65: 0 | AO65: 0 | AP65: 0 | AQ65: 0 | AR65: 0 | AS65: 0
R66: =SUM(R6:R65) -> 276925924 | S66: 1082561070 | T66: 14944122.32 | U66: 946758713.4 | V66: 1765288643 | W66: 0 | X66: 1454463568 | Y66: =SUM(Y6:Y65) -> 2274196081 | Z66: 27838042.08 | AA66: 431167120.8 | AB66: 128432748.2 | AC66: 27622353.68 | AD66: 49659508.5 | AF66: =SUM(AF6:AF65) -> 0 | AG66: 22712203.17 | AH66: 481337.1096 | AI66: 10810590.02 | AJ66: 36991191.9 | AK66: 0 | AL66: 16827327.42 | AM66: =SUM(AM6:AM65) -> 0 | AN66: 896793.2804 | AO66: 21748074.25 | AP66: 8304993.307 | AQ66: 3018801.579 | AR66: 3614871.796 | AS66: 125406183.8

Sheet Est2019TransRev
B1: ="Tariff Approval - "&'Model update'!C3 -> Tariff Approval - United Energy | D1: ="Est"&'Model update'!$C$5-1&"TransRev" -> Est2019TransRev
B3: ="ESTIMATED "&'Model update'!C8&" TRANSMISSION TARIFF REVENUE" -> ESTIMATED 2019 TRANSMISSION TARIFF REVENUE
D4: ="Current Transmission Tariffs (Pt-1) for "&'Model update'!$C$8 -> Current Transmission Tariffs (Pt-1) for 2019 | R4: ="Estimated Quantities (Qt-1) for "&'Model update'!$C$8 -> Estimated Quantities (Qt-1) for 2019 | AF4: ="Estimated Revenue (Pt-1 "&'Model update'!$C$8&")*(Qt-1 " &'Model update'!$C$8&")" -> Estimated Revenue (Pt-1 2019)*(Qt-1 2019)
B5: ="Tariffs "&'Model update'!C8 -> Tariffs 2019 | D5: =Est2019DistRev!D5 -> ExistTar Fixed | E5: =Est2019DistRev!E5 -> ExistTar PkBlk1 | F5: =Est2019DistRev!F5 -> ExistTar PkBlk2 | G5: =Est2019DistRev!G5 -> ExistTar PkBlk3 | H5: =Est2019DistRev!H5 -> ExistTar PkBlk4 | I5: =Est2019DistRev!I5 -> ExistTar OPkBlk1 | J5: =Est2019DistRev!J5 -> ExistTar OPkBlk2 | K5: =Est2019DistRev!K5 -> ExistTar OPkBlk3 | L5: =Est2019DistRev!L5 -> ExistTar OPkBlk4 | M5: =Est2019DistRev!M5 -> ExistTar DemBlk1 | N5: =Est2019DistRev!N5 -> ExistTar DemBlk2 | O5: =Est2019DistRev!O5 -> ExistTar DemBlk3 | P5: =Est2019DistRev!P5 -> ExistTar DemBlk4 | R5: =Est2019DistRev!R5 -> EstVol Fixed | S5: =Est2019DistRev!S5 -> EstVol PkBlk1 | T5: =Est2019DistRev!T5 -> EstVol PkBlk2 | U5: =Est2019DistRev!U5 -> EstVol PkBlk3 | V5: =Est2019DistRev!V5 -> EstVol PkBlk4 | W5: =Est2019DistRev!W5 -> EstVol OPkBlk1 | X5: =Est2019DistRev!X5 -> EstVol OPkBlk2 | Y5: =Est2019DistRev!Y5 -> EstVol OPkBlk3 | Z5: =Est2019DistRev!Z5 -> EstVol OPkBlk4 | AA5: =Est2019DistRev!AA5 -> EstVol DemBlk1 | AB5: =Est2019DistRev!AB5 -> EstVol DemBlk2 | AC5: =Est2019DistRev!AC5 -> EstVol DemBlk3 | AD5: =Est2019DistRev!AD5 -> EstVol DemBlk4 | AF5: =Est2019DistRev!AF5 -> EstRev Fixed | AG5: =Est2019DistRev!AG5 -> EstRev PkBlk1 | AH5: =Est2019DistRev!AH5 -> EstRev PkBlk2 | AI5: =Est2019DistRev!AI5 -> EstRev PkBlk3 | AJ5: =Est2019DistRev!AJ5 -> EstRev PkBlk4 | AK5: =Est2019DistRev!AK5 -> EstRev OPkBlk1 | AL5: =Est2019DistRev!AL5 -> EstRev OPkBlk2 | AM5: =Est2019DistRev!AM5 -> EstRev OPkBlk3 | AN5: =Est2019DistRev!AN5 -> EstRev OPkBlk4 | AO5: =Est2019DistRev!AO5 -> EstRev DemBlk1 | AP5: =Est2019DistRev!AP5 -> EstRev DemBlk2 | AQ5: =Est2019DistRev!AQ5 -> EstRev DemBlk3 | AR5: =Est2019DistRev!AR5 -> EstRev DemBlk4 | AS5: EstRev Total
B6: =Est2019DistRev!B6 -> Low voltage small 1 rate | D6: 0 | E6: 1.64 | F6: 0 | G6: 0 | H6: 1.64 | I6: 0 | J6: 0 | K6: 0 | L6: 0 | M6: 0 | N6: 0 | O6: 0 | P6: 0 | R6: =Est2019DistRev!R6 -> 206859021.7 | S6: =Est2019DistRev!S6 -> 943855173.4 | T6: =Est2019DistRev!T6 -> 0 | U6: =Est2019DistRev!U6 -> 0 | V6: =Est2019DistRev!V6 -> 1520207629 | W6: =Est2019DistRev!W6 -> 0 | X6: =Est2019DistRev!X6 -> 0 | Y6: =Est2019DistRev!Y6 -> 0 | Z6: =Est2019DistRev!Z6 -> 0 | AA6: =Est2019DistRev!AA6 -> 0 | AB6: =Est2019DistRev!AB6 -> 0 | AC6: =Est2019DistRev!AC6 -> 0 | AD6: =Est2019DistRev!AD6 -> 0 | AF6: =D6/100*R6 -> 0 | AG6: 15479224.84 | AH6: =F6/100*T6 -> 0 | AI6: =G6/100*U6 -> 0 | AJ6: =H6/100*V6 -> 24931405.11 | AK6: =I6/100*W6 -> 0 | AL6: =J6/100*X6 -> 0 | AM6: =K6/100*Y6 -> 0 | AN6: =L6/100*Z6 -> 0 | AO6: =M6/100*AA6 -> 0 | AP6: =N6/100*AB6 -> 0 | AQ6: =O6/100*AC6 -> 0 | AR6: =P6/100*AD6 -> 0 | AS6: =SUM(AF6:AR6) -> 40410629.95
B7: =Est2019DistRev!B7 -> Winter economy tariff | D7: 0 | E7: 1.84 | F7: 0 | G7: 0 | H7: 1.47 | I7: 1.47 | J7: 0 | K7: 0 | L7: 0 | M7: 0 | N7: 0 | O7: 0 | P7: 0 | R7: =Est2019DistRev!R7 -> 42656.46073 | S7: =Est2019DistRev!S7 -> 298454.7293 | T7: =Est2019DistRev!T7 -> 0 | U7: =Est2019DistRev!U7 -> 0 | V7: =Est2019DistRev!V7 -> 543138.8553 | W7: =Est2019DistRev!W7 -> 0 | X7: =Est2019DistRev!X7 -> 0 | Y7: =Est2019DistRev!Y7 -> 0 | Z7: =Est2019DistRev!Z7 -> 0 | AA7: =Est2019DistRev!AA7 -> 0 | AB7: =Est2019DistRev!AB7 -> 0 | AC7: =Est2019DistRev!AC7 -> 0 | AD7: =Est2019DistRev!AD7 -> 0 | AF7: =D7/100*R7 -> 0 | AG7: 5491.567019 | AH7: 0 | AI7: 0 | AJ7: 7984.141172 | AK7: 0 | AL7: 0 | AM7: 0 | AN7: 0 | AO7: 0 | AP7: 0 | AQ7: 0 | AR7: 0 | AS7: =SUM(AF7:AR7) -> 13475.70819
B8: =Est2019DistRev!B8 -> Reverse cycle airconditioning time of use | D8: 0 | E8: 0 | F8: 0 | G8: 0 | H8: 0 | I8: 0 | J8: 0 | K8: 0 | L8: 0 | M8: 0 | N8: 0 | O8: 0 | P8: 0 | R8: =Est2019DistRev!R8 -> 0 | S8: =Est2019DistRev!S8 -> 0 | T8: =Est2019DistRev!T8 -> 0 | U8: =Est2019DistRev!U8 -> 0 | V8: =Est2019DistRev!V8 -> 0 | W8: =Est2019DistRev!W8 -> 0 | X8: =Est2019DistRev!X8 -> 0 | Y8: =Est2019DistRev!Y8 -> 0 | Z8: =Est2019DistRev!Z8 -> 0 | AA8: =Est2019DistRev!AA8 -> 0 | AB8: =Est2019DistRev!AB8 -> 0 | AC8: =Est2019DistRev!AC8 -> 0 | AD8: =Est2019DistRev!AD8 -> 0 | AF8: 0 | AG8: 0 | AH8: 0 | AI8: 0 | AJ8: 0 | AK8: 0 | AL8: 0 | AM8: 0 | AN8: 0 | AO8: 0 | AP8: 0 | AQ8: 0 | AR8: 0 | AS8: 0
B9: =Est2019DistRev!B9 -> Low voltage small 2 rate | D9: 0 | E9: 0 | F9: 0 | G9: 3.15 | H9: 0 | I9: 0 | J9: 2.53 | K9: 0 | L9: 0 | M9: 0 | N9: 0 | O9: 0 | P9: 0 | R9: =Est2019DistRev!R9 -> 1340451.159 | S9: =Est2019DistRev!S9 -> 0 | T9: =Est2019DistRev!T9 -> 0 | U9: =Est2019DistRev!U9 -> 3869362.149 | V9: =Est2019DistRev!V9 -> 0 | W9: =Est2019DistRev!W9 -> 0 | X9: =Est2019DistRev!X9 -> 6191506.811 | Y9: =Est2019DistRev!Y9 -> 13287140.18 | Z9: =Est2019DistRev!Z9 -> 0 | AA9: =Est2019DistRev!AA9 -> 0 | AB9: =Est2019DistRev!AB9 -> 0 | AC9: =Est2019DistRev!AC9 -> 0 | AD9: =Est2019DistRev!AD9 -> 0 | AF9: 0 | AG9: 0 | AH9: 0 | AI9: 121884.9077 | AJ9: 0 | AK9: 0 | AL9: 156645.1223 | AM9: 0 | AN9: 0 | AO9: 0 | AP9: 0 | AQ9: 0 | AR9: 0 | AS9: 278530.03
B10: =Est2019DistRev!B10 -> Dedicated circuit | D10: 0 | E10: 0 | F10: 0 | G10: 0 | H10: 0 | I10: 0 | J10: 0 | K10: 0 | L10: 0 | M10: 0 | N10: 0 | O10: 0 | P10: 0 | R10: =Est2019DistRev!R10 -> 2556582.814 | S10: =Est2019DistRev!S10 -> 0 | T10: =Est2019DistRev!T10 -> 0 | U10: =Est2019DistRev!U10 -> 0 | V10: =Est2019DistRev!V10 -> 0 | W10: =Est2019DistRev!W10 -> 0 | X10: =Est2019DistRev!X10 -> 0 | Y10: =Est2019DistRev!Y10 -> 84158747.77 | Z10: =Est2019DistRev!Z10 -> 0 | AA10: =Est2019DistRev!AA10 -> 0 | AB10: =Est2019DistRev!AB10 -> 0 | AC10: =Est2019DistRev!AC10 -> 0 | AD10: =Est2019DistRev!AD10 -> 0 | AF10: 0 | AG10: 0 | AH10: 0 | AI10: 0 | AJ10: 0 | AK10: 0 | AL10: 0 | AM10: 0 | AN10: 0 | AO10: 0 | AP10: 0 | AQ10: 0 | AR10: 0 | AS10: 0
B11: =Est2019DistRev!B11 -> Low voltage medium 1 rate | D11: 0 | E11: 1.86 | F11: 0 | G11: 0 | H11: 1.86 | I11: 0 | J11: 0 | K11: 0 | L11: 0 | M11: 0 | N11: 0 | O11: 0 | P11: 0 | R11: =Est2019DistRev!R11 -> 12146313.83 | S11: =Est2019DistRev!S11 -> 153088884.2 | T11: =Est2019DistRev!T11 -> 0 | U11: =Est2019DistRev!U11 -> 0 | V11: =Est2019DistRev!V11 -> 236736703.9 | W11: =Est2019DistRev!W11 -> 0 | X11: =Est2019DistRev!X11 -> 0 | Y11: =Est2019DistRev!Y11 -> 0 | Z11: =Est2019DistRev!Z11 -> 0 | AA11: =Est2019DistRev!AA11 -> 0 | AB11: =Est2019DistRev!AB11 -> 0 | AC11: =Est2019DistRev!AC11 -> 0 | AD11: =Est2019DistRev!AD11 -> 0 | AF11: 0 | AG11: 2847453.246 | AH11: 0 | AI11: 0 | AJ11: 4403302.692 | AK11: 0 | AL11: 0 | AM11: 0 | AN11: 0 | AO11: 0 | AP11: 0 | AQ11: 0 | AR11: 0 | AS11: 7250755.938
B12: =Est2019DistRev!B12 -> Low voltage medium 2 rate 5 day | D12: 0 | E12: 0 | F12: 0 | G12: 1.98 | H12: 0 | I12: 0 | J12: 1.58 | K12: 0 | L12: 0 | M12: 0 | N12: 0 | O12: 0 | P12: 0 | R12: =Est2019DistRev!R12 -> 3142786.31 | S12: =Est2019DistRev!S12 -> 0 | T12: =Est2019DistRev!T12 -> 0 | U12: =Est2019DistRev!U12 -> 46533502.01 | V12: =Est2019DistRev!V12 -> 0 | W12: =Est2019DistRev!W12 -> 0 | X12: =Est2019DistRev!X12 -> 68210817.97 | Y12: =Est2019DistRev!Y12 -> 69257922.9 | Z12: =Est2019DistRev!Z12 -> 0 | AA12: =Est2019DistRev!AA12 -> 0 | AB12: =Est2019DistRev!AB12 -> 0 | AC12: =Est2019DistRev!AC12 -> 0 | AD12: =Est2019DistRev!AD12 -> 0 | AF12: 0 | AG12: 0 | AH12: 0 | AI12: 921363.3399 | AJ12: 0 | AK12: 0 | AL12: 1077730.924 | AM12: 0 | AN12: 0 | AO12: 0 | AP12: 0 | AQ12: 0 | AR12: 0 | AS12: 1999094.264
B13: =Est2019DistRev!B13 -> Low voltage medium 2 rate 7 day | D13: 0 | E13: 0 | F13: 0 | G13: 1.99 | H13: 0 | I13: 0 | J13: 1.59 | K13: 0 | L13: 0 | M13: 0 | N13: 0 | O13: 0 | P13: 0 | R13: =Est2019DistRev!R13 -> 1806435.361 | S13: =Est2019DistRev!S13 -> 0 | T13: =Est2019DistRev!T13 -> 0 | U13: =Est2019DistRev!U13 -> 23555331.17 | V13: =Est2019DistRev!V13 -> 0 | W13: =Est2019DistRev!W13 -> 0 | X13: =Est2019DistRev!X13 -> 36881177.88 | Y13: =Est2019DistRev!Y13 -> 16315855.32 | Z13: =Est2019DistRev!Z13 -> 0 | AA13: =Est2019DistRev!AA13 -> 0 | AB13: =Est2019DistRev!AB13 -> 0 | AC13: =Est2019DistRev!AC13 -> 0 | AD13: =Est2019DistRev!AD13 -> 0 | AF13: 0 | AG13: 0 | AH13: 0 | AI13: 468751.0902 | AJ13: 0 | AK13: 0 | AL13: 586410.7283 | AM13: 0 | AN13: 0 | AO13: 0 | AP13: 0 | AQ13: 0 | AR13: 0 | AS13: 1055161.818
B14: =Est2019DistRev!B14 -> Unmetered supplies | D14: 0 | E14: 0 | F14: 0 | G14: 2.87 | H14: 0 | I14: 0 | J14: 2.3 | K14: 0 | L14: 0 | M14: 0 | N14: 0 | O14: 0 | P14: 0 | R14: =Est2019DistRev!R14 -> 2772880.659 | S14: =Est2019DistRev!S14 -> 0 | T14: =Est2019DistRev!T14 -> 0 | U14: =Est2019DistRev!U14 -> 11782630.92 | V14: =Est2019DistRev!V14 -> 0 | W14: =Est2019DistRev!W14 -> 0 | X14: =Est2019DistRev!X14 -> 19891859.09 | Y14: =Est2019DistRev!Y14 -> 58262147.41 | Z14: =Est2019DistRev!Z14 -> 0 | AA14: =Est2019DistRev!AA14 -> 0 | AB14: =Est2019DistRev!AB14 -> 0 | AC14: =Est2019DistRev!AC14 -> 0 | AD14: =Est2019DistRev!AD14 -> 0 | AF14: 0 | AG14: 0 | AH14: 0 | AI14: 338161.5073 | AJ14: 0 | AK14: 0 | AL14: 457512.7592 | AM14: 0 | AN14: 0 | AO14: 0 | AP14: 0 | AQ14: 0 | AR14: 0 | AS14: 795674.2665
B15: =Est2019DistRev!B15 -> Low voltage large 1 rate | D15: 0 | E15: 1.91 | F15: 0 | G15: 0 | H15: 1.52 | I15: 0 | J15: 0 | K15: 0 | L15: 0 | M15: 0 | N15: 0 | O15: 0 | P15: 0 | R15: =Est2019DistRev!R15 -> 2053.793549 | S15: =Est2019DistRev!S15 -> 511275.669 | T15: =Est2019DistRev!T15 -> 0 | U15: =Est2019DistRev!U15 -> 0 | V15: =Est2019DistRev!V15 -> 684047.4181 | W15: =Est2019DistRev!W15 -> 0 | X15: =Est2019DistRev!X15 -> 0 | Y15: =Est2019DistRev!Y15 -> 0 | Z15: =Est2019DistRev!Z15 -> 0 | AA15: =Est2019DistRev!AA15 -> 0 | AB15: =Est2019DistRev!AB15 -> 0 | AC15: =Est2019DistRev!AC15 -> 0 | AD15: =Est2019DistRev!AD15 -> 0 | AF15: 0 | AG15: 9765.365279 | AH15: 0 | AI15: 0 | AJ15: 10397.52076 | AK15: 0 | AL15: 0 | AM15: 0 | AN15: 0 | AO15: 0 | AP15: 0 | AQ15: 0 | AR15: 0 | AS15: 20162.88603
B16: =Est2019DistRev!B16 -> Low voltage large 2 rate | D16: 0 | E16: 0 | F16: 0 | G16: 1.81 | H16: 0 | I16: 0 | J16: 1.45 | K16: 0 | L16: 0 | M16: 0 | N16: 0 | O16: 0 | P16: 0 | R16: =Est2019DistRev!R16 -> 6881.086986 | S16: =Est2019DistRev!S16 -> 0 | T16: =Est2019DistRev!T16 -> 0 | U16: =Est2019DistRev!U16 -> 871557.8301 | V16: =Est2019DistRev!V16 -> 0 | W16: =Est2019DistRev!W16 -> 0 | X16: =Est2019DistRev!X16 -> 1057870.494 | Y16: =Est2019DistRev!Y16 -> 1482935.172 | Z16: =Est2019DistRev!Z16 -> 0 | AA16: =Est2019DistRev!AA16 -> 0 | AB16: =Est2019DistRev!AB16 -> 0 | AC16: =Est2019DistRev!AC16 -> 0 | AD16: =Est2019DistRev!AD16 -> 0 | AF16: 0 | AG16: 0 | AH16: 0 | AI16: 15775.19673 | AJ16: 0 | AK16: 0 | AL16: 15339.12217 | AM16: 0 | AN16: 0 | AO16: 0 | AP16: 0 | AQ16: 0 | AR16: 0 | AS16: 31114.31889
B17: =Est2019DistRev!B17 -> Low voltage KW time of use | D17: 0 | E17: 0 | F17: 0 | G17: 1.65 | H17: 0 | I17: 0 | J17: 1.32 | K17: 0 | L17: 0 | M17: 0 | N17: 7.71 | O17: 0 | P17: 0 | R17: =Est2019DistRev!R17 -> 67773.95967 | S17: =Est2019DistRev!S17 -> 0 | T17: =Est2019DistRev!T17 -> 0 | U17: =Est2019DistRev!U17 -> 2844398.156 | V17: =Est2019DistRev!V17 -> 0 | W17: =Est2019DistRev!W17 -> 0 | X17: =Est2019DistRev!X17 -> 4173150.205 | Y17: =Est2019DistRev!Y17 -> 6644434.366 | Z17: =Est2019DistRev!Z17 -> 0 | AA17: =Est2019DistRev!AA17 -> 0 | AB17: =Est2019DistRev!AB17 -> 574892.5731 | AC17: =Est2019DistRev!AC17 -> 0 | AD17: =Est2019DistRev!AD17 -> 0 | AF17: 0 | AG17: 0 | AH17: 0 | AI17: 46932.56957 | AJ17: 0 | AK17: 0 | AL17: 55085.5827 | AM17: 0 | AN17: 0 | AO17: 0 | AP17: 44324.21739 | AQ17: 0 | AR17: 0 | AS17: 146342.3697
B18: =Est2019DistRev!B18 -> Low voltage KW time of use - HOT | D18: 0 | E18: 0 | F18: 0 | G18: 1.04 | H18: 0 | I18: 0 | J18: 0.83 | K18: 0 | L18: 0 | M18: 0 | N18: 9.28 | O18: 0 | P18: 0 | R18: =Est2019DistRev!R18 -> 6805.949179 | S18: =Est2019DistRev!S18 -> 0 | T18: =Est2019DistRev!T18 -> 0 | U18: =Est2019DistRev!U18 -> 175264.9235 | V18: =Est2019DistRev!V18 -> 0 | W18: =Est2019DistRev!W18 -> 0 | X18: =Est2019DistRev!X18 -> 413996.2846 | Y18: =Est2019DistRev!Y18 -> 884394.1544 | Z18: =Est2019DistRev!Z18 -> 0 | AA18: =Est2019DistRev!AA18 -> 0 | AB18: =Est2019DistRev!AB18 -> 109607.5488 | AC18: =Est2019DistRev!AC18 -> 0 | AD18: =Est2019DistRev!AD18 -> 0 | AF18: 0 | AG18: 0 | AH18: 0 | AI18: 1822.755204 | AJ18: 0 | AK18: 0 | AL18: 3436.169162 | AM18: 0 | AN18: 0 | AO18: 0 | AP18: 10171.58053 | AQ18: 0 | AR18: 0 | AS18: 15430.5049
B19: =Est2019DistRev!B19 -> Low voltage large KVA time of use | D19: 0 | E19: 0 | F19: 0 | G19: 0.94 | H19: 0 | I19: 0 | J19: 0.76 | K19: 0 | L19: 0 | M19: 3.83 | N19: 5.23 | O19: 0 | P19: 0 | R19: =Est2019DistRev!R19 -> 1176060.684 | S19: =Est2019DistRev!S19 -> 0 | T19: =Est2019DistRev!T19 -> 0 | U19: =Est2019DistRev!U19 -> 452033540.5 | V19: =Est2019DistRev!V19 -> 0 | W19: =Est2019DistRev!W19 -> 0 | X19: =Est2019DistRev!X19 -> 637707874.3 | Y19: =Est2019DistRev!Y19 -> 1251535343 | Z19: =Est2019DistRev!Z19 -> 0 | AA19: =Est2019DistRev!AA19 -> 326114206.9 | AB19: =Est2019DistRev!AB19 -> 95205640.61 | AC19: =Est2019DistRev!AC19 -> 0 | AD19: =Est2019DistRev!AD19 -> 0 | AF19: 0 | AG19: 0 | AH19: 0 | AI19: 4249115.281 | AJ19: 0 | AK19: 0 | AL19: 4846579.845 | AM19: 0 | AN19: 0 | AO19: 12490174.12 | AP19: 4979255.004 | AQ19: 0 | AR19: 0 | AS19: 26565124.25
B20: =Est2019DistRev!B20 -> Low voltage large KVA time of use - HOT | D20: 0 | E20: 0 | F20: 0 | G20: 0 | H20: 0 | I20: 0 | J20: 0 | K20: 0 | L20: 0 | M20: 0 | N20: 0 | O20: 0 | P20: 0 | R20: =Est2019DistRev!R20 -> 0 | S20: =Est2019DistRev!S20 -> 0 | T20: =Est2019DistRev!T20 -> 0 | U20: =Est2019DistRev!U20 -> 0 | V20: =Est2019DistRev!V20 -> 0 | W20: =Est2019DistRev!W20 -> 0 | X20: =Est2019DistRev!X20 -> 0 | Y20: =Est2019DistRev!Y20 -> 0 | Z20: =Est2019DistRev!Z20 -> 0 | AA20: =Est2019DistRev!AA20 -> 0 | AB20: =Est2019DistRev!AB20 -> 0 | AC20: =Est2019DistRev!AC20 -> 0 | AD20: =Est2019DistRev!AD20 -> 0 | AF20: 0 | AG20: 0 | AH20: 0 | AI20: 0 | AJ20: 0 | AK20: 0 | AL20: 0 | AM20: 0 | AN20: 0 | AO20: 0 | AP20: 0 | AQ20: 0 | AR20: 0 | AS20: 0
B21: =Est2019DistRev!B21 -> High voltage KVA time of use | D21: 0 | E21: 0 | F21: 0 | G21: 0.66 | H21: 0 | I21: 0 | J21: 0.53 | K21: 0 | L21: 0 | M21: 4.38 | N21: 4.6 | O21: 0 | P21: 0 | R21: =Est2019DistRev!R21 -> 35844.29161 | S21: =Est2019DistRev!S21 -> 0 | T21: =Est2019DistRev!T21 -> 0 | U21: =Est2019DistRev!U21 -> 168797660 | V21: =Est2019DistRev!V21 -> 0 | W21: =Est2019DistRev!W21 -> 0 | X21: =Est2019DistRev!X21 -> 247120138.7 | Y21: =Est2019DistRev!Y21 -> 624804300.7 | Z21: =Est2019DistRev!Z21 -> 0 | AA21: =Est2019DistRev!AA21 -> 104519165.9 | AB21: =Est2019DistRev!AB21 -> 32848258.18 | AC21: =Est2019DistRev!AC21 -> 0 | AD21: =Est2019DistRev!AD21 -> 0 | AF21: 0 | AG21: 0 | AH21: 0 | AI21: 1114064.556 | AJ21: 0 | AK21: 0 | AL21: 1309736.735 | AM21: 0 | AN21: 0 | AO21: 4577939.468 | AP21: 1511019.876 | AQ21: 0 | AR21: 0 | AS21: 8512760.636
B22: =Est2019DistRev!B22 -> High voltage KVA time of use - HOT | D22: 0 | E22: 0 | F22: 0 | G22: 0 | H22: 0 | I22: 0 | J22: 0 | K22: 0 | L22: 0 | M22: 0 | N22: 0 | O22: 0 | P22: 0 | R22: =Est2019DistRev!R22 -> 0 | S22: =Est2019DistRev!S22 -> 0 | T22: =Est2019DistRev!T22 -> 0 | U22: =Est2019DistRev!U22 -> 0 | V22: =Est2019DistRev!V22 -> 0 | W22: =Est2019DistRev!W22 -> 0 | X22: =Est2019DistRev!X22 -> 0 | Y22: =Est2019DistRev!Y22 -> 0 | Z22: =Est2019DistRev!Z22 -> 0 | AA22: =Est2019DistRev!AA22 -> 0 | AB22: =Est2019DistRev!AB22 -> 0 | AC22: =Est2019DistRev!AC22 -> 0 | AD22: =Est2019DistRev!AD22 -> 0 | AF22: 0 | AG22: 0 | AH22: 0 | AI22: 0 | AJ22: 0 | AK22: 0 | AL22: 0 | AM22: 0 | AN22: 0 | AO22: 0 | AP22: 0 | AQ22: 0 | AR22: 0 | AS22: 0
B23: =Est2019DistRev!B23 -> Subtransmission KVA time of use | D23: 0 | E23: 0 | F23: 0 | G23: 0.44 | H23: 0 | I23: 0 | J23: 0.36 | K23: 0 | L23: 0 | M23: 3.15 | N23: 3.82 | O23: 0 | P23: 0 | R23: =Est2019DistRev!R23 -> 388.1848269 | S23: =Est2019DistRev!S23 -> 0 | T23: =Est2019DistRev!T23 -> 0 | U23: =Est2019DistRev!U23 -> 8083883.957 | V23: =Est2019DistRev!V23 -> 0 | W23: =Est2019DistRev!W23 -> 0 | X23: =Est2019DistRev!X23 -> 11274570.01 | Y23: =Est2019DistRev!Y23 -> 16356094.73 | Z23: =Est2019DistRev!Z23 -> 0 | AA23: =Est2019DistRev!AA23 -> 4251731.381 | AB23: =Est2019DistRev!AB23 -> 1524422.842 | AC23: =Est2019DistRev!AC23 -> 0 | AD23: =Est2019DistRev!AD23 -> 0 | AF23: 0 | AG23: 0 | AH23: 0 | AI23: 35569.08941 | AJ23: 0 | AK23: 0 | AL23: 40588.45204 | AM23: 0 | AN23: 0 | AO23: 133929.5385 | AP23: 58232.95257 | AQ23: 0 | AR23: 0 | AS23: 268320.0325
B24: =Est2019DistRev!B24 -> TOD | D24: 0 | E24: 0 | F24: 2.55 | G24: 3.01 | H24: 0 | I24: 0 | J24: 2.55 | K24: 0 | L24: 2.26 | M24: 0 | N24: 0 | O24: 0 | P24: 0 | R24: =Est2019DistRev!R24 -> 14958828.75 | S24: =Est2019DistRev!S24 -> 0 | T24: =Est2019DistRev!T24 -> 11157824.73 | U24: =Est2019DistRev!U24 -> 21858787.26 | V24: =Est2019DistRev!V24 -> 0 | W24: =Est2019DistRev!W24 -> 0 | X24: =Est2019DistRev!X24 -> 41608118.3 | Y24: =Est2019DistRev!Y24 -> 106719624.5 | Z24: =Est2019DistRev!Z24 -> 23289542.67 | AA24: =Est2019DistRev!AA24 -> 0 | AB24: =Est2019DistRev!AB24 -> 0 | AC24: =Est2019DistRev!AC24 -> 0 | AD24: =Est2019DistRev!AD24 -> 0 | AF24: 0 | AG24: 0 | AH24: 284524.5305 | AI24: 657949.4965 | AJ24: 0 | AK24: 0 | AL24: 1061007.017 | AM24: 0 | AN24: 526343.6643 | AO24: 0 | AP24: 0 | AQ24: 0 | AR24: 0 | AS24: 2529824.708
B25: =Est2019DistRev!B25 -> TOD9 | D25: 0 | E25: 0 | F25: 3.83 | G25: 4.12 | H25: 0 | I25: 0 | J25: 3.83 | K25: 0 | L25: 3.64 | M25: 0 | N25: 0 | O25: 0 | P25: 0 | R25: =Est2019DistRev!R25 -> 1230260.531 | S25: =Est2019DistRev!S25 -> 0 | T25: =Est2019DistRev!T25 -> 591618.8357 | U25: =Est2019DistRev!U25 -> 1033562.689 | V25: =Est2019DistRev!V25 -> 0 | W25: =Est2019DistRev!W25 -> 0 | X25: =Est2019DistRev!X25 -> 2066829.117 | Y25: =Est2019DistRev!Y25 -> 6482902.611 | Z25: =Est2019DistRev!Z25 -> 1333840.095 | AA25: =Est2019DistRev!AA25 -> 0 | AB25: =Est2019DistRev!AB25 -> 0 | AC25: =Est2019DistRev!AC25 -> 0 | AD25: =Est2019DistRev!AD25 -> 0 | AF25: 0 | AG25: 0 | AH25: 22659.00141 | AI25: 42582.78279 | AJ25: 0 | AK25: 0 | AL25: 79159.55519 | AM25: 0 | AN25: 48551.77947 | AO25: 0 | AP25: 0 | AQ25: 0 | AR25: 0 | AS25: 192953.1189
B26: =Est2019DistRev!B26 -> TOU | D26: 0 | E26: 0 | F26: 0 | G26: 2.2 | H26: 0 | I26: 0 | J26: 1.01 | K26: 0 | L26: 0 | M26: 0 | N26: 5.76 | O26: 0 | P26: 0 | R26: =Est2019DistRev!R26 -> 245380.3348 | S26: =Est2019DistRev!S26 -> 0 | T26: =Est2019DistRev!T26 -> 0 | U26: =Est2019DistRev!U26 -> 4225083.95 | V26: =Est2019DistRev!V26 -> 0 | W26: =Est2019DistRev!W26 -> 0 | X26: =Est2019DistRev!X26 -> 6944131.428 | Y26: =Est2019DistRev!Y26 -> 8563967.258 | Z26: =Est2019DistRev!Z26 -> 0 | AA26: =Est2019DistRev!AA26 -> 0 | AB26: =Est2019DistRev!AB26 -> 995491.8472 | AC26: =Est2019DistRev!AC26 -> 0 | AD26: =Est2019DistRev!AD26 -> 0 | AF26: 0 | AG26: 0 | AH26: 0 | AI26: 92951.84689 | AJ26: 0 | AK26: 0 | AL26: 70135.72742 | AM26: 0 | AN26: 0 | AO26: 0 | AP26: 57340.3304 | AQ26: 0 | AR26: 0 | AS26: 220427.9047
B27: =Est2019DistRev!B27 -> TODFLEX | D27: 0 | E27: 0 | F27: 1.68 | G27: 3.36 | H27: 0 | I27: 0 | J27: 3.13 | K27: 0 | L27: 1.48 | M27: 0 | N27: 0 | O27: 0 | P27: 0 | R27: =Est2019DistRev!R27 -> 748713.2967 | S27: =Est2019DistRev!S27 -> 0 | T27: =Est2019DistRev!T27 -> 1841551.61 | U27: =Est2019DistRev!U27 -> 897829.5467 | V27: =Est2019DistRev!V27 -> 0 | W27: =Est2019DistRev!W27 -> 0 | X27: =Est2019DistRev!X27 -> 1476591.166 | Y27: =Est2019DistRev!Y27 -> 3741242.014 | Z27: =Est2019DistRev!Z27 -> 3096046.168 | AA27: =Est2019DistRev!AA27 -> 0 | AB27: =Est2019DistRev!AB27 -> 0 | AC27: =Est2019DistRev!AC27 -> 0 | AD27: =Est2019DistRev!AD27 -> 0 | AF27: 0 | AG27: 0 | AH27: 30938.06706 | AI27: 30167.07277 | AJ27: 0 | AK27: 0 | AL27: 46217.30348 | AM27: 0 | AN27: 45821.48329 | AO27: 0 | AP27: 0 | AQ27: 0 | AR27: 0 | AS27: 153143.9266
B28: =Est2019DistRev!B28 -> Low Voltage KW 1 rate | D28: 0 | E28: 0.62 | F28: 0.62 | G28: 0.62 | H28: 0.62 | I28: 0.62 | J28: 0.62 | K28: 0.62 | L28: 0.62 | M28: 0 | N28: 0 | O28: 4.62 | P28: 3 | R28: =Est2019DistRev!R28 -> 2365.964603 | S28: =Est2019DistRev!S28 -> 0 | T28: =Est2019DistRev!T28 -> 0 | U28: =Est2019DistRev!U28 -> 10094.26433 | V28: =Est2019DistRev!V28 -> 0 | W28: =Est2019DistRev!W28 -> 0 | X28: =Est2019DistRev!X28 -> 19252.67605 | Y28: =Est2019DistRev!Y28 -> 0 | Z28: =Est2019DistRev!Z28 -> 0 | AA28: =Est2019DistRev!AA28 -> 0 | AB28: =Est2019DistRev!AB28 -> 0 | AC28: =Est2019DistRev!AC28 -> 2402.709273 | AD28: =Est2019DistRev!AD28 -> 4357.306608 | AF28: 0 | AG28: 0 | AH28: 0 | AI28: 62.58443884 | AJ28: 0 | AK28: 0 | AL28: 119.3665915 | AM28: 0 | AN28: 0 | AO28: 0 | AP28: 0 | AQ28: 111.0051684 | AR28: 130.7191982 | AS28: 423.675397
B29: =Est2019DistRev!B29 -> Low voltage medium KW time of use (opt-in) | D29: 0 | E29: 0 | F29: 0 | G29: 0.76 | H29: 0 | I29: 0 | J29: 0.76 | K29: 0 | L29: 0 | M29: 0 | N29: 0 | O29: 8.58 | P29: 5.72 | R29: =Est2019DistRev!R29 -> 61897.88761 | S29: =Est2019DistRev!S29 -> 0 | T29: =Est2019DistRev!T29 -> 0 | U29: =Est2019DistRev!U29 -> 6048594.777 | V29: =Est2019DistRev!V29 -> 0 | W29: =Est2019DistRev!W29 -> 0 | X29: =Est2019DistRev!X29 -> 8468530.008 | Y29: =Est2019DistRev!Y29 -> 0 | Z29: =Est2019DistRev!Z29 -> 0 | AA29: =Est2019DistRev!AA29 -> 0 | AB29: =Est2019DistRev!AB29 -> 0 | AC29: =Est2019DistRev!AC29 -> 602643.8077 | AD29: =Est2019DistRev!AD29 -> 1112070.385 | AF29: 0 | AG29: 0 | AH29: 0 | AI29: 45969.32031 | AJ29: 0 | AK29: 0 | AL29: 64360.82806 | AM29: 0 | AN29: 0 | AO29: 0 | AP29: 0 | AQ29: 51706.8387 | AR29: 63610.426 | AS29: 225647.4131
B30: =Est2019DistRev!B30 -> Low voltage medium KW 1 rate (mandatory) | D30: 0 | E30: 0 | F30: 0 | G30: 0.76 | H30: 0 | I30: 0 | J30: 0.76 | K30: 0 | L30: 0 | M30: 0 | N30: 0 | O30: 8.58 | P30: 5.72 | R30: =Est2019DistRev!R30 -> 2660202.423 | S30: =Est2019DistRev!S30 -> 0 | T30: =Est2019DistRev!T30 -> 0 | U30: =Est2019DistRev!U30 -> 270692146.8 | V30: =Est2019DistRev!V30 -> 0 | W30: =Est2019DistRev!W30 -> 0 | X30: =Est2019DistRev!X30 -> 374598222.4 | Y30: =Est2019DistRev!Y30 -> 0 | Z30: =Est2019DistRev!Z30 -> 0 | AA30: =Est2019DistRev!AA30 -> 0 | AB30: =Est2019DistRev!AB30 -> 0 | AC30: =Est2019DistRev!AC30 -> 27235556.86 | AD30: =Est2019DistRev!AD30 -> 49015175.38 | AF30: 0 | AG30: 0 | AH30: 0 | AI30: 2057260.316 | AJ30: 0 | AK30: 0 | AL30: 2846946.49 | AM30: 0 | AN30: 0 | AO30: 0 | AP30: 0 | AQ30: 2336810.779 | AR30: 2803668.032 | AS30: 10044685.62
AF31: 0 | AG31: 0 | AH31: 0 | AI31: 0 | AJ31: 0 | AK31: 0 | AL31: 0 | AM31: 0 | AN31: 0 | AO31: 0 | AP31: 0 | AQ31: 0 | AR31: 0 | AS31: 0
AF32: 0 | AG32: 0 | AH32: 0 | AI32: 0 | AJ32: 0 | AK32: 0 | AL32: 0 | AM32: 0 | AN32: 0 | AO32: 0 | AP32: 0 | AQ32: 0 | AR32: 0 | AS32: 0
AF33: =D33/100*R33 -> 0 | AG33: 0 | AH33: 0 | AI33: 0 | AJ33: 0 | AK33: 0 | AL33: 0 | AM33: 0 | AN33: 0 | AO33: 0 | AP33: 0 | AQ33: 0 | AR33: 0 | AS33: =SUM(AF33:AR33) -> 0
AF34: 0 | AG34: 0 | AH34: 0 | AI34: 0 | AJ34: 0 | AK34: 0 | AL34: 0 | AM34: 0 | AN34: 0 | AO34: 0 | AP34: 0 | AQ34: 0 | AR34: 0 | AS34: 0
AF35: =D35/100*R35 -> 0 | AG35: 0 | AH35: 0 | AI35: 0 | AJ35: 0 | AK35: 0 | AL35: 0 | AM35: 0 | AN35: 0 | AO35: 0 | AP35: 0 | AQ35: 0 | AR35: 0 | AS35: =SUM(AF35:AR35) -> 0
AF36: =D36/100*R36 -> 0 | AG36: 0 | AH36: 0 | AI36: 0 | AJ36: 0 | AK36: 0 | AL36: 0 | AM36: 0 | AN36: 0 | AO36: 0 | AP36: 0 | AQ36: 0 | AR36: 0 | AS36: =SUM(AF36:AR36) -> 0
AF37: 0 | AG37: 0 | AH37: 0 | AI37: 0 | AJ37: 0 | AK37: 0 | AL37: 0 | AM37: 0 | AN37: 0 | AO37: 0 | AP37: 0 | AQ37: 0 | AR37: 0 | AS37: 0
AF38: 0 | AG38: 0 | AH38: 0 | AI38: 0 | AJ38: 0 | AK38: 0 | AL38: 0 | AM38: 0 | AN38: 0 | AO38: 0 | AP38: 0 | AQ38: 0 | AR38: 0 | AS38: 0
AF39: 0 | AG39: 0 | AH39: 0 | AI39: 0 | AJ39: 0 | AK39: 0 | AL39: 0 | AM39: 0 | AN39: 0 | AO39: 0 | AP39: 0 | AQ39: 0 | AR39: 0 | AS39: 0
AF40: 0 | AG40: 0 | AH40: 0 | AI40: 0 | AJ40: 0 | AK40: 0 | AL40: 0 | AM40: 0 | AN40: 0 | AO40: 0 | AP40: 0 | AQ40: 0 | AR40: 0 | AS40: 0
AF41: 0 | AG41: 0 | AH41: 0 | AI41: 0 | AJ41: 0 | AK41: 0 | AL41: 0 | AM41: 0 | AN41: 0 | AO41: 0 | AP41: 0 | AQ41: 0 | AR41: 0 | AS41: 0
AF42: 0 | AG42: 0 | AH42: 0 | AI42: 0 | AJ42: 0 | AK42: 0 | AL42: 0 | AM42: 0 | AN42: 0 | AO42: 0 | AP42: 0 | AQ42: 0 | AR42: 0 | AS42: 0
AF43: 0 | AG43: 0 | AH43: 0 | AI43: 0 | AJ43: 0 | AK43: 0 | AL43: 0 | AM43: 0 | AN43: 0 | AO43: 0 | AP43: 0 | AQ43: 0 | AR43: 0 | AS43: 0
AF44: 0 | AG44: 0 | AH44: 0 | AI44: 0 | AJ44: 0 | AK44: 0 | AL44: 0 | AM44: 0 | AN44: 0 | AO44: 0 | AP44: 0 | AQ44: 0 | AR44: 0 | AS44: 0
AF45: 0 | AG45: 0 | AH45: 0 | AI45: 0 | AJ45: 0 | AK45: 0 | AL45: 0 | AM45: 0 | AN45: 0 | AO45: 0 | AP45: 0 | AQ45: 0 | AR45: 0 | AS45: 0
AF46: 0 | AG46: 0 | AH46: 0 | AI46: 0 | AJ46: 0 | AK46: 0 | AL46: 0 | AM46: 0 | AN46: 0 | AO46: 0 | AP46: 0 | AQ46: 0 | AR46: 0 | AS46: 0
AF47: 0 | AG47: 0 | AH47: 0 | AI47: 0 | AJ47: 0 | AK47: 0 | AL47: 0 | AM47: 0 | AN47: 0 | AO47: 0 | AP47: 0 | AQ47: 0 | AR47: 0 | AS47: 0
AF48: 0 | AG48: 0 | AH48: 0 | AI48: 0 | AJ48: 0 | AK48: 0 | AL48: 0 | AM48: 0 | AN48: 0 | AO48: 0 | AP48: 0 | AQ48: 0 | AR48: 0 | AS48: 0
AF49: 0 | AG49: 0 | AH49: 0 | AI49: 0 | AJ49: 0 | AK49: 0 | AL49: 0 | AM49: 0 | AN49: 0 | AO49: 0 | AP49: 0 | AQ49: 0 | AR49: 0 | AS49: 0
AF50: 0 | AG50: 0 | AH50: 0 | AI50: 0 | AJ50: 0 | AK50: 0 | AL50: 0 | AM50: 0 | AN50: 0 | AO50: 0 | AP50: 0 | AQ50: 0 | AR50: 0 | AS50: 0
AF51: 0 | AG51: 0 | AH51: 0 | AI51: 0 | AJ51: 0 | AK51: 0 | AL51: 0 | AM51: 0 | AN51: 0 | AO51: 0 | AP51: 0 | AQ51: 0 | AR51: 0 | AS51: 0
AF52: 0 | AG52: 0 | AH52: 0 | AI52: 0 | AJ52: 0 | AK52: 0 | AL52: 0 | AM52: 0 | AN52: 0 | AO52: 0 | AP52: 0 | AQ52: 0 | AR52: 0 | AS52: 0
AF53: 0 | AG53: 0 | AH53: 0 | AI53: 0 | AJ53: 0 | AK53: 0 | AL53: 0 | AM53: 0 | AN53: 0 | AO53: 0 | AP53: 0 | AQ53: 0 | AR53: 0 | AS53: 0
AF54: 0 | AG54: 0 | AH54: 0 | AI54: 0 | AJ54: 0 | AK54: 0 | AL54: 0 | AM54: 0 | AN54: 0 | AO54: 0 | AP54: 0 | AQ54: 0 | AR54: 0 | AS54: 0
AF55: 0 | AG55: 0 | AH55: 0 | AI55: 0 | AJ55: 0 | AK55: 0 | AL55: 0 | AM55: 0 | AN55: 0 | AO55: 0 | AP55: 0 | AQ55: 0 | AR55: 0 | AS55: 0
AF56: 0 | AG56: 0 | AH56: 0 | AI56: 0 | AJ56: 0 | AK56: 0 | AL56: 0 | AM56: 0 | AN56: 0 | AO56: 0 | AP56: 0 | AQ56: 0 | AR56: 0 | AS56: 0
AF57: 0 | AG57: 0 | AH57: 0 | AI57: 0 | AJ57: 0 | AK57: 0 | AL57: 0 | AM57: 0 | AN57: 0 | AO57: 0 | AP57: 0 | AQ57: 0 | AR57: 0 | AS57: 0
AF58: =D58/100*R58 -> 0 | AG58: 0 | AH58: 0 | AI58: 0 | AJ58: 0 | AK58: 0 | AL58: 0 | AM58: 0 | AN58: 0 | AO58: 0 | AP58: 0 | AQ58: 0 | AR58: 0 | AS58: 0
AF59: 0 | AG59: 0 | AH59: 0 | AI59: 0 | AJ59: 0 | AK59: 0 | AL59: 0 | AM59: 0 | AN59: 0 | AO59: 0 | AP59: 0 | AQ59: 0 | AR59: 0 | AS59: 0
AF60: 0 | AG60: 0 | AH60: 0 | AI60: 0 | AJ60: 0 | AK60: 0 | AL60: 0 | AM60: 0 | AN60: 0 | AO60: 0 | AP60: 0 | AQ60: 0 | AR60: 0 | AS60: 0
AF61: 0 | AG61: 0 | AH61: 0 | AI61: 0 | AJ61: 0 | AK61: 0 | AL61: 0 | AM61: 0 | AN61: 0 | AO61: 0 | AP61: 0 | AQ61: 0 | AR61: 0 | AS61: 0
AF62: 0 | AG62: 0 | AH62: 0 | AI62: 0 | AJ62: 0 | AK62: 0 | AL62: 0 | AM62: 0 | AN62: 0 | AO62: 0 | AP62: 0 | AQ62: 0 | AR62: 0 | AS62: 0
AF63: 0 | AG63: 0 | AH63: 0 | AI63: 0 | AJ63: 0 | AK63: 0 | AL63: 0 | AM63: 0 | AN63: 0 | AO63: 0 | AP63: 0 | AQ63: 0 | AR63: 0 | AS63: 0
AF64: 0 | AG64: 0 | AH64: 0 | AI64: 0 | AJ64: 0 | AK64: 0 | AL64: 0 | AM64: 0 | AN64: 0 | AO64: 0 | AP64: 0 | AQ64: 0 | AR64: 0 | AS64: 0
AF65: 0 | AG65: 0 | AH65: 0 | AI65: 0 | AJ65: 0 | AK65: 0 | AL65: 0 | AM65: 0 | AN65: 0 | AO65: 0 | AP65: 0 | AQ65: 0 | AR65: 0 | AS65: 0
R66: =SUM(R6:R65) -> 251870585.4 | S66: 1097753788 | T66: 13590995.17 | U66: 1023313231 | V66: 1758171519 | W66: 0 | X66: 1468104637 | Y66: 2268497053 | Z66: 27719428.93 | AA66: 434885104.2 | AB66: 131258313.6 | AC66: 27840603.38 | AD66: 50131603.07 | AF66: =SUM(AF6:AF65) -> 0 | AG66: 18341935.02 | AH66: 338121.599 | AI66: 10240383.71 | AJ66: 29353089.46 | AK66: 0 | AL66: 12717011.73 | AM66: =SUM(AM6:AM65) -> 0 | AN66: 620716.927 | AO66: 17202043.13 | AP66: 6660343.961 | AQ66: 2388628.622 | AR66: 2867409.177 | AS66: 100729683.3

Sheet 2020TransRevCont
B2: ="Tariff Approval - "&'Model update'!$C$3 -> Tariff Approval - United Energy | C2: ='Model update'!$C$5&"TransRevCont" -> 2020TransRevCont
B4: Designated pricing proposal charges (DPPC)
B6: Year (t) | C6: ='Model update'!C5 -> 2020
B8: Table 1- Compliance with DPPC Revenue Formula
B9: Revenue from designated pricing proposal charges for year t | C9: =Prop2020TransTar!AS66 -> 125406183.8
B10: Total DPPC related payments for year t | C10: =C17 -> 125466622.7
C11: =IF(C9="","",IF(C10>=C9,"DPPC REVENUE FORMULA COMPLIANT","DPPC REVENUE FORMULA BREACHED")) -> DPPC REVENUE FORMULA COMPLIANT
B13: Table 2 - Total DPPC related payments for year t
B14: Transmission charges for year t | C14: =C24 -> 113690275.3
B15: DPPC revenue under/over recovery approved | C15: =-E60*(1+E58)^0.5 -> 11776347.45
B16: Transmission revenue under/over recovery for years 2014 and 2015
B17: Total DPPC related payments for year t | C17: =SUM(C14:C16) -> 125466622.7
B19: Table 3 - Transmission charges for year t
B20: AEMO (TCt) | C20: 103555177.6
B21: Transmission connection (TCt) | C21: 9832382.568
B22: Embedded generators (Gt) | C22: 174678.433
B23: Inter-network (Dt) | C23: -128036.6433
B24: TC + G - D | C24: =C20+C21+C22-C23 -> 113690275.3
B29: Table 4 - DPPC Recovery Arrangements
C30: Year t-2 | D30: Year t-1 | E30: Year t
C31: (actual) | D31: (estimate) | E31: (forecast)
C32: =D32-1 -> 2018 | D32: =E32-1 -> 2019 | E32: =C$6 -> 2020
B34: (A) Revenue from designated pricing proposal charges | C34: 96050792.54 | D34: =Est2019TransRev!AS66 -> 100729683.3 | E34: =C9 -> 125406183.8
B37: (B) Less Total DPPC related payments = | C37: =SUM(C39:C41) -> 106242125.5 | D37: =SUM(D39:D41) -> 115203439.8 | E37: =SUM(E39:E41) -> 113690275.3
B39: + Transmission revenue under/over recovery for years 2014 and 2015
B41: +Transmission charges = | C41: =C42+C43+C44-C45 -> 106242125.5 | D41: =D42+D43+D44-D45 -> 115203439.8 | E41: =E42+E43+E44-E45 -> 113690275.3
B42: +AEMO | C42: ='TUoS cost audit template'!F7 -> 94544841 | D42: 104597364 | E42: =C20 -> 103555177.6
B43: +PowerNet | C43: ='TUoS cost audit template'!F18 -> 9839417 | D43: 9752254.237 | E43: =C21 -> 9832382.568
B44: +Embedded generators | C44: ='TUoS cost audit template'!F64 -> 182893 | D44: 170417.9834 | E44: =C22 -> 174678.433
B45: -Inter-network | C45: ='TUoS cost audit template'!F28 -> -1674974.54 | D45: -683403.5544 | E45: =C23 -> -128036.6433
B49: (A minus B) Under/over recovery of revenue for regulatory year | C49: =C34-C37 -> -10191333 | D49: =D34-D37 -> -14473756.48 | E49: =E34-E37 -> 11715908.55
B53: Table 5 - DPPC Unders and Overs Account
C54: Year t-2 | D54: Year t-1 | E54: Year t
C55: (actual) | D55: (estimate) | E55: (forecast)
B56: Calendar year | C56: =D56-1 -> 2018 | D56: =E56-1 -> 2019 | E56: =C$6 -> 2020
B58: Nominal WACC | C58: =(1+'Model update'!$B$47)*(1+'Model update'!$C$28)-1 -> 0.05819803957 | D58: =(1+'Model update'!$B$45)*(1+'Model update'!$C$29)-1 -> 0.05907249241 | E58: =(1+'Model update'!$B$43)*(1+'Model update'!$C$30)-1 -> 0.05250474139
B60: Opening balance | C60: 12955433.36 | D60: =C64 -> 3225716.985 | E60: =D64 -> -11478855.27
B61: Interest on Opening balance | C61: =C60*C58 -> 753980.8235 | D61: =D60*D58 -> 190551.1421 | E61: =E60*E58 -> -602694.3275
B62: Under/over recovery of revenue for regulatory year | C62: =C49 -> -10191333 | D62: =D49 -> -14473756.48 | E62: =E49 -> 11715908.55
B63: Interest on under/over recovery for regulatory year | C63: =C62*((1+C58)^0.5-1) -> -292364.197 | D63: =D62*((1+D58)^0.5-1) -> -421366.9174 | E63: =E62*((1+E58)^0.5-1) -> 303635.7802
B64: Closing balance of DPPC overs/ (unders) account | C64: =SUM(C60:C63) -> 3225716.985 | D64: =SUM(D60:D63) -> -11478855.27 | E64: -62005.2718
B66: The DNSP is expected to achieve a closing balance as close to zero as practicable in its DPPC unders and overs account in each forecast year in its annual pricing proposals in the 2016–20 regulatory control period.

Sheet TUoS cost audit template
B1: ="Tariff Approval - "&'Model update'!C3 -> Tariff Approval - United Energy
B2: TUOS charges (AEMO) | F2: t-2 actual
B3: AEMO (TUOS Locational Charge) | F3: 20525226
B4: AEMO (TUOS Non Locational and Common Service) | F4: 71447815
B5: Grid equalisation | F5: 2571800
E7: Total | F7: =SUM(F3:F6) -> 94544841
B9: Transmission connection fees (SPI Powernet) | F9: t-2 actual
B11: Ausnet Services (Connection) | F11: 9185856
B12: Ausnet Services (Augmentation) | F12: 653561
E18: Total | F18: =SUM(F10:F17) -> 9839417
B20: Cross boundary network charges (internetwork charges) | F20: t-2 actual
B21: Distribution Business | C21: Amount (payable)/receivable
C22: HV crossings | D22: Subtransmission crossings | E22: TUoS Adjustment | F22: Total
B24: AusNet | D24: -1674974.54 | F24: -1674974.54
B28: Total | F28: =SUM(F23:F27) -> -1674974.54
B30: Payments to embedded generators | F30: t-2 actual
B31: Avoided transmission costs
B32: Avoided TUOS | F32: 182893
B37: Total | F37: =SUM(F32:F36) -> 182893
B39: Avoided TUoS usage charges
B63: Total | F63: =SUM(F40:F62) -> 0
B64: Total payments to embedded generators | F64: =F63+F37 -> 182893
B66: Where the following definitions apply
B67: HV Crossings | C67: Payments/Receipts for energy transferred utilising the distributor’s HV and LV line assets.
B68: Sub-transmission Crossings | C68: Payments/Receipts for the Sub-transmission assets in shared loops that support each distributor’s Zone Substation capacity to ensure N-1 reliability is maintained.
B69: TuoS Adjustment | C69: Payments/Receipts for the adjustment of TuoS paid by a distributor for energy delivered to another distribution business through a shared loop.

Sheet Prop2020JSTar
B1: ="Tariff Approval - "&'Model update'!C3 -> Tariff Approval - United Energy | D1: ="Prop"&'Model update'!$C$5&"JSTar" -> Prop2020JSTar
B3: ="PROPOSED "&'Model update'!$C$5&" JURISDICTIONAL SCHEME TARIFFS" -> PROPOSED 2020 JURISDICTIONAL SCHEME TARIFFS
D4: ="Proposed Jurisdictional scheme Tariffs (Pt) for "&'Model update'!$C$5 -> Proposed Jurisdictional scheme Tariffs (Pt) for 2020 | R4: ="Forecast Quantities (Qt) for "&'Model update'!$C$5 -> Forecast Quantities (Qt) for 2020 | AF4: ="Forecast Revenue (Pt "&'Model update'!$C$5&")*(Qt " &'Model update'!$C$5&")" -> Forecast Revenue (Pt 2020)*(Qt 2020)
B5: Proposed tariff | D5: =Prop2020DistTar!D5 -> PropTar Fixed | E5: =Prop2020DistTar!E5 -> PropTar PkBlk1 | F5: =Prop2020DistTar!F5 -> PropTar PkBlk2 | G5: =Prop2020DistTar!G5 -> PropTar PkBlk3 | H5: =Prop2020DistTar!H5 -> PropTar PkBlk4 | I5: =Prop2020DistTar!I5 -> PropTar OPkBlk1 | J5: =Prop2020DistTar!J5 -> PropTar OPkBlk2 | K5: =Prop2020DistTar!K5 -> PropTar OPkBlk3 | L5: =Prop2020DistTar!L5 -> PropTar OPkBlk4 | M5: =Prop2020DistTar!M5 -> PropTar DemBlk1 | N5: =Prop2020DistTar!N5 -> PropTar DemBlk2 | O5: =Prop2020DistTar!O5 -> PropTar DemBlk3 | P5: =Prop2020DistTar!P5 -> PropTar DemBlk4 | R5: =Prop2020DistTar!AF5 -> FcastVol Fixed | S5: =Prop2020DistTar!AG5 -> FcastVol PkBlk1 | T5: =Prop2020DistTar!AH5 -> FcastVol PkBlk2 | U5: =Prop2020DistTar!AI5 -> FcastVol PkBlk3 | V5: =Prop2020DistTar!AJ5 -> FcastVol PkBlk4 | W5: =Prop2020DistTar!AK5 -> FcastVol OPkBlk1 | X5: =Prop2020DistTar!AL5 -> FcastVol OPkBlk2 | Y5: =Prop2020DistTar!AM5 -> FcastVol OPkBlk3 | Z5: =Prop2020DistTar!AN5 -> FcastVol OPkBlk4 | AA5: =Prop2020DistTar!AO5 -> FcastVol DemBlk1 | AB5: =Prop2020DistTar!AP5 -> FcastVol DemBlk2 | AC5: =Prop2020DistTar!AQ5 -> FcastVol DemBlk3 | AD5: =Prop2020DistTar!AR5 -> FcastVol DemBlk4 | AF5: PropRev Fixed | AG5: PropRev PkBlk1 | AH5: PropRev PkBlk2 | AI5: PropRev PkBlk3 | AJ5: PropRev PkBlk4 | AK5: PropRev OPkBlk1 | AL5: PropRev OPkBlk2 | AM5: PropRev OPkBlk3 | AN5: PropRev OPkBlk4 | AO5: PropRev DemBlk1 | AP5: PropRev DemBlk2 | AQ5: PropRev DemBlk3 | AR5: PropRev DemBlk4 | AS5: PropRev Total
B6: =Prop2020DistTar!B6 -> Low voltage small 1 rate | D6: 5.08 | E6: 0 | F6: 0 | G6: 0 | H6: 0 | I6: 0 | J6: 0 | K6: 0 | L6: 0 | M6: 0 | N6: 0 | O6: 0 | P6: 0 | R6: =Prop2020DistTar!AF6 -> 212162195 | S6: =Prop2020DistTar!AG6 -> 919851753 | T6: =Prop2020DistTar!AH6 -> 0 | U6: =Prop2020DistTar!AI6 -> 0 | V6: =Prop2020DistTar!AJ6 -> 1513854586 | W6: =Prop2020DistTar!AK6 -> 0 | X6: =Prop2020DistTar!AL6 -> 0 | Y6: =Prop2020DistTar!AM6 -> 0 | Z6: =Prop2020DistTar!AN6 -> 0 | AA6: =Prop2020DistTar!AO6 -> 0 | AB6: =Prop2020DistTar!AP6 -> 0 | AC6: =Prop2020DistTar!AQ6 -> 0 | AD6: =Prop2020DistTar!AR6 -> 0 | AF6: =D6/100*R6 -> 10777839.51 | AG6: 0 | AH6: =F6/100*T6 -> 0 | AI6: =G6/100*U6 -> 0 | AJ6: =H6/100*V6 -> 0 | AK6: =I6/100*W6 -> 0 | AL6: =J6/100*X6 -> 0 | AM6: =K6/100*Y6 -> 0 | AN6: =L6/100*Z6 -> 0 | AO6: =M6/100*AA6 -> 0 | AP6: =N6/100*AB6 -> 0 | AQ6: =O6/100*AC6 -> 0 | AR6: =P6/100*AD6 -> 0 | AS6: =SUM(AF6:AR6) -> 10777839.51
B7: =Prop2020DistTar!B7 -> Winter economy tariff | D7: 5.08 | E7: 0 | F7: 0 | G7: 0 | H7: 0 | I7: 0 | J7: 0 | K7: 0 | L7: 0 | M7: 0 | N7: 0 | O7: 0 | P7: 0 | R7: =Prop2020DistTar!AF7 -> 47078.0734 | S7: =Prop2020DistTar!AG7 -> 293507.5327 | T7: =Prop2020DistTar!AH7 -> 0 | U7: =Prop2020DistTar!AI7 -> 0 | V7: =Prop2020DistTar!AJ7 -> 549771.8592 | W7: =Prop2020DistTar!AK7 -> 0 | X7: =Prop2020DistTar!AL7 -> 0 | Y7: =Prop2020DistTar!AM7 -> 0 | Z7: =Prop2020DistTar!AN7 -> 0 | AA7: =Prop2020DistTar!AO7 -> 0 | AB7: =Prop2020DistTar!AP7 -> 0 | AC7: =Prop2020DistTar!AQ7 -> 0 | AD7: =Prop2020DistTar!AR7 -> 0 | AF7: =D7/100*R7 -> 2391.566129 | AG7: 0 | AH7: 0 | AI7: 0 | AJ7: 0 | AK7: 0 | AL7: 0 | AM7: 0 | AN7: 0 | AO7: 0 | AP7: 0 | AQ7: 0 | AR7: 0 | AS7: =SUM(AF7:AR7) -> 2391.566129
B8: =Prop2020DistTar!B8 -> Reverse cycle airconditioning time of use | D8: 5.08 | E8: 0 | F8: 0 | G8: 0 | H8: 0 | I8: 0 | J8: 0 | K8: 0 | L8: 0 | M8: 0 | N8: 0 | O8: 0 | P8: 0 | R8: =Prop2020DistTar!AF8 -> 0 | S8: =Prop2020DistTar!AG8 -> 0 | T8: =Prop2020DistTar!AH8 -> 0 | U8: =Prop2020DistTar!AI8 -> 0 | V8: =Prop2020DistTar!AJ8 -> 0 | W8: =Prop2020DistTar!AK8 -> 0 | X8: =Prop2020DistTar!AL8 -> 0 | Y8: =Prop2020DistTar!AM8 -> 0 | Z8: =Prop2020DistTar!AN8 -> 0 | AA8: =Prop2020DistTar!AO8 -> 0 | AB8: =Prop2020DistTar!AP8 -> 0 | AC8: =Prop2020DistTar!AQ8 -> 0 | AD8: =Prop2020DistTar!AR8 -> 0 | AF8: 0 | AG8: 0 | AH8: 0 | AI8: 0 | AJ8: 0 | AK8: 0 | AL8: 0 | AM8: 0 | AN8: 0 | AO8: 0 | AP8: 0 | AQ8: 0 | AR8: 0 | AS8: 0
B9: =Prop2020DistTar!B9 -> Low voltage small 2 rate | D9: 5.08 | E9: 0 | F9: 0 | G9: 0 | H9: 0 | I9: 0 | J9: 0 | K9: 0 | L9: 0 | M9: 0 | N9: 0 | O9: 0 | P9: 0 | R9: =Prop2020DistTar!AF9 -> 1540872.815 | S9: =Prop2020DistTar!AG9 -> 0 | T9: =Prop2020DistTar!AH9 -> 0 | U9: =Prop2020DistTar!AI9 -> 4165253.264 | V9: =Prop2020DistTar!AJ9 -> 0 | W9: =Prop2020DistTar!AK9 -> 0 | X9: =Prop2020DistTar!AL9 -> 6996037.326 | Y9: =Prop2020DistTar!AM9 -> 14790881.87 | Z9: =Prop2020DistTar!AN9 -> 0 | AA9: =Prop2020DistTar!AO9 -> 0 | AB9: =Prop2020DistTar!AP9 -> 0 | AC9: =Prop2020DistTar!AQ9 -> 0 | AD9: =Prop2020DistTar!AR9 -> 0 | AF9: 78276.33901 | AG9: 0 | AH9: 0 | AI9: 0 | AJ9: 0 | AK9: 0 | AL9: 0 | AM9: 0 | AN9: 0 | AO9: 0 | AP9: 0 | AQ9: 0 | AR9: 0 | AS9: 78276.33901
B10: =Prop2020DistTar!B10 -> Dedicated circuit | D10: 0 | E10: 0 | F10: 0 | G10: 0 | H10: 0 | I10: 0 | J10: 0 | K10: 0 | L10: 0 | M10: 0 | N10: 0 | O10: 0 | P10: 0 | R10: =Prop2020DistTar!AF10 -> 21169813.98 | S10: =Prop2020DistTar!AG10 -> 0 | T10: =Prop2020DistTar!AH10 -> 0 | U10: =Prop2020DistTar!AI10 -> 0 | V10: =Prop2020DistTar!AJ10 -> 0 | W10: =Prop2020DistTar!AK10 -> 0 | X10: =Prop2020DistTar!AL10 -> 0 | Y10: =Prop2020DistTar!AM10 -> 92477650.13 | Z10: =Prop2020DistTar!AN10 -> 0 | AA10: =Prop2020DistTar!AO10 -> 0 | AB10: =Prop2020DistTar!AP10 -> 0 | AC10: =Prop2020DistTar!AQ10 -> 0 | AD10: =Prop2020DistTar!AR10 -> 0 | AF10: 0 | AG10: 0 | AH10: 0 | AI10: 0 | AJ10: 0 | AK10: 0 | AL10: 0 | AM10: 0 | AN10: 0 | AO10: 0 | AP10: 0 | AQ10: 0 | AR10: 0 | AS10: 0
B11: =Prop2020DistTar!B11 -> Low voltage medium 1 rate | D11: 5.08 | E11: 0 | F11: 0 | G11: 0 | H11: 0 | I11: 0 | J11: 0 | K11: 0 | L11: 0 | M11: 0 | N11: 0 | O11: 0 | P11: 0 | R11: =Prop2020DistTar!AF11 -> 12102335.34 | S11: =Prop2020DistTar!AG11 -> 161788893.1 | T11: =Prop2020DistTar!AH11 -> 0 | U11: =Prop2020DistTar!AI11 -> 0 | V11: =Prop2020DistTar!AJ11 -> 250038883 | W11: =Prop2020DistTar!AK11 -> 0 | X11: =Prop2020DistTar!AL11 -> 0 | Y11: =Prop2020DistTar!AM11 -> 0 | Z11: =Prop2020DistTar!AN11 -> 0 | AA11: =Prop2020DistTar!AO11 -> 0 | AB11: =Prop2020DistTar!AP11 -> 0 | AC11: =Prop2020DistTar!AQ11 -> 0 | AD11: =Prop2020DistTar!AR11 -> 0 | AF11: 614798.6352 | AG11: 0 | AH11: 0 | AI11: 0 | AJ11: 0 | AK11: 0 | AL11: 0 | AM11: 0 | AN11: 0 | AO11: 0 | AP11: 0 | AQ11: 0 | AR11: 0 | AS11: 614798.6352
B12: =Prop2020DistTar!B12 -> Low voltage medium 2 rate 5 day | D12: 5.08 | E12: 0 | F12: 0 | G12: 0 | H12: 0 | I12: 0 | J12: 0 | K12: 0 | L12: 0 | M12: 0 | N12: 0 | O12: 0 | P12: 0 | R12: =Prop2020DistTar!AF12 -> 3296334.516 | S12: =Prop2020DistTar!AG12 -> 0 | T12: =Prop2020DistTar!AH12 -> 0 | U12: =Prop2020DistTar!AI12 -> 44442947.95 | V12: =Prop2020DistTar!AJ12 -> 0 | W12: =Prop2020DistTar!AK12 -> 0 | X12: =Prop2020DistTar!AL12 -> 63255909.48 | Y12: =Prop2020DistTar!AM12 -> 66483501.71 | Z12: =Prop2020DistTar!AN12 -> 0 | AA12: =Prop2020DistTar!AO12 -> 0 | AB12: =Prop2020DistTar!AP12 -> 0 | AC12: =Prop2020DistTar!AQ12 -> 0 | AD12: =Prop2020DistTar!AR12 -> 0 | AF12: 167453.7934 | AG12: 0 | AH12: 0 | AI12: 0 | AJ12: 0 | AK12: 0 | AL12: 0 | AM12: 0 | AN12: 0 | AO12: 0 | AP12: 0 | AQ12: 0 | AR12: 0 | AS12: 167453.7934
B13: =Prop2020DistTar!B13 -> Low voltage medium 2 rate 7 day | D13: 5.08 | E13: 0 | F13: 0 | G13: 0 | H13: 0 | I13: 0 | J13: 0 | K13: 0 | L13: 0 | M13: 0 | N13: 0 | O13: 0 | P13: 0 | R13: =Prop2020DistTar!AF13 -> 1640279.535 | S13: =Prop2020DistTar!AG13 -> 0 | T13: =Prop2020DistTar!AH13 -> 0 | U13: =Prop2020DistTar!AI13 -> 19851193.85 | V13: =Prop2020DistTar!AJ13 -> 0 | W13: =Prop2020DistTar!AK13 -> 0 | X13: =Prop2020DistTar!AL13 -> 30063800.98 | Y13: =Prop2020DistTar!AM13 -> 13681650.15 | Z13: =Prop2020DistTar!AN13 -> 0 | AA13: =Prop2020DistTar!AO13 -> 0 | AB13: =Prop2020DistTar!AP13 -> 0 | AC13: =Prop2020DistTar!AQ13 -> 0 | AD13: =Prop2020DistTar!AR13 -> 0 | AF13: 83326.20038 | AG13: 0 | AH13: 0 | AI13: 0 | AJ13: 0 | AK13: 0 | AL13: 0 | AM13: 0 | AN13: 0 | AO13: 0 | AP13: 0 | AQ13: 0 | AR13: 0 | AS13: 83326.20038
B14: =Prop2020DistTar!B14 -> Unmetered supplies | D14: 0 | E14: 0 | F14: 0 | G14: 0 | H14: 0 | I14: 0 | J14: 0 | K14: 0 | L14: 0 | M14: 0 | N14: 0 | O14: 0 | P14: 0 | R14: =Prop2020DistTar!AF14 -> 3541416 | S14: =Prop2020DistTar!AG14 -> 0 | T14: =Prop2020DistTar!AH14 -> 0 | U14: =Prop2020DistTar!AI14 -> 11643754.47 | V14: =Prop2020DistTar!AJ14 -> 0 | W14: =Prop2020DistTar!AK14 -> 0 | X14: =Prop2020DistTar!AL14 -> 19080770.29 | Y14: =Prop2020DistTar!AM14 -> 56302898.46 | Z14: =Prop2020DistTar!AN14 -> 0 | AA14: =Prop2020DistTar!AO14 -> 0 | AB14: =Prop2020DistTar!AP14 -> 0 | AC14: =Prop2020DistTar!AQ14 -> 0 | AD14: =Prop2020DistTar!AR14 -> 0 | AF14: 0 | AG14: 0 | AH14: 0 | AI14: 0 | AJ14: 0 | AK14: 0 | AL14: 0 | AM14: 0 | AN14: 0 | AO14: 0 | AP14: 0 | AQ14: 0 | AR14: 0 | AS14: 0
B15: =Prop2020DistTar!B15 -> Low voltage large 1 rate | D15: 5.08 | E15: 0 | F15: 0 | G15: 0 | H15: 0 | I15: 0 | J15: 0 | K15: 0 | L15: 0 | M15: 0 | N15: 0 | O15: 0 | P15: 0 | R15: =Prop2020DistTar!AF15 -> 2568.095895 | S15: =Prop2020DistTar!AG15 -> 626916.0406 | T15: =Prop2020DistTar!AH15 -> 0 | U15: =Prop2020DistTar!AI15 -> 0 | V15: =Prop2020DistTar!AJ15 -> 845401.2968 | W15: =Prop2020DistTar!AK15 -> 0 | X15: =Prop2020DistTar!AL15 -> 0 | Y15: =Prop2020DistTar!AM15 -> 0 | Z15: =Prop2020DistTar!AN15 -> 0 | AA15: =Prop2020DistTar!AO15 -> 0 | AB15: =Prop2020DistTar!AP15 -> 0 | AC15: =Prop2020DistTar!AQ15 -> 0 | AD15: =Prop2020DistTar!AR15 -> 0 | AF15: 130.4592715 | AG15: 0 | AH15: 0 | AI15: 0 | AJ15: 0 | AK15: 0 | AL15: 0 | AM15: 0 | AN15: 0 | AO15: 0 | AP15: 0 | AQ15: 0 | AR15: 0 | AS15: 130.4592715
B16: =Prop2020DistTar!B16 -> Low voltage large 2 rate | D16: 5.08 | E16: 0 | F16: 0 | G16: 0 | H16: 0 | I16: 0 | J16: 0 | K16: 0 | L16: 0 | M16: 0 | N16: 0 | O16: 0 | P16: 0 | R16: =Prop2020DistTar!AF16 -> 6236.804316 | S16: =Prop2020DistTar!AG16 -> 0 | T16: =Prop2020DistTar!AH16 -> 0 | U16: =Prop2020DistTar!AI16 -> 563898.2219 | V16: =Prop2020DistTar!AJ16 -> 0 | W16: =Prop2020DistTar!AK16 -> 0 | X16: =Prop2020DistTar!AL16 -> 810564.9206 | Y16: =Prop2020DistTar!AM16 -> 1029686.513 | Z16: =Prop2020DistTar!AN16 -> 0 | AA16: =Prop2020DistTar!AO16 -> 0 | AB16: =Prop2020DistTar!AP16 -> 0 | AC16: =Prop2020DistTar!AQ16 -> 0 | AD16: =Prop2020DistTar!AR16 -> 0 | AF16: 316.8296592 | AG16: 0 | AH16: 0 | AI16: 0 | AJ16: 0 | AK16: 0 | AL16: 0 | AM16: 0 | AN16: 0 | AO16: 0 | AP16: 0 | AQ16: 0 | AR16: 0 | AS16: 316.8296592
B17: =Prop2020DistTar!B17 -> Low voltage KW time of use | D17: 5.08 | E17: 0 | F17: 0 | G17: 0 | H17: 0 | I17: 0 | J17: 0 | K17: 0 | L17: 0 | M17: 0 | N17: 0 | O17: 0 | P17: 0 | R17: =Prop2020DistTar!AF17 -> 64782 | S17: =Prop2020DistTar!AG17 -> 0 | T17: =Prop2020DistTar!AH17 -> 0 | U17: =Prop2020DistTar!AI17 -> 2537287.135 | V17: =Prop2020DistTar!AJ17 -> 0 | W17: =Prop2020DistTar!AK17 -> 0 | X17: =Prop2020DistTar!AL17 -> 4053676.63 | Y17: =Prop2020DistTar!AM17 -> 6266721.116 | Z17: =Prop2020DistTar!AN17 -> 0 | AA17: =Prop2020DistTar!AO17 -> 0 | AB17: =Prop2020DistTar!AP17 -> 632644.762 | AC17: =Prop2020DistTar!AQ17 -> 0 | AD17: =Prop2020DistTar!AR17 -> 0 | AF17: 3290.9256 | AG17: 0 | AH17: 0 | AI17: 0 | AJ17: 0 | AK17: 0 | AL17: 0 | AM17: 0 | AN17: 0 | AO17: 0 | AP17: 0 | AQ17: 0 | AR17: 0 | AS17: 3290.9256
B18: =Prop2020DistTar!B18 -> Low voltage KW time of use - HOT | D18: 5.08 | E18: 0 | F18: 0 | G18: 0 | H18: 0 | I18: 0 | J18: 0 | K18: 0 | L18: 0 | M18: 0 | N18: 0 | O18: 0 | P18: 0 | R18: =Prop2020DistTar!AF18 -> 5856 | S18: =Prop2020DistTar!AG18 -> 0 | T18: =Prop2020DistTar!AH18 -> 0 | U18: =Prop2020DistTar!AI18 -> 18479.7083 | V18: =Prop2020DistTar!AJ18 -> 0 | W18: =Prop2020DistTar!AK18 -> 0 | X18: =Prop2020DistTar!AL18 -> 32475.32388 | Y18: =Prop2020DistTar!AM18 -> 54198.35716 | Z18: =Prop2020DistTar!AN18 -> 0 | AA18: =Prop2020DistTar!AO18 -> 0 | AB18: =Prop2020DistTar!AP18 -> 12598.044 | AC18: =Prop2020DistTar!AQ18 -> 0 | AD18: =Prop2020DistTar!AR18 -> 0 | AF18: 297.4848 | AG18: 0 | AH18: 0 | AI18: 0 | AJ18: 0 | AK18: 0 | AL18: 0 | AM18: 0 | AN18: 0 | AO18: 0 | AP18: 0 | AQ18: 0 | AR18: 0 | AS18: 297.4848
B19: =Prop2020DistTar!B19 -> Low voltage large KVA time of use | D19: 5.08 | E19: 0 | F19: 0 | G19: 0 | H19: 0 | I19: 0 | J19: 0 | K19: 0 | L19: 0 | M19: 0 | N19: 0 | O19: 0 | P19: 0 | R19: =Prop2020DistTar!AF19 -> 1110078 | S19: =Prop2020DistTar!AG19 -> 0 | T19: =Prop2020DistTar!AH19 -> 0 | U19: =Prop2020DistTar!AI19 -> 442552227.7 | V19: =Prop2020DistTar!AJ19 -> 0 | W19: =Prop2020DistTar!AK19 -> 0 | X19: =Prop2020DistTar!AL19 -> 608901701.2 | Y19: =Prop2020DistTar!AM19 -> 1242320710 | Z19: =Prop2020DistTar!AN19 -> 0 | AA19: =Prop2020DistTar!AO19 -> 320914609.7 | AB19: =Prop2020DistTar!AP19 -> 92279113.55 | AC19: =Prop2020DistTar!AQ19 -> 0 | AD19: =Prop2020DistTar!AR19 -> 0 | AF19: 56391.9624 | AG19: 0 | AH19: 0 | AI19: 0 | AJ19: 0 | AK19: 0 | AL19: 0 | AM19: 0 | AN19: 0 | AO19: 0 | AP19: 0 | AQ19: 0 | AR19: 0 | AS19: 56391.9624
B20: =Prop2020DistTar!B20 -> Low voltage large KVA time of use - HOT | D20: 5.08 | E20: 0 | F20: 0 | G20: 0 | H20: 0 | I20: 0 | J20: 0 | K20: 0 | L20: 0 | M20: 0 | N20: 0 | O20: 0 | P20: 0 | R20: =Prop2020DistTar!AF20 -> 0 | S20: =Prop2020DistTar!AG20 -> 0 | T20: =Prop2020DistTar!AH20 -> 0 | U20: =Prop2020DistTar!AI20 -> 0 | V20: =Prop2020DistTar!AJ20 -> 0 | W20: =Prop2020DistTar!AK20 -> 0 | X20: =Prop2020DistTar!AL20 -> 0 | Y20: =Prop2020DistTar!AM20 -> 0 | Z20: =Prop2020DistTar!AN20 -> 0 | AA20: =Prop2020DistTar!AO20 -> 0 | AB20: =Prop2020DistTar!AP20 -> 0 | AC20: =Prop2020DistTar!AQ20 -> 0 | AD20: =Prop2020DistTar!AR20 -> 0 | AF20: 0 | AG20: 0 | AH20: 0 | AI20: 0 | AJ20: 0 | AK20: 0 | AL20: 0 | AM20: 0 | AN20: 0 | AO20: 0 | AP20: 0 | AQ20: 0 | AR20: 0 | AS20: 0
B21: =Prop2020DistTar!B21 -> High voltage KVA time of use | D21: 5.08 | E21: 0 | F21: 0 | G21: 0 | H21: 0 | I21: 0 | J21: 0 | K21: 0 | L21: 0 | M21: 0 | N21: 0 | O21: 0 | P21: 0 | R21: =Prop2020DistTar!AF21 -> 36234 | S21: =Prop2020DistTar!AG21 -> 0 | T21: =Prop2020DistTar!AH21 -> 0 | U21: =Prop2020DistTar!AI21 -> 173815274 | V21: =Prop2020DistTar!AJ21 -> 0 | W21: =Prop2020DistTar!AK21 -> 0 | X21: =Prop2020DistTar!AL21 -> 244289927.6 | Y21: =Prop2020DistTar!AM21 -> 638852125.6 | Z21: =Prop2020DistTar!AN21 -> 0 | AA21: =Prop2020DistTar!AO21 -> 106134752.1 | AB21: =Prop2020DistTar!AP21 -> 33089430.44 | AC21: =Prop2020DistTar!AQ21 -> 0 | AD21: =Prop2020DistTar!AR21 -> 0 | AF21: 1840.6872 | AG21: 0 | AH21: 0 | AI21: 0 | AJ21: 0 | AK21: 0 | AL21: 0 | AM21: 0 | AN21: 0 | AO21: 0 | AP21: 0 | AQ21: 0 | AR21: 0 | AS21: 1840.6872
B22: =Prop2020DistTar!B22 -> High voltage KVA time of use - HOT | D22: 5.08 | E22: 0 | F22: 0 | G22: 0 | H22: 0 | I22: 0 | J22: 0 | K22: 0 | L22: 0 | M22: 0 | N22: 0 | O22: 0 | P22: 0 | R22: =Prop2020DistTar!AF22 -> 0 | S22: =Prop2020DistTar!AG22 -> 0 | T22: =Prop2020DistTar!AH22 -> 0 | U22: =Prop2020DistTar!AI22 -> 0 | V22: =Prop2020DistTar!AJ22 -> 0 | W22: =Prop2020DistTar!AK22 -> 0 | X22: =Prop2020DistTar!AL22 -> 0 | Y22: =Prop2020DistTar!AM22 -> 0 | Z22: =Prop2020DistTar!AN22 -> 0 | AA22: =Prop2020DistTar!AO22 -> 0 | AB22: =Prop2020DistTar!AP22 -> 0 | AC22: =Prop2020DistTar!AQ22 -> 0 | AD22: =Prop2020DistTar!AR22 -> 0 | AF22: 0 | AG22: 0 | AH22: =F22/100*T22 -> 0 | AI22: 0 | AJ22: 0 | AK22: 0 | AL22: 0 | AM22: 0 | AN22: 0 | AO22: 0 | AP22: 0 | AQ22: 0 | AR22: 0 | AS22: 0
B23: =Prop2020DistTar!B23 -> Subtransmission KVA time of use | D23: 5.08 | E23: 0 | F23: 0 | G23: 0 | H23: 0 | I23: 0 | J23: 0 | K23: 0 | L23: 0 | M23: 0 | N23: 0 | O23: 0 | P23: 0 | R23: =Prop2020DistTar!AF23 -> 366 | S23: =Prop2020DistTar!AG23 -> 0 | T23: =Prop2020DistTar!AH23 -> 0 | U23: =Prop2020DistTar!AI23 -> 6227527.529 | V23: =Prop2020DistTar!AJ23 -> 0 | W23: =Prop2020DistTar!AK23 -> 0 | X23: =Prop2020DistTar!AL23 -> 11306632.75 | Y23: =Prop2020DistTar!AM23 -> 14340438.67 | Z23: =Prop2020DistTar!AN23 -> 0 | AA23: =Prop2020DistTar!AO23 -> 4117758.995 | AB23: =Prop2020DistTar!AP23 -> 1226831.123 | AC23: =Prop2020DistTar!AQ23 -> 0 | AD23: =Prop2020DistTar!AR23 -> 0 | AF23: 18.5928 | AG23: 0 | AH23: 0 | AI23: 0 | AJ23: 0 | AK23: 0 | AL23: 0 | AM23: 0 | AN23: 0 | AO23: 0 | AP23: 0 | AQ23: 0 | AR23: 0 | AS23: 18.5928
B24: =Prop2020DistTar!B24 -> TOD | D24: 5.08 | E24: 0 | F24: 0 | G24: 0 | H24: 0 | I24: 0 | J24: 0 | K24: 0 | L24: 0 | M24: 0 | N24: 0 | O24: 0 | P24: 0 | R24: =Prop2020DistTar!AF24 -> 15598161.35 | S24: =Prop2020DistTar!AG24 -> 0 | T24: =Prop2020DistTar!AH24 -> 12690970.05 | U24: =Prop2020DistTar!AI24 -> 22175656.6 | V24: =Prop2020DistTar!AJ24 -> 0 | W24: =Prop2020DistTar!AK24 -> 0 | X24: =Prop2020DistTar!AL24 -> 41706694.09 | Y24: =Prop2020DistTar!AM24 -> 107857002.4 | Z24: =Prop2020DistTar!AN24 -> 23868443.45 | AA24: =Prop2020DistTar!AO24 -> 0 | AB24: =Prop2020DistTar!AP24 -> 0 | AC24: =Prop2020DistTar!AQ24 -> 0 | AD24: =Prop2020DistTar!AR24 -> 0 | AF24: 792386.5967 | AG24: 0 | AH24: 0 | AI24: 0 | AJ24: 0 | AK24: 0 | AL24: 0 | AM24: 0 | AN24: 0 | AO24: 0 | AP24: 0 | AQ24: 0 | AR24: 0 | AS24: 792386.5967
B25: =Prop2020DistTar!B25 -> TOD9 | D25: 5.08 | E25: 0 | F25: 0 | G25: 0 | H25: 0 | I25: 0 | J25: 0 | K25: 0 | L25: 0 | M25: 0 | N25: 0 | O25: 0 | P25: 0 | R25: =Prop2020DistTar!AF25 -> 1010310.401 | S25: =Prop2020DistTar!AG25 -> 0 | T25: =Prop2020DistTar!AH25 -> 668818.714 | U25: =Prop2020DistTar!AI25 -> 945228.328 | V25: =Prop2020DistTar!AJ25 -> 0 | W25: =Prop2020DistTar!AK25 -> 0 | X25: =Prop2020DistTar!AL25 -> 1597730.386 | Y25: =Prop2020DistTar!AM25 -> 6831899.483 | Z25: =Prop2020DistTar!AN25 -> 1130512.015 | AA25: =Prop2020DistTar!AO25 -> 0 | AB25: =Prop2020DistTar!AP25 -> 0 | AC25: =Prop2020DistTar!AQ25 -> 0 | AD25: =Prop2020DistTar!AR25 -> 0 | AF25: 51323.76835 | AG25: 0 | AH25: 0 | AI25: 0 | AJ25: 0 | AK25: 0 | AL25: 0 | AM25: 0 | AN25: 0 | AO25: 0 | AP25: 0 | AQ25: 0 | AR25: 0 | AS25: 51323.76835
B26: =Prop2020DistTar!B26 -> TOU | D26: 5.08 | E26: 0 | F26: 0 | G26: 0 | H26: 0 | I26: 0 | J26: 0 | K26: 0 | L26: 0 | M26: 0 | N26: 0 | O26: 0 | P26: 0 | R26: =Prop2020DistTar!AF26 -> 225090 | S26: =Prop2020DistTar!AG26 -> 0 | T26: =Prop2020DistTar!AH26 -> 0 | U26: =Prop2020DistTar!AI26 -> 4508745.304 | V26: =Prop2020DistTar!AJ26 -> 0 | W26: =Prop2020DistTar!AK26 -> 0 | X26: =Prop2020DistTar!AL26 -> 6758791.942 | Y26: =Prop2020DistTar!AM26 -> 9460029.855 | Z26: =Prop2020DistTar!AN26 -> 0 | AA26: =Prop2020DistTar!AO26 -> 0 | AB26: =Prop2020DistTar!AP26 -> 1192130.282 | AC26: =Prop2020DistTar!AQ26 -> 0 | AD26: =Prop2020DistTar!AR26 -> 0 | AF26: 11434.572 | AG26: 0 | AH26: 0 | AI26: 0 | AJ26: 0 | AK26: 0 | AL26: 0 | AM26: 0 | AN26: 0 | AO26: 0 | AP26: 0 | AQ26: 0 | AR26: 0 | AS26: 11434.572
B27: =Prop2020DistTar!B27 -> TODFLEX | D27: 5.08 | E27: 0 | F27: 0 | G27: 0 | H27: 0 | I27: 0 | J27: 0 | K27: 0 | L27: 0 | M27: 0 | N27: 0 | O27: 0 | P27: 0 | R27: =Prop2020DistTar!AF27 -> 707292.0075 | S27: =Prop2020DistTar!AG27 -> 0 | T27: =Prop2020DistTar!AH27 -> 1584333.56 | U27: =Prop2020DistTar!AI27 -> 771828.7198 | V27: =Prop2020DistTar!AJ27 -> 0 | W27: =Prop2020DistTar!AK27 -> 0 | X27: =Prop2020DistTar!AL27 -> 1383098.006 | Y27: =Prop2020DistTar!AM27 -> 3446686.135 | Z27: =Prop2020DistTar!AN27 -> 2839086.614 | AA27: =Prop2020DistTar!AO27 -> 0 | AB27: =Prop2020DistTar!AP27 -> 0 | AC27: =Prop2020DistTar!AQ27 -> 0 | AD27: =Prop2020DistTar!AR27 -> 0 | AF27: 35930.43398 | AG27: 0 | AH27: 0 | AI27: 0 | AJ27: 0 | AK27: 0 | AL27: 0 | AM27: 0 | AN27: 0 | AO27: 0 | AP27: 0 | AQ27: 0 | AR27: 0 | AS27: 35930.43398
B28: =Prop2020DistTar!B28 -> Low Voltage KW 1 rate | D28: 5.08 | E28: 0 | F28: 0 | G28: 0 | H28: 0 | I28: 0 | J28: 0 | K28: 0 | L28: 0 | M28: 0 | N28: 0 | O28: 0 | P28: 0 | R28: =Prop2020DistTar!AF28 -> 4392 | S28: =Prop2020DistTar!AG28 -> 0 | T28: =Prop2020DistTar!AH28 -> 0 | U28: =Prop2020DistTar!AI28 -> 20741.32671 | V28: =Prop2020DistTar!AJ28 -> 0 | W28: =Prop2020DistTar!AK28 -> 0 | X28: =Prop2020DistTar!AL28 -> 49249.22386 | Y28: =Prop2020DistTar!AM28 -> 0 | Z28: =Prop2020DistTar!AN28 -> 0 | AA28: =Prop2020DistTar!AO28 -> 0 | AB28: =Prop2020DistTar!AP28 -> 0 | AC28: =Prop2020DistTar!AQ28 -> 6369.862 | AD28: =Prop2020DistTar!AR28 -> 9838.826 | AF28: 223.1136 | AG28: 0 | AH28: 0 | AI28: 0 | AJ28: 0 | AK28: 0 | AL28: 0 | AM28: 0 | AN28: 0 | AO28: 0 | AP28: 0 | AQ28: 0 | AR28: 0 | AS28: 223.1136
B29: =Prop2020DistTar!B29 -> Low voltage medium KW time of use (opt-in) | D29: 5.08 | E29: 0 | F29: 0 | G29: 0 | H29: 0 | I29: 0 | J29: 0 | K29: 0 | L29: 0 | M29: 0 | N29: 0 | O29: 0 | P29: 0 | R29: =Prop2020DistTar!AF29 -> 208620 | S29: =Prop2020DistTar!AG29 -> 0 | T29: =Prop2020DistTar!AH29 -> 0 | U29: =Prop2020DistTar!AI29 -> 28957081.84 | V29: =Prop2020DistTar!AJ29 -> 0 | W29: =Prop2020DistTar!AK29 -> 0 | X29: =Prop2020DistTar!AL29 -> 58125647.51 | Y29: =Prop2020DistTar!AM29 -> 0 | Z29: =Prop2020DistTar!AN29 -> 0 | AA29: =Prop2020DistTar!AO29 -> 0 | AB29: =Prop2020DistTar!AP29 -> 0 | AC29: =Prop2020DistTar!AQ29 -> 3030279.076 | AD29: =Prop2020DistTar!AR29 -> 4671498.06 | AF29: 10597.896 | AG29: 0 | AH29: 0 | AI29: 0 | AJ29: 0 | AK29: 0 | AL29: 0 | AM29: 0 | AN29: 0 | AO29: 0 | AP29: 0 | AQ29: 0 | AR29: 0 | AS29: 10597.896
B30: =Prop2020DistTar!B30 -> Low voltage medium KW 1 rate (mandatory) | D30: 5.08 | E30: 0 | F30: 0 | G30: 0 | H30: 0 | I30: 0 | J30: 0 | K30: 0 | L30: 0 | M30: 0 | N30: 0 | O30: 0 | P30: 0 | R30: =Prop2020DistTar!AF30 -> 2445612 | S30: =Prop2020DistTar!AG30 -> 0 | T30: =Prop2020DistTar!AH30 -> 0 | U30: =Prop2020DistTar!AI30 -> 183561587.5 | V30: =Prop2020DistTar!AJ30 -> 0 | W30: =Prop2020DistTar!AK30 -> 0 | X30: =Prop2020DistTar!AL30 -> 356050860 | Y30: =Prop2020DistTar!AM30 -> 0 | Z30: =Prop2020DistTar!AN30 -> 0 | AA30: =Prop2020DistTar!AO30 -> 0 | AB30: =Prop2020DistTar!AP30 -> 0 | AC30: =Prop2020DistTar!AQ30 -> 24585704.74 | AD30: =Prop2020DistTar!AR30 -> 44978171.62 | AF30: 124237.0896 | AG30: 0 | AH30: 0 | AI30: 0 | AJ30: 0 | AK30: 0 | AL30: 0 | AM30: 0 | AN30: 0 | AO30: 0 | AP30: 0 | AQ30: 0 | AR30: 0 | AS30: 124237.0896
AF31: =D31/100*R31 -> 0 | AG31: 0 | AH31: 0 | AI31: 0 | AJ31: 0 | AK31: 0 | AL31: 0 | AM31: 0 | AN31: 0 | AO31: 0 | AP31: 0 | AQ31: 0 | AR31: 0 | AS31: 0
AF32: 0 | AG32: 0 | AH32: 0 | AI32: 0 | AJ32: 0 | AK32: 0 | AL32: 0 | AM32: 0 | AN32: 0 | AO32: 0 | AP32: 0 | AQ32: 0 | AR32: 0 | AS32: 0
AF33: =D33/100*R33 -> 0 | AG33: 0 | AH33: 0 | AI33: 0 | AJ33: 0 | AK33: 0 | AL33: 0 | AM33: 0 | AN33: 0 | AO33: 0 | AP33: 0 | AQ33: 0 | AR33: 0 | AS33: =SUM(AF33:AR33) -> 0
AF34: 0 | AG34: 0 | AH34: 0 | AI34: 0 | AJ34: 0 | AK34: 0 | AL34: 0 | AM34: 0 | AN34: 0 | AO34: 0 | AP34: 0 | AQ34: 0 | AR34: 0 | AS34: 0
AF35: =D35/100*R35 -> 0 | AG35: 0 | AH35: 0 | AI35: 0 | AJ35: 0 | AK35: 0 | AL35: 0 | AM35: 0 | AN35: 0 | AO35: 0 | AP35: 0 | AQ35: 0 | AR35: 0 | AS35: =SUM(AF35:AR35) -> 0
AF36: 0 | AG36: 0 | AH36: 0 | AI36: 0 | AJ36: 0 | AK36: 0 | AL36: 0 | AM36: 0 | AN36: 0 | AO36: 0 | AP36: 0 | AQ36: 0 | AR36: 0 | AS36: 0
AF37: 0 | AG37: 0 | AH37: 0 | AI37: 0 | AJ37: 0 | AK37: 0 | AL37: 0 | AM37: 0 | AN37: 0 | AO37: 0 | AP37: 0 | AQ37: 0 | AR37: 0 | AS37: 0
AF38: 0 | AG38: 0 | AH38: 0 | AI38: 0 | AJ38: 0 | AK38: 0 | AL38: 0 | AM38: 0 | AN38: 0 | AO38: 0 | AP38: 0 | AQ38: 0 | AR38: 0 | AS38: 0
AF39: =D39/100*R39 -> 0 | AG39: 0 | AH39: 0 | AI39: 0 | AJ39: 0 | AK39: 0 | AL39: 0 | AM39: 0 | AN39: 0 | AO39: 0 | AP39: 0 | AQ39: 0 | AR39: 0 | AS39: 0
AF40: 0 | AG40: 0 | AH40: 0 | AI40: 0 | AJ40: 0 | AK40: 0 | AL40: 0 | AM40: 0 | AN40: 0 | AO40: 0 | AP40: 0 | AQ40: 0 | AR40: 0 | AS40: 0
AF41: 0 | AG41: 0 | AH41: 0 | AI41: 0 | AJ41: 0 | AK41: 0 | AL41: 0 | AM41: 0 | AN41: 0 | AO41: 0 | AP41: 0 | AQ41: 0 | AR41: 0 | AS41: 0
AF42: 0 | AG42: 0 | AH42: 0 | AI42: 0 | AJ42: 0 | AK42: 0 | AL42: 0 | AM42: 0 | AN42: 0 | AO42: 0 | AP42: 0 | AQ42: 0 | AR42: 0 | AS42: 0
AF43: 0 | AG43: 0 | AH43: 0 | AI43: 0 | AJ43: 0 | AK43: 0 | AL43: 0 | AM43: 0 | AN43: 0 | AO43: 0 | AP43: 0 | AQ43: 0 | AR43: 0 | AS43: 0
AF44: 0 | AG44: 0 | AH44: 0 | AI44: 0 | AJ44: 0 | AK44: 0 | AL44: 0 | AM44: 0 | AN44: 0 | AO44: 0 | AP44: 0 | AQ44: 0 | AR44: 0 | AS44: 0
AF45: 0 | AG45: 0 | AH45: 0 | AI45: 0 | AJ45: =H45/100*V45 -> 0 | AK45: =I45/100*W45 -> 0 | AL45: =J45/100*X45 -> 0 | AM45: =K45/100*Y45 -> 0 | AN45: =L45/100*Z45 -> 0 | AO45: =M45/100*AA45 -> 0 | AP45: =N45/100*AB45 -> 0 | AQ45: =O45/100*AC45 -> 0 | AR45: =P45/100*AD45 -> 0 | AS45: 0
AF46: 0 | AG46: 0 | AH46: =F46/100*T46 -> 0 | AI46: =G46/100*U46 -> 0 | AJ46: 0 | AK46: 0 | AL46: 0 | AM46: 0 | AN46: 0 | AO46: 0 | AP46: 0 | AQ46: 0 | AR46: 0 | AS46: 0
AF47: 0 | AG47: 0 | AH47: 0 | AI47: 0 | AJ47: 0 | AK47: 0 | AL47: 0 | AM47: 0 | AN47: 0 | AO47: 0 | AP47: 0 | AQ47: 0 | AR47: 0 | AS47: 0
AF48: 0 | AG48: 0 | AH48: 0 | AI48: 0 | AJ48: 0 | AK48: 0 | AL48: 0 | AM48: 0 | AN48: 0 | AO48: 0 | AP48: 0 | AQ48: 0 | AR48: 0 | AS48: 0
AF49: 0 | AG49: 0 | AH49: 0 | AI49: 0 | AJ49: 0 | AK49: 0 | AL49: 0 | AM49: 0 | AN49: 0 | AO49: 0 | AP49: 0 | AQ49: 0 | AR49: 0 | AS49: 0
AF50: 0 | AG50: 0 | AH50: 0 | AI50: 0 | AJ50: 0 | AK50: 0 | AL50: 0 | AM50: 0 | AN50: 0 | AO50: 0 | AP50: 0 | AQ50: 0 | AR50: 0 | AS50: 0
AF51: 0 | AG51: 0 | AH51: 0 | AI51: 0 | AJ51: 0 | AK51: 0 | AL51: 0 | AM51: 0 | AN51: 0 | AO51: 0 | AP51: 0 | AQ51: 0 | AR51: 0 | AS51: 0
AF52: 0 | AG52: 0 | AH52: 0 | AI52: 0 | AJ52: 0 | AK52: 0 | AL52: 0 | AM52: 0 | AN52: 0 | AO52: 0 | AP52: 0 | AQ52: 0 | AR52: 0 | AS52: 0
AF53: 0 | AG53: 0 | AH53: 0 | AI53: 0 | AJ53: 0 | AK53: 0 | AL53: 0 | AM53: 0 | AN53: 0 | AO53: 0 | AP53: 0 | AQ53: 0 | AR53: 0 | AS53: 0
AF54: 0 | AG54: 0 | AH54: 0 | AI54: 0 | AJ54: 0 | AK54: 0 | AL54: 0 | AM54: 0 | AN54: 0 | AO54: 0 | AP54: 0 | AQ54: 0 | AR54: 0 | AS54: 0
AF55: 0 | AG55: 0 | AH55: 0 | AI55: 0 | AJ55: 0 | AK55: 0 | AL55: 0 | AM55: 0 | AN55: 0 | AO55: 0 | AP55: 0 | AQ55: 0 | AR55: 0 | AS55: 0
AF56: 0 | AG56: 0 | AH56: 0 | AI56: 0 | AJ56: 0 | AK56: 0 | AL56: 0 | AM56: 0 | AN56: 0 | AO56: 0 | AP56: 0 | AQ56: 0 | AR56: 0 | AS56: 0
AF57: 0 | AG57: 0 | AH57: 0 | AI57: 0 | AJ57: 0 | AK57: 0 | AL57: 0 | AM57: 0 | AN57: 0 | AO57: 0 | AP57: 0 | AQ57: 0 | AR57: 0 | AS57: 0
AF58: 0 | AG58: 0 | AH58: 0 | AI58: 0 | AJ58: 0 | AK58: 0 | AL58: 0 | AM58: 0 | AN58: 0 | AO58: 0 | AP58: 0 | AQ58: 0 | AR58: 0 | AS58: 0
AF59: 0 | AG59: 0 | AH59: 0 | AI59: 0 | AJ59: 0 | AK59: 0 | AL59: 0 | AM59: 0 | AN59: 0 | AO59: 0 | AP59: 0 | AQ59: 0 | AR59: 0 | AS59: 0
AF60: 0 | AG60: 0 | AH60: 0 | AI60: 0 | AJ60: 0 | AK60: 0 | AL60: 0 | AM60: 0 | AN60: 0 | AO60: 0 | AP60: 0 | AQ60: 0 | AR60: 0 | AS60: 0
AF61: 0 | AG61: 0 | AH61: 0 | AI61: 0 | AJ61: 0 | AK61: 0 | AL61: 0 | AM61: 0 | AN61: 0 | AO61: 0 | AP61: 0 | AQ61: 0 | AR61: 0 | AS61: 0
AF62: 0 | AG62: 0 | AH62: 0 | AI62: 0 | AJ62: 0 | AK62: 0 | AL62: 0 | AM62: 0 | AN62: 0 | AO62: 0 | AP62: 0 | AQ62: 0 | AR62: 0 | AS62: 0
AF63: 0 | AG63: 0 | AH63: 0 | AI63: 0 | AJ63: 0 | AK63: 0 | AL63: 0 | AM63: 0 | AN63: 0 | AO63: 0 | AP63: 0 | AQ63: 0 | AR63: 0 | AS63: 0
AF64: 0 | AG64: 0 | AH64: 0 | AI64: 0 | AJ64: 0 | AK64: 0 | AL64: 0 | AM64: 0 | AN64: 0 | AO64: 0 | AP64: 0 | AQ64: 0 | AR64: 0 | AS64: 0
AF65: 0 | AG65: 0 | AH65: 0 | AI65: 0 | AJ65: 0 | AK65: 0 | AL65: 0 | AM65: 0 | AN65: 0 | AO65: 0 | AP65: 0 | AQ65: 0 | AR65: 0 | AS65: 0
R66: =SUM(R6:R65) -> 276925924 | S66: 1082561070 | T66: 14944122.32 | U66: 946758713.4 | V66: 1765288643 | W66: 0 | X66: 1454463568 | Y66: =SUM(Y6:Y65) -> 2274196081 | Z66: 27838042.08 | AA66: 431167120.8 | AB66: 128432748.2 | AC66: 27622353.68 | AD66: 49659508.5 | AF66: =SUM(AF6:AF65) -> 12812506.45 | AG66: 0 | AH66: 0 | AI66: 0 | AJ66: 0 | AK66: 0 | AL66: 0 | AM66: =SUM(AM6:AM65) -> 0 | AN66: 0 | AO66: 0 | AP66: 0 | AQ66: 0 | AR66: 0 | AS66: 12812506.45

Sheet Est2019JSRev
B1: ="Tariff Approval - "&'Model update'!C3 -> Tariff Approval - United Energy | D1: ="Est"&'Model update'!$C$5-1&"JSRev" -> Est2019JSRev
B3: ="ESTIMATED "&'Model update'!C8&" JURISDICTIONAL SCHEME REVENUE" -> ESTIMATED 2019 JURISDICTIONAL SCHEME REVENUE
D4: ="Current Jurisdictional scheme Tariffs (Pt-1) for "&'Model update'!$C$8 -> Current Jurisdictional scheme Tariffs (Pt-1) for 2019 | R4: ="Estimated Quantities (Qt-1) for "&'Model update'!$C$8 -> Estimated Quantities (Qt-1) for 2019 | AF4: ="Estimated Revenue (Pt-1 "&'Model update'!$C$8&")*(Qt-1 " &'Model update'!$C$8&")" -> Estimated Revenue (Pt-1 2019)*(Qt-1 2019)
B5: ="Tariffs "&'Model update'!C8 -> Tariffs 2019 | D5: =Est2019DistRev!D5 -> ExistTar Fixed | E5: =Est2019DistRev!E5 -> ExistTar PkBlk1 | F5: =Est2019DistRev!F5 -> ExistTar PkBlk2 | G5: =Est2019DistRev!G5 -> ExistTar PkBlk3 | H5: =Est2019DistRev!H5 -> ExistTar PkBlk4 | I5: =Est2019DistRev!I5 -> ExistTar OPkBlk1 | J5: =Est2019DistRev!J5 -> ExistTar OPkBlk2 | K5: =Est2019DistRev!K5 -> ExistTar OPkBlk3 | L5: =Est2019DistRev!L5 -> ExistTar OPkBlk4 | M5: =Est2019DistRev!M5 -> ExistTar DemBlk1 | N5: =Est2019DistRev!N5 -> ExistTar DemBlk2 | O5: =Est2019DistRev!O5 -> ExistTar DemBlk3 | P5: =Est2019DistRev!P5 -> ExistTar DemBlk4 | R5: =Est2019DistRev!R5 -> EstVol Fixed | S5: =Est2019DistRev!S5 -> EstVol PkBlk1 | T5: =Est2019DistRev!T5 -> EstVol PkBlk2 | U5: =Est2019DistRev!U5 -> EstVol PkBlk3 | V5: =Est2019DistRev!V5 -> EstVol PkBlk4 | W5: =Est2019DistRev!W5 -> EstVol OPkBlk1 | X5: =Est2019DistRev!X5 -> EstVol OPkBlk2 | Y5: =Est2019DistRev!Y5 -> EstVol OPkBlk3 | Z5: =Est2019DistRev!Z5 -> EstVol OPkBlk4 | AA5: =Est2019DistRev!AA5 -> EstVol DemBlk1 | AB5: =Est2019DistRev!AB5 -> EstVol DemBlk2 | AC5: =Est2019DistRev!AC5 -> EstVol DemBlk3 | AD5: =Est2019DistRev!AD5 -> EstVol DemBlk4 | AF5: =Est2019DistRev!AF5 -> EstRev Fixed | AG5: =Est2019DistRev!AG5 -> EstRev PkBlk1 | AH5: =Est2019DistRev!AH5 -> EstRev PkBlk2 | AI5: =Est2019DistRev!AI5 -> EstRev PkBlk3 | AJ5: =Est2019DistRev!AJ5 -> EstRev PkBlk4 | AK5: =Est2019DistRev!AK5 -> EstRev OPkBlk1 | AL5: =Est2019DistRev!AL5 -> EstRev OPkBlk2 | AM5: =Est2019DistRev!AM5 -> EstRev OPkBlk3 | AN5: =Est2019DistRev!AN5 -> EstRev OPkBlk4 | AO5: =Est2019DistRev!AO5 -> EstRev DemBlk1 | AP5: =Est2019DistRev!AP5 -> EstRev DemBlk2 | AQ5: =Est2019DistRev!AQ5 -> EstRev DemBlk3 | AR5: =Est2019DistRev!AR5 -> EstRev DemBlk4 | AS5: EstRev Total
B6: =Est2019TransRev!B6 -> Low voltage small 1 rate | D6: 5.32 | E6: 0 | F6: 0 | G6: 0 | H6: 0 | I6: 0 | J6: 0 | K6: 0 | L6: 0 | M6: 0 | N6: 0 | O6: 0 | P6: 0 | R6: =Est2019DistRev!R6 -> 206859021.7 | S6: =Est2019DistRev!S6 -> 943855173.4 | T6: =Est2019DistRev!T6 -> 0 | U6: =Est2019DistRev!U6 -> 0 | V6: =Est2019DistRev!V6 -> 1520207629 | W6: =Est2019DistRev!W6 -> 0 | X6: =Est2019DistRev!X6 -> 0 | Y6: =Est2019DistRev!Y6 -> 0 | Z6: =Est2019DistRev!Z6 -> 0 | AA6: =Est2019DistRev!AA6 -> 0 | AB6: =Est2019DistRev!AB6 -> 0 | AC6: =Est2019DistRev!AC6 -> 0 | AD6: =Est2019DistRev!AD6 -> 0 | AF6: =D6/100*R6 -> 11004899.95 | AG6: 0 | AH6: =F6/100*T6 -> 0 | AI6: =G6/100*U6 -> 0 | AJ6: =H6/100*V6 -> 0 | AK6: =I6/100*W6 -> 0 | AL6: =J6/100*X6 -> 0 | AM6: =K6/100*Y6 -> 0 | AN6: =L6/100*Z6 -> 0 | AO6: =M6/100*AA6 -> 0 | AP6: =N6/100*AB6 -> 0 | AQ6: =O6/100*AC6 -> 0 | AR6: =P6/100*AD6 -> 0 | AS6: =SUM(AF6:AR6) -> 11004899.95
B7: =Est2019TransRev!B7 -> Winter economy tariff | D7: 5.32 | E7: 0 | F7: 0 | G7: 0 | H7: 0 | I7: 0 | J7: 0 | K7: 0 | L7: 0 | M7: 0 | N7: 0 | O7: 0 | P7: 0 | R7: =Est2019DistRev!R7 -> 42656.46073 | S7: =Est2019DistRev!S7 -> 298454.7293 | T7: =Est2019DistRev!T7 -> 0 | U7: =Est2019DistRev!U7 -> 0 | V7: =Est2019DistRev!V7 -> 543138.8553 | W7: =Est2019DistRev!W7 -> 0 | X7: =Est2019DistRev!X7 -> 0 | Y7: =Est2019DistRev!Y7 -> 0 | Z7: =Est2019DistRev!Z7 -> 0 | AA7: =Est2019DistRev!AA7 -> 0 | AB7: =Est2019DistRev!AB7 -> 0 | AC7: =Est2019DistRev!AC7 -> 0 | AD7: =Est2019DistRev!AD7 -> 0 | AF7: =D7/100*R7 -> 2269.323711 | AG7: 0 | AH7: 0 | AI7: 0 | AJ7: 0 | AK7: 0 | AL7: 0 | AM7: 0 | AN7: 0 | AO7: 0 | AP7: 0 | AQ7: 0 | AR7: 0 | AS7: =SUM(AF7:AR7) -> 2269.323711
B8: =Est2019TransRev!B8 -> Reverse cycle airconditioning time of use | D8: 5.32 | E8: 0 | F8: 0 | G8: 0 | H8: 0 | I8: 0 | J8: 0 | K8: 0 | L8: 0 | M8: 0 | N8: 0 | O8: 0 | P8: 0 | R8: =Est2019DistRev!R8 -> 0 | S8: =Est2019DistRev!S8 -> 0 | T8: =Est2019DistRev!T8 -> 0 | U8: =Est2019DistRev!U8 -> 0 | V8: =Est2019DistRev!V8 -> 0 | W8: =Est2019DistRev!W8 -> 0 | X8: =Est2019DistRev!X8 -> 0 | Y8: =Est2019DistRev!Y8 -> 0 | Z8: =Est2019DistRev!Z8 -> 0 | AA8: =Est2019DistRev!AA8 -> 0 | AB8: =Est2019DistRev!AB8 -> 0 | AC8: =Est2019DistRev!AC8 -> 0 | AD8: =Est2019DistRev!AD8 -> 0 | AF8: 0 | AG8: 0 | AH8: 0 | AI8: 0 | AJ8: 0 | AK8: 0 | AL8: 0 | AM8: 0 | AN8: 0 | AO8: 0 | AP8: 0 | AQ8: 0 | AR8: 0 | AS8: 0
B9: =Est2019TransRev!B9 -> Low voltage small 2 rate | D9: 5.32 | E9: 0 | F9: 0 | G9: 0 | H9: 0 | I9: 0 | J9: 0 | K9: 0 | L9: 0 | M9: 0 | N9: 0 | O9: 0 | P9: 0 | R9: =Est2019DistRev!R9 -> 1340451.159 | S9: =Est2019DistRev!S9 -> 0 | T9: =Est2019DistRev!T9 -> 0 | U9: =Est2019DistRev!U9 -> 3869362.149 | V9: =Est2019DistRev!V9 -> 0 | W9: =Est2019DistRev!W9 -> 0 | X9: =Est2019DistRev!X9 -> 6191506.811 | Y9: =Est2019DistRev!Y9 -> 13287140.18 | Z9: =Est2019DistRev!Z9 -> 0 | AA9: =Est2019DistRev!AA9 -> 0 | AB9: =Est2019DistRev!AB9 -> 0 | AC9: =Est2019DistRev!AC9 -> 0 | AD9: =Est2019DistRev!AD9 -> 0 | AF9: 71312.00165 | AG9: 0 | AH9: 0 | AI9: 0 | AJ9: 0 | AK9: 0 | AL9: 0 | AM9: 0 | AN9: 0 | AO9: 0 | AP9: 0 | AQ9: 0 | AR9: 0 | AS9: 71312.00165
B10: =Est2019TransRev!B10 -> Dedicated circuit | D10: 0 | E10: 0 | F10: 0 | G10: 0 | H10: 0 | I10: 0 | J10: 0 | K10: 0 | L10: 0 | M10: 0 | N10: 0 | O10: 0 | P10: 0 | R10: =Est2019DistRev!R10 -> 2556582.814 | S10: =Est2019DistRev!S10 -> 0 | T10: =Est2019DistRev!T10 -> 0 | U10: =Est2019DistRev!U10 -> 0 | V10: =Est2019DistRev!V10 -> 0 | W10: =Est2019DistRev!W10 -> 0 | X10: =Est2019DistRev!X10 -> 0 | Y10: =Est2019DistRev!Y10 -> 84158747.77 | Z10: =Est2019DistRev!Z10 -> 0 | AA10: =Est2019DistRev!AA10 -> 0 | AB10: =Est2019DistRev!AB10 -> 0 | AC10: =Est2019DistRev!AC10 -> 0 | AD10: =Est2019DistRev!AD10 -> 0 | AF10: 0 | AG10: 0 | AH10: 0 | AI10: 0 | AJ10: 0 | AK10: 0 | AL10: 0 | AM10: 0 | AN10: 0 | AO10: 0 | AP10: 0 | AQ10: 0 | AR10: 0 | AS10: 0
B11: =Est2019TransRev!B11 -> Low voltage medium 1 rate | D11: 5.32 | E11: 0 | F11: 0 | G11: 0 | H11: 0 | I11: 0 | J11: 0 | K11: 0 | L11: 0 | M11: 0 | N11: 0 | O11: 0 | P11: 0 | R11: =Est2019DistRev!R11 -> 12146313.83 | S11: =Est2019DistRev!S11 -> 153088884.2 | T11: =Est2019DistRev!T11 -> 0 | U11: =Est2019DistRev!U11 -> 0 | V11: =Est2019DistRev!V11 -> 236736703.9 | W11: =Est2019DistRev!W11 -> 0 | X11: =Est2019DistRev!X11 -> 0 | Y11: =Est2019DistRev!Y11 -> 0 | Z11: =Est2019DistRev!Z11 -> 0 | AA11: =Est2019DistRev!AA11 -> 0 | AB11: =Est2019DistRev!AB11 -> 0 | AC11: =Est2019DistRev!AC11 -> 0 | AD11: =Est2019DistRev!AD11 -> 0 | AF11: 646183.896 | AG11: 0 | AH11: 0 | AI11: 0 | AJ11: 0 | AK11: 0 | AL11: 0 | AM11: 0 | AN11: 0 | AO11: 0 | AP11: 0 | AQ11: 0 | AR11: 0 | AS11: 646183.896
B12: =Est2019TransRev!B12 -> Low voltage medium 2 rate 5 day | D12: 5.32 | E12: 0 | F12: 0 | G12: 0 | H12: 0 | I12: 0 | J12: 0 | K12: 0 | L12: 0 | M12: 0 | N12: 0 | O12: 0 | P12: 0 | R12: =Est2019DistRev!R12 -> 3142786.31 | S12: =Est2019DistRev!S12 -> 0 | T12: =Est2019DistRev!T12 -> 0 | U12: =Est2019DistRev!U12 -> 46533502.01 | V12: =Est2019DistRev!V12 -> 0 | W12: =Est2019DistRev!W12 -> 0 | X12: =Est2019DistRev!X12 -> 68210817.97 | Y12: =Est2019DistRev!Y12 -> 69257922.9 | Z12: =Est2019DistRev!Z12 -> 0 | AA12: =Est2019DistRev!AA12 -> 0 | AB12: =Est2019DistRev!AB12 -> 0 | AC12: =Est2019DistRev!AC12 -> 0 | AD12: =Est2019DistRev!AD12 -> 0 | AF12: 167196.2317 | AG12: 0 | AH12: 0 | AI12: 0 | AJ12: 0 | AK12: 0 | AL12: 0 | AM12: 0 | AN12: 0 | AO12: 0 | AP12: 0 | AQ12: 0 | AR12: 0 | AS12: 167196.2317
B13: =Est2019TransRev!B13 -> Low voltage medium 2 rate 7 day | D13: 5.32 | E13: 0 | F13: 0 | G13: 0 | H13: 0 | I13: 0 | J13: 0 | K13: 0 | L13: 0 | M13: 0 | N13: 0 | O13: 0 | P13: 0 | R13: =Est2019DistRev!R13 -> 1806435.361 | S13: =Est2019DistRev!S13 -> 0 | T13: =Est2019DistRev!T13 -> 0 | U13: =Est2019DistRev!U13 -> 23555331.17 | V13: =Est2019DistRev!V13 -> 0 | W13: =Est2019DistRev!W13 -> 0 | X13: =Est2019DistRev!X13 -> 36881177.88 | Y13: =Est2019DistRev!Y13 -> 16315855.32 | Z13: =Est2019DistRev!Z13 -> 0 | AA13: =Est2019DistRev!AA13 -> 0 | AB13: =Est2019DistRev!AB13 -> 0 | AC13: =Est2019DistRev!AC13 -> 0 | AD13: =Est2019DistRev!AD13 -> 0 | AF13: 96102.36119 | AG13: 0 | AH13: 0 | AI13: 0 | AJ13: 0 | AK13: 0 | AL13: 0 | AM13: 0 | AN13: 0 | AO13: 0 | AP13: 0 | AQ13: 0 | AR13: 0 | AS13: 96102.36119
B14: =Est2019TransRev!B14 -> Unmetered supplies | D14: 0 | E14: 0 | F14: 0 | G14: 0 | H14: 0 | I14: 0 | J14: 0 | K14: 0 | L14: 0 | M14: 0 | N14: 0 | O14: 0 | P14: 0 | R14: =Est2019DistRev!R14 -> 2772880.659 | S14: =Est2019DistRev!S14 -> 0 | T14: =Est2019DistRev!T14 -> 0 | U14: =Est2019DistRev!U14 -> 11782630.92 | V14: =Est2019DistRev!V14 -> 0 | W14: =Est2019DistRev!W14 -> 0 | X14: =Est2019DistRev!X14 -> 19891859.09 | Y14: =Est2019DistRev!Y14 -> 58262147.41 | Z14: =Est2019DistRev!Z14 -> 0 | AA14: =Est2019DistRev!AA14 -> 0 | AB14: =Est2019DistRev!AB14 -> 0 | AC14: =Est2019DistRev!AC14 -> 0 | AD14: =Est2019DistRev!AD14 -> 0 | AF14: 0 | AG14: 0 | AH14: 0 | AI14: 0 | AJ14: 0 | AK14: 0 | AL14: 0 | AM14: 0 | AN14: 0 | AO14: 0 | AP14: 0 | AQ14: 0 | AR14: 0 | AS14: 0
B15: =Est2019TransRev!B15 -> Low voltage large 1 rate | D15: 5.32 | E15: 0 | F15: 0 | G15: 0 | H15: 0 | I15: 0 | J15: 0 | K15: 0 | L15: 0 | M15: 0 | N15: 0 | O15: 0 | P15: 0 | R15: =Est2019DistRev!R15 -> 2053.793549 | S15: =Est2019DistRev!S15 -> 511275.669 | T15: =Est2019DistRev!T15 -> 0 | U15: =Est2019DistRev!U15 -> 0 | V15: =Est2019DistRev!V15 -> 684047.4181 | W15: =Est2019DistRev!W15 -> 0 | X15: =Est2019DistRev!X15 -> 0 | Y15: =Est2019DistRev!Y15 -> 0 | Z15: =Est2019DistRev!Z15 -> 0 | AA15: =Est2019DistRev!AA15 -> 0 | AB15: =Est2019DistRev!AB15 -> 0 | AC15: =Est2019DistRev!AC15 -> 0 | AD15: =Est2019DistRev!AD15 -> 0 | AF15: 109.2618168 | AG15: 0 | AH15: 0 | AI15: 0 | AJ15: 0 | AK15: 0 | AL15: 0 | AM15: 0 | AN15: 0 | AO15: 0 | AP15: 0 | AQ15: 0 | AR15: 0 | AS15: 109.2618168
B16: =Est2019TransRev!B16 -> Low voltage large 2 rate | D16: 5.32 | E16: 0 | F16: 0 | G16: 0 | H16: 0 | I16: 0 | J16: 0 | K16: 0 | L16: 0 | M16: 0 | N16: 0 | O16: 0 | P16: 0 | R16: =Est2019DistRev!R16 -> 6881.086986 | S16: =Est2019DistRev!S16 -> 0 | T16: =Est2019DistRev!T16 -> 0 | U16: =Est2019DistRev!U16 -> 871557.8301 | V16: =Est2019DistRev!V16 -> 0 | W16: =Est2019DistRev!W16 -> 0 | X16: =Est2019DistRev!X16 -> 1057870.494 | Y16: =Est2019DistRev!Y16 -> 1482935.172 | Z16: =Est2019DistRev!Z16 -> 0 | AA16: =Est2019DistRev!AA16 -> 0 | AB16: =Est2019DistRev!AB16 -> 0 | AC16: =Est2019DistRev!AC16 -> 0 | AD16: =Est2019DistRev!AD16 -> 0 | AF16: 366.0738277 | AG16: 0 | AH16: 0 | AI16: 0 | AJ16: 0 | AK16: 0 | AL16: 0 | AM16: 0 | AN16: 0 | AO16: 0 | AP16: 0 | AQ16: 0 | AR16: 0 | AS16: 366.0738277
B17: =Est2019TransRev!B17 -> Low voltage KW time of use | D17: 5.32 | E17: 0 | F17: 0 | G17: 0 | H17: 0 | I17: 0 | J17: 0 | K17: 0 | L17: 0 | M17: 0 | N17: 0 | O17: 0 | P17: 0 | R17: =Est2019DistRev!R17 -> 67773.95967 | S17: =Est2019DistRev!S17 -> 0 | T17: =Est2019DistRev!T17 -> 0 | U17: =Est2019DistRev!U17 -> 2844398.156 | V17: =Est2019DistRev!V17 -> 0 | W17: =Est2019DistRev!W17 -> 0 | X17: =Est2019DistRev!X17 -> 4173150.205 | Y17: =Est2019DistRev!Y17 -> 6644434.366 | Z17: =Est2019DistRev!Z17 -> 0 | AA17: =Est2019DistRev!AA17 -> 0 | AB17: =Est2019DistRev!AB17 -> 574892.5731 | AC17: =Est2019DistRev!AC17 -> 0 | AD17: =Est2019DistRev!AD17 -> 0 | AF17: 3605.574655 | AG17: 0 | AH17: 0 | AI17: 0 | AJ17: 0 | AK17: 0 | AL17: 0 | AM17: 0 | AN17: 0 | AO17: 0 | AP17: 0 | AQ17: 0 | AR17: 0 | AS17: 3605.574655
B18: =Est2019TransRev!B18 -> Low voltage KW time of use - HOT | D18: 5.32 | E18: 0 | F18: 0 | G18: 0 | H18: 0 | I18: 0 | J18: 0 | K18: 0 | L18: 0 | M18: 0 | N18: 0 | O18: 0 | P18: 0 | R18: =Est2019DistRev!R18 -> 6805.949179 | S18: =Est2019DistRev!S18 -> 0 | T18: =Est2019DistRev!T18 -> 0 | U18: =Est2019DistRev!U18 -> 175264.9235 | V18: =Est2019DistRev!V18 -> 0 | W18: =Est2019DistRev!W18 -> 0 | X18: =Est2019DistRev!X18 -> 413996.2846 | Y18: =Est2019DistRev!Y18 -> 884394.1544 | Z18: =Est2019DistRev!Z18 -> 0 | AA18: =Est2019DistRev!AA18 -> 0 | AB18: =Est2019DistRev!AB18 -> 109607.5488 | AC18: =Est2019DistRev!AC18 -> 0 | AD18: =Est2019DistRev!AD18 -> 0 | AF18: 362.0764963 | AG18: 0 | AH18: 0 | AI18: 0 | AJ18: 0 | AK18: 0 | AL18: 0 | AM18: 0 | AN18: 0 | AO18: 0 | AP18: 0 | AQ18: 0 | AR18: 0 | AS18: 362.0764963
B19: =Est2019TransRev!B19 -> Low voltage large KVA time of use | D19: 5.32 | E19: 0 | F19: 0 | G19: 0 | H19: 0 | I19: 0 | J19: 0 | K19: 0 | L19: 0 | M19: 0 | N19: 0 | O19: 0 | P19: 0 | R19: =Est2019DistRev!R19 -> 1176060.684 | S19: =Est2019DistRev!S19 -> 0 | T19: =Est2019DistRev!T19 -> 0 | U19: =Est2019DistRev!U19 -> 452033540.5 | V19: =Est2019DistRev!V19 -> 0 | W19: =Est2019DistRev!W19 -> 0 | X19: =Est2019DistRev!X19 -> 637707874.3 | Y19: =Est2019DistRev!Y19 -> 1251535343 | Z19: =Est2019DistRev!Z19 -> 0 | AA19: =Est2019DistRev!AA19 -> 326114206.9 | AB19: =Est2019DistRev!AB19 -> 95205640.61 | AC19: =Est2019DistRev!AC19 -> 0 | AD19: =Est2019DistRev!AD19 -> 0 | AF19: 62566.42837 | AG19: 0 | AH19: 0 | AI19: 0 | AJ19: 0 | AK19: 0 | AL19: 0 | AM19: 0 | AN19: 0 | AO19: 0 | AP19: 0 | AQ19: 0 | AR19: 0 | AS19: 62566.42837
B20: =Est2019TransRev!B20 -> Low voltage large KVA time of use - HOT | D20: 5.32 | E20: 0 | F20: 0 | G20: 0 | H20: 0 | I20: 0 | J20: 0 | K20: 0 | L20: 0 | M20: 0 | N20: 0 | O20: 0 | P20: 0 | R20: =Est2019DistRev!R20 -> 0 | S20: =Est2019DistRev!S20 -> 0 | T20: =Est2019DistRev!T20 -> 0 | U20: =Est2019DistRev!U20 -> 0 | V20: =Est2019DistRev!V20 -> 0 | W20: =Est2019DistRev!W20 -> 0 | X20: =Est2019DistRev!X20 -> 0 | Y20: =Est2019DistRev!Y20 -> 0 | Z20: =Est2019DistRev!Z20 -> 0 | AA20: =Est2019DistRev!AA20 -> 0 | AB20: =Est2019DistRev!AB20 -> 0 | AC20: =Est2019DistRev!AC20 -> 0 | AD20: =Est2019DistRev!AD20 -> 0 | AF20: 0 | AG20: 0 | AH20: 0 | AI20: 0 | AJ20: 0 | AK20: 0 | AL20: 0 | AM20: 0 | AN20: 0 | AO20: 0 | AP20: 0 | AQ20: 0 | AR20: 0 | AS20: 0
B21: =Est2019TransRev!B21 -> High voltage KVA time of use | D21: 5.32 | E21: 0 | F21: 0 | G21: 0 | H21: 0 | I21: 0 | J21: 0 | K21: 0 | L21: 0 | M21: 0 | N21: 0 | O21: 0 | P21: 0 | R21: =Est2019DistRev!R21 -> 35844.29161 | S21: =Est2019DistRev!S21 -> 0 | T21: =Est2019DistRev!T21 -> 0 | U21: =Est2019DistRev!U21 -> 168797660 | V21: =Est2019DistRev!V21 -> 0 | W21: =Est2019DistRev!W21 -> 0 | X21: =Est2019DistRev!X21 -> 247120138.7 | Y21: =Est2019DistRev!Y21 -> 624804300.7 | Z21: =Est2019DistRev!Z21 -> 0 | AA21: =Est2019DistRev!AA21 -> 104519165.9 | AB21: =Est2019DistRev!AB21 -> 32848258.18 | AC21: =Est2019DistRev!AC21 -> 0 | AD21: =Est2019DistRev!AD21 -> 0 | AF21: 1906.916314 | AG21: 0 | AH21: 0 | AI21: 0 | AJ21: 0 | AK21: 0 | AL21: 0 | AM21: 0 | AN21: 0 | AO21: 0 | AP21: 0 | AQ21: 0 | AR21: 0 | AS21: 1906.916314
B22: =Est2019TransRev!B22 -> High voltage KVA time of use - HOT | D22: 5.32 | E22: 0 | F22: 0 | G22: 0 | H22: 0 | I22: 0 | J22: 0 | K22: 0 | L22: 0 | M22: 0 | N22: 0 | O22: 0 | P22: 0 | R22: =Est2019DistRev!R22 -> 0 | S22: =Est2019DistRev!S22 -> 0 | T22: =Est2019DistRev!T22 -> 0 | U22: =Est2019DistRev!U22 -> 0 | V22: =Est2019DistRev!V22 -> 0 | W22: =Est2019DistRev!W22 -> 0 | X22: =Est2019DistRev!X22 -> 0 | Y22: =Est2019DistRev!Y22 -> 0 | Z22: =Est2019DistRev!Z22 -> 0 | AA22: =Est2019DistRev!AA22 -> 0 | AB22: =Est2019DistRev!AB22 -> 0 | AC22: =Est2019DistRev!AC22 -> 0 | AD22: =Est2019DistRev!AD22 -> 0 | AF22: 0 | AG22: 0 | AH22: =F22/100*T22 -> 0 | AI22: 0 | AJ22: 0 | AK22: 0 | AL22: 0 | AM22: 0 | AN22: 0 | AO22: 0 | AP22: 0 | AQ22: 0 | AR22: 0 | AS22: 0
B23: =Est2019TransRev!B23 -> Subtransmission KVA time of use | D23: 5.32 | E23: 0 | F23: 0 | G23: 0 | H23: 0 | I23: 0 | J23: 0 | K23: 0 | L23: 0 | M23: 0 | N23: 0 | O23: 0 | P23: 0 | R23: =Est2019DistRev!R23 -> 388.1848269 | S23: =Est2019DistRev!S23 -> 0 | T23: =Est2019DistRev!T23 -> 0 | U23: =Est2019DistRev!U23 -> 8083883.957 | V23: =Est2019DistRev!V23 -> 0 | W23: =Est2019DistRev!W23 -> 0 | X23: =Est2019DistRev!X23 -> 11274570.01 | Y23: =Est2019DistRev!Y23 -> 16356094.73 | Z23: =Est2019DistRev!Z23 -> 0 | AA23: =Est2019DistRev!AA23 -> 4251731.381 | AB23: =Est2019DistRev!AB23 -> 1524422.842 | AC23: =Est2019DistRev!AC23 -> 0 | AD23: =Est2019DistRev!AD23 -> 0 | AF23: 20.65143279 | AG23: 0 | AH23: 0 | AI23: 0 | AJ23: 0 | AK23: 0 | AL23: 0 | AM23: 0 | AN23: 0 | AO23: 0 | AP23: 0 | AQ23: 0 | AR23: 0 | AS23: 20.65143279
B24: =Est2019TransRev!B24 -> TOD | D24: 5.32 | E24: 0 | F24: 0 | G24: 0 | H24: 0 | I24: 0 | J24: 0 | K24: 0 | L24: 0 | M24: 0 | N24: 0 | O24: 0 | P24: 0 | R24: =Est2019DistRev!R24 -> 14958828.75 | S24: =Est2019DistRev!S24 -> 0 | T24: =Est2019DistRev!T24 -> 11157824.73 | U24: =Est2019DistRev!U24 -> 21858787.26 | V24: =Est2019DistRev!V24 -> 0 | W24: =Est2019DistRev!W24 -> 0 | X24: =Est2019DistRev!X24 -> 41608118.3 | Y24: =Est2019DistRev!Y24 -> 106719624.5 | Z24: =Est2019DistRev!Z24 -> 23289542.67 | AA24: =Est2019DistRev!AA24 -> 0 | AB24: =Est2019DistRev!AB24 -> 0 | AC24: =Est2019DistRev!AC24 -> 0 | AD24: =Est2019DistRev!AD24 -> 0 | AF24: 795809.6893 | AG24: 0 | AH24: 0 | AI24: 0 | AJ24: 0 | AK24: 0 | AL24: 0 | AM24: 0 | AN24: 0 | AO24: 0 | AP24: 0 | AQ24: 0 | AR24: 0 | AS24: 795809.6893
B25: =Est2019TransRev!B25 -> TOD9 | D25: 5.32 | E25: 0 | F25: 0 | G25: 0 | H25: 0 | I25: 0 | J25: 0 | K25: 0 | L25: 0 | M25: 0 | N25: 0 | O25: 0 | P25: 0 | R25: =Est2019DistRev!R25 -> 1230260.531 | S25: =Est2019DistRev!S25 -> 0 | T25: =Est2019DistRev!T25 -> 591618.8357 | U25: =Est2019DistRev!U25 -> 1033562.689 | V25: =Est2019DistRev!V25 -> 0 | W25: =Est2019DistRev!W25 -> 0 | X25: =Est2019DistRev!X25 -> 2066829.117 | Y25: =Est2019DistRev!Y25 -> 6482902.611 | Z25: =Est2019DistRev!Z25 -> 1333840.095 | AA25: =Est2019DistRev!AA25 -> 0 | AB25: =Est2019DistRev!AB25 -> 0 | AC25: =Est2019DistRev!AC25 -> 0 | AD25: =Est2019DistRev!AD25 -> 0 | AF25: 65449.86023 | AG25: 0 | AH25: 0 | AI25: 0 | AJ25: 0 | AK25: 0 | AL25: 0 | AM25: 0 | AN25: 0 | AO25: 0 | AP25: 0 | AQ25: 0 | AR25: 0 | AS25: 65449.86023
B26: =Est2019TransRev!B26 -> TOU | D26: 5.32 | E26: 0 | F26: 0 | G26: 0 | H26: 0 | I26: 0 | J26: 0 | K26: 0 | L26: 0 | M26: 0 | N26: 0 | O26: 0 | P26: 0 | R26: =Est2019DistRev!R26 -> 245380.3348 | S26: =Est2019DistRev!S26 -> 0 | T26: =Est2019DistRev!T26 -> 0 | U26: =Est2019DistRev!U26 -> 4225083.95 | V26: =Est2019DistRev!V26 -> 0 | W26: =Est2019DistRev!W26 -> 0 | X26: =Est2019DistRev!X26 -> 6944131.428 | Y26: =Est2019DistRev!Y26 -> 8563967.258 | Z26: =Est2019DistRev!Z26 -> 0 | AA26: =Est2019DistRev!AA26 -> 0 | AB26: =Est2019DistRev!AB26 -> 995491.8472 | AC26: =Est2019DistRev!AC26 -> 0 | AD26: =Est2019DistRev!AD26 -> 0 | AF26: 13054.23381 | AG26: 0 | AH26: 0 | AI26: 0 | AJ26: 0 | AK26: 0 | AL26: 0 | AM26: 0 | AN26: 0 | AO26: 0 | AP26: 0 | AQ26: 0 | AR26: 0 | AS26: 13054.23381
B27: =Est2019TransRev!B27 -> TODFLEX | D27: 5.32 | E27: 0 | F27: 0 | G27: 0 | H27: 0 | I27: 0 | J27: 0 | K27: 0 | L27: 0 | M27: 0 | N27: 0 | O27: 0 | P27: 0 | R27: =Est2019DistRev!R27 -> 748713.2967 | S27: =Est2019DistRev!S27 -> 0 | T27: =Est2019DistRev!T27 -> 1841551.61 | U27: =Est2019DistRev!U27 -> 897829.5467 | V27: =Est2019DistRev!V27 -> 0 | W27: =Est2019DistRev!W27 -> 0 | X27: =Est2019DistRev!X27 -> 1476591.166 | Y27: =Est2019DistRev!Y27 -> 3741242.014 | Z27: =Est2019DistRev!Z27 -> 3096046.168 | AA27: =Est2019DistRev!AA27 -> 0 | AB27: =Est2019DistRev!AB27 -> 0 | AC27: =Est2019DistRev!AC27 -> 0 | AD27: =Est2019DistRev!AD27 -> 0 | AF27: 39831.54739 | AG27: 0 | AH27: 0 | AI27: 0 | AJ27: 0 | AK27: 0 | AL27: 0 | AM27: 0 | AN27: 0 | AO27: 0 | AP27: 0 | AQ27: 0 | AR27: 0 | AS27: 39831.54739
B28: =Est2019TransRev!B28 -> Low Voltage KW 1 rate | D28: 5.32 | E28: 0 | F28: 0 | G28: 0 | H28: 0 | I28: 0 | J28: 0 | K28: 0 | L28: 0 | M28: 0 | N28: 0 | O28: 0 | P28: 0 | R28: =Est2019DistRev!R28 -> 2365.964603 | S28: =Est2019DistRev!S28 -> 0 | T28: =Est2019DistRev!T28 -> 0 | U28: =Est2019DistRev!U28 -> 10094.26433 | V28: =Est2019DistRev!V28 -> 0 | W28: =Est2019DistRev!W28 -> 0 | X28: =Est2019DistRev!X28 -> 19252.67605 | Y28: =Est2019DistRev!Y28 -> 0 | Z28: =Est2019DistRev!Z28 -> 0 | AA28: =Est2019DistRev!AA28 -> 0 | AB28: =Est2019DistRev!AB28 -> 0 | AC28: =Est2019DistRev!AC28 -> 2402.709273 | AD28: =Est2019DistRev!AD28 -> 4357.306608 | AF28: 125.8693169 | AG28: 0 | AH28: 0 | AI28: 0 | AJ28: 0 | AK28: 0 | AL28: 0 | AM28: 0 | AN28: 0 | AO28: 0 | AP28: 0 | AQ28: 0 | AR28: 0 | AS28: 125.8693169
B29: =Est2019TransRev!B29 -> Low voltage medium KW time of use (opt-in) | D29: 5.32 | E29: 0 | F29: 0 | G29: 0 | H29: 0 | I29: 0 | J29: 0 | K29: 0 | L29: 0 | M29: 0 | N29: 0 | O29: 0 | P29: 0 | R29: =Est2019DistRev!R29 -> 61897.88761 | S29: =Est2019DistRev!S29 -> 0 | T29: =Est2019DistRev!T29 -> 0 | U29: =Est2019DistRev!U29 -> 6048594.777 | V29: =Est2019DistRev!V29 -> 0 | W29: =Est2019DistRev!W29 -> 0 | X29: =Est2019DistRev!X29 -> 8468530.008 | Y29: =Est2019DistRev!Y29 -> 0 | Z29: =Est2019DistRev!Z29 -> 0 | AA29: =Est2019DistRev!AA29 -> 0 | AB29: =Est2019DistRev!AB29 -> 0 | AC29: =Est2019DistRev!AC29 -> 602643.8077 | AD29: =Est2019DistRev!AD29 -> 1112070.385 | AF29: 3292.967621 | AG29: 0 | AH29: 0 | AI29: 0 | AJ29: 0 | AK29: 0 | AL29: 0 | AM29: 0 | AN29: 0 | AO29: 0 | AP29: 0 | AQ29: 0 | AR29: 0 | AS29: 3292.967621
B30: =Est2019TransRev!B30 -> Low voltage medium KW 1 rate (mandatory) | D30: 5.32 | E30: 0 | F30: 0 | G30: 0 | H30: 0 | I30: 0 | J30: 0 | K30: 0 | L30: 0 | M30: 0 | N30: 0 | O30: 0 | P30: 0 | R30: =Est2019DistRev!R30 -> 2660202.423 | S30: =Est2019DistRev!S30 -> 0 | T30: =Est2019DistRev!T30 -> 0 | U30: =Est2019DistRev!U30 -> 270692146.8 | V30: =Est2019DistRev!V30 -> 0 | W30: =Est2019DistRev!W30 -> 0 | X30: =Est2019DistRev!X30 -> 374598222.4 | Y30: =Est2019DistRev!Y30 -> 0 | Z30: =Est2019DistRev!Z30 -> 0 | AA30: =Est2019DistRev!AA30 -> 0 | AB30: =Est2019DistRev!AB30 -> 0 | AC30: =Est2019DistRev!AC30 -> 27235556.86 | AD30: =Est2019DistRev!AD30 -> 49015175.38 | AF30: 141522.7689 | AG30: 0 | AH30: 0 | AI30: 0 | AJ30: 0 | AK30: 0 | AL30: 0 | AM30: 0 | AN30: 0 | AO30: 0 | AP30: 0 | AQ30: 0 | AR30: 0 | AS30: 141522.7689
R31: =Est2019DistRev!R31 -> 0 | S31: =Est2019DistRev!S31 -> 0 | T31: =Est2019DistRev!T31 -> 0 | U31: =Est2019DistRev!U31 -> 0 | V31: =Est2019DistRev!V31 -> 0 | W31: =Est2019DistRev!W31 -> 0 | X31: =Est2019DistRev!X31 -> 0 | Y31: =Est2019DistRev!Y31 -> 0 | Z31: =Est2019DistRev!Z31 -> 0 | AA31: =Est2019DistRev!AA31 -> 0 | AB31: =Est2019DistRev!AB31 -> 0 | AC31: =Est2019DistRev!AC31 -> 0 | AD31: =Est2019DistRev!AD31 -> 0 | AF31: =D31/100*R31 -> 0 | AG31: 0 | AH31: 0 | AI31: 0 | AJ31: 0 | AK31: 0 | AL31: 0 | AM31: 0 | AN31: 0 | AO31: 0 | AP31: 0 | AQ31: 0 | AR31: 0 | AS31: 0
R32: =Est2019DistRev!R32 -> 0 | S32: =Est2019DistRev!S32 -> 0 | T32: =Est2019DistRev!T32 -> 0 | U32: =Est2019DistRev!U32 -> 0 | V32: =Est2019DistRev!V32 -> 0 | W32: =Est2019DistRev!W32 -> 0 | X32: =Est2019DistRev!X32 -> 0 | Y32: =Est2019DistRev!Y32 -> 0 | Z32: =Est2019DistRev!Z32 -> 0 | AA32: =Est2019DistRev!AA32 -> 0 | AB32: =Est2019DistRev!AB32 -> 0 | AC32: =Est2019DistRev!AC32 -> 0 | AD32: =Est2019DistRev!AD32 -> 0 | AF32: 0 | AG32: 0 | AH32: 0 | AI32: 0 | AJ32: 0 | AK32: 0 | AL32: 0 | AM32: 0 | AN32: 0 | AO32: 0 | AP32: 0 | AQ32: 0 | AR32: 0 | AS32: 0
R33: =Est2019DistRev!R33 -> 0 | S33: =Est2019DistRev!S33 -> 0 | T33: =Est2019DistRev!T33 -> 0 | U33: =Est2019DistRev!U33 -> 0 | V33: =Est2019DistRev!V33 -> 0 | W33: =Est2019DistRev!W33 -> 0 | X33: =Est2019DistRev!X33 -> 0 | Y33: =Est2019DistRev!Y33 -> 0 | Z33: =Est2019DistRev!Z33 -> 0 | AA33: =Est2019DistRev!AA33 -> 0 | AB33: =Est2019DistRev!AB33 -> 0 | AC33: =Est2019DistRev!AC33 -> 0 | AD33: =Est2019DistRev!AD33 -> 0 | AF33: =D33/100*R33 -> 0 | AG33: 0 | AH33: 0 | AI33: 0 | AJ33: 0 | AK33: 0 | AL33: 0 | AM33: 0 | AN33: 0 | AO33: 0 | AP33: 0 | AQ33: 0 | AR33: 0 | AS33: =SUM(AF33:AR33) -> 0
R34: =Est2019DistRev!R34 -> 0 | S34: =Est2019DistRev!S34 -> 0 | T34: =Est2019DistRev!T34 -> 0 | U34: =Est2019DistRev!U34 -> 0 | V34: =Est2019DistRev!V34 -> 0 | W34: =Est2019DistRev!W34 -> 0 | X34: =Est2019DistRev!X34 -> 0 | Y34: =Est2019DistRev!Y34 -> 0 | Z34: =Est2019DistRev!Z34 -> 0 | AA34: =Est2019DistRev!AA34 -> 0 | AB34: =Est2019DistRev!AB34 -> 0 | AC34: =Est2019DistRev!AC34 -> 0 | AD34: =Est2019DistRev!AD34 -> 0 | AF34: 0 | AG34: 0 | AH34: 0 | AI34: 0 | AJ34: 0 | AK34: 0 | AL34: 0 | AM34: 0 | AN34: 0 | AO34: 0 | AP34: 0 | AQ34: 0 | AR34: 0 | AS34: 0
R35: =Est2019DistRev!R35 -> 0 | S35: =Est2019DistRev!S35 -> 0 | T35: =Est2019DistRev!T35 -> 0 | U35: =Est2019DistRev!U35 -> 0 | V35: =Est2019DistRev!V35 -> 0 | W35: =Est2019DistRev!W35 -> 0 | X35: =Est2019DistRev!X35 -> 0 | Y35: =Est2019DistRev!Y35 -> 0 | Z35: =Est2019DistRev!Z35 -> 0 | AA35: =Est2019DistRev!AA35 -> 0 | AB35: =Est2019DistRev!AB35 -> 0 | AC35: =Est2019DistRev!AC35 -> 0 | AD35: =Est2019DistRev!AD35 -> 0 | AF35: =D35/100*R35 -> 0 | AG35: 0 | AH35: 0 | AI35: 0 | AJ35: 0 | AK35: 0 | AL35: 0 | AM35: 0 | AN35: 0 | AO35: 0 | AP35: 0 | AQ35: 0 | AR35: 0 | AS35: =SUM(AF35:AR35) -> 0
R36: =Est2019DistRev!R36 -> 0 | S36: =Est2019DistRev!S36 -> 0 | T36: =Est2019DistRev!T36 -> 0 | U36: =Est2019DistRev!U36 -> 0 | V36: =Est2019DistRev!V36 -> 0 | W36: =Est2019DistRev!W36 -> 0 | X36: =Est2019DistRev!X36 -> 0 | Y36: =Est2019DistRev!Y36 -> 0 | Z36: =Est2019DistRev!Z36 -> 0 | AA36: =Est2019DistRev!AA36 -> 0 | AB36: =Est2019DistRev!AB36 -> 0 | AC36: =Est2019DistRev!AC36 -> 0 | AD36: =Est2019DistRev!AD36 -> 0 | AF36: 0 | AG36: 0 | AH36: 0 | AI36: 0 | AJ36: 0 | AK36: 0 | AL36: 0 | AM36: 0 | AN36: 0 | AO36: 0 | AP36: 0 | AQ36: 0 | AR36: 0 | AS36: 0
R37: =Est2019DistRev!R37 -> 0 | S37: =Est2019DistRev!S37 -> 0 | T37: =Est2019DistRev!T37 -> 0 | U37: =Est2019DistRev!U37 -> 0 | V37: =Est2019DistRev!V37 -> 0 | W37: =Est2019DistRev!W37 -> 0 | X37: =Est2019DistRev!X37 -> 0 | Y37: =Est2019DistRev!Y37 -> 0 | Z37: =Est2019DistRev!Z37 -> 0 | AA37: =Est2019DistRev!AA37 -> 0 | AB37: =Est2019DistRev!AB37 -> 0 | AC37: =Est2019DistRev!AC37 -> 0 | AD37: =Est2019DistRev!AD37 -> 0 | AF37: 0 | AG37: 0 | AH37: 0 | AI37: 0 | AJ37: 0 | AK37: 0 | AL37: 0 | AM37: 0 | AN37: 0 | AO37: 0 | AP37: 0 | AQ37: 0 | AR37: 0 | AS37: 0
R38: =Est2019DistRev!R38 -> 0 | S38: =Est2019DistRev!S38 -> 0 | T38: =Est2019DistRev!T38 -> 0 | U38: =Est2019DistRev!U38 -> 0 | V38: =Est2019DistRev!V38 -> 0 | W38: =Est2019DistRev!W38 -> 0 | X38: =Est2019DistRev!X38 -> 0 | Y38: =Est2019DistRev!Y38 -> 0 | Z38: =Est2019DistRev!Z38 -> 0 | AA38: =Est2019DistRev!AA38 -> 0 | AB38: =Est2019DistRev!AB38 -> 0 | AC38: =Est2019DistRev!AC38 -> 0 | AD38: =Est2019DistRev!AD38 -> 0 | AF38: 0 | AG38: 0 | AH38: 0 | AI38: 0 | AJ38: 0 | AK38: 0 | AL38: 0 | AM38: 0 | AN38: 0 | AO38: 0 | AP38: 0 | AQ38: 0 | AR38: 0 | AS38: 0
R39: =Est2019DistRev!R39 -> 0 | S39: =Est2019DistRev!S39 -> 0 | T39: =Est2019DistRev!T39 -> 0 | U39: =Est2019DistRev!U39 -> 0 | V39: =Est2019DistRev!V39 -> 0 | W39: =Est2019DistRev!W39 -> 0 | X39: =Est2019DistRev!X39 -> 0 | Y39: =Est2019DistRev!Y39 -> 0 | Z39: =Est2019DistRev!Z39 -> 0 | AA39: =Est2019DistRev!AA39 -> 0 | AB39: =Est2019DistRev!AB39 -> 0 | AC39: =Est2019DistRev!AC39 -> 0 | AD39: =Est2019DistRev!AD39 -> 0 | AF39: =D39/100*R39 -> 0 | AG39: 0 | AH39: 0 | AI39: 0 | AJ39: 0 | AK39: 0 | AL39: 0 | AM39: 0 | AN39: 0 | AO39: 0 | AP39: 0 | AQ39: 0 | AR39: 0 | AS39: 0
R40: =Est2019DistRev!R40 -> 0 | S40: =Est2019DistRev!S40 -> 0 | T40: =Est2019DistRev!T40 -> 0 | U40: =Est2019DistRev!U40 -> 0 | V40: =Est2019DistRev!V40 -> 0 | W40: =Est2019DistRev!W40 -> 0 | X40: =Est2019DistRev!X40 -> 0 | Y40: =Est2019DistRev!Y40 -> 0 | Z40: =Est2019DistRev!Z40 -> 0 | AA40: =Est2019DistRev!AA40 -> 0 | AB40: =Est2019DistRev!AB40 -> 0 | AC40: =Est2019DistRev!AC40 -> 0 | AD40: =Est2019DistRev!AD40 -> 0 | AF40: 0 | AG40: 0 | AH40: 0 | AI40: 0 | AJ40: 0 | AK40: 0 | AL40: 0 | AM40: 0 | AN40: 0 | AO40: 0 | AP40: 0 | AQ40: 0 | AR40: 0 | AS40: 0
R41: =Est2019DistRev!R41 -> 0 | S41: =Est2019DistRev!S41 -> 0 | T41: =Est2019DistRev!T41 -> 0 | U41: =Est2019DistRev!U41 -> 0 | V41: =Est2019DistRev!V41 -> 0 | W41: =Est2019DistRev!W41 -> 0 | X41: =Est2019DistRev!X41 -> 0 | Y41: =Est2019DistRev!Y41 -> 0 | Z41: =Est2019DistRev!Z41 -> 0 | AA41: =Est2019DistRev!AA41 -> 0 | AB41: =Est2019DistRev!AB41 -> 0 | AC41: =Est2019DistRev!AC41 -> 0 | AD41: =Est2019DistRev!AD41 -> 0 | AF41: 0 | AG41: 0 | AH41: 0 | AI41: 0 | AJ41: 0 | AK41: 0 | AL41: 0 | AM41: 0 | AN41: 0 | AO41: 0 | AP41: 0 | AQ41: 0 | AR41: 0 | AS41: 0
R42: =Est2019DistRev!R42 -> 0 | S42: =Est2019DistRev!S42 -> 0 | T42: =Est2019DistRev!T42 -> 0 | U42: =Est2019DistRev!U42 -> 0 | V42: =Est2019DistRev!V42 -> 0 | W42: =Est2019DistRev!W42 -> 0 | X42: =Est2019DistRev!X42 -> 0 | Y42: =Est2019DistRev!Y42 -> 0 | Z42: =Est2019DistRev!Z42 -> 0 | AA42: =Est2019DistRev!AA42 -> 0 | AB42: =Est2019DistRev!AB42 -> 0 | AC42: =Est2019DistRev!AC42 -> 0 | AD42: =Est2019DistRev!AD42 -> 0 | AF42: 0 | AG42: 0 | AH42: 0 | AI42: 0 | AJ42: 0 | AK42: 0 | AL42: 0 | AM42: 0 | AN42: 0 | AO42: 0 | AP42: 0 | AQ42: 0 | AR42: 0 | AS42: 0
R43: =Est2019DistRev!R43 -> 0 | S43: =Est2019DistRev!S43 -> 0 | T43: =Est2019DistRev!T43 -> 0 | U43: =Est2019DistRev!U43 -> 0 | V43: =Est2019DistRev!V43 -> 0 | W43: =Est2019DistRev!W43 -> 0 | X43: =Est2019DistRev!X43 -> 0 | Y43: =Est2019DistRev!Y43 -> 0 | Z43: =Est2019DistRev!Z43 -> 0 | AA43: =Est2019DistRev!AA43 -> 0 | AB43: =Est2019DistRev!AB43 -> 0 | AC43: =Est2019DistRev!AC43 -> 0 | AD43: =Est2019DistRev!AD43 -> 0 | AF43: 0 | AG43: 0 | AH43: 0 | AI43: 0 | AJ43: 0 | AK43: 0 | AL43: 0 | AM43: 0 | AN43: 0 | AO43: 0 | AP43: 0 | AQ43: 0 | AR43: 0 | AS43: 0
R44: =Est2019DistRev!R44 -> 0 | S44: =Est2019DistRev!S44 -> 0 | T44: =Est2019DistRev!T44 -> 0 | U44: =Est2019DistRev!U44 -> 0 | V44: =Est2019DistRev!V44 -> 0 | W44: =Est2019DistRev!W44 -> 0 | X44: =Est2019DistRev!X44 -> 0 | Y44: =Est2019DistRev!Y44 -> 0 | Z44: =Est2019DistRev!Z44 -> 0 | AA44: =Est2019DistRev!AA44 -> 0 | AB44: =Est2019DistRev!AB44 -> 0 | AC44: =Est2019DistRev!AC44 -> 0 | AD44: =Est2019DistRev!AD44 -> 0 | AF44: 0 | AG44: 0 | AH44: 0 | AI44: 0 | AJ44: 0 | AK44: 0 | AL44: 0 | AM44: 0 | AN44: 0 | AO44: 0 | AP44: 0 | AQ44: 0 | AR44: 0 | AS44: 0
R45: =Est2019DistRev!R45 -> 0 | S45: =Est2019DistRev!S45 -> 0 | T45: =Est2019DistRev!T45 -> 0 | U45: =Est2019DistRev!U45 -> 0 | V45: =Est2019DistRev!V45 -> 0 | W45: =Est2019DistRev!W45 -> 0 | X45: =Est2019DistRev!X45 -> 0 | Y45: =Est2019DistRev!Y45 -> 0 | Z45: =Est2019DistRev!Z45 -> 0 | AA45: =Est2019DistRev!AA45 -> 0 | AB45: =Est2019DistRev!AB45 -> 0 | AC45: =Est2019DistRev!AC45 -> 0 | AD45: =Est2019DistRev!AD45 -> 0 | AF45: 0 | AG45: 0 | AH45: 0 | AI45: 0 | AJ45: =H45/100*V45 -> 0 | AK45: =I45/100*W45 -> 0 | AL45: =J45/100*X45 -> 0 | AM45: =K45/100*Y45 -> 0 | AN45: =L45/100*Z45 -> 0 | AO45: =M45/100*AA45 -> 0 | AP45: =N45/100*AB45 -> 0 | AQ45: =O45/100*AC45 -> 0 | AR45: =P45/100*AD45 -> 0 | AS45: 0
R46: =Est2019DistRev!R46 -> 0 | S46: =Est2019DistRev!S46 -> 0 | T46: =Est2019DistRev!T46 -> 0 | U46: =Est2019DistRev!U46 -> 0 | V46: =Est2019DistRev!V46 -> 0 | W46: =Est2019DistRev!W46 -> 0 | X46: =Est2019DistRev!X46 -> 0 | Y46: =Est2019DistRev!Y46 -> 0 | Z46: =Est2019DistRev!Z46 -> 0 | AA46: =Est2019DistRev!AA46 -> 0 | AB46: =Est2019DistRev!AB46 -> 0 | AC46: =Est2019DistRev!AC46 -> 0 | AD46: =Est2019DistRev!AD46 -> 0 | AF46: 0 | AG46: 0 | AH46: =F46/100*T46 -> 0 | AI46: =G46/100*U46 -> 0 | AJ46: 0 | AK46: 0 | AL46: 0 | AM46: 0 | AN46: 0 | AO46: 0 | AP46: 0 | AQ46: 0 | AR46: 0 | AS46: 0
R47: =Est2019DistRev!R47 -> 0 | S47: =Est2019DistRev!S47 -> 0 | T47: =Est2019DistRev!T47 -> 0 | U47: =Est2019DistRev!U47 -> 0 | V47: =Est2019DistRev!V47 -> 0 | W47: =Est2019DistRev!W47 -> 0 | X47: =Est2019DistRev!X47 -> 0 | Y47: =Est2019DistRev!Y47 -> 0 | Z47: =Est2019DistRev!Z47 -> 0 | AA47: =Est2019DistRev!AA47 -> 0 | AB47: =Est2019DistRev!AB47 -> 0 | AC47: =Est2019DistRev!AC47 -> 0 | AD47: =Est2019DistRev!AD47 -> 0 | AF47: 0 | AG47: 0 | AH47: 0 | AI47: 0 | AJ47: 0 | AK47: 0 | AL47: 0 | AM47: 0 | AN47: 0 | AO47: 0 | AP47: 0 | AQ47: 0 | AR47: 0 | AS47: 0
R48: =Est2019DistRev!R48 -> 0 | S48: =Est2019DistRev!S48 -> 0 | T48: =Est2019DistRev!T48 -> 0 | U48: =Est2019DistRev!U48 -> 0 | V48: =Est2019DistRev!V48 -> 0 | W48: =Est2019DistRev!W48 -> 0 | X48: =Est2019DistRev!X48 -> 0 | Y48: =Est2019DistRev!Y48 -> 0 | Z48: =Est2019DistRev!Z48 -> 0 | AA48: =Est2019DistRev!AA48 -> 0 | AB48: =Est2019DistRev!AB48 -> 0 | AC48: =Est2019DistRev!AC48 -> 0 | AD48: =Est2019DistRev!AD48 -> 0 | AF48: 0 | AG48: 0 | AH48: 0 | AI48: 0 | AJ48: 0 | AK48: 0 | AL48: 0 | AM48: 0 | AN48: 0 | AO48: 0 | AP48: 0 | AQ48: 0 | AR48: 0 | AS48: 0
R49: =Est2019DistRev!R49 -> 0 | S49: =Est2019DistRev!S49 -> 0 | T49: =Est2019DistRev!T49 -> 0 | U49: =Est2019DistRev!U49 -> 0 | V49: =Est2019DistRev!V49 -> 0 | W49: =Est2019DistRev!W49 -> 0 | X49: =Est2019DistRev!X49 -> 0 | Y49: =Est2019DistRev!Y49 -> 0 | Z49: =Est2019DistRev!Z49 -> 0 | AA49: =Est2019DistRev!AA49 -> 0 | AB49: =Est2019DistRev!AB49 -> 0 | AC49: =Est2019DistRev!AC49 -> 0 | AD49: =Est2019DistRev!AD49 -> 0 | AF49: 0 | AG49: 0 | AH49: 0 | AI49: 0 | AJ49: 0 | AK49: 0 | AL49: 0 | AM49: 0 | AN49: 0 | AO49: 0 | AP49: 0 | AQ49: 0 | AR49: 0 | AS49: 0
R50: =Est2019DistRev!R50 -> 0 | S50: =Est2019DistRev!S50 -> 0 | T50: =Est2019DistRev!T50 -> 0 | U50: =Est2019DistRev!U50 -> 0 | V50: =Est2019DistRev!V50 -> 0 | W50: =Est2019DistRev!W50 -> 0 | X50: =Est2019DistRev!X50 -> 0 | Y50: =Est2019DistRev!Y50 -> 0 | Z50: =Est2019DistRev!Z50 -> 0 | AA50: =Est2019DistRev!AA50 -> 0 | AB50: =Est2019DistRev!AB50 -> 0 | AC50: =Est2019DistRev!AC50 -> 0 | AD50: =Est2019DistRev!AD50 -> 0 | AF50: 0 | AG50: 0 | AH50: 0 | AI50: 0 | AJ50: 0 | AK50: 0 | AL50: 0 | AM50: 0 | AN50: 0 | AO50: 0 | AP50: 0 | AQ50: 0 | AR50: 0 | AS50: 0
R51: =Est2019DistRev!R51 -> 0 | S51: =Est2019DistRev!S51 -> 0 | T51: =Est2019DistRev!T51 -> 0 | U51: =Est2019DistRev!U51 -> 0 | V51: =Est2019DistRev!V51 -> 0 | W51: =Est2019DistRev!W51 -> 0 | X51: =Est2019DistRev!X51 -> 0 | Y51: =Est2019DistRev!Y51 -> 0 | Z51: =Est2019DistRev!Z51 -> 0 | AA51: =Est2019DistRev!AA51 -> 0 | AB51: =Est2019DistRev!AB51 -> 0 | AC51: =Est2019DistRev!AC51 -> 0 | AD51: =Est2019DistRev!AD51 -> 0 | AF51: 0 | AG51: 0 | AH51: 0 | AI51: 0 | AJ51: 0 | AK51: 0 | AL51: 0 | AM51: 0 | AN51: 0 | AO51: 0 | AP51: 0 | AQ51: 0 | AR51: 0 | AS51: 0
R52: =Est2019DistRev!R52 -> 0 | S52: =Est2019DistRev!S52 -> 0 | T52: =Est2019DistRev!T52 -> 0 | U52: =Est2019DistRev!U52 -> 0 | V52: =Est2019DistRev!V52 -> 0 | W52: =Est2019DistRev!W52 -> 0 | X52: =Est2019DistRev!X52 -> 0 | Y52: =Est2019DistRev!Y52 -> 0 | Z52: =Est2019DistRev!Z52 -> 0 | AA52: =Est2019DistRev!AA52 -> 0 | AB52: =Est2019DistRev!AB52 -> 0 | AC52: =Est2019DistRev!AC52 -> 0 | AD52: =Est2019DistRev!AD52 -> 0 | AF52: 0 | AG52: 0 | AH52: 0 | AI52: 0 | AJ52: 0 | AK52: 0 | AL52: 0 | AM52: 0 | AN52: 0 | AO52: 0 | AP52: 0 | AQ52: 0 | AR52: 0 | AS52: 0
R53: =Est2019DistRev!R53 -> 0 | S53: =Est2019DistRev!S53 -> 0 | T53: =Est2019DistRev!T53 -> 0 | U53: =Est2019DistRev!U53 -> 0 | V53: =Est2019DistRev!V53 -> 0 | W53: =Est2019DistRev!W53 -> 0 | X53: =Est2019DistRev!X53 -> 0 | Y53: =Est2019DistRev!Y53 -> 0 | Z53: =Est2019DistRev!Z53 -> 0 | AA53: =Est2019DistRev!AA53 -> 0 | AB53: =Est2019DistRev!AB53 -> 0 | AC53: =Est2019DistRev!AC53 -> 0 | AD53: =Est2019DistRev!AD53 -> 0 | AF53: 0 | AG53: 0 | AH53: 0 | AI53: 0 | AJ53: 0 | AK53: 0 | AL53: 0 | AM53: 0 | AN53: 0 | AO53: 0 | AP53: 0 | AQ53: 0 | AR53: 0 | AS53: 0
R54: =Est2019DistRev!R54 -> 0 | S54: =Est2019DistRev!S54 -> 0 | T54: =Est2019DistRev!T54 -> 0 | U54: =Est2019DistRev!U54 -> 0 | V54: =Est2019DistRev!V54 -> 0 | W54: =Est2019DistRev!W54 -> 0 | X54: =Est2019DistRev!X54 -> 0 | Y54: =Est2019DistRev!Y54 -> 0 | Z54: =Est2019DistRev!Z54 -> 0 | AA54: =Est2019DistRev!AA54 -> 0 | AB54: =Est2019DistRev!AB54 -> 0 | AC54: =Est2019DistRev!AC54 -> 0 | AD54: =Est2019DistRev!AD54 -> 0 | AF54: 0 | AG54: 0 | AH54: 0 | AI54: 0 | AJ54: 0 | AK54: 0 | AL54: 0 | AM54: 0 | AN54: 0 | AO54: 0 | AP54: 0 | AQ54: 0 | AR54: 0 | AS54: 0
AF55: 0 | AG55: 0 | AH55: 0 | AI55: 0 | AJ55: 0 | AK55: 0 | AL55: 0 | AM55: 0 | AN55: 0 | AO55: 0 | AP55: 0 | AQ55: 0 | AR55: 0 | AS55: 0
AF56: 0 | AG56: 0 | AH56: 0 | AI56: 0 | AJ56: 0 | AK56: 0 | AL56: 0 | AM56: 0 | AN56: 0 | AO56: 0 | AP56: 0 | AQ56: 0 | AR56: 0 | AS56: 0
AF57: 0 | AG57: 0 | AH57: 0 | AI57: 0 | AJ57: 0 | AK57: 0 | AL57: 0 | AM57: 0 | AN57: 0 | AO57: 0 | AP57: 0 | AQ57: 0 | AR57: 0 | AS57: 0
AF58: 0 | AG58: 0 | AH58: 0 | AI58: 0 | AJ58: 0 | AK58: 0 | AL58: 0 | AM58: 0 | AN58: 0 | AO58: 0 | AP58: 0 | AQ58: 0 | AR58: 0 | AS58: 0
AF59: 0 | AG59: 0 | AH59: 0 | AI59: 0 | AJ59: 0 | AK59: 0 | AL59: 0 | AM59: 0 | AN59: 0 | AO59: 0 | AP59: 0 | AQ59: 0 | AR59: 0 | AS59: 0
AF60: 0 | AG60: 0 | AH60: 0 | AI60: 0 | AJ60: 0 | AK60: 0 | AL60: 0 | AM60: 0 | AN60: 0 | AO60: 0 | AP60: 0 | AQ60: 0 | AR60: 0 | AS60: 0
AF61: 0 | AG61: 0 | AH61: 0 | AI61: 0 | AJ61: 0 | AK61: 0 | AL61: 0 | AM61: 0 | AN61: 0 | AO61: 0 | AP61: 0 | AQ61: 0 | AR61: 0 | AS61: 0
AF62: 0 | AG62: 0 | AH62: 0 | AI62: 0 | AJ62: 0 | AK62: 0 | AL62: 0 | AM62: 0 | AN62: 0 | AO62: 0 | AP62: 0 | AQ62: 0 | AR62: 0 | AS62: 0
AF63: 0 | AG63: 0 | AH63: 0 | AI63: 0 | AJ63: 0 | AK63: 0 | AL63: 0 | AM63: 0 | AN63: 0 | AO63: 0 | AP63: 0 | AQ63: 0 | AR63: 0 | AS63: 0
AF64: 0 | AG64: 0 | AH64: 0 | AI64: 0 | AJ64: 0 | AK64: 0 | AL64: 0 | AM64: 0 | AN64: 0 | AO64: 0 | AP64: 0 | AQ64: 0 | AR64: 0 | AS64: 0
AF65: 0 | AG65: 0 | AH65: 0 | AI65: 0 | AJ65: 0 | AK65: 0 | AL65: 0 | AM65: 0 | AN65: 0 | AO65: 0 | AP65: 0 | AQ65: 0 | AR65: 0 | AS65: 0
R66: =SUM(R6:R65) -> 251870585.4 | S66: 1097753788 | T66: 13590995.17 | U66: 1023313231 | V66: 1758171519 | W66: 0 | X66: 1468104637 | Y66: 2268497053 | Z66: 27719428.93 | AA66: 434885104.2 | AB66: 131258313.6 | AC66: 27840603.38 | AD66: =SUM(AD6:AD65) -> 50131603.07 | AF66: 13115987.69 | AG66: 0 | AH66: 0 | AI66: 0 | AJ66: 0 | AK66: 0 | AL66: 0 | AM66: =SUM(AM6:AM65) -> 0 | AN66: 0 | AO66: 0 | AP66: 0 | AQ66: 0 | AR66: 0 | AS66: 13115987.69

Sheet 2020JSRevCont
B2: ="Tariff Approval - "&'Model update'!$C$3 -> Tariff Approval - United Energy | C2: ='Model update'!$C$5&"JSRevCont" -> 2020JSRevCont
B4: Jurisdictional Scheme Amounts (JSA)
B6: Year (t) | C6: ='Model update'!C5 -> 2020
B8: Table 1- Compliance with JSA Revenue Formula
B9: Revenue from Jurisdictional Scheme Amounts charges for year t | C9: =Prop2020JSTar!AS66 -> 12812506.45
B10: Total JSA related payments for year t | C10: =C17 -> 12826088.88
C11: =IF(C9="","",IF(C10>=C9,"JSA REVENUE FORMULA COMPLIANT","JSA REVENUE FORMULA BREACHED")) -> JSA REVENUE FORMULA COMPLIANT
B13: Table 2 - Total JSA related payments for year t
B14: PFIT & TFIT charges for year t | C14: =C22 -> 13806961.34
B15: JSA revenue under/over recovery approved | C15: =-E56*(1+E54)^0.5 -> -980872.4575
B16: JSA revenue under/over recovery for years 2014 and 2015
B17: Total JSA related payments for year t | C17: =SUM(C14:C16) -> 12826088.88
B19: Table 3 - PFIT & TFIT charges for year t
B20: PFIT | C20: 13806961.34
B21: TFIT | C21: 0
B22: PFIT & TFIT charges | C22: =SUM(C20:C21) -> 13806961.34
B27: Table 4 - JSA Recovery Arrangements
C28: Year t-2 | D28: Year t-1 | E28: Year t
C29: (actual) | D29: (estimate) | E29: (forecast)
C30: =D30-1 -> 2018 | D30: =E30-1 -> 2019 | E30: =C$6 -> 2020
B32: (A) Revenue from JSA proposal charges | C32: 14519570.51 | D32: =Est2019JSRev!AS66 -> 13115987.69 | E32: =C9 -> 12812506.45
B35: (B) Less Total JSA related payments = | C35: =SUM(C37:C39) -> 14451514.22 | D35: =SUM(D37:D39) -> 14161615.91 | E35: =SUM(E37:E39) -> 13806961.34
B37: + JSA revenue under/over recovery for years 2014 and 2015
B39: +PFIT & TFIT charges = | C39: =SUM(C40:C41) -> 14451514.22 | D39: =SUM(D40:D41) -> 14161615.91 | E39: =SUM(E40:E41) -> 13806961.34
B40: +PFIT amount | C40: ='JS cost audit template'!F4 -> 14451514.22 | D40: 14161615.91 | E40: =C20 -> 13806961.34
B41: +TFIT amount | C41: ='JS cost audit template'!F5 -> 0 | D41: 0 | E41: =C21 -> 0
B45: (A minus B) Under/over recovery of revenue for regulatory year | C45: =C32-C35 -> 68056.29 | D45: =D32-D35 -> -1045628.22 | E45: =E32-E35 -> -994454.8814
B49: Table 5 - JSA Unders and Overs Account
C50: Year t-2 | D50: Year t-1 | E50: Year t
C51: (actual) | D51: (estimate) | E51: (forecast)
B52: Calendar year | C52: =D52-1 -> 2018 | D52: =E52-1 -> 2019 | E52: =C$6 -> 2020
B54: Nominal WACC | C54: =(1+'Model update'!$B$47)*(1+'Model update'!$C$28)-1 -> 0.05819803957 | D54: =(1+'Model update'!$B$45)*(1+'Model update'!$C$29)-1 -> 0.05907249241 | E54: =(1+'Model update'!$B$43)*(1+'Model update'!$C$30)-1 -> 0.05250474139
B56: Opening balance | C56: 1747125.8 | D56: =C60 -> 1918813.754 | E56: =D60 -> 956093.8165
B57: Interest on Opening balance | C57: =C56*C54 -> 101679.2965 | D57: =D56*D54 -> 113349.1109 | E57: =E56*E54 -> 50199.45858
B58: Under/over recovery of revenue for regulatory year | C58: =C45 -> 68056.29 | D58: =D45 -> -1045628.22 | E58: =E45 -> -994454.8814
B59: Interest on under/over recovery for regulatory year | C59: =C58*((1+C54)^0.5-1) -> 1952.367033 | D59: =D58*((1+D54)^0.5-1) -> -30440.82856 | E59: =E58*((1+E54)^0.5-1) -> -25772.82697
B60: Closing balance of JSA overs/ (unders) account | C60: =SUM(C56:C59) -> 1918813.754 | D60: =SUM(D56:D59) -> 956093.8165 | E60: -13934.43329
B62: The DNSP is expected to achieve a closing balance as close to zero as practicable in its jurisdictional scheme amount unders and overs account in each forecast year in its annual pricing proposals in the 2016–20 regulatory control period.

Sheet JS cost audit template
B1: ="Tariff Approval - "&'Model update'!C3 -> Tariff Approval - United Energy
B2: Jurisdictional scheme amounts | F2: t-2 actual
B4: PFIT | F4: 14451514.22
E7: Total | F7: =SUM(F3:F6) -> 14451514.22
B10: Where the following definitions apply
B11: PFIT | C11: Premium feed-in tariff payments
B12: TFIT | C12: Transitional feed-in tariff payments

Sheet Prop2020TSSComp
B1: ="Tariff Approval - "&'Model update'!$C$3 -> Tariff Approval - United Energy | C1: ="Prop"&'Model update'!$C$5&"TSSComp" -> Prop2020TSSComp
B3: ="COMPARISON OF "&'Model update'!$C$5&" PROPOSED AND TSS INDICATIVE DISTRIBUTION TARIFFS" -> COMPARISON OF 2020 PROPOSED AND TSS INDICATIVE DISTRIBUTION TARIFFS | AT3: Materiality threshold
D4: ="Proposed NUOS Tariffs (Pt) for "&'Model update'!$C$5 -> Proposed NUOS Tariffs (Pt) for 2020 | R4: ="TSS indicative tariffs for "&'Model update'!$C$5 -> TSS indicative tariffs for 2020 | AG4: ="Percentage difference between proposed "&'Model update'!$C$5&" tariffs and indicative TSS tariffs" -> Percentage difference between proposed 2020 tariffs and indicative TSS tariffs | AT4: 0.15
B5: TSS name | C5: Proposal name | D5: PropTar Fixed | E5: PropTar PkBlk1 | F5: PropTar PkBlk2 | G5: PropTar PkBlk3 | H5: PropTar PkBlk4 | I5: PropTar OPkBlk1 | J5: PropTar OPkBlk2 | K5: PropTar OPkBlk3 | L5: PropTar OPkBlk4 | M5: PropTar DemBlk1 | N5: PropTar DemBlk2 | O5: PropTar DemBlk3 | P5: PropTar DemBlk4 | R5: IndTar Fixed | S5: IndTar PkBlk1 | T5: IndTar PkBlk2 | U5: IndTar PkBlk3 | V5: IndTar PkBlk4 | W5: IndTar OPkBlk1 | X5: IndTar OPkBlk2 | Y5: IndTar OPkBlk3 | Z5: IndTar OPkBlk4 | AA5: IndTar DemBlk1 | AB5: IndTar DemBlk2 | AC5: IndTar DemBlk3 | AD5: IndTar DemBlk4 | AG5: Fixed | AH5: PkBlk1 | AI5: PkBlk2 | AJ5: PkBlk3 | AK5: PkBlk4 | AL5: OPkBlk1 | AM5: OPkBlk2 | AN5: OPkBlk3 | AO5: OPkBlk4 | AP5: DemBlk1 | AQ5: DemBlk2 | AR5: DemBlk3 | AS5: DemBlk4 | AT5: Explanation required?
B6: Low voltage small 1 rate | C6: =Prop2020DistTar!B6 -> Low voltage small 1 rate | D6: =SUM(Prop2020DistTar!D6,Prop2020TransTar!D6) -> 7.85 | E6: =SUM(Prop2020DistTar!E6,Prop2020TransTar!E6) -> 9.49 | F6: =SUM(Prop2020DistTar!F6,Prop2020TransTar!F6) -> 0 | G6: =SUM(Prop2020DistTar!G6,Prop2020TransTar!G6) -> 0 | H6: =SUM(Prop2020DistTar!H6,Prop2020TransTar!H6) -> 9.49 | I6: =SUM(Prop2020DistTar!I6,Prop2020TransTar!I6) -> 0 | J6: =SUM(Prop2020DistTar!J6,Prop2020TransTar!J6) -> 0 | K6: =SUM(Prop2020DistTar!K6,Prop2020TransTar!K6) -> 0 | L6: =SUM(Prop2020DistTar!L6,Prop2020TransTar!L6) -> 0 | M6: =SUM(Prop2020DistTar!M6,Prop2020TransTar!M6) -> 0 | N6: =SUM(Prop2020DistTar!N6,Prop2020TransTar!N6) -> 0 | O6: =SUM(Prop2020DistTar!O6,Prop2020TransTar!O6) -> 0 | P6: =SUM(Prop2020DistTar!P6,Prop2020TransTar!P6) -> 0 | R6: 7.29 | S6: 9.64 | T6: 0 | U6: 0 | V6: 8.06 | W6: 0 | X6: 0 | Y6: 0 | Z6: 0 | AA6: 0 | AB6: 0 | AC6: 0 | AD6: 0 | AG6: =IFERROR(D6/R6-1,0) -> 0.0768175583 | AH6: -0.01556016598 | AI6: 0 | AJ6: 0 | AK6: 0.1774193548 | AL6: 0 | AM6: 0 | AN6: 0 | AO6: 0 | AP6: 0 | AQ6: 0 | AR6: 0 | AS6: 0 | AT6: =IF(MAX(ABS(AG6:AS6))>$AT$4,"EXPLAIN","") -> EXPLAIN
B7: Winter Energy Tariff* | C7: =Prop2020DistTar!B7 -> Winter economy tariff | D7: =SUM(Prop2020DistTar!D7,Prop2020TransTar!D7) -> 10.49 | E7: =SUM(Prop2020DistTar!E7,Prop2020TransTar!E7) -> 9.2 | F7: =SUM(Prop2020DistTar!F7,Prop2020TransTar!F7) -> 0 | G7: =SUM(Prop2020DistTar!G7,Prop2020TransTar!G7) -> 0 | H7: =SUM(Prop2020DistTar!H7,Prop2020TransTar!H7) -> 9.2 | I7: =SUM(Prop2020DistTar!I7,Prop2020TransTar!I7) -> 4.26 | J7: =SUM(Prop2020DistTar!J7,Prop2020TransTar!J7) -> 0 | K7: =SUM(Prop2020DistTar!K7,Prop2020TransTar!K7) -> 0 | L7: =SUM(Prop2020DistTar!L7,Prop2020TransTar!L7) -> 0 | M7: =SUM(Prop2020DistTar!M7,Prop2020TransTar!M7) -> 0 | N7: =SUM(Prop2020DistTar!N7,Prop2020TransTar!N7) -> 0 | O7: =SUM(Prop2020DistTar!O7,Prop2020TransTar!O7) -> 0 | P7: =SUM(Prop2020DistTar!P7,Prop2020TransTar!P7) -> 0 | R7: 9.39 | S7: 9.6 | T7: 0 | U7: 0 | V7: 7.22 | W7: 3.65 | X7: 0 | Y7: 0 | Z7: 0 | AA7: 0 | AB7: 0 | AC7: 0 | AD7: 0 | AG7: 0.1171458999 | AH7: -0.04166666667 | AI7: 0 | AJ7: 0 | AK7: 0.2742382271 | AL7: 0.1671232877 | AM7: 0 | AN7: 0 | AO7: 0 | AP7: 0 | AQ7: 0 | AR7: 0 | AS7: 0 | AT7: =IF(MAX(ABS(AG7:AS7))>$AT$4,"EXPLAIN","") -> EXPLAIN
B8: Reverse cycle airconditioning time of use* | C8: =Prop2020DistTar!B8 -> Reverse cycle airconditioning time of use | D8: =SUM(Prop2020DistTar!D8,Prop2020TransTar!D8) -> 0 | E8: =SUM(Prop2020DistTar!E8,Prop2020TransTar!E8) -> 0 | F8: =SUM(Prop2020DistTar!F8,Prop2020TransTar!F8) -> 0 | G8: =SUM(Prop2020DistTar!G8,Prop2020TransTar!G8) -> 0 | H8: =SUM(Prop2020DistTar!H8,Prop2020TransTar!H8) -> 0 | I8: =SUM(Prop2020DistTar!I8,Prop2020TransTar!I8) -> 0 | J8: =SUM(Prop2020DistTar!J8,Prop2020TransTar!J8) -> 0 | K8: =SUM(Prop2020DistTar!K8,Prop2020TransTar!K8) -> 0 | L8: =SUM(Prop2020DistTar!L8,Prop2020TransTar!L8) -> 0 | M8: =SUM(Prop2020DistTar!M8,Prop2020TransTar!M8) -> 0 | N8: =SUM(Prop2020DistTar!N8,Prop2020TransTar!N8) -> 0 | O8: =SUM(Prop2020DistTar!O8,Prop2020TransTar!O8) -> 0 | P8: =SUM(Prop2020DistTar!P8,Prop2020TransTar!P8) -> 0 | R8: 0 | S8: 0 | T8: 0 | U8: 0 | V8: 0 | W8: 0 | X8: 0 | Y8: 0 | Z8: 0 | AA8: 0 | AB8: 0 | AC8: 0 | AD8: 0 | AG8: 0 | AH8: 0 | AI8: 0 | AJ8: 0 | AK8: 0 | AL8: 0 | AM8: 0 | AN8: 0 | AO8: 0 | AP8: 0 | AQ8: 0 | AR8: 0 | AS8: 0 | AT8: =IF(MAX(ABS(AG8:AS8))>$AT$4,"EXPLAIN","") -> 
B9: Low voltage small 2 rate* | C9: =Prop2020DistTar!B9 -> Low voltage small 2 rate | D9: =SUM(Prop2020DistTar!D9,Prop2020TransTar!D9) -> 15.93 | E9: =SUM(Prop2020DistTar!E9,Prop2020TransTar!E9) -> 0 | F9: =SUM(Prop2020DistTar!F9,Prop2020TransTar!F9) -> 0 | G9: =SUM(Prop2020DistTar!G9,Prop2020TransTar!G9) -> 14.77 | H9: =SUM(Prop2020DistTar!H9,Prop2020TransTar!H9) -> 0 | I9: =SUM(Prop2020DistTar!I9,Prop2020TransTar!I9) -> 0 | J9: =SUM(Prop2020DistTar!J9,Prop2020TransTar!J9) -> 14.77 | K9: =SUM(Prop2020DistTar!K9,Prop2020TransTar!K9) -> 2.29 | L9: =SUM(Prop2020DistTar!L9,Prop2020TransTar!L9) -> 0 | M9: =SUM(Prop2020DistTar!M9,Prop2020TransTar!M9) -> 0 | N9: =SUM(Prop2020DistTar!N9,Prop2020TransTar!N9) -> 0 | O9: =SUM(Prop2020DistTar!O9,Prop2020TransTar!O9) -> 0 | P9: =SUM(Prop2020DistTar!P9,Prop2020TransTar!P9) -> 0 | R9: 14.9 | S9: 0 | T9: 0 | U9: 15.01 | V9: 0 | W9: 0 | X9: 11.52 | Y9: 2.04 | Z9: 0 | AA9: 0 | AB9: 0 | AC9: 0 | AD9: 0 | AG9: 0.06912751678 | AH9: 0 | AI9: 0 | AJ9: -0.01598934044 | AK9: 0 | AL9: 0 | AM9: 0.2821180556 | AN9: 0.1225490196 | AO9: 0 | AP9: 0 | AQ9: 0 | AR9: 0 | AS9: 0 | AT9: =IF(MAX(ABS(AG9:AS9))>$AT$4,"EXPLAIN","") -> EXPLAIN
B10: Dedicated circuit** | C10: =Prop2020DistTar!B10 -> Dedicated circuit | D10: =SUM(Prop2020DistTar!D10,Prop2020TransTar!D10) -> 0 | E10: =SUM(Prop2020DistTar!E10,Prop2020TransTar!E10) -> 0 | F10: =SUM(Prop2020DistTar!F10,Prop2020TransTar!F10) -> 0 | G10: =SUM(Prop2020DistTar!G10,Prop2020TransTar!G10) -> 0 | H10: =SUM(Prop2020DistTar!H10,Prop2020TransTar!H10) -> 0 | I10: =SUM(Prop2020DistTar!I10,Prop2020TransTar!I10) -> 0 | J10: =SUM(Prop2020DistTar!J10,Prop2020TransTar!J10) -> 0 | K10: =SUM(Prop2020DistTar!K10,Prop2020TransTar!K10) -> 2.23 | L10: =SUM(Prop2020DistTar!L10,Prop2020TransTar!L10) -> 0 | M10: =SUM(Prop2020DistTar!M10,Prop2020TransTar!M10) -> 0 | N10: =SUM(Prop2020DistTar!N10,Prop2020TransTar!N10) -> 0 | O10: =SUM(Prop2020DistTar!O10,Prop2020TransTar!O10) -> 0 | P10: =SUM(Prop2020DistTar!P10,Prop2020TransTar!P10) -> 0 | R10: 0 | S10: 0 | T10: 0 | U10: 0 | V10: 0 | W10: 0 | X10: 0 | Y10: 2.05 | Z10: 0 | AA10: 0 | AB10: 0 | AC10: 0 | AD10: 0 | AG10: 0 | AH10: 0 | AI10: 0 | AJ10: 0 | AK10: 0 | AL10: 0 | AM10: 0 | AN10: 0.08780487805 | AO10: 0 | AP10: 0 | AQ10: 0 | AR10: 0 | AS10: 0 | AT10: =IF(MAX(ABS(AG10:AS10))>$AT$4,"EXPLAIN","") -> 
B11: Low voltage medium 1 rate | C11: =Prop2020DistTar!B11 -> Low voltage medium 1 rate | D11: =SUM(Prop2020DistTar!D11,Prop2020TransTar!D11) -> 13.23 | E11: =SUM(Prop2020DistTar!E11,Prop2020TransTar!E11) -> 11.25 | F11: =SUM(Prop2020DistTar!F11,Prop2020TransTar!F11) -> 0 | G11: =SUM(Prop2020DistTar!G11,Prop2020TransTar!G11) -> 0 | H11: =SUM(Prop2020DistTar!H11,Prop2020TransTar!H11) -> 11.25 | I11: =SUM(Prop2020DistTar!I11,Prop2020TransTar!I11) -> 0 | J11: =SUM(Prop2020DistTar!J11,Prop2020TransTar!J11) -> 0 | K11: =SUM(Prop2020DistTar!K11,Prop2020TransTar!K11) -> 0 | L11: =SUM(Prop2020DistTar!L11,Prop2020TransTar!L11) -> 0 | M11: =SUM(Prop2020DistTar!M11,Prop2020TransTar!M11) -> 0 | N11: =SUM(Prop2020DistTar!N11,Prop2020TransTar!N11) -> 0 | O11: =SUM(Prop2020DistTar!O11,Prop2020TransTar!O11) -> 0 | P11: =SUM(Prop2020DistTar!P11,Prop2020TransTar!P11) -> 0 | R11: 12.38 | S11: 11.65 | T11: 0 | U11: 0 | V11: 9.31 | W11: 0 | X11: 0 | Y11: 0 | Z11: 0 | AA11: 0 | AB11: 0 | AC11: 0 | AD11: 0 | AG11: 0.06865912763 | AH11: -0.03433476395 | AI11: 0 | AJ11: 0 | AK11: 0.2083780881 | AL11: 0 | AM11: 0 | AN11: 0 | AO11: 0 | AP11: 0 | AQ11: 0 | AR11: 0 | AS11: 0 | AT11: =IF(MAX(ABS(AG11:AS11))>$AT$4,"EXPLAIN","") -> EXPLAIN
B12: Low voltage medium 2 rate 5 day* | C12: =Prop2020DistTar!B12 -> Low voltage medium 2 rate 5 day | D12: =SUM(Prop2020DistTar!D12,Prop2020TransTar!D12) -> 25.34 | E12: =SUM(Prop2020DistTar!E12,Prop2020TransTar!E12) -> 0 | F12: =SUM(Prop2020DistTar!F12,Prop2020TransTar!F12) -> 0 | G12: =SUM(Prop2020DistTar!G12,Prop2020TransTar!G12) -> 16.14 | H12: =SUM(Prop2020DistTar!H12,Prop2020TransTar!H12) -> 0 | I12: =SUM(Prop2020DistTar!I12,Prop2020TransTar!I12) -> 0 | J12: =SUM(Prop2020DistTar!J12,Prop2020TransTar!J12) -> 12.68 | K12: =SUM(Prop2020DistTar!K12,Prop2020TransTar!K12) -> 2.58 | L12: =SUM(Prop2020DistTar!L12,Prop2020TransTar!L12) -> 0 | M12: =SUM(Prop2020DistTar!M12,Prop2020TransTar!M12) -> 0 | N12: =SUM(Prop2020DistTar!N12,Prop2020TransTar!N12) -> 0 | O12: =SUM(Prop2020DistTar!O12,Prop2020TransTar!O12) -> 0 | P12: =SUM(Prop2020DistTar!P12,Prop2020TransTar!P12) -> 0 | R12: 23.7 | S12: 0 | T12: 0 | U12: 14.82 | V12: 0 | W12: 0 | X12: 11.21 | Y12: 2.39 | Z12: 0 | AA12: 0 | AB12: 0 | AC12: 0 | AD12: 0 | AG12: 0.06919831224 | AH12: 0 | AI12: 0 | AJ12: 0.08906882591 | AK12: 0 | AL12: 0 | AM12: 0.131132917 | AN12: 0.07949790795 | AO12: 0 | AP12: 0 | AQ12: 0 | AR12: 0 | AS12: 0 | AT12: =IF(MAX(ABS(AG12:AS12))>$AT$4,"EXPLAIN","") -> 
B13: Low voltage medium 2 rate 7 day* | C13: =Prop2020DistTar!B13 -> Low voltage medium 2 rate 7 day | D13: =SUM(Prop2020DistTar!D13,Prop2020TransTar!D13) -> 26.96 | E13: =SUM(Prop2020DistTar!E13,Prop2020TransTar!E13) -> 0 | F13: =SUM(Prop2020DistTar!F13,Prop2020TransTar!F13) -> 0 | G13: =SUM(Prop2020DistTar!G13,Prop2020TransTar!G13) -> 13.6 | H13: =SUM(Prop2020DistTar!H13,Prop2020TransTar!H13) -> 0 | I13: =SUM(Prop2020DistTar!I13,Prop2020TransTar!I13) -> 0 | J13: =SUM(Prop2020DistTar!J13,Prop2020TransTar!J13) -> 11.03 | K13: =SUM(Prop2020DistTar!K13,Prop2020TransTar!K13) -> 2.08 | L13: =SUM(Prop2020DistTar!L13,Prop2020TransTar!L13) -> 0 | M13: =SUM(Prop2020DistTar!M13,Prop2020TransTar!M13) -> 0 | N13: =SUM(Prop2020DistTar!N13,Prop2020TransTar!N13) -> 0 | O13: =SUM(Prop2020DistTar!O13,Prop2020TransTar!O13) -> 0 | P13: =SUM(Prop2020DistTar!P13,Prop2020TransTar!P13) -> 0 | R13: 25.23 | S13: 0 | T13: 0 | U13: 12.59 | V13: 0 | W13: 0 | X13: 9.8 | Y13: 1.92 | Z13: 0 | AA13: 0 | AB13: 0 | AC13: 0 | AD13: 0 | AG13: 0.06856916369 | AH13: 0 | AI13: 0 | AJ13: 0.08022239873 | AK13: 0 | AL13: 0 | AM13: 0.1255102041 | AN13: 0.08333333333 | AO13: 0 | AP13: 0 | AQ13: 0 | AR13: 0 | AS13: 0 | AT13: =IF(MAX(ABS(AG13:AS13))>$AT$4,"EXPLAIN","") -> 
B14: Unmetered supplies | C14: =Prop2020DistTar!B14 -> Unmetered supplies | D14: =SUM(Prop2020DistTar!D14,Prop2020TransTar!D14) -> 0 | E14: =SUM(Prop2020DistTar!E14,Prop2020TransTar!E14) -> 0 | F14: =SUM(Prop2020DistTar!F14,Prop2020TransTar!F14) -> 0 | G14: =SUM(Prop2020DistTar!G14,Prop2020TransTar!G14) -> 11.33 | H14: =SUM(Prop2020DistTar!H14,Prop2020TransTar!H14) -> 0 | I14: =SUM(Prop2020DistTar!I14,Prop2020TransTar!I14) -> 0 | J14: =SUM(Prop2020DistTar!J14,Prop2020TransTar!J14) -> 11.33 | K14: =SUM(Prop2020DistTar!K14,Prop2020TransTar!K14) -> 1.76 | L14: =SUM(Prop2020DistTar!L14,Prop2020TransTar!L14) -> 0 | M14: =SUM(Prop2020DistTar!M14,Prop2020TransTar!M14) -> 0 | N14: =SUM(Prop2020DistTar!N14,Prop2020TransTar!N14) -> 0 | O14: =SUM(Prop2020DistTar!O14,Prop2020TransTar!O14) -> 0 | P14: =SUM(Prop2020DistTar!P14,Prop2020TransTar!P14) -> 0 | R14: 0 | S14: 0 | T14: 0 | U14: 11.95 | V14: 0 | W14: 0 | X14: 8.94 | Y14: 1.62 | Z14: 0 | AA14: 0 | AB14: 0 | AC14: 0 | AD14: 0 | AG14: 0 | AH14: 0 | AI14: 0 | AJ14: -0.05188284519 | AK14: 0 | AL14: 0 | AM14: 0.2673378076 | AN14: 0.08641975309 | AO14: 0 | AP14: 0 | AQ14: 0 | AR14: 0 | AS14: 0 | AT14: =IF(MAX(ABS(AG14:AS14))>$AT$4,"EXPLAIN","") -> EXPLAIN
B15: Low voltage large 1 rate* | C15: =Prop2020DistTar!B15 -> Low voltage large 1 rate | D15: =SUM(Prop2020DistTar!D15,Prop2020TransTar!D15) -> 15.49 | E15: =SUM(Prop2020DistTar!E15,Prop2020TransTar!E15) -> 9.28 | F15: =SUM(Prop2020DistTar!F15,Prop2020TransTar!F15) -> 0 | G15: =SUM(Prop2020DistTar!G15,Prop2020TransTar!G15) -> 0 | H15: =SUM(Prop2020DistTar!H15,Prop2020TransTar!H15) -> 9.28 | I15: =SUM(Prop2020DistTar!I15,Prop2020TransTar!I15) -> 0 | J15: =SUM(Prop2020DistTar!J15,Prop2020TransTar!J15) -> 0 | K15: =SUM(Prop2020DistTar!K15,Prop2020TransTar!K15) -> 0 | L15: =SUM(Prop2020DistTar!L15,Prop2020TransTar!L15) -> 0 | M15: =SUM(Prop2020DistTar!M15,Prop2020TransTar!M15) -> 0 | N15: =SUM(Prop2020DistTar!N15,Prop2020TransTar!N15) -> 0 | O15: =SUM(Prop2020DistTar!O15,Prop2020TransTar!O15) -> 0 | P15: =SUM(Prop2020DistTar!P15,Prop2020TransTar!P15) -> 0 | R15: 14.49 | S15: 9.19 | T15: 0 | U15: 0 | V15: 7.27 | W15: 0 | X15: 0 | Y15: 0 | Z15: 0 | AA15: 0 | AB15: 0 | AC15: 0 | AD15: 0 | AG15: 0.06901311249 | AH15: 0.009793253536 | AI15: 0 | AJ15: 0 | AK15: 0.2764786795 | AL15: 0 | AM15: 0 | AN15: 0 | AO15: 0 | AP15: 0 | AQ15: 0 | AR15: 0 | AS15: 0 | AT15: =IF(MAX(ABS(AG15:AS15))>$AT$4,"EXPLAIN","") -> EXPLAIN
B16: Low voltage large 2 rate* | C16: =Prop2020DistTar!B16 -> Low voltage large 2 rate | D16: =SUM(Prop2020DistTar!D16,Prop2020TransTar!D16) -> 22.35 | E16: =SUM(Prop2020DistTar!E16,Prop2020TransTar!E16) -> 0 | F16: =SUM(Prop2020DistTar!F16,Prop2020TransTar!F16) -> 0 | G16: =SUM(Prop2020DistTar!G16,Prop2020TransTar!G16) -> 15.09 | H16: =SUM(Prop2020DistTar!H16,Prop2020TransTar!H16) -> 0 | I16: =SUM(Prop2020DistTar!I16,Prop2020TransTar!I16) -> 0 | J16: =SUM(Prop2020DistTar!J16,Prop2020TransTar!J16) -> 12.51 | K16: =SUM(Prop2020DistTar!K16,Prop2020TransTar!K16) -> 2.38 | L16: =SUM(Prop2020DistTar!L16,Prop2020TransTar!L16) -> 0 | M16: =SUM(Prop2020DistTar!M16,Prop2020TransTar!M16) -> 0 | N16: =SUM(Prop2020DistTar!N16,Prop2020TransTar!N16) -> 0 | O16: =SUM(Prop2020DistTar!O16,Prop2020TransTar!O16) -> 0 | P16: =SUM(Prop2020DistTar!P16,Prop2020TransTar!P16) -> 0 | R16: 20.91 | S16: 0 | T16: 0 | U16: 13.49 | V16: 0 | W16: 0 | X16: 10.74 | Y16: 2.21 | Z16: 0 | AA16: 0 | AB16: 0 | AC16: 0 | AD16: 0 | AG16: 0.06886657102 | AH16: 0 | AI16: 0 | AJ16: 0.1186063751 | AK16: 0 | AL16: 0 | AM16: 0.1648044693 | AN16: 0.07692307692 | AO16: 0 | AP16: 0 | AQ16: 0 | AR16: 0 | AS16: 0
B17: Low voltage KW time of use* | C17: =Prop2020DistTar!B17 -> Low voltage KW time of use | D17: =SUM(Prop2020DistTar!D17,Prop2020TransTar!D17) -> 0 | E17: =SUM(Prop2020DistTar!E17,Prop2020TransTar!E17) -> 0 | F17: =SUM(Prop2020DistTar!F17,Prop2020TransTar!F17) -> 0 | G17: =SUM(Prop2020DistTar!G17,Prop2020TransTar!G17) -> 13.69 | H17: =SUM(Prop2020DistTar!H17,Prop2020TransTar!H17) -> 0 | I17: =SUM(Prop2020DistTar!I17,Prop2020TransTar!I17) -> 0 | J17: =SUM(Prop2020DistTar!J17,Prop2020TransTar!J17) -> 8.91 | K17: =SUM(Prop2020DistTar!K17,Prop2020TransTar!K17) -> 2.69 | L17: =SUM(Prop2020DistTar!L17,Prop2020TransTar!L17) -> 0 | M17: =SUM(Prop2020DistTar!M17,Prop2020TransTar!M17) -> 0 | N17: =SUM(Prop2020DistTar!N17,Prop2020TransTar!N17) -> 66.64 | O17: =SUM(Prop2020DistTar!O17,Prop2020TransTar!O17) -> 0 | P17: =SUM(Prop2020DistTar!P17,Prop2020TransTar!P17) -> 0 | R17: 0 | S17: 0 | T17: 0 | U17: 12.3 | V17: 0 | W17: 0 | X17: 7.57 | Y17: 2.47 | Z17: 0 | AA17: 0 | AB17: 58.7 | AC17: 0 | AD17: 0 | AG17: 0 | AH17: 0 | AI17: 0 | AJ17: 0.1130081301 | AK17: 0 | AL17: 0 | AM17: 0.177014531 | AN17: 0.08906882591 | AO17: 0 | AP17: 0 | AQ17: 0.1352640545 | AR17: 0 | AS17: 0 | AT17: =IF(MAX(ABS(AG17:AS17))>$AT$4,"EXPLAIN","") -> EXPLAIN
B18: Low voltage KW time of use - HOT* | C18: =Prop2020DistTar!B18 -> Low voltage KW time of use - HOT | D18: =SUM(Prop2020DistTar!D18,Prop2020TransTar!D18) -> 0 | E18: =SUM(Prop2020DistTar!E18,Prop2020TransTar!E18) -> 0 | F18: =SUM(Prop2020DistTar!F18,Prop2020TransTar!F18) -> 0 | G18: =SUM(Prop2020DistTar!G18,Prop2020TransTar!G18) -> 9.35 | H18: =SUM(Prop2020DistTar!H18,Prop2020TransTar!H18) -> 0 | I18: =SUM(Prop2020DistTar!I18,Prop2020TransTar!I18) -> 0 | J18: =SUM(Prop2020DistTar!J18,Prop2020TransTar!J18) -> 7.48 | K18: =SUM(Prop2020DistTar!K18,Prop2020TransTar!K18) -> 1.83 | L18: =SUM(Prop2020DistTar!L18,Prop2020TransTar!L18) -> 0 | M18: =SUM(Prop2020DistTar!M18,Prop2020TransTar!M18) -> 0 | N18: =SUM(Prop2020DistTar!N18,Prop2020TransTar!N18) -> 82.86 | O18: =SUM(Prop2020DistTar!O18,Prop2020TransTar!O18) -> 0 | P18: =SUM(Prop2020DistTar!P18,Prop2020TransTar!P18) -> 0 | R18: 0 | S18: 0 | T18: 0 | U18: 8.62 | V18: 0 | W18: 0 | X18: 6.66 | Y18: 1.71 | Z18: 0 | AA18: 0 | AB18: 76.01 | AC18: 0 | AD18: 0 | AG18: 0 | AH18: 0 | AI18: 0 | AJ18: 0.08468677494 | AK18: 0 | AL18: 0 | AM18: 0.1231231231 | AN18: 0.0701754386 | AO18: 0 | AP18: 0 | AQ18: 0.09011972109 | AR18: 0 | AS18: 0 | AT18: =IF(MAX(ABS(AG18:AS18))>$AT$4,"EXPLAIN","") -> 
B19: Low voltage large KVA time of use | C19: =Prop2020DistTar!B19 -> Low voltage large KVA time of use | D19: =SUM(Prop2020DistTar!D19,Prop2020TransTar!D19) -> 0 | E19: =SUM(Prop2020DistTar!E19,Prop2020TransTar!E19) -> 0 | F19: =SUM(Prop2020DistTar!F19,Prop2020TransTar!F19) -> 0 | G19: =SUM(Prop2020DistTar!G19,Prop2020TransTar!G19) -> 2.66 | H19: =SUM(Prop2020DistTar!H19,Prop2020TransTar!H19) -> 0 | I19: =SUM(Prop2020DistTar!I19,Prop2020TransTar!I19) -> 0 | J19: =SUM(Prop2020DistTar!J19,Prop2020TransTar!J19) -> 2.41 | K19: =SUM(Prop2020DistTar!K19,Prop2020TransTar!K19) -> 1.37 | L19: =SUM(Prop2020DistTar!L19,Prop2020TransTar!L19) -> 0 | M19: =SUM(Prop2020DistTar!M19,Prop2020TransTar!M19) -> 21.36 | N19: =SUM(Prop2020DistTar!N19,Prop2020TransTar!N19) -> 31.3 | O19: =SUM(Prop2020DistTar!O19,Prop2020TransTar!O19) -> 0 | P19: =SUM(Prop2020DistTar!P19,Prop2020TransTar!P19) -> 0 | R19: 0 | S19: 0 | T19: 0 | U19: 2.49 | V19: 0 | W19: 0 | X19: 2.07 | Y19: 1.28 | Z19: 0 | AA19: 19.33 | AB19: 28.34 | AC19: 0 | AD19: 0 | AG19: 0 | AH19: 0 | AI19: 0 | AJ19: 0.06827309237 | AK19: 0 | AL19: 0 | AM19: 0.1642512077 | AN19: 0.0703125 | AO19: 0 | AP19: 0.1050181066 | AQ19: 0.1044460127 | AR19: 0 | AS19: 0 | AT19: =IF(MAX(ABS(AG19:AS19))>$AT$4,"EXPLAIN","") -> EXPLAIN
